Workbook

Sheet IntLength - Reboud Time
A1: FemOnlyCNVR | B1: 5y | C1: 89
A2: FemOnlyCNVR | B2: 5y | C2: 89
A3: FemOnlyCNVR | B3: 5y | C3: 82
A4: FemOnlyCNVR | B4: 5y | C4: 78
A5: FemOnlyCNVR | B5: 5y | C5: 80
A6: FemOnlyCNVR | B6: 5y | C6: 82
A7: FemOnlyCNVR | B7: 5y | C7: 82
A8: FemOnlyCNVR | B8: 5y | C8: 86
A9: FemOnlyCNVR | B9: 5y | C9: 93
A10: FemOnlyCNVR | B10: 5y | C10: 83
A11: FemOnlyCNVR | B11: 5y | C11: 87
A12: FemOnlyCNVR | B12: 5y | C12: 81
A13: FemOnlyCNVR | B13: 5y | C13: 84
A14: FemOnlyCNVR | B14: 5y | C14: 84
A15: FemOnlyCNVR | B15: 5y | C15: 84
A16: FemOnlyCNVR | B16: 5y | C16: 82
A17: FemOnlyCNVR | B17: 5y | C17: 83
A18: FemOnlyCNVR | B18: 5y | C18: 84
A19: FemOnlyCNVR | B19: 5y | C19: 78
A20: FemOnlyCNVR | B20: 5y | C20: 82
A21: FemOnlyCNVR | B21: 5y | C21: 78
A22: FemOnlyCNVR | B22: 5y | C22: 85
A23: FemOnlyCNVR | B23: 5y | C23: 73
A24: FemOnlyCNVR | B24: 5y | C24: 87
A25: FemOnlyCNVR | B25: 5y | C25: 79
A26: FemOnlyCNVR | B26: 10y | C26: 83 | D26: =AVERAGE(C26:C50) -> 79.92 | E26: =D26/12 -> 6.66
A27: FemOnlyCNVR | B27: 10y | C27: 79
A28: FemOnlyCNVR | B28: 10y | C28: 77
A29: FemOnlyCNVR | B29: 10y | C29: 81
A30: FemOnlyCNVR | B30: 10y | C30: 83
A31: FemOnlyCNVR | B31: 10y | C31: 77
A32: FemOnlyCNVR | B32: 10y | C32: 82
A33: FemOnlyCNVR | B33: 10y | C33: 82
A34: FemOnlyCNVR | B34: 10y | C34: 83
A35: FemOnlyCNVR | B35: 10y | C35: 84
A36: FemOnlyCNVR | B36: 10y | C36: 81
A37: FemOnlyCNVR | B37: 10y | C37: 76
A38: FemOnlyCNVR | B38: 10y | C38: 80
A39: FemOnlyCNVR | B39: 10y | C39: 80
A40: FemOnlyCNVR | B40: 10y | C40: 79
A41: FemOnlyCNVR | B41: 10y | C41: 78
A42: FemOnlyCNVR | B42: 10y | C42: 77
A43: FemOnlyCNVR | B43: 10y | C43: 83
A44: FemOnlyCNVR | B44: 10y | C44: 71
A45: FemOnlyCNVR | B45: 10y | C45: 77
A46: FemOnlyCNVR | B46: 10y | C46: 83
A47: FemOnlyCNVR | B47: 10y | C47: 81
A48: FemOnlyCNVR | B48: 10y | C48: 82
A49: FemOnlyCNVR | B49: 10y | C49: 85
A50: FemOnlyCNVR | B50: 10y | C50: 74
A51: FemOnlyCNVR | B51: 15y | C51: 86 | D51: =AVERAGE(C51:C75) -> 78.44 | E51: =D51/12 -> 6.536666667
A52: FemOnlyCNVR | B52: 15y | C52: 79
A53: FemOnlyCNVR | B53: 15y | C53: 73
A54: FemOnlyCNVR | B54: 15y | C54: 83
A55: FemOnlyCNVR | B55: 15y | C55: 74
A56: FemOnlyCNVR | B56: 15y | C56: 75
A57: FemOnlyCNVR | B57: 15y | C57: 76
A58: FemOnlyCNVR | B58: 15y | C58: 81
A59: FemOnlyCNVR | B59: 15y | C59: 82
A60: FemOnlyCNVR | B60: 15y | C60: 80
A61: FemOnlyCNVR | B61: 15y | C61: 79
A62: FemOnlyCNVR | B62: 15y | C62: 79
A63: FemOnlyCNVR | B63: 15y | C63: 73
A64: FemOnlyCNVR | B64: 15y | C64: 78
A65: FemOnlyCNVR | B65: 15y | C65: 81
A66: FemOnlyCNVR | B66: 15y | C66: 80
A67: FemOnlyCNVR | B67: 15y | C67: 76
A68: FemOnlyCNVR | B68: 15y | C68: 78
A69: FemOnlyCNVR | B69: 15y | C69: 81
A70: FemOnlyCNVR | B70: 15y | C70: 82
A71: FemOnlyCNVR | B71: 15y | C71: 81
A72: FemOnlyCNVR | B72: 15y | C72: 77
A73: FemOnlyCNVR | B73: 15y | C73: 76
A74: FemOnlyCNVR | B74: 15y | C74: 75
A75: FemOnlyCNVR | B75: 15y | C75: 76
A76: Lethal | B76: 5y | C76: 35 | D76: =AVERAGE(C76:C100) -> 36.72 | E76: =D76/12 -> 3.06
A77: Lethal | B77: 5y | C77: 35
A78: Lethal | B78: 5y | C78: 37
A79: Lethal | B79: 5y | C79: 38
A80: Lethal | B80: 5y | C80: 36
A81: Lethal | B81: 5y | C81: 37
A82: Lethal | B82: 5y | C82: 39
A83: Lethal | B83: 5y | C83: 40
A84: Lethal | B84: 5y | C84: 43
A85: Lethal | B85: 5y | C85: 36
A86: Lethal | B86: 5y | C86: 34
A87: Lethal | B87: 5y | C87: 43
A88: Lethal | B88: 5y | C88: 38
A89: Lethal | B89: 5y | C89: 42
A90: Lethal | B90: 5y | C90: 42
A91: Lethal | B91: 5y | C91: 35
A92: Lethal | B92: 5y | C92: 31
A93: Lethal | B93: 5y | C93: 40
A94: Lethal | B94: 5y | C94: 29
A95: Lethal | B95: 5y | C95: 36
A96: Lethal | B96: 5y | C96: 34
A97: Lethal | B97: 5y | C97: 33
A98: Lethal | B98: 5y | C98: 36
A99: Lethal | B99: 5y | C99: 36
A100: Lethal | B100: 5y | C100: 33
A101: Lethal | B101: 10y | C101: 35 | D101: =AVERAGE(C101:C125) -> 41.12 | E101: =D101/12 -> 3.426666667
A102: Lethal | B102: 10y | C102: 43
A103: Lethal | B103: 10y | C103: 44
A104: Lethal | B104: 10y | C104: 41
A105: Lethal | B105: 10y | C105: 36
A106: Lethal | B106: 10y | C106: 43
A107: Lethal | B107: 10y | C107: 35
A108: Lethal | B108: 10y | C108: 46
A109: Lethal | B109: 10y | C109: 41
A110: Lethal | B110: 10y | C110: 42
A111: Lethal | B111: 10y | C111: 45
A112: Lethal | B112: 10y | C112: 38
A113: Lethal | B113: 10y | C113: 41
A114: Lethal | B114: 10y | C114: 49
A115: Lethal | B115: 10y | C115: 42
A116: Lethal | B116: 10y | C116: 41
A117: Lethal | B117: 10y | C117: 36
A118: Lethal | B118: 10y | C118: 46
A119: Lethal | B119: 10y | C119: 45
A120: Lethal | B120: 10y | C120: 40
A121: Lethal | B121: 10y | C121: 35
A122: Lethal | B122: 10y | C122: 37
A123: Lethal | B123: 10y | C123: 46
A124: Lethal | B124: 10y | C124: 32
A125: Lethal | B125: 10y | C125: 49
A126: Lethal | B126: 15y | C126: 38 | D126: =AVERAGE(C126:C150) -> 42.6 | E126: =D126/12 -> 3.55
A127: Lethal | B127: 15y | C127: 41
A128: Lethal | B128: 15y | C128: 47
A129: Lethal | B129: 15y | C129: 50
A130: Lethal | B130: 15y | C130: 58
A131: Lethal | B131: 15y | C131: 36
A132: Lethal | B132: 15y | C132: 36
A133: Lethal | B133: 15y | C133: 47
A134: Lethal | B134: 15y | C134: 32
A135: Lethal | B135: 15y | C135: 39
A136: Lethal | B136: 15y | C136: 44
A137: Lethal | B137: 15y | C137: 38
A138: Lethal | B138: 15y | C138: 46
A139: Lethal | B139: 15y | C139: 45
A140: Lethal | B140: 15y | C140: 41
A141: Lethal | B141: 15y | C141: 39
A142: Lethal | B142: 15y | C142: 40
A143: Lethal | B143: 15y | C143: 47
A144: Lethal | B144: 15y | C144: 51
A145: Lethal | B145: 15y | C145: 56
A146: Lethal | B146: 15y | C146: 44
A147: Lethal | B147: 15y | C147: 33
A148: Lethal | B148: 15y | C148: 36
A149: Lethal | B149: 15y | C149: 38
A150: Lethal | B150: 15y | C150: 43

Sheet Scheme Data
A1: Scheme | B1: DogDeaths | C1: Lowest Pop | D1: TimeToRebound | E1: PuppyPercent | F1: MaxVacc
A2: Lethal | B2: 224953 | C2: 20466.5 | D2: 26 | E2: 26.17114621 | G2: =AVERAGE(E2:E26) -> 25.59
A3: Lethal | B3: 247780 | C3: 22617.91667 | D3: 25 | E3: 25.38910675
A4: Lethal | B4: 222973 | C4: 20750.5 | D4: 22 | E4: 25.28956052
A5: Lethal | B5: 226776 | C5: 20281.25 | D5: 26 | E5: 25.24409551
A6: Lethal | B6: 238989 | C6: 21967.33333 | D6: 23 | E6: 25.42556791
A7: Lethal | B7: 220958 | C7: 19969.83333 | D7: 26 | E7: 26.04402004
A8: Lethal | B8: 242734 | C8: 22776.75 | D8: 19 | E8: 25.68704743
A9: Lethal | B9: 206143 | C9: 18031.83333 | D9: 35 | E9: 25.6427431
A10: Lethal | B10: 241456 | C10: 21117.5 | D10: 29 | E10: 25.43859315
A11: Lethal | B11: 227992 | C11: 20022.16667 | D11: 33 | E11: 26.01250036
A12: Lethal | B12: 249351 | C12: 23026.58333 | D12: 24 | E12: 25.24928937
A13: Lethal | B13: 243998 | C13: 22233.83333 | D13: 23 | E13: 24.69633106
A14: Lethal | B14: 234829 | C14: 22296.5 | D14: 18 | E14: 25.81650523
A15: Lethal | B15: 249358 | C15: 23290.08333 | D15: 22 | E15: 26.19825222
A16: Lethal | B16: 248225 | C16: 21980.25 | D16: 27 | E16: 25.69174347
A17: Lethal | B17: 230661 | C17: 21330.33333 | D17: 22 | E17: 25.80737726
A18: Lethal | B18: 232134 | C18: 21081.91667 | D18: 25 | E18: 25.7240958
A19: Lethal | B19: 263900 | C19: 24928.5 | D19: 21 | E19: 25.39402807
A20: Lethal | B20: 255298 | C20: 24223.33333 | D20: 21 | E20: 26.17228141
A21: Lethal | B21: 253749 | C21: 22248.41667 | D21: 26 | E21: 25.03677369
A22: Lethal | B22: 251900 | C22: 22702.5 | D22: 27 | E22: 25.53465172
A23: Lethal | B23: 210623 | C23: 18688.41667 | D23: 31 | E23: 25.49131463
A24: Lethal | B24: 221219 | C24: 19643.58333 | D24: 28 | E24: 25.76024727
A25: Lethal | B25: 266023 | C25: 25279.5 | D25: 18 | E25: 25.45988182
A26: Lethal | B26: 208545 | C26: 18039 | D26: 34 | E26: 25.44850426
A27: VaccOnly | B27: 291727 | C27: 26057 | E27: 23.55561493 | F27: 24.3252503 | G27: =AVERAGE(E27:E51) -> 23.76
A28: VaccOnly | B28: 303162 | C28: 27031.08333 | E28: 23.80325062 | F28: 24.16001798
A29: VaccOnly | B29: 280194 | C29: 24944.91667 | E29: 24.24962447 | F29: 23.82687588
A30: VaccOnly | B30: 275617 | C30: 24590.83333 | E30: 23.98575029 | F30: 25.1373257
A31: VaccOnly | B31: 295524 | C31: 26298.16667 | E31: 23.95413214 | F31: 25.42022437
A32: VaccOnly | B32: 292921 | C32: 25849.75 | E32: 23.87359288 | F32: 25.21416446
A33: VaccOnly | B33: 271504 | C33: 24300.08333 | E33: 23.46519122 | F33: 23.87720075
A34: VaccOnly | B34: 230746 | C34: 21191.41667 | E34: 24.04606603 | F34: 21.90496484
A35: VaccOnly | B35: 291791 | C35: 26355.83333 | E35: 23.77126806 | F35: 24.86826642
A36: VaccOnly | B36: 285945 | C36: 25225.5 | E36: 23.53086121 | F36: 25.56224975
A37: VaccOnly | B37: 279568 | C37: 24704.66667 | E37: 23.46333156 | F37: 22.95297827
A38: VaccOnly | B38: 296424 | C38: 26299.33333 | E38: 23.82350341 | F38: 25.29821844
A39: VaccOnly | B39: 297926 | C39: 26624.25 | E39: 24.64546384 | F39: 25.18199992
A40: VaccOnly | B40: 274880 | C40: 24307.83333 | E40: 23.20035031 | F40: 23.37312867
A41: VaccOnly | B41: 287420 | C41: 25528.16667 | E41: 24.39435566 | F41: 25.93549926
A42: VaccOnly | B42: 289712 | C42: 25555.5 | E42: 24.14287316 | F42: 26.27441639
A43: VaccOnly | B43: 296692 | C43: 26296.91667 | E43: 23.63146036 | F43: 23.57337431
A44: VaccOnly | B44: 308835 | C44: 27644.08333 | E44: 23.49098323 | F44: 25.79904306
A45: VaccOnly | B45: 275504 | C45: 24780.33333 | E45: 23.55210378 | F45: 22.91844032
A46: VaccOnly | B46: 279861 | C46: 24847.33333 | E46: 22.93129969 | F46: 26.89192506
A47: VaccOnly | B47: 287439 | C47: 25329.5 | E47: 23.31523979 | F47: 22.61342888
A48: VaccOnly | B48: 307102 | C48: 27364.91667 | E48: 23.90258059 | F48: 25.29963122
A49: VaccOnly | B49: 304889 | C49: 27084.08333 | E49: 23.46801725 | F49: 22.94919103
A50: VaccOnly | B50: 264834 | C50: 23635.58333 | E50: 23.8633289 | F50: 24.21432437
A51: VaccOnly | B51: 280372 | C51: 25294.83333 | E51: 23.99631321 | F51: 24.28699231
A52: MaleCNVR | B52: 200485 | C52: 23898.08333 | D52: 12 | E52: 18.63811838 | F52: 27.6305601 | G52: =AVERAGE(E52:E76) -> 18.13
A53: MaleCNVR | B53: 207577 | C53: 24083.16667 | D53: 23 | E53: 17.83369537 | F53: 30.61178587
A54: MaleCNVR | B54: 202111 | C54: 23113.08333 | D54: 36 | E54: 17.20052832 | F54: 25.85474176
A55: MaleCNVR | B55: 217918 | C55: 25703.5 | D55: 21 | E55: 18.55020813 | F55: 30.51178481
A56: MaleCNVR | B56: 196842 | C56: 22978.5 | D56: 1 | E56: 18.57798391 | F56: 29.7833935
A57: MaleCNVR | B57: 218289 | C57: 25566.16667 | D57: 14 | E57: 18.86435997 | F57: 27.26686028
A58: MaleCNVR | B58: 215228 | C58: 24875.08333 | D58: 27 | E58: 17.67203606 | F58: 28.40855311
A59: MaleCNVR | B59: 212691 | C59: 25268.66667 | D59: 12 | E59: 18.75123808 | F59: 27.2054568
A60: MaleCNVR | B60: 206117 | C60: 24150.08333 | D60: 24 | E60: 17.93819677 | F60: 26.39602054
A61: MaleCNVR | B61: 210824 | C61: 24170.08333 | D61: 25 | E61: 17.3338 | F61: 27.24183208
A62: MaleCNVR | B62: 209372 | C62: 24560.41667 | D62: 18 | E62: 18.59325846 | F62: 26.22683284
A63: MaleCNVR | B63: 211210 | C63: 24882 | D63: 1 | E63: 18.25209084 | F63: 26.07721084
A64: MaleCNVR | B64: 207723 | C64: 23669.91667 | D64: 37 | E64: 17.3337249 | F64: 28.69093661
A65: MaleCNVR | B65: 188245 | C65: 21734 | D65: 33 | E65: 17.17125026 | F65: 29.96437921
A66: MaleCNVR | B66: 206306 | C66: 24019.75 | D66: 25 | E66: 17.72019632 | F66: 24.41981942
A67: MaleCNVR | B67: 213697 | C67: 24897.58333 | D67: 34 | E67: 17.9103913 | F67: 24.37358505
A68: MaleCNVR | B68: 218094 | C68: 25521.16667 | D68: 20 | E68: 18.1365815 | F68: 27.31019702
A69: MaleCNVR | B69: 207273 | C69: 23923.25 | D69: 34 | E69: 17.50185032 | F69: 27.84380999
A70: MaleCNVR | B70: 232267 | C70: 27218.5 | D70: 1 | E70: 18.80578838 | F70: 25.25146608
A71: MaleCNVR | B71: 211172 | C71: 24832.66667 | D71: 22 | E71: 18.62603543 | F71: 27.8676099
A72: MaleCNVR | B72: 228543 | C72: 26913.41667 | D72: 1 | E72: 18.20204896 | F72: 25.34640081
A73: MaleCNVR | B73: 229719 | C73: 27013.91667 | D73: 1 | E73: 19.31233038 | F73: 29.76259668
A74: MaleCNVR | B74: 215636 | C74: 25650.91667 | D74: 1 | E74: 18.81545753 | F74: 27.76706356
A75: MaleCNVR | B75: 189394 | C75: 22222.83333 | D75: 35 | E75: 17.3264336 | F75: 26.94021387
A76: MaleCNVR | B76: 206264 | C76: 23980.83333 | D76: 32 | E76: 18.07884539 | F76: 27.6305601
A77: FemCNVR | B77: 169664 | C77: 22139.08333 | D77: 57 | E77: 16.05773643 | F77: 28.20465966 | G77: =AVERAGE(E77:E101) -> 15.62
A78: FemCNVR | B78: 166371 | C78: 21326.16667 | D78: 59 | E78: 15.25975957 | F78: 26.14490047
A79: FemCNVR | B79: 170138 | C79: 22120.83333 | D79: 50 | E79: 16.07514224 | F79: 28.40415735
A80: FemCNVR | B80: 172132 | C80: 22293.75 | D80: 52 | E80: 15.8164692 | F80: 28.15253368
A81: FemCNVR | B81: 167723 | C81: 21561.66667 | D81: 55 | E81: 15.57926497 | F81: 28.61127356
A82: FemCNVR | B82: 161074 | C82: 20952 | D82: 51 | E82: 15.89083836 | F82: 25.88794707
A83: FemCNVR | B83: 161755 | C83: 20555.25 | D83: 58 | E83: 15.45817582 | F83: 27.35394277
A84: FemCNVR | B84: 155623 | C84: 19980.5 | D84: 59 | E84: 15.52709823 | F84: 26.9452881
A85: FemCNVR | B85: 158950 | C85: 20427 | D85: 62 | E85: 15.40291503 | F85: 28.46822742
A86: FemCNVR | B86: 157838 | C86: 20477.41667 | D86: 57 | E86: 15.84706324 | F86: 28.10117657
A87: FemCNVR | B87: 180305 | C87: 22495.16667 | D87: 60 | E87: 15.46366475 | F87: 26.22246104
A88: FemCNVR | B88: 153156 | C88: 19759.41667 | D88: 58 | E88: 15.66712602 | F88: 26.68790906
A89: FemCNVR | B89: 188730 | C89: 23801.41667 | D89: 52 | E89: 15.74915586 | F89: 27.22922028
A90: FemCNVR | B90: 154251 | C90: 19810.83333 | D90: 59 | E90: 15.50868292 | F90: 28.76344086
A91: FemCNVR | B91: 179673 | C91: 23174.25 | D91: 49 | E91: 16.15257554 | F91: 27.88984066
A92: FemCNVR | B92: 159491 | C92: 20078 | D92: 62 | E92: 14.74622324 | F92: 26.88080791
A93: FemCNVR | B93: 172999 | C93: 22106.08333 | D93: 57 | E93: 15.36788818 | F93: 25.8370382
A94: FemCNVR | B94: 166128 | C94: 21693.41667 | D94: 55 | E94: 15.64679085 | F94: 27.81637499
A95: FemCNVR | B95: 158141 | C95: 20904 | D95: 49 | E95: 15.74563398 | F95: 26.58170043
A96: FemCNVR | B96: 170513 | C96: 22087.5 | D96: 59 | E96: 15.65503862 | F96: 24.5306873
A97: FemCNVR | B97: 166047 | C97: 21485 | D97: 54 | E97: 15.33694419 | F97: 26.64230613
A98: FemCNVR | B98: 145119 | C98: 18399.58333 | D98: 66 | E98: 15.19027808 | F98: 26.50800337
A99: FemCNVR | B99: 151228 | C99: 19709.66667 | D99: 58 | E99: 15.39308504 | F99: 27.19543093
A100: FemCNVR | B100: 172080 | C100: 22386.58333 | D100: 48 | E100: 16.03786916 | F100: 28.59350168
A101: FemCNVR | B101: 174458 | C101: 22828 | D101: 51 | E101: 15.94121896 | F101: 26.12711589

Sheet CPM Data
A1: FemCNVR | B1: One hundred | C1: 26017.16667 | E1: =AVERAGE(C1:C25) -> 26729.08
A2: FemCNVR | B2: One hundred | C2: 25466.91667
A3: FemCNVR | B3: One hundred | C3: 27122.08333
A4: FemCNVR | B4: One hundred | C4: 28450.25
A5: FemCNVR | B5: One hundred | C5: 25580.25
A6: FemCNVR | B6: One hundred | C6: 24566.5
A7: FemCNVR | B7: One hundred | C7: 25853.41667
A8: FemCNVR | B8: One hundred | C8: 25011
A9: FemCNVR | B9: One hundred | C9: 25798.66667
A10: FemCNVR | B10: One hundred | C10: 28072.25
A11: FemCNVR | B11: One hundred | C11: 25499.83333
A12: FemCNVR | B12: One hundred | C12: 27895.25
A13: FemCNVR | B13: One hundred | C13: 27773.75
A14: FemCNVR | B14: One hundred | C14: 29591.91667
A15: FemCNVR | B15: One hundred | C15: 19659.25
A16: FemCNVR | B16: One hundred | C16: 26486.33333
A17: FemCNVR | B17: One hundred | C17: 28132.41667
A18: FemCNVR | B18: One hundred | C18: 28490.33333
A19: FemCNVR | B19: One hundred | C19: 26817.83333
A20: FemCNVR | B20: One hundred | C20: 24504.33333
A21: FemCNVR | B21: One hundred | C21: 29456.75
A22: FemCNVR | B22: One hundred | C22: 25964.83333
A23: FemCNVR | B23: One hundred | C23: 28617.08333
A24: FemCNVR | B24: One hundred | C24: 28074.16667
A25: FemCNVR | B25: One hundred | C25: 29324.41667
A26: FemCNVR | B26: Three hundred | C26: 21530.16667 | E26: =AVERAGE(C26:C50) -> 21504.85667
A27: FemCNVR | B27: Three hundred | C27: 22719.16667
A28: FemCNVR | B28: Three hundred | C28: 19735.83333
A29: FemCNVR | B29: Three hundred | C29: 21648.08333
A30: FemCNVR | B30: Three hundred | C30: 22164.25
A31: FemCNVR | B31: Three hundred | C31: 20177
A32: FemCNVR | B32: Three hundred | C32: 22016.16667
A33: FemCNVR | B33: Three hundred | C33: 20424.58333
A34: FemCNVR | B34: Three hundred | C34: 22568.41667
A35: FemCNVR | B35: Three hundred | C35: 21872.91667
A36: FemCNVR | B36: Three hundred | C36: 23598
A37: FemCNVR | B37: Three hundred | C37: 22827.5
A38: FemCNVR | B38: Three hundred | C38: 20559
A39: FemCNVR | B39: Three hundred | C39: 21024.25
A40: FemCNVR | B40: Three hundred | C40: 20457.5
A41: FemCNVR | B41: Three hundred | C41: 23426.66667
A42: FemCNVR | B42: Three hundred | C42: 20984.08333
A43: FemCNVR | B43: Three hundred | C43: 23150.83333
A44: FemCNVR | B44: Three hundred | C44: 21046.5
A45: FemCNVR | B45: Three hundred | C45: 20109.25
A46: FemCNVR | B46: Three hundred | C46: 20662.75
A47: FemCNVR | B47: Three hundred | C47: 21620.66667
A48: FemCNVR | B48: Three hundred | C48: 21066.25
A49: FemCNVR | B49: Three hundred | C49: 22321.33333
A50: FemCNVR | B50: Three hundred | C50: 19910.25
A51: FemCNVR | B51: Five hundred | C51: 22339.25 | E51: =AVERAGE(C51:C75) -> 21079.30333
A52: FemCNVR | B52: Five hundred | C52: 22479.58333
A53: FemCNVR | B53: Five hundred | C53: 20874.5
A54: FemCNVR | B54: Five hundred | C54: 19768.75
A55: FemCNVR | B55: Five hundred | C55: 20325.25
A56: FemCNVR | B56: Five hundred | C56: 19787.08333
A57: FemCNVR | B57: Five hundred | C57: 20792.25
A58: FemCNVR | B58: Five hundred | C58: 21831.83333
A59: FemCNVR | B59: Five hundred | C59: 20059.75
A60: FemCNVR | B60: Five hundred | C60: 21433.91667
A61: FemCNVR | B61: Five hundred | C61: 20298.16667
A62: FemCNVR | B62: Five hundred | C62: 20674.83333
A63: FemCNVR | B63: Five hundred | C63: 19333.5
A64: FemCNVR | B64: Five hundred | C64: 22004.91667
A65: FemCNVR | B65: Five hundred | C65: 17994.66667
A66: FemCNVR | B66: Five hundred | C66: 24028.5
A67: FemCNVR | B67: Five hundred | C67: 22391.5
A68: FemCNVR | B68: Five hundred | C68: 20134.5
A69: FemCNVR | B69: Five hundred | C69: 22413.33333
A70: FemCNVR | B70: Five hundred | C70: 21545.08333
A71: FemCNVR | B71: Five hundred | C71: 21110.5
A72: FemCNVR | B72: Five hundred | C72: 20462.91667
A73: FemCNVR | B73: Five hundred | C73: 22312.33333
A74: FemCNVR | B74: Five hundred | C74: 21207.5
A75: FemCNVR | B75: Five hundred | C75: 21378.16667
A76: Lethal | B76: One hundred | C76: 29274.58333 | E76: =AVERAGE(C76:C100) -> 27802.52
A77: Lethal | B77: One hundred | C77: 29154.33333
A78: Lethal | B78: One hundred | C78: 27358.41667
A79: Lethal | B79: One hundred | C79: 26576.66667
A80: Lethal | B80: One hundred | C80: 27842.91667
A81: Lethal | B81: One hundred | C81: 27849.58333
A82: Lethal | B82: One hundred | C82: 29875.58333
A83: Lethal | B83: One hundred | C83: 30648.75
A84: Lethal | B84: One hundred | C84: 28217.41667
A85: Lethal | B85: One hundred | C85: 28755.08333
A86: Lethal | B86: One hundred | C86: 27082.41667
A87: Lethal | B87: One hundred | C87: 27009.75
A88: Lethal | B88: One hundred | C88: 25817.75
A89: Lethal | B89: One hundred | C89: 28240.58333
A90: Lethal | B90: One hundred | C90: 24969.91667
A91: Lethal | B91: One hundred | C91: 25059.08333
A92: Lethal | B92: One hundred | C92: 27757.66667
A93: Lethal | B93: One hundred | C93: 27892.08333
A94: Lethal | B94: One hundred | C94: 30171.83333
A95: Lethal | B95: One hundred | C95: 29036.83333
A96: Lethal | B96: One hundred | C96: 28189.5
A97: Lethal | B97: One hundred | C97: 30438.83333
A98: Lethal | B98: One hundred | C98: 26871.75
A99: Lethal | B99: One hundred | C99: 24705.33333
A100: Lethal | B100: One hundred | C100: 26266.33333
A101: Lethal | B101: Three hundred | C101: 18530.91667 | E101: =AVERAGE(C101:C125) -> 20869.44
A102: Lethal | B102: Three hundred | C102: 13321.75
A103: Lethal | B103: Three hundred | C103: 21469.75
A104: Lethal | B104: Three hundred | C104: 22157.75
A105: Lethal | B105: Three hundred | C105: 22045.16667
A106: Lethal | B106: Three hundred | C106: 19977.33333
A107: Lethal | B107: Three hundred | C107: 16528.33333
A108: Lethal | B108: Three hundred | C108: 24096.75
A109: Lethal | B109: Three hundred | C109: 23476.66667
A110: Lethal | B110: Three hundred | C110: 18203.25
A111: Lethal | B111: Three hundred | C111: 21321.58333
A112: Lethal | B112: Three hundred | C112: 20356.41667
A113: Lethal | B113: Three hundred | C113: 20783.33333
A114: Lethal | B114: Three hundred | C114: 20163.91667
A115: Lethal | B115: Three hundred | C115: 22711.58333
A116: Lethal | B116: Three hundred | C116: 23614.58333
A117: Lethal | B117: Three hundred | C117: 23002.83333
A118: Lethal | B118: Three hundred | C118: 19138.33333
A119: Lethal | B119: Three hundred | C119: 22764.33333
A120: Lethal | B120: Three hundred | C120: 22522.83333
A121: Lethal | B121: Three hundred | C121: 22224.66667
A122: Lethal | B122: Three hundred | C122: 21554.41667
A123: Lethal | B123: Three hundred | C123: 19625.58333
A124: Lethal | B124: Three hundred | C124: 19297.5
A125: Lethal | B125: Three hundred | C125: 22846.41667
A126: Lethal | B126: Five hundred | C126: 18215 | E126: =AVERAGE(C126:C150) -> 16884.75
A127: Lethal | B127: Five hundred | C127: 17693.08333
A128: Lethal | B128: Five hundred | C128: 16215.33333
A129: Lethal | B129: Five hundred | C129: 20807.25
A130: Lethal | B130: Five hundred | C130: 17404.5
A131: Lethal | B131: Five hundred | C131: 13842.83333
A132: Lethal | B132: Five hundred | C132: 17093.33333
A133: Lethal | B133: Five hundred | C133: 17327
A134: Lethal | B134: Five hundred | C134: 17315.33333
A135: Lethal | B135: Five hundred | C135: 18115.83333
A136: Lethal | B136: Five hundred | C136: 19222.16667
A137: Lethal | B137: Five hundred | C137: 14934.58333
A138: Lethal | B138: Five hundred | C138: 16068
A139: Lethal | B139: Five hundred | C139: 14971
A140: Lethal | B140: Five hundred | C140: 16492.91667
A141: Lethal | B141: Five hundred | C141: 15725.58333
A142: Lethal | B142: Five hundred | C142: 17904.91667
A143: Lethal | B143: Five hundred | C143: 16154.5
A144: Lethal | B144: Five hundred | C144: 14522.5
A145: Lethal | B145: Five hundred | C145: 16194.66667
A146: Lethal | B146: Five hundred | C146: 18840.41667
A147: Lethal | B147: Five hundred | C147: 14707.25
A148: Lethal | B148: Five hundred | C148: 17966.33333
A149: Lethal | B149: Five hundred | C149: 16133.41667
A150: Lethal | B150: Five hundred | C150: 18251

Sheet Vaccine Duration
A1: Duration | B1: Tipped w/o Vaccine | C1: Highest Vax Coverage
A2: 12M | B2: 24.70913376 | C2: 13.18138015 | F2: =AVERAGE(B2:B26) -> 20.11511749 | G2: =AVERAGE(C2:C26) -> 12.26848724
A3: 12M | B3: 20.68234536 | C3: 13.29996578
A4: 12M | B4: 18.90502429 | C4: 11.23477378
A5: 12M | B5: 23.33471987 | C5: 11.81973481
A6: 12M | B6: 21.7511721 | C6: 12.12688751
A7: 12M | B7: 20.03495537 | C7: 12.23378894
A8: 12M | B8: 20.59723902 | C8: 13.15073083
A9: 12M | B9: 21.91809462 | C9: 12.30842721
A10: 12M | B10: 20.12351506 | C10: 12.57945128
A11: 12M | B11: 19.49896665 | C11: 11.16784122
A12: 12M | B12: 19.28232578 | C12: 12.7650847
A13: 12M | B13: 21.51603832 | C13: 13.05603214
A14: 12M | B14: 19.49524224 | C14: 12.22370681
A15: 12M | B15: 18.97481291 | C15: 12.85948382
A16: 12M | B16: 22.07825868 | C16: 13.1362074
A17: 12M | B17: 15.98679084 | C17: 11.91024166
A18: 12M | B18: 18.8116362 | C18: 12.22099969
A19: 12M | B19: 20.64119097 | C19: 12.46700264
A20: 12M | B20: 17.29327193 | C20: 10.8455239
A21: 12M | B21: 19.28976302 | C21: 11.54476503
A22: 12M | B22: 17.88977835 | C22: 12.78469605
A23: 12M | B23: 20.97177205 | C23: 12.29853116
A24: 12M | B24: 21.54917139 | C24: 12.54456151
A25: 12M | B25: 17.78564611 | C25: 11.62052087
A26: 12M | B26: 19.75707225 | C26: 11.33184214
A27: 36m | B27: 12.79499279 | C27: 28.78996811 | F27: =AVERAGE(B27:B51) -> 11.31045233
A28: 36m | B28: 9.492665477 | C28: 26.69883231
A29: 36m | B29: 13.38079134 | C29: 30.68003487
A30: 36m | B30: 10.95780778 | C30: 29.87918417
A31: 36m | B31: 10.78982202 | C31: 28.8559538
A32: 36m | B32: 11.54169432 | C32: 29.81232782
A33: 36m | B33: 12.42596144 | C33: 28.88381903
A34: 36m | B34: 12.87014848 | C34: 30.78385428
A35: 36m | B35: 11.61244288 | C35: 27.75217828
A36: 36m | B36: 10.03051868 | C36: 26.2514875
A37: 36m | B37: 10.72331301 | C37: 27.47384032
A38: 36m | B38: 12.18447968 | C38: 29.0071302
A39: 36m | B39: 12.79482931 | C39: 29.22787531
A40: 36m | B40: 10.57065974 | C40: 28.13451777
A41: 36m | B41: 11.15893579 | C41: 29.02151639
A42: 36m | B42: 11.0408494 | C42: 27.91258941
A43: 36m | B43: 9.098647322 | C43: 25.86495536
A44: 36m | B44: 13.09810151 | C44: 29.8337938
A45: 36m | B45: 11.47416642 | C45: 27.0880454
A46: 36m | B46: 10.42017444 | C46: 25.89318874
A47: 36m | B47: 11.93030625 | C47: 27.75835042
A48: 36m | B48: 11.48595929 | C48: 29.84257648
A49: 36m | B49: 9.439205434 | C49: 25.10060759
A50: 36m | B50: 10.22872711 | C50: 27.04482855
A51: 36m | B51: 11.21610831 | C51: 25.73742274

Sheet Driver Sens
A1: Scheme | B1: 40 | C1: 42.5 | D1: 45 | E1: 47.5 | F1: 50 | G1: 52.5 | H1: 55
A2: all lethal | B2: 14776.5 | C2: 15918.08333 | D2: 14711.5 | E2: 18530.91667 | F2: 18916.66667 | G2: 17351 | H2: 21632
A3: all lethal | B3: 16085.83333 | C3: 17173.66667 | D3: 17834.41667 | E3: 13321.75 | F3: 19757.66667 | G3: 19420.16667 | H3: 21713.33333
A4: all lethal | B4: 16164 | C4: 17244.16667 | D4: 17938.25 | E4: 21469.75 | F4: 20152.25 | G4: 21793.41667 | H4: 21741.41667
A5: all lethal | B5: 16330.33333 | C5: 17251.66667 | D5: 19036.5 | E5: 22157.75 | F5: 21091.66667 | G5: 22065.66667 | H5: 21836.91667
A6: all lethal | B6: 16972.66667 | C6: 17572.83333 | D6: 19167.08333 | E6: 22045.16667 | F6: 21352 | G6: 22518.91667 | H6: 22103.83333
A7: all lethal | B7: 16981.75 | C7: 18367.91667 | D7: 19192.75 | E7: 19977.33333 | F7: 21496.66667 | G7: 22555.41667 | H7: 22105.66667
A8: all lethal | B8: 17231 | C8: 18479.5 | D8: 19230.83333 | E8: 16528.33333 | F8: 22002.5 | G8: 22587.91667 | H8: 23209.08333
A9: all lethal | B9: 17255.33333 | C9: 18501 | D9: 19381.25 | E9: 24096.75 | F9: 22360.41667 | G9: 22839.75 | H9: 23363
A10: all lethal | B10: 17268.25 | C10: 18677.75 | D10: 19413.25 | E10: 23476.66667 | F10: 22811.58333 | G10: 22922.5 | H10: 23605.91667
A11: all lethal | B11: 17324.41667 | C11: 18936.08333 | D11: 19893.25 | E11: 18203.25 | F11: 22986.08333 | G11: 23111.66667 | H11: 23624.91667
A12: all lethal | B12: 17329.33333 | C12: 19074.25 | D12: 19895.5 | E12: 21321.58333 | F12: 23021 | G12: 23208.33333 | H12: 23751.16667
A13: all lethal | B13: 17653.25 | C13: 19250.58333 | D13: 20017.41667 | E13: 20356.41667 | F13: 23127.16667 | G13: 23424.91667 | H13: 23907.41667
A14: all lethal | B14: 18196.33333 | C14: 19274.75 | D14: 20483.25 | E14: 20783.33333 | F14: 23356.25 | G14: 23526.08333 | H14: 24070.91667
A15: all lethal | B15: 18481.41667 | C15: 19274.83333 | D15: 20506.16667 | E15: 20163.91667 | F15: 23458.91667 | G15: 23530.41667 | H15: 24277.66667
A16: all lethal | B16: 18717.25 | C16: 19619.58333 | D16: 20871.16667 | E16: 22711.58333 | F16: 23793.16667 | G16: 23583.41667 | H16: 24359.58333
A17: all lethal | B17: 19104.91667 | C17: 19761.33333 | D17: 21476.66667 | E17: 23614.58333 | F17: 23855.91667 | G17: 23591.16667 | H17: 24595.25
A18: all lethal | B18: 19565.41667 | C18: 20107.5 | D18: 21815 | E18: 23002.83333 | F18: 24019.83333 | G18: 23918.5 | H18: 24643.83333
A19: all lethal | B19: 19594.33333 | C19: 20193.83333 | D19: 22222.66667 | E19: 19138.33333 | F19: 24062.41667 | G19: 23931.33333 | H19: 24719
A20: all lethal | B20: 20113 | C20: 20696.66667 | D20: 22380.08333 | E20: 22764.33333 | F20: 24752.41667 | G20: 24448.5 | H20: 24838
A21: all lethal | B21: 20428.66667 | C21: 20723.33333 | D21: 22845.25 | E21: 22522.83333 | F21: 24835.41667 | G21: 24859.41667 | H21: 25117.58333
A22: all lethal | B22: 21061.41667 | C22: 20789.08333 | D22: 22918.91667 | E22: 22224.66667 | F22: 24836.25 | G22: 24900.33333 | H22: 25410.16667
A23: all lethal | B23: 21207.75 | C23: 20853 | D23: 23412.58333 | E23: 21554.41667 | F23: 25070.33333 | G23: 24911.75 | H23: 25630
A24: all lethal | B24: 21460.83333 | C24: 21759.58333 | D24: 23452.5 | E24: 19625.58333 | F24: 25358.91667 | G24: 25046.66667 | H24: 25878.66667
A25: all lethal | B25: 21465.16667 | C25: 23057.16667 | D25: 24209.5 | E25: 19297.5 | F25: 25840.25 | G25: 25825.33333 | H25: 26564.33333
A26: all lethal | B26: 22373.25 | C26: 23131.58333 | D26: 25733.66667 | E26: 22846.41667 | F26: 25847.16667 | G26: 26474.16667 | H26: 26617.66667
A27: female abc | B27: 13515.91667 | C27: 14131.08333 | D27: 18114 | E27: 21530.16667 | F27: 19962.33333 | G27: 20370.5 | H27: 20539.75
A28: female abc | B28: 17063.58333 | C28: 15123.16667 | D28: 18616.08333 | E28: 22719.16667 | F28: 19993.08333 | G28: 20414.75 | H28: 21157.25
A29: female abc | B29: 17116.41667 | C29: 17751.16667 | D29: 18878.58333 | E29: 19735.83333 | F29: 20146.25 | G29: 20981 | H29: 21376.41667
A30: female abc | B30: 17496.08333 | C30: 18047.83333 | D30: 19154.91667 | E30: 21648.08333 | F30: 20516.16667 | G30: 21227.66667 | H30: 21388.33333
A31: female abc | B31: 17514.08333 | C31: 18352.58333 | D31: 19171.16667 | E31: 22164.25 | F31: 20651 | G31: 21388.75 | H31: 21523
A32: female abc | B32: 17514.41667 | C32: 18459.33333 | D32: 19263.41667 | E32: 20177 | F32: 20723.66667 | G32: 22061.16667 | H32: 21825.08333
A33: female abc | B33: 17680.83333 | C33: 18693.41667 | D33: 19276.41667 | E33: 22016.16667 | F33: 21036.58333 | G33: 22232.16667 | H33: 21873.58333
A34: female abc | B34: 17687.66667 | C34: 18945.08333 | D34: 19714.33333 | E34: 20424.58333 | F34: 21125.16667 | G34: 22295.16667 | H34: 21939.33333
A35: female abc | B35: 17702.5 | C35: 18961.75 | D35: 19845.66667 | E35: 22568.41667 | F35: 21573.66667 | G35: 22502.08333 | H35: 22533.5
A36: female abc | B36: 17747.58333 | C36: 19070.91667 | D36: 19853.33333 | E36: 21872.91667 | F36: 21768 | G36: 22561.58333 | H36: 22624.33333
A37: female abc | B37: 18035 | C37: 19236.08333 | D37: 19953 | E37: 23598 | F37: 21788.08333 | G37: 22682.91667 | H37: 22780.41667
A38: female abc | B38: 18044 | C38: 19458.16667 | D38: 20002.16667 | E38: 22827.5 | F38: 22016.33333 | G38: 22856.08333 | H38: 23167.08333
A39: female abc | B39: 18064.83333 | C39: 19549.58333 | D39: 20023.08333 | E39: 20559 | F39: 22137.5 | G39: 22866.58333 | H39: 23278.33333
A40: female abc | B40: 18521.66667 | C40: 19645 | D40: 20165.5 | E40: 21024.25 | F40: 22193 | G40: 22880.41667 | H40: 23350.16667
A41: female abc | B41: 18690.5 | C41: 19707.83333 | D41: 20330.75 | E41: 20457.5 | F41: 22226.58333 | G41: 23122.41667 | H41: 23458.83333
A42: female abc | B42: 18714.41667 | C42: 19948.16667 | D42: 20366.83333 | E42: 23426.66667 | F42: 22459.83333 | G42: 23124.75 | H42: 23623.66667
A43: female abc | B43: 18848.41667 | C43: 20137.91667 | D43: 20839.83333 | E43: 20984.08333 | F43: 22853.08333 | G43: 23366.83333 | H43: 23812.33333
A44: female abc | B44: 19150.16667 | C44: 20158.25 | D44: 21005.66667 | E44: 23150.83333 | F44: 22961.5 | G44: 23397.16667 | H44: 24062.41667
A45: female abc | B45: 20152.91667 | C45: 20238.33333 | D45: 21211.16667 | E45: 21046.5 | F45: 23175.25 | G45: 23440.08333 | H45: 24658
A46: female abc | B46: 20389.58333 | C46: 20572.25 | D46: 22069.16667 | E46: 20109.25 | F46: 23184.16667 | G46: 23986.91667 | H46: 25029.75
A47: female abc | B47: 20438.33333 | C47: 21056.5 | D47: 22088.25 | E47: 20662.75 | F47: 23375.08333 | G47: 24068.5 | H47: 25207
A48: female abc | B48: 20611.58333 | C48: 21087.66667 | D48: 22554.41667 | E48: 21620.66667 | F48: 23430.58333 | G48: 24155.5 | H48: 25323.83333
A49: female abc | B49: 21059.25 | C49: 21697.5 | D49: 22886.41667 | E49: 21066.25 | F49: 24258.08333 | G49: 24350.75 | H49: 25770.75
A50: female abc | B50: 21262.25 | C50: 22139.58333 | D50: 22945.75 | E50: 22321.33333 | F50: 24412.83333 | G50: 25014.5 | H50: 26354.08333
A51: female abc | B51: 21537 | C51: 23175.91667 | D51: 23076.75 | E51: 19910.25 | F51: 24538.41667 | G51: 25537.83333 | H51: 26824.5

Sheet Mort Sens
A1: Scheme | B1: Pup0.31Adu0.71 | C1: Pup0.31Adu0.73 | D1: Pup0.31Adu0.75 | E1: Pup0.31Adu0.77 | F1: Pup0.31Adu0.79 | G1: Pup0.33Adu0.71 | H1: Pup0.33Adu0.73 | I1: Pup0.33Adu0.75 | J1: Pup0.33Adu0.77 | K1: Pup0.33Adu0.79 | L1: Pup0.35Adu0.71 | M1: Pup0.35Adu0.73 | N1: Pup0.35Adu0.75 | O1: Pup0.35Adu0.77 | P1: Pup0.35Adu0.79 | Q1: Pup0.37Adu0.71 | R1: Pup0.37Adu0.73 | S1: Pup0.37Adu0.75 | T1: Pup0.37Adu0.77 | U1: Pup0.37Adu0.79 | V1: Pup0.39Adu0.71 | W1: Pup0.39Adu0.73 | X1: Pup0.39Adu0.75 | Y1: Pup0.39Adu0.77 | Z1: Pup0.39Adu0.79
A2: all lethal | B2: 12994.83333 | C2: 11649.41667 | D2: 14836.16667 | E2: 18028.33333 | F2: 17943.08333 | G2: 12570.91667 | H2: 15117.5 | I2: 17079.91667 | J2: 18280.66667 | K2: 21376.25 | L2: 14858.91667 | M2: 14390.58333 | N2: 17945.25 | O2: 16313 | P2: 17857.58333 | Q2: 15115.91667 | R2: 15803.83333 | S2: 20688.58333 | T2: 17582.5 | U2: 23850.75 | V2: 15779.25 | W2: 18142.41667 | X2: 15527.08333 | Y2: 18410.75 | Z2: 24067
A3: all lethal | B3: 11457.91667 | C3: 12470.83333 | D3: 16101.5 | E3: 18187.5 | F3: 18311.58333 | G3: 12758.66667 | H3: 15237.08333 | I3: 18353.25 | J3: 19398.66667 | K3: 21923.5 | L3: 14930.16667 | M3: 14457.25 | N3: 19044.91667 | O3: 21114.66667 | P3: 22882.41667 | Q3: 16043.25 | R3: 16846.91667 | S3: 21582.83333 | T3: 19607.41667 | U3: 24607.25 | V3: 16693.58333 | W3: 18254.91667 | X3: 20511.66667 | Y3: 19278.08333 | Z3: 25763.58333
A4: all lethal | B4: 11776.25 | C4: 12747.5 | D4: 16182.66667 | E4: 18549.33333 | F4: 20357.5 | G4: 12781.66667 | H4: 15379.75 | I4: 18785.25 | J4: 20319.33333 | K4: 22235.91667 | L4: 15002.16667 | M4: 16153.83333 | N4: 19306.91667 | O4: 21304.41667 | P4: 23042.25 | Q4: 16182.16667 | R4: 17643.66667 | S4: 21849.33333 | T4: 22607.5 | U4: 25046.66667 | V4: 18182.5 | W4: 20343.66667 | X4: 20557.41667 | Y4: 23366.5 | Z4: 25816.41667
A5: all lethal | B5: 11947.16667 | C5: 14215.83333 | D5: 16283.75 | E5: 18549.91667 | F5: 20762.83333 | G5: 13053.08333 | H5: 16316.41667 | I5: 18841.5 | J5: 20744.25 | K5: 22334.08333 | L5: 15442.16667 | M5: 16662 | N5: 19797.33333 | O5: 21888.25 | P5: 23903.16667 | Q5: 16601.08333 | R5: 18386.66667 | S5: 21871.25 | T5: 22718 | U5: 25730.25 | V5: 18383.08333 | W5: 20534.66667 | X5: 22033.75 | Y5: 23705 | Z5: 25866.66667
A6: all lethal | B6: 12334.08333 | C6: 14280.58333 | D6: 16291.16667 | E6: 18681.41667 | F6: 20946.58333 | G6: 13218.41667 | H6: 16827.08333 | I6: 18940.5 | J6: 21250 | K6: 23001.08333 | L6: 15594.75 | M6: 16820.91667 | N6: 19851.91667 | O6: 22283 | P6: 24129.16667 | Q6: 16967.66667 | R6: 18754.66667 | S6: 22001.33333 | T6: 22985.91667 | U6: 25946.75 | V6: 18738.33333 | W6: 20915.66667 | X6: 22622.5 | Y6: 24049.5 | Z6: 25996.5
A7: all lethal | B7: 12501.33333 | C7: 14394.66667 | D7: 16379.75 | E7: 19150.08333 | F7: 21430.91667 | G7: 14362.58333 | H7: 17018.66667 | I7: 19029 | J7: 21489 | K7: 23061.5 | L7: 15996.41667 | M7: 17572.16667 | N7: 20450.16667 | O7: 22290.75 | P7: 24295.41667 | Q7: 17419.33333 | R7: 19212.91667 | S7: 22518.66667 | T7: 23221.08333 | U7: 25993.33333 | V7: 19148.83333 | W7: 20955.83333 | X7: 22703.25 | Y7: 24069.83333 | Z7: 26062.75
A8: all lethal | B8: 12914.41667 | C8: 15006.16667 | D8: 16770 | E8: 19836.91667 | F8: 22061.5 | G8: 14706.66667 | H8: 17490.08333 | I8: 19195.58333 | J8: 21567.58333 | K8: 23229.66667 | L8: 16021.08333 | M8: 17695.16667 | N8: 20740.75 | O8: 22368.41667 | P8: 24347.41667 | Q8: 17554 | R8: 20190.25 | S8: 22600.16667 | T8: 23384.83333 | U8: 26097.25 | V8: 19545.16667 | W8: 21096 | X8: 23369.75 | Y8: 24685.16667 | Z8: 26808.08333
A9: all lethal | B9: 13105.16667 | C9: 15066.08333 | D9: 17167.5 | E9: 20236.08333 | F9: 22257.16667 | G9: 15157.75 | H9: 17500 | I9: 19222 | J9: 21574.83333 | K9: 23287.16667 | L9: 16072.25 | M9: 18001.08333 | N9: 20991.41667 | O9: 22527.08333 | P9: 24771.25 | Q9: 17740 | R9: 20303.16667 | S9: 22649.5 | T9: 23420.16667 | U9: 26380.58333 | V9: 19805.75 | W9: 21462.25 | X9: 23872.75 | Y9: 24960.5 | Z9: 26827.91667
A10: all lethal | B10: 13132.83333 | C10: 15078.91667 | D10: 17483.08333 | E10: 20499.58333 | F10: 22537.16667 | G10: 15374.33333 | H10: 17508.41667 | I10: 19713 | J10: 21584.33333 | K10: 23609.41667 | L10: 16471.66667 | M10: 18681.25 | N10: 20999.91667 | O10: 22683 | P10: 25011.33333 | Q10: 18005.33333 | R10: 20393.91667 | S10: 22920.25 | T10: 24060.41667 | U10: 26510.33333 | V10: 20067.16667 | W10: 21746.5 | X10: 24039 | Y10: 25037.33333 | Z10: 27003.08333
A11: all lethal | B11: 13221.58333 | C11: 15649.66667 | D11: 17612.5 | E11: 20793.58333 | F11: 22565.83333 | G11: 15655.5 | H11: 17767.25 | I11: 19752.25 | J11: 21955.66667 | K11: 23784 | L11: 17153.66667 | M11: 18695.16667 | N11: 21633 | O11: 23032.58333 | P11: 25117.58333 | Q11: 18103.33333 | R11: 20773.91667 | S11: 23054.91667 | T11: 24281.5 | U11: 26749.58333 | V11: 20454 | W11: 22227.25 | X11: 24404.16667 | Y11: 25038 | Z11: 27627.5
A12: all lethal | B12: 13673.33333 | C12: 15785 | D12: 18071.33333 | E12: 20993 | F12: 22683.91667 | G12: 15690.25 | H12: 17924.83333 | I12: 19822.66667 | J12: 22146.33333 | K12: 24323.16667 | L12: 17213.75 | M12: 19020.58333 | N12: 21759.25 | O12: 23281.41667 | P12: 25221.08333 | Q12: 18550.66667 | R12: 20944.25 | S12: 23519 | T12: 25101.83333 | U12: 26972.5 | V12: 20544.58333 | W12: 22329.33333 | X12: 24435.83333 | Y12: 25050 | Z12: 27718.08333
A13: all lethal | B13: 13879.91667 | C13: 15832.91667 | D13: 18168.08333 | E13: 21221.16667 | F13: 22692.16667 | G13: 15693.25 | H13: 18206.66667 | I13: 19843.33333 | J13: 22267.16667 | K13: 24503.41667 | L13: 17591.33333 | M13: 19260.25 | N13: 21915.16667 | O13: 23435.91667 | P13: 25289.08333 | Q13: 18913.25 | R13: 21092 | S13: 23541.58333 | T13: 25110.41667 | U13: 27041 | V13: 20712.33333 | W13: 22576.41667 | X13: 24467.75 | Y13: 25368.91667 | Z13: 27896
A14: all lethal | B14: 14001.91667 | C14: 15881.16667 | D14: 18258.91667 | E14: 21328.5 | F14: 22849.16667 | G14: 15717.83333 | H14: 18297.75 | I14: 19879 | J14: 22274 | K14: 24836.58333 | L14: 17687.83333 | M14: 19319.41667 | N14: 21965.41667 | O14: 23693.83333 | P14: 25328.83333 | Q14: 19171.41667 | R14: 21488.75 | S14: 23852.75 | T14: 25355.66667 | U14: 27497.66667 | V14: 21047.25 | W14: 22701.66667 | X14: 24583.83333 | Y14: 25751.91667 | Z14: 28212.75
A15: all lethal | B15: 14269.75 | C15: 15919.66667 | D15: 18547.41667 | E15: 21515.33333 | F15: 22936.75 | G15: 15810.83333 | H15: 18397.41667 | I15: 20340.66667 | J15: 22274.5 | K15: 25005.25 | L15: 17766.83333 | M15: 19596 | N15: 22595.33333 | O15: 23957.41667 | P15: 25406.08333 | Q15: 19241.91667 | R15: 21528.75 | S15: 23910.16667 | T15: 25445.25 | U15: 27541 | V15: 21120.16667 | W15: 22857 | X15: 24629.25 | Y15: 26007.41667 | Z15: 28271.33333
A16: all lethal | B16: 14348.75 | C16: 16057.75 | D16: 18566.08333 | E16: 21592.75 | F16: 23179.33333 | G16: 15877.25 | H16: 18404.16667 | I16: 20400.75 | J16: 22605.41667 | K16: 25035.91667 | L16: 17793 | M16: 19669.66667 | N16: 22597.5 | O16: 24057.25 | P16: 25537.75 | Q16: 19384.66667 | R16: 21733.75 | S16: 23921.16667 | T16: 25671.58333 | U16: 27675.33333 | V16: 21140.25 | W16: 22957.66667 | X16: 25124.91667 | Y16: 26287.08333 | Z16: 28297.25
A17: all lethal | B17: 14379.5 | C17: 16700.75 | D17: 18756.41667 | E17: 21657.58333 | F17: 23380.83333 | G17: 15889.91667 | H17: 18466.91667 | I17: 20589.5 | J17: 24245.25 | K17: 25481.41667 | L17: 17831.83333 | M17: 19722.91667 | N17: 22624.41667 | O17: 24128.33333 | P17: 26043 | Q17: 19686.33333 | R17: 21742.58333 | S17: 23959.58333 | T17: 25677.58333 | U17: 28173.16667 | V17: 21234.5 | W17: 23293.66667 | X17: 25144 | Y17: 26586.16667 | Z17: 28592.83333
A18: all lethal | B18: 14450.25 | C18: 17283.33333 | D18: 19772.16667 | E18: 22492.75 | F18: 23456.5 | G18: 15947.58333 | H18: 18597.66667 | I18: 21070.33333 | J18: 24672.58333 | K18: 25715.08333 | L18: 17892.91667 | M18: 19820.66667 | N18: 22687.25 | O18: 24204.83333 | P18: 26085.08333 | Q18: 19949.91667 | R18: 21876.75 | S18: 24027.83333 | T18: 25901.25 | U18: 28255.33333 | V18: 21539.16667 | W18: 23421 | X18: 25383.83333 | Y18: 26796.5 | Z18: 28751.08333
A19: all lethal | B19: 14530.25 | C19: 17487.5 | D19: 20144.83333 | E19: 22794.5 | F19: 23483.91667 | G19: 16017.33333 | H19: 19082.91667 | I19: 21450.25 | J19: 24882.16667 | K19: 25722.16667 | L19: 18370.16667 | M19: 19921.25 | N19: 22959.5 | O19: 24701 | P19: 26552.25 | Q19: 20201.16667 | R19: 22032.25 | S19: 24891.5 | T19: 25940.75 | U19: 28403.58333 | V19: 21584.83333 | W19: 23773.58333 | X19: 25407 | Y19: 26920.08333 | Z19: 28813.33333
A20: all lethal | B20: 15006 | C20: 18495.66667 | D20: 20284.08333 | E20: 23106.33333 | F20: 23696.25 | G20: 16233.66667 | H20: 19330.5 | I20: 21643.25 | J20: 24997.5 | K20: 25840.5 | L20: 18713.25 | M20: 20014.58333 | N20: 23086.75 | O20: 24973.5 | P20: 26705 | Q20: 20554.5 | R20: 22036.5 | S20: 24892.25 | T20: 26017.91667 | U20: 28557.66667 | V20: 21608 | W20: 24148.16667 | X20: 25931.5 | Y20: 26995.08333 | Z20: 29000.58333
A21: all lethal | B21: 15564.91667 | C21: 18964.25 | D21: 21136.5 | E21: 23165.33333 | F21: 23773.25 | G21: 17035.91667 | H21: 19669.58333 | I21: 21806.91667 | J21: 25196.33333 | K21: 26174.16667 | L21: 19099.25 | M21: 20141.25 | N21: 23442.58333 | O21: 25032.83333 | P21: 26863.33333 | Q21: 20739.75 | R21: 22205.5 | S21: 25038.25 | T21: 26215.16667 | U21: 28622.83333 | V21: 21628.33333 | W21: 24614 | X21: 25992.5 | Y21: 27227.16667 | Z21: 29387.83333
A22: all lethal | B22: 15815.66667 | C22: 19570.33333 | D22: 21222.83333 | E22: 23433.41667 | F22: 23778.5 | G22: 17372.16667 | H22: 19800.41667 | I22: 22252.33333 | J22: 25233.66667 | K22: 26794.33333 | L22: 19239.08333 | M22: 20186.25 | N22: 23467.16667 | O22: 25078.08333 | P22: 27925 | Q22: 20773 | R22: 23488.33333 | S22: 25054.66667 | T22: 26303.16667 | U22: 28930.91667 | V22: 21694.16667 | W22: 24749 | X22: 26669.16667 | Y22: 27568.75 | Z22: 29589
A23: all lethal | B23: 15988.33333 | C23: 19742.66667 | D23: 21312.75 | E23: 23469.66667 | F23: 24570.33333 | G23: 18017.41667 | H23: 19979.08333 | I23: 22301.16667 | J23: 25386.58333 | K23: 27020.5 | L23: 19416.5 | M23: 20522.58333 | N23: 23644.08333 | O23: 25199.25 | P23: 27940.16667 | Q23: 20815.25 | R23: 23839.5 | S23: 26106.5 | T23: 26548.83333 | U23: 29082.66667 | V23: 21832.58333 | W23: 24831.66667 | X23: 26803.66667 | Y23: 27739.83333 | Z23: 30067.66667
A24: all lethal | B24: 16051.25 | C24: 19918.83333 | D24: 21910.66667 | E24: 23803.58333 | F24: 24893.16667 | G24: 18816.83333 | H24: 20342.08333 | I24: 22308.33333 | J24: 25527.5 | K24: 27319.58333 | L24: 20093.91667 | M24: 21330.66667 | N24: 24410.58333 | O24: 25416.16667 | P24: 28489.58333 | Q24: 21326.25 | R24: 24187.83333 | S24: 26581.91667 | T24: 27176.41667 | U24: 29466.5 | V24: 22250.33333 | W24: 25528.83333 | X24: 26877.75 | Y24: 27848 | Z24: 30277.5
A25: all lethal | B25: 16383.58333 | C25: 20237.25 | D25: 22751.91667 | E25: 24188.91667 | F25: 25079.08333 | G25: 18880.5 | H25: 20887.75 | I25: 22553.58333 | J25: 25739.25 | K25: 28317.08333 | L25: 20680.66667 | M25: 21714.16667 | N25: 25010.5 | O25: 26906.08333 | P25: 28501.33333 | Q25: 21422.16667 | R25: 24417.83333 | S25: 26620.08333 | T25: 27698 | U25: 29643.83333 | V25: 22354.41667 | W25: 26298.08333 | X25: 27050.41667 | Y25: 27929.5 | Z25: 30375.16667
A26: all lethal | B26: 17218.91667 | C26: 22369.91667 | D26: 23342.08333 | E26: 24194.16667 | F26: 25229.66667 | G26: 18925.16667 | H26: 22199.41667 | I26: 23158.08333 | J26: 26105.33333 | K26: 28367.5 | L26: 21481.58333 | M26: 22555.16667 | N26: 25594.25 | O26: 27050.25 | P26: 28672.58333 | Q26: 22727.33333 | R26: 24655.75 | S26: 27024 | T26: 28092.33333 | U26: 29854.91667 | V26: 24688.08333 | W26: 27865.25 | X26: 27795.75 | Y26: 28030.83333 | Z26: 31863.16667
A27: female abc | B27: 13731.66667 | C27: 14896.5 | D27: 13869.08333 | E27: 18402.83333 | F27: 17878.66667 | G27: 11420.41667 | H27: 12858.91667 | I27: 14250.08333 | J27: 19950.66667 | K27: 21413.41667 | L27: 15215 | M27: 17348.16667 | N27: 18991.91667 | O27: 21035.66667 | P27: 24074.25 | Q27: 13513.91667 | R27: 18056.5 | S27: 20085.66667 | T27: 21659.91667 | U27: 19102.25 | V27: 16245.75 | W27: 15510.5 | X27: 20495.66667 | Y27: 23541.75 | Z27: 24993.83333
A28: female abc | B28: 13896.75 | C28: 14950 | D28: 17637.58333 | E28: 19164.75 | F28: 20754.16667 | G28: 14090.91667 | H28: 15565.5 | I28: 15214.58333 | J28: 20704.25 | K28: 22385.33333 | L28: 15337.91667 | M28: 17744.5 | N28: 19485.5 | O28: 21777.66667 | P28: 24177.75 | Q28: 16444.75 | R28: 18533.66667 | S28: 20326.16667 | T28: 22084.33333 | U28: 24217.5 | V28: 17617.5 | W28: 17707.08333 | X28: 20897 | Y28: 23981.75 | Z28: 25247.08333
A29: female abc | B29: 13903.5 | C29: 15500.91667 | D29: 17908.25 | E29: 19536.66667 | F29: 21455.5 | G29: 14671.25 | H29: 16040.91667 | I29: 18505.75 | J29: 20762.75 | K29: 22644.41667 | L29: 15401 | M29: 18037.33333 | N29: 20320.25 | O29: 21962.41667 | P29: 24387.91667 | Q29: 16580 | R29: 18562.66667 | S29: 20817.41667 | T29: 22695.33333 | U29: 24243 | V29: 18103.91667 | W29: 18604.75 | X29: 21464.83333 | Y29: 24218.5 | Z29: 25905.41667
A30: female abc | B30: 13903.58333 | C30: 15765 | D30: 17917.41667 | E30: 19810 | F30: 21893 | G30: 14803.5 | H30: 16649.91667 | I30: 18611.58333 | J30: 20825.91667 | K30: 22840.66667 | L30: 15503.66667 | M30: 18066 | N30: 20393.66667 | O30: 21990.25 | P30: 24412.5 | Q30: 16639.08333 | R30: 18766.08333 | S30: 20922.91667 | T30: 22831 | U30: 24849.08333 | V30: 18463.16667 | W30: 19058.83333 | X30: 21522 | Y30: 24261.08333 | Z30: 26112.41667
A31: female abc | B31: 13979.33333 | C31: 15792.75 | D31: 17918.75 | E31: 19938.66667 | F31: 22665.25 | G31: 15038.33333 | H31: 17123.16667 | I31: 18868.58333 | J31: 20980.75 | K31: 23088.58333 | L31: 16151 | M31: 18170.41667 | N31: 20647.41667 | O31: 22001.16667 | P31: 24526.33333 | Q31: 17499.16667 | R31: 18958 | S31: 21337.33333 | T31: 23023.83333 | U31: 24901 | V31: 18551.08333 | W31: 19507.91667 | X31: 22283.83333 | Y31: 24272.33333 | Z31: 26123.41667
A32: female abc | B32: 13997 | C32: 15796 | D32: 18018.75 | E32: 20061.08333 | F32: 22671 | G32: 15456.66667 | H32: 17317.25 | I32: 19309.41667 | J32: 21381.91667 | K32: 23234.16667 | L32: 16313.16667 | M32: 18260.58333 | N32: 20711.75 | O32: 22058.75 | P32: 24903.91667 | Q32: 17628.58333 | R32: 18983.25 | S32: 21592.91667 | T32: 23088.08333 | U32: 25235.58333 | V32: 18862.33333 | W32: 19681.83333 | X32: 22721.75 | Y32: 24409.66667 | Z32: 26589.25
A33: female abc | B33: 14082.41667 | C33: 16030.25 | D33: 18071.08333 | E33: 20255.25 | F33: 22816.08333 | G33: 15462.66667 | H33: 17337.33333 | I33: 19605 | J33: 21526 | K33: 23664.75 | L33: 16553.75 | M33: 18306.66667 | N33: 20947.08333 | O33: 22139.66667 | P33: 25124.08333 | Q33: 17754 | R33: 19060.91667 | S33: 21720.08333 | T33: 23227.91667 | U33: 25648.5 | V33: 18907.25 | W33: 19985.5 | X33: 23006.58333 | Y33: 24422.66667 | Z33: 26736.75
A34: female abc | B34: 14147.83333 | C34: 16264.41667 | D34: 18157.25 | E34: 20577.5 | F34: 22953.08333 | G34: 15511.33333 | H34: 17617.33333 | I34: 20102.41667 | J34: 21572 | K34: 24074.58333 | L34: 16594.66667 | M34: 18427.33333 | N34: 21039.41667 | O34: 22151.08333 | P34: 25295.58333 | Q34: 17771.5 | R34: 19176.66667 | S34: 21731.91667 | T34: 23577.41667 | U34: 25663.16667 | V34: 18935.66667 | W34: 19996.08333 | X34: 23100 | Y34: 24591.41667 | Z34: 26799.83333
A35: female abc | B35: 14187.58333 | C35: 16331.58333 | D35: 18392.58333 | E35: 20905.08333 | F35: 23013 | G35: 15706.41667 | H35: 17755.66667 | I35: 20295.91667 | J35: 21586.08333 | K35: 24111.58333 | L35: 16735 | M35: 18452 | N35: 21113.91667 | O35: 22184.33333 | P35: 25439.75 | Q35: 17839.41667 | R35: 19275.58333 | S35: 21749.41667 | T35: 23794.33333 | U35: 26030.75 | V35: 19318.66667 | W35: 21529.16667 | X35: 23121.91667 | Y35: 24601.08333 | Z35: 26802.91667
A36: female abc | B36: 14219.91667 | C36: 16430.83333 | D36: 18550.75 | E36: 21012.66667 | F36: 23079.08333 | G36: 15845.66667 | H36: 17949.25 | I36: 20389.75 | J36: 21635.58333 | K36: 24112.25 | L36: 16776.58333 | M36: 18892.75 | N36: 21611.83333 | O36: 22221.41667 | P36: 25468.33333 | Q36: 17977.25 | R36: 19395.25 | S36: 21996.33333 | T36: 23859.75 | U36: 26145.66667 | V36: 19338.83333 | W36: 21723.75 | X36: 23214.83333 | Y36: 24615.5 | Z36: 27077.58333
A37: female abc | B37: 14368.33333 | C37: 16443.66667 | D37: 18641 | E37: 21028.91667 | F37: 23092 | G37: 16147.25 | H37: 18103.33333 | I37: 20410.66667 | J37: 21706.5 | K37: 24141.25 | L37: 16790.5 | M37: 18967.66667 | N37: 21676.33333 | O37: 22955.66667 | P37: 25547.25 | Q37: 18018.75 | R37: 19435.25 | S37: 22059.5 | T37: 23877.08333 | U37: 26185.25 | V37: 19445.58333 | W37: 21764.91667 | X37: 23246.5 | Y37: 25272.25 | Z37: 27186.58333
A38: female abc | B38: 14462.08333 | C38: 16461 | D38: 18729.75 | E38: 21034.5 | F38: 23158.66667 | G38: 16169 | H38: 18248 | I38: 20419.83333 | J38: 21788.83333 | K38: 24543.5 | L38: 16805 | M38: 18974.25 | N38: 21848 | O38: 23002.41667 | P38: 25643.41667 | Q38: 18043.75 | R38: 19539.16667 | S38: 22088.41667 | T38: 24011.33333 | U38: 26261.41667 | V38: 19499.41667 | W38: 21804.58333 | X38: 23520.08333 | Y38: 25355.08333 | Z38: 27682.41667
A39: female abc | B39: 14558.5 | C39: 16675 | D39: 18789.41667 | E39: 21152.41667 | F39: 23239.66667 | G39: 16231.83333 | H39: 18266.66667 | I39: 20531.08333 | J39: 22086.5 | K39: 24688.66667 | L39: 16906.08333 | M39: 19122.16667 | N39: 21898.83333 | O39: 23145 | P39: 25731.66667 | Q39: 18296.25 | R39: 19604.25 | S39: 22344.75 | T39: 24027 | U39: 26451.25 | V39: 19505.08333 | W39: 21825.83333 | X39: 23546.5 | Y39: 25821.33333 | Z39: 27685
A40: female abc | B40: 14809.5 | C40: 16744.58333 | D40: 18848.08333 | E40: 21194.08333 | F40: 23332.75 | G40: 16232.83333 | H40: 18367.41667 | I40: 20586.66667 | J40: 22301.25 | K40: 24954.41667 | L40: 17060.16667 | M40: 19258 | N40: 22050.91667 | O40: 23422.25 | P40: 25844.66667 | Q40: 18450.66667 | R40: 19671.41667 | S40: 22596.5 | T40: 24100.75 | U40: 26486.5 | V40: 19658.08333 | W40: 21933.33333 | X40: 23662.16667 | Y40: 25881.91667 | Z40: 27692.91667
A41: female abc | B41: 14944 | C41: 16934.91667 | D41: 18889 | E41: 21275.91667 | F41: 23342.08333 | G41: 16363.83333 | H41: 18393 | I41: 20779.33333 | J41: 22410.75 | K41: 25034.66667 | L41: 17071.33333 | M41: 19437.33333 | N41: 22127.16667 | O41: 23507.25 | P41: 26016 | Q41: 18645 | R41: 19706.75 | S41: 22657.75 | T41: 24143.91667 | U41: 26504 | V41: 19790.66667 | W41: 22039.41667 | X41: 23841.08333 | Y41: 25989.66667 | Z41: 27760.08333
A42: female abc | B42: 14945.58333 | C42: 17201 | D42: 18956.16667 | E42: 21401.66667 | F42: 23486.16667 | G42: 16464.83333 | H42: 18616 | I42: 20832.16667 | J42: 22523.08333 | K42: 25096.5 | L42: 17117.83333 | M42: 20086.83333 | N42: 22228.08333 | O42: 23743.66667 | P42: 26255.91667 | Q42: 18728.16667 | R42: 19843.91667 | S42: 22719.08333 | T42: 24742.66667 | U42: 26812.25 | V42: 19890.25 | W42: 22216 | X42: 23939.66667 | Y42: 26002.91667 | Z42: 27771.33333
A43: female abc | B43: 15123.91667 | C43: 17224.08333 | D43: 19227.16667 | E43: 21422.25 | F43: 24211.16667 | G43: 16617.58333 | H43: 18684.58333 | I43: 21128.16667 | J43: 22606.83333 | K43: 25106.25 | L43: 17296.5 | M43: 20130.16667 | N43: 22265.5 | O43: 23764.66667 | P43: 26358.58333 | Q43: 19184.91667 | R43: 20052.75 | S43: 22754.33333 | T43: 24807.58333 | U43: 26818 | V43: 19906.08333 | W43: 22304.66667 | X43: 24074.33333 | Y43: 26105.66667 | Z43: 27825.5
A44: female abc | B44: 15140.25 | C44: 17464.66667 | D44: 19288.91667 | E44: 21608.5 | F44: 24615.5 | G44: 16755.5 | H44: 18779.33333 | I44: 21282.75 | J44: 22691.5 | K44: 25291.75 | L44: 17473 | M44: 20281.25 | N44: 22368.08333 | O44: 23902.91667 | P44: 26771.66667 | Q44: 19225 | R44: 20564.41667 | S44: 22792.16667 | T44: 25334.58333 | U44: 26820.75 | V44: 20347.33333 | W44: 22386.33333 | X44: 24263.33333 | Y44: 26132.91667 | Z44: 27875.5
A45: female abc | B45: 15459.16667 | C45: 17627.33333 | D45: 19295.33333 | E45: 22064.41667 | F45: 24743.75 | G45: 17027.33333 | H45: 19092.41667 | I45: 21457.41667 | J45: 22817.41667 | K45: 25328.25 | L45: 17547.91667 | M45: 20390.08333 | N45: 22456.58333 | O45: 23981.25 | P45: 26820 | Q45: 19297.33333 | R45: 20650 | S45: 22848.75 | T45: 25338.5 | U45: 26884.5 | V45: 20958.41667 | W45: 22479.25 | X45: 24438.58333 | Y45: 26274.25 | Z45: 27899.58333
A46: female abc | B46: 15777.41667 | C46: 17636.91667 | D46: 19323 | E46: 22113.58333 | F46: 24827.25 | G46: 17074 | H46: 19111 | I46: 21499.91667 | J46: 22849 | K46: 25577.91667 | L46: 17698.58333 | M46: 20567 | N46: 22482.41667 | O46: 23984.16667 | P46: 27171.5 | Q46: 19460.5 | R46: 21279.25 | S46: 22948.91667 | T46: 25751.25 | U46: 26922.91667 | V46: 20990.66667 | W46: 22815.25 | X46: 24471.66667 | Y46: 26412.25 | Z46: 27965.16667
A47: female abc | B47: 16067.83333 | C47: 17680.83333 | D47: 19839.66667 | E47: 22148.41667 | F47: 24842 | G47: 17287.08333 | H47: 19355.33333 | I47: 21527.25 | J47: 22947.41667 | K47: 25842.83333 | L47: 18049.75 | M47: 20672.91667 | N47: 22493.83333 | O47: 24253.41667 | P47: 27197.83333 | Q47: 19580.41667 | R47: 21598 | S47: 22955.58333 | T47: 25765.5 | U47: 27150.83333 | V47: 21165.41667 | W47: 23057.25 | X47: 25119.83333 | Y47: 26716.08333 | Z47: 28272.08333
A48: female abc | B48: 16358.83333 | C48: 17769.5 | D48: 20095.16667 | E48: 22318.08333 | F48: 25381.66667 | G48: 17636 | H48: 19399.75 | I48: 21634.16667 | J48: 23401.41667 | K48: 25941.5 | L48: 18396.58333 | M48: 21036.33333 | N48: 22651 | O48: 24300.66667 | P48: 27297.08333 | Q48: 20002.91667 | R48: 21638.33333 | S48: 23450.75 | T48: 25869.75 | U48: 28453.58333 | V48: 21421.66667 | W48: 23409 | X48: 25472.25 | Y48: 27811.16667 | Z48: 29009
A49: female abc | B49: 16667.91667 | C49: 18045.83333 | D49: 20175.83333 | E49: 22595.58333 | F49: 25854.33333 | G49: 17818.33333 | H49: 19605.41667 | I49: 21676.83333 | J49: 23534.58333 | K49: 25960.58333 | L49: 18463.41667 | M49: 21632.5 | N49: 22911.08333 | O49: 24928.83333 | P49: 27372.5 | Q49: 20264.41667 | R49: 21981.58333 | S49: 24616.66667 | T49: 26528.25 | U49: 28702.75 | V49: 21584.58333 | W49: 24085.25 | X49: 25513.25 | Y49: 27987.5 | Z49: 29182.16667
A50: female abc | B50: 16968.08333 | C50: 18128.16667 | D50: 20285.41667 | E50: 22882.75 | F50: 25875.83333 | G50: 17906.66667 | H50: 20178.41667 | I50: 21908.75 | J50: 23830.33333 | K50: 26759 | L50: 19589.83333 | M50: 21736.5 | N50: 23190.75 | O50: 25352.25 | P50: 27464.25 | Q50: 20520.66667 | R50: 22065.91667 | S50: 25148.66667 | T50: 26892.75 | U50: 28828.16667 | V50: 21988.66667 | W50: 24221.5 | X50: 25958.91667 | Y50: 28073.58333 | Z50: 29613.16667
A51: female abc | B51: 17371.25 | C51: 19364.58333 | D51: 22011 | E51: 22962.91667 | F51: 26314.16667 | G51: 18252.5 | H51: 20252.58333 | I51: 22058.66667 | J51: 23905.33333 | K51: 26829.66667 | L51: 19670.58333 | M51: 21763.16667 | N51: 23197.58333 | O51: 25650.66667 | P51: 27548 | Q51: 20597.25 | R51: 22843.33333 | S51: 25297.75 | T51: 27659.41667 | U51: 29361.58333 | V51: 22272.83333 | W51: 24782.5 | X51: 26930.25 | Y51: 29553.83333 | Z51: 30853.41667

Sheet Reproductive Sens
A1: Scheme | B1: 40 | C1: 42.5 | D1: 45 | E1: 47.5 | F1: 50 | G1: 52.5 | H1: 55
A2: all lethal | B2: 14776.5 | C2: 15918.08333 | D2: 14711.5 | E2: 18530.91667 | F2: 18916.66667 | G2: 17351 | H2: 21632
A3: all lethal | B3: 16085.83333 | C3: 17173.66667 | D3: 17834.41667 | E3: 13321.75 | F3: 19757.66667 | G3: 19420.16667 | H3: 21713.33333
A4: all lethal | B4: 16164 | C4: 17244.16667 | D4: 17938.25 | E4: 21469.75 | F4: 20152.25 | G4: 21793.41667 | H4: 21741.41667
A5: all lethal | B5: 16330.33333 | C5: 17251.66667 | D5: 19036.5 | E5: 22157.75 | F5: 21091.66667 | G5: 22065.66667 | H5: 21836.91667
A6: all lethal | B6: 16972.66667 | C6: 17572.83333 | D6: 19167.08333 | E6: 22045.16667 | F6: 21352 | G6: 22518.91667 | H6: 22103.83333
A7: all lethal | B7: 16981.75 | C7: 18367.91667 | D7: 19192.75 | E7: 19977.33333 | F7: 21496.66667 | G7: 22555.41667 | H7: 22105.66667
A8: all lethal | B8: 17231 | C8: 18479.5 | D8: 19230.83333 | E8: 16528.33333 | F8: 22002.5 | G8: 22587.91667 | H8: 23209.08333
A9: all lethal | B9: 17255.33333 | C9: 18501 | D9: 19381.25 | E9: 24096.75 | F9: 22360.41667 | G9: 22839.75 | H9: 23363
A10: all lethal | B10: 17268.25 | C10: 18677.75 | D10: 19413.25 | E10: 23476.66667 | F10: 22811.58333 | G10: 22922.5 | H10: 23605.91667
A11: all lethal | B11: 17324.41667 | C11: 18936.08333 | D11: 19893.25 | E11: 18203.25 | F11: 22986.08333 | G11: 23111.66667 | H11: 23624.91667
A12: all lethal | B12: 17329.33333 | C12: 19074.25 | D12: 19895.5 | E12: 21321.58333 | F12: 23021 | G12: 23208.33333 | H12: 23751.16667
A13: all lethal | B13: 17653.25 | C13: 19250.58333 | D13: 20017.41667 | E13: 20356.41667 | F13: 23127.16667 | G13: 23424.91667 | H13: 23907.41667
A14: all lethal | B14: 18196.33333 | C14: 19274.75 | D14: 20483.25 | E14: 20783.33333 | F14: 23356.25 | G14: 23526.08333 | H14: 24070.91667
A15: all lethal | B15: 18481.41667 | C15: 19274.83333 | D15: 20506.16667 | E15: 20163.91667 | F15: 23458.91667 | G15: 23530.41667 | H15: 24277.66667
A16: all lethal | B16: 18717.25 | C16: 19619.58333 | D16: 20871.16667 | E16: 22711.58333 | F16: 23793.16667 | G16: 23583.41667 | H16: 24359.58333
A17: all lethal | B17: 19104.91667 | C17: 19761.33333 | D17: 21476.66667 | E17: 23614.58333 | F17: 23855.91667 | G17: 23591.16667 | H17: 24595.25
A18: all lethal | B18: 19565.41667 | C18: 20107.5 | D18: 21815 | E18: 23002.83333 | F18: 24019.83333 | G18: 23918.5 | H18: 24643.83333
A19: all lethal | B19: 19594.33333 | C19: 20193.83333 | D19: 22222.66667 | E19: 19138.33333 | F19: 24062.41667 | G19: 23931.33333 | H19: 24719
A20: all lethal | B20: 20113 | C20: 20696.66667 | D20: 22380.08333 | E20: 22764.33333 | F20: 24752.41667 | G20: 24448.5 | H20: 24838
A21: all lethal | B21: 20428.66667 | C21: 20723.33333 | D21: 22845.25 | E21: 22522.83333 | F21: 24835.41667 | G21: 24859.41667 | H21: 25117.58333
A22: all lethal | B22: 21061.41667 | C22: 20789.08333 | D22: 22918.91667 | E22: 22224.66667 | F22: 24836.25 | G22: 24900.33333 | H22: 25410.16667
A23: all lethal | B23: 21207.75 | C23: 20853 | D23: 23412.58333 | E23: 21554.41667 | F23: 25070.33333 | G23: 24911.75 | H23: 25630
A24: all lethal | B24: 21460.83333 | C24: 21759.58333 | D24: 23452.5 | E24: 19625.58333 | F24: 25358.91667 | G24: 25046.66667 | H24: 25878.66667
A25: all lethal | B25: 21465.16667 | C25: 23057.16667 | D25: 24209.5 | E25: 19297.5 | F25: 25840.25 | G25: 25825.33333 | H25: 26564.33333
A26: all lethal | B26: 22373.25 | C26: 23131.58333 | D26: 25733.66667 | E26: 22846.41667 | F26: 25847.16667 | G26: 26474.16667 | H26: 26617.66667
A27: female abc | B27: 13515.91667 | C27: 14131.08333 | D27: 18114 | E27: 21530.16667 | F27: 19962.33333 | G27: 20370.5 | H27: 20539.75
A28: female abc | B28: 17063.58333 | C28: 15123.16667 | D28: 18616.08333 | E28: 22719.16667 | F28: 19993.08333 | G28: 20414.75 | H28: 21157.25
A29: female abc | B29: 17116.41667 | C29: 17751.16667 | D29: 18878.58333 | E29: 19735.83333 | F29: 20146.25 | G29: 20981 | H29: 21376.41667
A30: female abc | B30: 17496.08333 | C30: 18047.83333 | D30: 19154.91667 | E30: 21648.08333 | F30: 20516.16667 | G30: 21227.66667 | H30: 21388.33333
A31: female abc | B31: 17514.08333 | C31: 18352.58333 | D31: 19171.16667 | E31: 22164.25 | F31: 20651 | G31: 21388.75 | H31: 21523
A32: female abc | B32: 17514.41667 | C32: 18459.33333 | D32: 19263.41667 | E32: 20177 | F32: 20723.66667 | G32: 22061.16667 | H32: 21825.08333
A33: female abc | B33: 17680.83333 | C33: 18693.41667 | D33: 19276.41667 | E33: 22016.16667 | F33: 21036.58333 | G33: 22232.16667 | H33: 21873.58333
A34: female abc | B34: 17687.66667 | C34: 18945.08333 | D34: 19714.33333 | E34: 20424.58333 | F34: 21125.16667 | G34: 22295.16667 | H34: 21939.33333
A35: female abc | B35: 17702.5 | C35: 18961.75 | D35: 19845.66667 | E35: 22568.41667 | F35: 21573.66667 | G35: 22502.08333 | H35: 22533.5
A36: female abc | B36: 17747.58333 | C36: 19070.91667 | D36: 19853.33333 | E36: 21872.91667 | F36: 21768 | G36: 22561.58333 | H36: 22624.33333
A37: female abc | B37: 18035 | C37: 19236.08333 | D37: 19953 | E37: 23598 | F37: 21788.08333 | G37: 22682.91667 | H37: 22780.41667
A38: female abc | B38: 18044 | C38: 19458.16667 | D38: 20002.16667 | E38: 22827.5 | F38: 22016.33333 | G38: 22856.08333 | H38: 23167.08333
A39: female abc | B39: 18064.83333 | C39: 19549.58333 | D39: 20023.08333 | E39: 20559 | F39: 22137.5 | G39: 22866.58333 | H39: 23278.33333
A40: female abc | B40: 18521.66667 | C40: 19645 | D40: 20165.5 | E40: 21024.25 | F40: 22193 | G40: 22880.41667 | H40: 23350.16667
A41: female abc | B41: 18690.5 | C41: 19707.83333 | D41: 20330.75 | E41: 20457.5 | F41: 22226.58333 | G41: 23122.41667 | H41: 23458.83333
A42: female abc | B42: 18714.41667 | C42: 19948.16667 | D42: 20366.83333 | E42: 23426.66667 | F42: 22459.83333 | G42: 23124.75 | H42: 23623.66667
A43: female abc | B43: 18848.41667 | C43: 20137.91667 | D43: 20839.83333 | E43: 20984.08333 | F43: 22853.08333 | G43: 23366.83333 | H43: 23812.33333
A44: female abc | B44: 19150.16667 | C44: 20158.25 | D44: 21005.66667 | E44: 23150.83333 | F44: 22961.5 | G44: 23397.16667 | H44: 24062.41667
A45: female abc | B45: 20152.91667 | C45: 20238.33333 | D45: 21211.16667 | E45: 21046.5 | F45: 23175.25 | G45: 23440.08333 | H45: 24658
A46: female abc | B46: 20389.58333 | C46: 20572.25 | D46: 22069.16667 | E46: 20109.25 | F46: 23184.16667 | G46: 23986.91667 | H46: 25029.75
A47: female abc | B47: 20438.33333 | C47: 21056.5 | D47: 22088.25 | E47: 20662.75 | F47: 23375.08333 | G47: 24068.5 | H47: 25207
A48: female abc | B48: 20611.58333 | C48: 21087.66667 | D48: 22554.41667 | E48: 21620.66667 | F48: 23430.58333 | G48: 24155.5 | H48: 25323.83333
A49: female abc | B49: 21059.25 | C49: 21697.5 | D49: 22886.41667 | E49: 21066.25 | F49: 24258.08333 | G49: 24350.75 | H49: 25770.75
A50: female abc | B50: 21262.25 | C50: 22139.58333 | D50: 22945.75 | E50: 22321.33333 | F50: 24412.83333 | G50: 25014.5 | H50: 26354.08333
A51: female abc | B51: 21537 | C51: 23175.91667 | D51: 23076.75 | E51: 19910.25 | F51: 24538.41667 | G51: 25537.83333 | H51: 26824.5

Sheet Less Conservative Vaccine Sensi
A1: Conservative-Paper Version | B1: Tipped but Lost Vaccine | C1: Highest Lagging mean Vax | E1: Less Conservative Version | F1: Tipped but Lost Vaccine | G1: Highest Lagging mean Vax
B2: 8.52920987 | C2: 25.06712697 | F2: 8.717373377 | G2: 27.5626236
B3: 8.724728856 | C3: 25.05057177 | F3: 9.600089774 | G3: 27.5418684
B4: 10.01095304 | C4: 29.96313364 | F4: 9.344294071 | G4: 29.20298601
B5: 9.772347927 | C5: 29.23909024 | F5: 9.532886791 | G5: 28.94324513
B6: 9.378128736 | C6: 28.66644012 | F6: 9.116992291 | G6: 27.51686504
B7: 9.500499255 | C7: 27.24025539 | F7: 9.010355484 | G7: 27.42028035
B8: 9.239905761 | C8: 29.00818597 | F8: 9.388575127 | G8: 27.41290922
B9: 9.2900349 | C9: 28.06437582 | F9: 9.094080386 | G9: 28.47077798
B10: 9.54385368 | C10: 26.87832026 | F10: 9.191063806 | G10: 28.872737
B11: 8.724103181 | C11: 25.46949303 | F11: 9.264733744 | G11: 28.68949233
B12: 9.670635642 | C12: 27.52593741 | F12: 9.220426436 | G12: 27.55355038
B13: 9.624654182 | C13: 27.62132753 | F13: 9.315144736 | G13: 26.30410655
B14: 8.985199344 | C14: 25.7203842 | F14: 9.147792803 | G14: 28.42261905
B15: 8.848190109 | C15: 25.88319811 | F15: 8.907351694 | G15: 27.71164021
B16: 8.623071893 | C16: 25.57814172 | F16: 9.469127742 | G16: 28.09215845
B17: 9.412870515 | C17: 26.54733392 | F17: 9.076982721 | G17: 26.80298763
B18: 9.001517625 | C18: 26.92424046 | F18: 9.194889931 | G18: 28.41921184
B19: 9.369214554 | C19: 26.12169141 | F19: 9.218660749 | G19: 28.99021372
B20: 9.596258344 | C20: 29.22474699 | F20: 9.469198327 | G20: 28.52879604
B21: 8.960374871 | C21: 27.27659393 | F21: 9.386934214 | G21: 28.44535568
B22: 9.438631148 | C22: 26.89476912 | F22: 8.950614516 | G22: 28.2859769
B23: 9.359881028 | C23: 26.73469388 | F23: 9.298401204 | G23: 27.61124026
B24: 9.278848007 | C24: 26.01442929 | F24: 9.394087944 | G24: 28.35208145
B25: 9.715132357 | C25: 27.75730213 | F25: 9.138396655 | G25: 27.30627306
B26: 9.492929326 | C26: 27.03756662 | F26: 9.025533915 | G26: 26.80878295

Sheet Pattern Oriented Modeling - Rep
A1: [run number] | B1: Target-Population-Capacity | C1: comp | D1: juv-survival | E1: adu-survival | F1: Percentage-Of-Females-That-Reproduce-In-A-Year | G1: scheme | H1: Uncatchable% | I1: ReleasedDog% | J1: Effort-Limiting | K1: MonthlyCapturedNumber | L1: WhenDoesManagementStart | M1: WhenDoesManagementEnd | N1: TargetMinimumAge | O1: VaccineDuration | P1: AbandonedVaccinated? | Q1: MapMechanism | R1: MapSelection | S1: Bounce-Ending | T1: AprBirths | U1: JulyBirths | V1: OctBirths | W1: FebBirths | X1: NovBirths | Y1: DecBirths | Z1: MarBirths | AA1: MayBirths | AB1: JuneBirths | AC1: SeptBirths | AD1: JanBirths | AE1: AugBirths | AF1: [step] | AG1: threemonthpuppy% | AH1: count dogs | AI1: mean one-year-average-population | AJ1: vaccinations | AK1: destructions | AL1: surgeries | AM1: destructions + surgeries | AN1: Days-Distance | AO1: Driving-list | AP1: maximum-vaccine-percentage | AQ1: current-vaccine-percentage | AR1: mean one-year-tipped-no-vax-count | AS1: mean one-year-tipped-no-vax% | AT1: max-one-year-vaxxed% | AU1: mean one-year-vaxxed% | AV1: mean one-year-vax-count | AW1: mean one-year-male-vax% | AX1: mean one-year-female-vax% | AY1: current-sterile-percentage | AZ1: maximum-sterile-percentage | BA1: mean one-year-tipped-count | BB1: mean one-year-fem-sterile% | BC1: mean one-year-fem-intact-count | BD1: months-catch | BE1: mean one-year-months-catch-count | BF1: mean one-year-average-population | BG1: mean one-year-average-puppy% | BH1: mean one-year-puppy-count | BI1: puppy% | BJ1: female% | BK1: Births | BL1: puppy-deaths | BM1: overall-deaths | BN1: mean [age] of dogs | BO1: median [age] of dogs | BP1: mean one-year-uncatchable-count | BQ1: mean one-year-uncatchable% | BR1: mean dead-vaccinated-dogs | BS1: mean dead-tipped-dogs | BT1: mean one-year-recent-female-abandoned-count | BU1: mean one-year-old-female-abandoned-count | BV1: mean one-year-uncatchable-juv-adult-females-count | BW1: mean one-year-puppy-females-count | BX1: starting-population | BY1: permanance-of-spr-after-intervention | BZ1: when-spr-first-acheived | CA1: lowest-lagging-mean-year-population | CB1: Time-to-90%-Rebound-post-intervention | CC1: is-this-the-end
A2: 13 | B2: 15000 | C2: 1 | D2: 0.35 | E2: 0.75 | F2: 47.5 | G2: female abc | H2: 10 | I2: 10 | J2: TRUE | K2: 150 | L2: 120 | M2: 240 | N2: 6 | O2: 36 | P2: TRUE | Q2: Generic | R2: Addis Ababa | S2: TRUE | T2: 0.4 | U2: 4.32 | V2: 18.88 | W2: 3.36 | X2: 18.8 | Y2: 14.24 | Z2: 1.2 | AA2: 0.56 | AB2: 1.68 | AC2: 14.8 | AD2: 7.92 | AE2: 9.12 | AF2: 0 | AG2: 0 | AH2: 13825 | AI2: 13825 | AJ2: 0 | AK2: 0 | AL2: 0 | AM2: 0 | AN2: 0 | AO2: [0] | AP2: 0 | AQ2: 0 | AR2: 0 | AS2: 0 | AT2: 0 | AU2: 0 | AV2: 0 | AW2: 0 | AX2: 0 | AY2: 0 | AZ2: 0 | BA2: 0 | BB2: 0 | BC2: 6951 | BD2: 0 | BE2: 0 | BF2: 13825 | BG2: 22.54448141 | BH2: 3117 | BI2: 0 | BJ2: 0 | BK2: 0 | BL2: 0 | BM2: 0 | BN2: 23.60093482 | BO2: 16.37418392 | BP2: 1450 | BQ2: 10.48748734 | BR2: <ArgumentTypeException> | BS2: <ArgumentTypeException> | BT2: 6951 | BU2: 0 | BV2: 551 | BW2: 1542 | BX2: 13825 | BY2: 0 | BZ2: 0 | CA2: 1000000000 | CB2: 0 | CC2: not yet
A3: 3 | B3: 15000 | C3: 1 | D3: 0.35 | E3: 0.75 | F3: 47.5 | G3: female abc | H3: 10 | I3: 10 | J3: TRUE | K3: 150 | L3: 120 | M3: 240 | N3: 6 | O3: 36 | P3: TRUE | Q3: Generic | R3: Addis Ababa | S3: TRUE | T3: 0.4 | U3: 4.32 | V3: 18.88 | W3: 3.36 | X3: 18.8 | Y3: 14.24 | Z3: 1.2 | AA3: 0.56 | AB3: 1.68 | AC3: 14.8 | AD3: 7.92 | AE3: 9.12 | AF3: 0 | AG3: 0 | AH3: 14185 | AI3: 14185 | AJ3: 0 | AK3: 0 | AL3: 0 | AM3: 0 | AN3: 0 | AO3: [0] | AP3: 0 | AQ3: 0 | AR3: 0 | AS3: 0 | AT3: 0 | AU3: 0 | AV3: 0 | AW3: 0 | AX3: 0 | AY3: 0 | AZ3: 0 | BA3: 0 | BB3: 0 | BC3: 7019 | BD3: 0 | BE3: 0 | BF3: 14185 | BG3: 22.17679402 | BH3: 3146 | BI3: 0 | BJ3: 0 | BK3: 0 | BL3: 0 | BM3: 0 | BN3: 24.03763367 | BO3: 16.51685933 | BP3: 1362 | BQ3: 9.601015085 | BR3: <ArgumentTypeException> | BS3: <ArgumentTypeException> | BT3: 7019 | BU3: 0 | BV3: 567 | BW3: 1534 | BX3: 14185 | BY3: 0 | BZ3: 0 | CA3: 1000000000 | CB3: 0 | CC3: not yet
A4: 6 | B4: 15000 | C4: 1 | D4: 0.35 | E4: 0.75 | F4: 47.5 | G4: female abc | H4: 10 | I4: 10 | J4: TRUE | K4: 150 | L4: 120 | M4: 240 | N4: 6 | O4: 36 | P4: TRUE | Q4: Generic | R4: Addis Ababa | S4: TRUE | T4: 0.4 | U4: 4.32 | V4: 18.88 | W4: 3.36 | X4: 18.8 | Y4: 14.24 | Z4: 1.2 | AA4: 0.56 | AB4: 1.68 | AC4: 14.8 | AD4: 7.92 | AE4: 9.12 | AF4: 0 | AG4: 0 | AH4: 13549 | AI4: 13549 | AJ4: 0 | AK4: 0 | AL4: 0 | AM4: 0 | AN4: 0 | AO4: [0] | AP4: 0 | AQ4: 0 | AR4: 0 | AS4: 0 | AT4: 0 | AU4: 0 | AV4: 0 | AW4: 0 | AX4: 0 | AY4: 0 | AZ4: 0 | BA4: 0 | BB4: 0 | BC4: 6760 | BD4: 0 | BE4: 0 | BF4: 13549 | BG4: 21.81549815 | BH4: 2956 | BI4: 0 | BJ4: 0 | BK4: 0 | BL4: 0 | BM4: 0 | BN4: 24.07404601 | BO4: 16.45205769 | BP4: 1350 | BQ4: 9.963099631 | BR4: <ArgumentTypeException> | BS4: <ArgumentTypeException> | BT4: 6760 | BU4: 0 | BV4: 515 | BW4: 1480 | BX4: 13549 | BY4: 0 | BZ4: 0 | CA4: 1000000000 | CB4: 0 | CC4: not yet
A5: 9 | B5: 15000 | C5: 1 | D5: 0.35 | E5: 0.75 | F5: 47.5 | G5: female abc | H5: 10 | I5: 10 | J5: TRUE | K5: 150 | L5: 120 | M5: 240 | N5: 6 | O5: 36 | P5: TRUE | Q5: Generic | R5: Addis Ababa | S5: TRUE | T5: 0.4 | U5: 4.32 | V5: 18.88 | W5: 3.36 | X5: 18.8 | Y5: 14.24 | Z5: 1.2 | AA5: 0.56 | AB5: 1.68 | AC5: 14.8 | AD5: 7.92 | AE5: 9.12 | AF5: 0 | AG5: 0 | AH5: 13448 | AI5: 13448 | AJ5: 0 | AK5: 0 | AL5: 0 | AM5: 0 | AN5: 0 | AO5: [0] | AP5: 0 | AQ5: 0 | AR5: 0 | AS5: 0 | AT5: 0 | AU5: 0 | AV5: 0 | AW5: 0 | AX5: 0 | AY5: 0 | AZ5: 0 | BA5: 0 | BB5: 0 | BC5: 6753 | BD5: 0 | BE5: 0 | BF5: 13448 | BG5: 21.92728084 | BH5: 2949 | BI5: 0 | BJ5: 0 | BK5: 0 | BL5: 0 | BM5: 0 | BN5: 24.26564369 | BO5: 16.7693258 | BP5: 1309 | BQ5: 9.733065655 | BR5: <ArgumentTypeException> | BS5: <ArgumentTypeException> | BT5: 6753 | BU5: 0 | BV5: 539 | BW5: 1488 | BX5: 13448 | BY5: 0 | BZ5: 0 | CA5: 1000000000 | CB5: 0 | CC5: not yet
A6: 11 | B6: 15000 | C6: 1 | D6: 0.35 | E6: 0.75 | F6: 47.5 | G6: female abc | H6: 10 | I6: 10 | J6: TRUE | K6: 150 | L6: 120 | M6: 240 | N6: 6 | O6: 36 | P6: TRUE | Q6: Generic | R6: Addis Ababa | S6: TRUE | T6: 0.4 | U6: 4.32 | V6: 18.88 | W6: 3.36 | X6: 18.8 | Y6: 14.24 | Z6: 1.2 | AA6: 0.56 | AB6: 1.68 | AC6: 14.8 | AD6: 7.92 | AE6: 9.12 | AF6: 0 | AG6: 0 | AH6: 13883 | AI6: 13883 | AJ6: 0 | AK6: 0 | AL6: 0 | AM6: 0 | AN6: 0 | AO6: [0] | AP6: 0 | AQ6: 0 | AR6: 0 | AS6: 0 | AT6: 0 | AU6: 0 | AV6: 0 | AW6: 0 | AX6: 0 | AY6: 0 | AZ6: 0 | BA6: 0 | BB6: 0 | BC6: 6885 | BD6: 0 | BE6: 0 | BF6: 13883 | BG6: 22.09737828 | BH6: 3068 | BI6: 0 | BJ6: 0 | BK6: 0 | BL6: 0 | BM6: 0 | BN6: 23.92620272 | BO6: 16.75250892 | BP6: 1366 | BQ6: 9.838663209 | BR6: <ArgumentTypeException> | BS6: <ArgumentTypeException> | BT6: 6885 | BU6: 0 | BV6: 521 | BW6: 1501 | BX6: 13883 | BY6: 0 | BZ6: 0 | CA6: 1000000000 | CB6: 0 | CC6: not yet
A7: 12 | B7: 15000 | C7: 1 | D7: 0.35 | E7: 0.75 | F7: 47.5 | G7: female abc | H7: 10 | I7: 10 | J7: TRUE | K7: 150 | L7: 120 | M7: 240 | N7: 6 | O7: 36 | P7: TRUE | Q7: Generic | R7: Addis Ababa | S7: TRUE | T7: 0.4 | U7: 4.32 | V7: 18.88 | W7: 3.36 | X7: 18.8 | Y7: 14.24 | Z7: 1.2 | AA7: 0.56 | AB7: 1.68 | AC7: 14.8 | AD7: 7.92 | AE7: 9.12 | AF7: 0 | AG7: 0 | AH7: 14015 | AI7: 14015 | AJ7: 0 | AK7: 0 | AL7: 0 | AM7: 0 | AN7: 0 | AO7: [0] | AP7: 0 | AQ7: 0 | AR7: 0 | AS7: 0 | AT7: 0 | AU7: 0 | AV7: 0 | AW7: 0 | AX7: 0 | AY7: 0 | AZ7: 0 | BA7: 0 | BB7: 0 | BC7: 7045 | BD7: 0 | BE7: 0 | BF7: 14015 | BG7: 21.86073059 | BH7: 3064 | BI7: 0 | BJ7: 0 | BK7: 0 | BL7: 0 | BM7: 0 | BN7: 23.76392147 | BO7: 16.35679933 | BP7: 1450 | BQ7: 10.34531963 | BR7: <ArgumentTypeException> | BS7: <ArgumentTypeException> | BT7: 7045 | BU7: 0 | BV7: 547 | BW7: 1549 | BX7: 14015 | BY7: 0 | BZ7: 0 | CA7: 1000000000 | CB7: 0 | CC7: not yet
A8: 7 | B8: 15000 | C8: 1 | D8: 0.35 | E8: 0.75 | F8: 47.5 | G8: female abc | H8: 10 | I8: 10 | J8: TRUE | K8: 150 | L8: 120 | M8: 240 | N8: 6 | O8: 36 | P8: TRUE | Q8: Generic | R8: Addis Ababa | S8: TRUE | T8: 0.4 | U8: 4.32 | V8: 18.88 | W8: 3.36 | X8: 18.8 | Y8: 14.24 | Z8: 1.2 | AA8: 0.56 | AB8: 1.68 | AC8: 14.8 | AD8: 7.92 | AE8: 9.12 | AF8: 0 | AG8: 0 | AH8: 13539 | AI8: 13539 | AJ8: 0 | AK8: 0 | AL8: 0 | AM8: 0 | AN8: 0 | AO8: [0] | AP8: 0 | AQ8: 0 | AR8: 0 | AS8: 0 | AT8: 0 | AU8: 0 | AV8: 0 | AW8: 0 | AX8: 0 | AY8: 0 | AZ8: 0 | BA8: 0 | BB8: 0 | BC8: 6812 | BD8: 0 | BE8: 0 | BF8: 13539 | BG8: 21.84638109 | BH8: 2958 | BI8: 0 | BJ8: 0 | BK8: 0 | BL8: 0 | BM8: 0 | BN8: 23.98222707 | BO8: 16.74395871 | BP8: 1357 | BQ8: 10.02215657 | BR8: <ArgumentTypeException> | BS8: <ArgumentTypeException> | BT8: 6812 | BU8: 0 | BV8: 544 | BW8: 1461 | BX8: 13539 | BY8: 0 | BZ8: 0 | CA8: 1000000000 | CB8: 0 | CC8: not yet
A9: 16 | B9: 15000 | C9: 1 | D9: 0.35 | E9: 0.75 | F9: 47.5 | G9: female abc | H9: 10 | I9: 10 | J9: TRUE | K9: 150 | L9: 120 | M9: 240 | N9: 6 | O9: 36 | P9: TRUE | Q9: Generic | R9: Addis Ababa | S9: TRUE | T9: 0.4 | U9: 4.32 | V9: 18.88 | W9: 3.36 | X9: 18.8 | Y9: 14.24 | Z9: 1.2 | AA9: 0.56 | AB9: 1.68 | AC9: 14.8 | AD9: 7.92 | AE9: 9.12 | AF9: 0 | AG9: 0 | AH9: 13642 | AI9: 13642 | AJ9: 0 | AK9: 0 | AL9: 0 | AM9: 0 | AN9: 0 | AO9: [0] | AP9: 0 | AQ9: 0 | AR9: 0 | AS9: 0 | AT9: 0 | AU9: 0 | AV9: 0 | AW9: 0 | AX9: 0 | AY9: 0 | AZ9: 0 | BA9: 0 | BB9: 0 | BC9: 6792 | BD9: 0 | BE9: 0 | BF9: 13642 | BG9: 22.01861761 | BH9: 3004 | BI9: 0 | BJ9: 0 | BK9: 0 | BL9: 0 | BM9: 0 | BN9: 24.13014494 | BO9: 16.62979219 | BP9: 1365 | BQ9: 10.00513084 | BR9: <ArgumentTypeException> | BS9: <ArgumentTypeException> | BT9: 6792 | BU9: 0 | BV9: 552 | BW9: 1528 | BX9: 13642 | BY9: 0 | BZ9: 0 | CA9: 1000000000 | CB9: 0 | CC9: not yet
A10: 2 | B10: 15000 | C10: 1 | D10: 0.35 | E10: 0.75 | F10: 47.5 | G10: female abc | H10: 10 | I10: 10 | J10: TRUE | K10: 150 | L10: 120 | M10: 240 | N10: 6 | O10: 36 | P10: TRUE | Q10: Generic | R10: Addis Ababa | S10: TRUE | T10: 0.4 | U10: 4.32 | V10: 18.88 | W10: 3.36 | X10: 18.8 | Y10: 14.24 | Z10: 1.2 | AA10: 0.56 | AB10: 1.68 | AC10: 14.8 | AD10: 7.92 | AE10: 9.12 | AF10: 0 | AG10: 0 | AH10: 13843 | AI10: 13843 | AJ10: 0 | AK10: 0 | AL10: 0 | AM10: 0 | AN10: 0 | AO10: [0] | AP10: 0 | AQ10: 0 | AR10: 0 | AS10: 0 | AT10: 0 | AU10: 0 | AV10: 0 | AW10: 0 | AX10: 0 | AY10: 0 | AZ10: 0 | BA10: 0 | BB10: 0 | BC10: 7128 | BD10: 0 | BE10: 0 | BF10: 13843 | BG10: 22.18289512 | BH10: 3071 | BI10: 0 | BJ10: 0 | BK10: 0 | BL10: 0 | BM10: 0 | BN10: 23.9701408 | BO10: 16.51276747 | BP10: 1382 | BQ10: 9.98266397 | BR10: <ArgumentTypeException> | BS10: <ArgumentTypeException> | BT10: 7128 | BU10: 0 | BV10: 538 | BW10: 1568 | BX10: 13843 | BY10: 0 | BZ10: 0 | CA10: 1000000000 | CB10: 0 | CC10: not yet
A11: 15 | B11: 15000 | C11: 1 | D11: 0.35 | E11: 0.75 | F11: 47.5 | G11: female abc | H11: 10 | I11: 10 | J11: TRUE | K11: 150 | L11: 120 | M11: 240 | N11: 6 | O11: 36 | P11: TRUE | Q11: Generic | R11: Addis Ababa | S11: TRUE | T11: 0.4 | U11: 4.32 | V11: 18.88 | W11: 3.36 | X11: 18.8 | Y11: 14.24 | Z11: 1.2 | AA11: 0.56 | AB11: 1.68 | AC11: 14.8 | AD11: 7.92 | AE11: 9.12 | AF11: 0 | AG11: 0 | AH11: 14716 | AI11: 14716 | AJ11: 0 | AK11: 0 | AL11: 0 | AM11: 0 | AN11: 0 | AO11: [0] | AP11: 0 | AQ11: 0 | AR11: 0 | AS11: 0 | AT11: 0 | AU11: 0 | AV11: 0 | AW11: 0 | AX11: 0 | AY11: 0 | AZ11: 0 | BA11: 0 | BB11: 0 | BC11: 7296 | BD11: 0 | BE11: 0 | BF11: 14716 | BG11: 22.08330502 | BH11: 3250 | BI11: 0 | BJ11: 0 | BK11: 0 | BL11: 0 | BM11: 0 | BN11: 23.84802522 | BO11: 16.60001462 | BP11: 1528 | BQ11: 10.38255079 | BR11: <ArgumentTypeException> | BS11: <ArgumentTypeException> | BT11: 7296 | BU11: 0 | BV11: 605 | BW11: 1617 | BX11: 14716 | BY11: 0 | BZ11: 0 | CA11: 1000000000 | CB11: 0 | CC11: not yet
A12: 1 | B12: 15000 | C12: 1 | D12: 0.35 | E12: 0.75 | F12: 47.5 | G12: female abc | H12: 10 | I12: 10 | J12: TRUE | K12: 150 | L12: 120 | M12: 240 | N12: 6 | O12: 36 | P12: TRUE | Q12: Generic | R12: Addis Ababa | S12: TRUE | T12: 0.4 | U12: 4.32 | V12: 18.88 | W12: 3.36 | X12: 18.8 | Y12: 14.24 | Z12: 1.2 | AA12: 0.56 | AB12: 1.68 | AC12: 14.8 | AD12: 7.92 | AE12: 9.12 | AF12: 0 | AG12: 0 | AH12: 13491 | AI12: 13491 | AJ12: 0 | AK12: 0 | AL12: 0 | AM12: 0 | AN12: 0 | AO12: [0] | AP12: 0 | AQ12: 0 | AR12: 0 | AS12: 0 | AT12: 0 | AU12: 0 | AV12: 0 | AW12: 0 | AX12: 0 | AY12: 0 | AZ12: 0 | BA12: 0 | BB12: 0 | BC12: 6725 | BD12: 0 | BE12: 0 | BF12: 13491 | BG12: 21.3830418 | BH12: 2885 | BI12: 0 | BJ12: 0 | BK12: 0 | BL12: 0 | BM12: 0 | BN12: 23.72961939 | BO12: 16.65627654 | BP12: 1375 | BQ12: 10.19122443 | BR12: <ArgumentTypeException> | BS12: <ArgumentTypeException> | BT12: 6725 | BU12: 0 | BV12: 533 | BW12: 1418 | BX12: 13491 | BY12: 0 | BZ12: 0 | CA12: 1000000000 | CB12: 0 | CC12: not yet
A13: 4 | B13: 15000 | C13: 1 | D13: 0.35 | E13: 0.75 | F13: 47.5 | G13: female abc | H13: 10 | I13: 10 | J13: TRUE | K13: 150 | L13: 120 | M13: 240 | N13: 6 | O13: 36 | P13: TRUE | Q13: Generic | R13: Addis Ababa | S13: TRUE | T13: 0.4 | U13: 4.32 | V13: 18.88 | W13: 3.36 | X13: 18.8 | Y13: 14.24 | Z13: 1.2 | AA13: 0.56 | AB13: 1.68 | AC13: 14.8 | AD13: 7.92 | AE13: 9.12 | AF13: 0 | AG13: 0 | AH13: 14693 | AI13: 14693 | AJ13: 0 | AK13: 0 | AL13: 0 | AM13: 0 | AN13: 0 | AO13: [0] | AP13: 0 | AQ13: 0 | AR13: 0 | AS13: 0 | AT13: 0 | AU13: 0 | AV13: 0 | AW13: 0 | AX13: 0 | AY13: 0 | AZ13: 0 | BA13: 0 | BB13: 0 | BC13: 7311 | BD13: 0 | BE13: 0 | BF13: 14693 | BG13: 22.90050361 | BH13: 3365 | BI13: 0 | BJ13: 0 | BK13: 0 | BL13: 0 | BM13: 0 | BN13: 23.84124819 | BO13: 16.5344261 | BP13: 1433 | BQ13: 9.752279842 | BR13: <ArgumentTypeException> | BS13: <ArgumentTypeException> | BT13: 7311 | BU13: 0 | BV13: 558 | BW13: 1639 | BX13: 14693 | BY13: 0 | BZ13: 0 | CA13: 1000000000 | CB13: 0 | CC13: not yet
A14: 8 | B14: 15000 | C14: 1 | D14: 0.35 | E14: 0.75 | F14: 47.5 | G14: female abc | H14: 10 | I14: 10 | J14: TRUE | K14: 150 | L14: 120 | M14: 240 | N14: 6 | O14: 36 | P14: TRUE | Q14: Generic | R14: Addis Ababa | S14: TRUE | T14: 0.4 | U14: 4.32 | V14: 18.88 | W14: 3.36 | X14: 18.8 | Y14: 14.24 | Z14: 1.2 | AA14: 0.56 | AB14: 1.68 | AC14: 14.8 | AD14: 7.92 | AE14: 9.12 | AF14: 0 | AG14: 0 | AH14: 14461 | AI14: 14461 | AJ14: 0 | AK14: 0 | AL14: 0 | AM14: 0 | AN14: 0 | AO14: [0] | AP14: 0 | AQ14: 0 | AR14: 0 | AS14: 0 | AT14: 0 | AU14: 0 | AV14: 0 | AW14: 0 | AX14: 0 | AY14: 0 | AZ14: 0 | BA14: 0 | BB14: 0 | BC14: 7193 | BD14: 0 | BE14: 0 | BF14: 14461 | BG14: 22.22375882 | BH14: 3214 | BI14: 0 | BJ14: 0 | BK14: 0 | BL14: 0 | BM14: 0 | BN14: 24.0635626 | BO14: 16.5078653 | BP14: 1504 | BQ14: 10.3996681 | BR14: <ArgumentTypeException> | BS14: <ArgumentTypeException> | BT14: 7193 | BU14: 0 | BV14: 565 | BW14: 1583 | BX14: 14461 | BY14: 0 | BZ14: 0 | CA14: 1000000000 | CB14: 0 | CC14: not yet
A15: 14 | B15: 15000 | C15: 1 | D15: 0.35 | E15: 0.75 | F15: 47.5 | G15: female abc | H15: 10 | I15: 10 | J15: TRUE | K15: 150 | L15: 120 | M15: 240 | N15: 6 | O15: 36 | P15: TRUE | Q15: Generic | R15: Addis Ababa | S15: TRUE | T15: 0.4 | U15: 4.32 | V15: 18.88 | W15: 3.36 | X15: 18.8 | Y15: 14.24 | Z15: 1.2 | AA15: 0.56 | AB15: 1.68 | AC15: 14.8 | AD15: 7.92 | AE15: 9.12 | AF15: 0 | AG15: 0 | AH15: 14552 | AI15: 14552 | AJ15: 0 | AK15: 0 | AL15: 0 | AM15: 0 | AN15: 0 | AO15: [0] | AP15: 0 | AQ15: 0 | AR15: 0 | AS15: 0 | AT15: 0 | AU15: 0 | AV15: 0 | AW15: 0 | AX15: 0 | AY15: 0 | AZ15: 0 | BA15: 0 | BB15: 0 | BC15: 7256 | BD15: 0 | BE15: 0 | BF15: 14552 | BG15: 22.28406514 | BH15: 3243 | BI15: 0 | BJ15: 0 | BK15: 0 | BL15: 0 | BM15: 0 | BN15: 24.06721641 | BO15: 16.51292188 | BP15: 1462 | BQ15: 10.04603862 | BR15: <ArgumentTypeException> | BS15: <ArgumentTypeException> | BT15: 7256 | BU15: 0 | BV15: 587 | BW15: 1644 | BX15: 14552 | BY15: 0 | BZ15: 0 | CA15: 1000000000 | CB15: 0 | CC15: not yet
A16: 10 | B16: 15000 | C16: 1 | D16: 0.35 | E16: 0.75 | F16: 47.5 | G16: female abc | H16: 10 | I16: 10 | J16: TRUE | K16: 150 | L16: 120 | M16: 240 | N16: 6 | O16: 36 | P16: TRUE | Q16: Generic | R16: Addis Ababa | S16: TRUE | T16: 0.4 | U16: 4.32 | V16: 18.88 | W16: 3.36 | X16: 18.8 | Y16: 14.24 | Z16: 1.2 | AA16: 0.56 | AB16: 1.68 | AC16: 14.8 | AD16: 7.92 | AE16: 9.12 | AF16: 0 | AG16: 0 | AH16: 13689 | AI16: 13689 | AJ16: 0 | AK16: 0 | AL16: 0 | AM16: 0 | AN16: 0 | AO16: [0] | AP16: 0 | AQ16: 0 | AR16: 0 | AS16: 0 | AT16: 0 | AU16: 0 | AV16: 0 | AW16: 0 | AX16: 0 | AY16: 0 | AZ16: 0 | BA16: 0 | BB16: 0 | BC16: 6827 | BD16: 0 | BE16: 0 | BF16: 13689 | BG16: 21.85536888 | BH16: 2992 | BI16: 0 | BJ16: 0 | BK16: 0 | BL16: 0 | BM16: 0 | BN16: 24.09930188 | BO16: 16.65640455 | BP16: 1356 | BQ16: 9.905040175 | BR16: <ArgumentTypeException> | BS16: <ArgumentTypeException> | BT16: 6827 | BU16: 0 | BV16: 513 | BW16: 1478 | BX16: 13689 | BY16: 0 | BZ16: 0 | CA16: 1000000000 | CB16: 0 | CC16: not yet
A17: 6 | B17: 15000 | C17: 1 | D17: 0.35 | E17: 0.75 | F17: 47.5 | G17: female abc | H17: 10 | I17: 10 | J17: TRUE | K17: 150 | L17: 120 | M17: 240 | N17: 6 | O17: 36 | P17: TRUE | Q17: Generic | R17: Addis Ababa | S17: TRUE | T17: 0.4 | U17: 4.32 | V17: 18.88 | W17: 3.36 | X17: 18.8 | Y17: 14.24 | Z17: 1.2 | AA17: 0.56 | AB17: 1.68 | AC17: 14.8 | AD17: 7.92 | AE17: 9.12 | AF17: 1 | AG17: 8.035785606 | AH17: 12519 | AI17: 13034 | AJ17: 0 | AK17: 0 | AL17: 0 | AM17: 0 | AN17: 0 | AO17: [0] | AP17: 0 | AQ17: 0 | AR17: 0 | AS17: 0 | AT17: 0 | AU17: 0 | AV17: 0 | AW17: 0 | AX17: 0 | AY17: 0 | AZ17: 0 | BA17: 0 | BB17: 0 | BC17: 6512 | BD17: 0 | BE17: 0 | BF17: 13034 | BG17: 19.94201699 | BH17: 2609 | BI17: 18.06853583 | BJ17: 50.03594536 | BK17: 0 | BL17: 326 | BM17: 1142 | BN17: 25.42061921 | BO17: 17.90382276 | BP17: 1299.5 | BQ17: 9.969967421 | BR17: <ArgumentTypeException> | BS17: <ArgumentTypeException> | BT17: 6512 | BU17: 0 | BV17: 510.5 | BW17: 1312 | BX17: 13549 | BY17: 0 | BZ17: 0 | CA17: 1000000000 | CB17: 0 | CC17: not yet
A18: 13 | B18: 15000 | C18: 1 | D18: 0.35 | E18: 0.75 | F18: 47.5 | G18: female abc | H18: 10 | I18: 10 | J18: TRUE | K18: 150 | L18: 120 | M18: 240 | N18: 6 | O18: 36 | P18: TRUE | Q18: Generic | R18: Addis Ababa | S18: TRUE | T18: 0.4 | U18: 4.32 | V18: 18.88 | W18: 3.36 | X18: 18.8 | Y18: 14.24 | Z18: 1.2 | AA18: 0.56 | AB18: 1.68 | AC18: 14.8 | AD18: 7.92 | AE18: 9.12 | AF18: 1 | AG18: 7.885304659 | AH18: 12834 | AI18: 13329.5 | AJ18: 0 | AK18: 0 | AL18: 0 | AM18: 0 | AN18: 0 | AO18: [0] | AP18: 0 | AQ18: 0 | AR18: 0 | AS18: 0 | AT18: 0 | AU18: 0 | AV18: 0 | AW18: 0 | AX18: 0 | AY18: 0 | AZ18: 0 | BA18: 0 | BB18: 0 | BC18: 6713 | BD18: 0 | BE18: 0 | BF18: 13329.5 | BG18: 20.56006991 | BH18: 2750.5 | BI18: 18.57565841 | BJ18: 50.45192458 | BK18: 0 | BL18: 321 | BM18: 1106 | BN18: 24.84586989 | BO18: 17.75081856 | BP18: 1395 | BQ18: 10.4642517 | BR18: <ArgumentTypeException> | BS18: <ArgumentTypeException> | BT18: 6713 | BU18: 0 | BV18: 543.5 | BW18: 1368.5 | BX18: 13825 | BY18: 0 | BZ18: 0 | CA18: 1000000000 | CB18: 0 | CC18: not yet
A19: 3 | B19: 15000 | C19: 1 | D19: 0.35 | E19: 0.75 | F19: 47.5 | G19: female abc | H19: 10 | I19: 10 | J19: TRUE | K19: 150 | L19: 120 | M19: 240 | N19: 6 | O19: 36 | P19: TRUE | Q19: Generic | R19: Addis Ababa | S19: TRUE | T19: 0.4 | U19: 4.32 | V19: 18.88 | W19: 3.36 | X19: 18.8 | Y19: 14.24 | Z19: 1.2 | AA19: 0.56 | AB19: 1.68 | AC19: 14.8 | AD19: 7.92 | AE19: 9.12 | AF19: 1 | AG19: 8.096796286 | AH19: 13141 | AI19: 13663 | AJ19: 0 | AK19: 0 | AL19: 0 | AM19: 0 | AN19: 0 | AO19: [0] | AP19: 0 | AQ19: 0 | AR19: 0 | AS19: 0 | AT19: 0 | AU19: 0 | AV19: 0 | AW19: 0 | AX19: 0 | AY19: 0 | AZ19: 0 | BA19: 0 | BB19: 0 | BC19: 6767 | BD19: 0 | BE19: 0 | BF19: 13663 | BG19: 20.34187848 | BH19: 2789 | BI19: 18.50696294 | BJ19: 49.57765771 | BK19: 0 | BL19: 335 | BM19: 1162 | BN19: 25.35223286 | BO19: 17.93498278 | BP19: 1305.5 | BQ19: 9.552809498 | BR19: <ArgumentTypeException> | BS19: <ArgumentTypeException> | BT19: 6767 | BU19: 0 | BV19: 556.5 | BW19: 1357 | BX19: 14185 | BY19: 0 | BZ19: 0 | CA19: 1000000000 | CB19: 0 | CC19: not yet
A20: 9 | B20: 15000 | C20: 1 | D20: 0.35 | E20: 0.75 | F20: 47.5 | G20: female abc | H20: 10 | I20: 10 | J20: TRUE | K20: 150 | L20: 120 | M20: 240 | N20: 6 | O20: 36 | P20: TRUE | Q20: Generic | R20: Addis Ababa | S20: TRUE | T20: 0.4 | U20: 4.32 | V20: 18.88 | W20: 3.36 | X20: 18.8 | Y20: 14.24 | Z20: 1.2 | AA20: 0.56 | AB20: 1.68 | AC20: 14.8 | AD20: 7.92 | AE20: 9.12 | AF20: 1 | AG20: 7.902275983 | AH20: 12566 | AI20: 13007 | AJ20: 0 | AK20: 0 | AL20: 0 | AM20: 0 | AN20: 0 | AO20: [0] | AP20: 0 | AQ20: 0 | AR20: 0 | AS20: 0 | AT20: 0 | AU20: 0 | AV20: 0 | AW20: 0 | AX20: 0 | AY20: 0 | AZ20: 0 | BA20: 0 | BB20: 0 | BC20: 6536.5 | BD20: 0 | BE20: 0 | BF20: 13007 | BG20: 19.93626496 | BH20: 2602 | BI20: 17.94524908 | BJ20: 50.29444533 | BK20: 0 | BL20: 321 | BM20: 994 | BN20: 25.73724907 | BO20: 18.3748849 | BP20: 1264.5 | BQ20: 9.72090176 | BR20: <ArgumentTypeException> | BS20: <ArgumentTypeException> | BT20: 6536.5 | BU20: 0 | BV20: 534 | BW20: 1323 | BX20: 13448 | BY20: 0 | BZ20: 0 | CA20: 1000000000 | CB20: 0 | CC20: not yet
A21: 7 | B21: 15000 | C21: 1 | D21: 0.35 | E21: 0.75 | F21: 47.5 | G21: female abc | H21: 10 | I21: 10 | J21: TRUE | K21: 150 | L21: 120 | M21: 240 | N21: 6 | O21: 36 | P21: TRUE | Q21: Generic | R21: Addis Ababa | S21: TRUE | T21: 0.4 | U21: 4.32 | V21: 18.88 | W21: 3.36 | X21: 18.8 | Y21: 14.24 | Z21: 1.2 | AA21: 0.56 | AB21: 1.68 | AC21: 14.8 | AD21: 7.92 | AE21: 9.12 | AF21: 1 | AG21: 7.885759619 | AH21: 12605 | AI21: 13072 | AJ21: 0 | AK21: 0 | AL21: 0 | AM21: 0 | AN21: 0 | AO21: [0] | AP21: 0 | AQ21: 0 | AR21: 0 | AS21: 0 | AT21: 0 | AU21: 0 | AV21: 0 | AW21: 0 | AX21: 0 | AY21: 0 | AZ21: 0 | BA21: 0 | BB21: 0 | BC21: 6564.5 | BD21: 0 | BE21: 0 | BF21: 13072 | BG21: 19.97118737 | BH21: 2619.5 | BI21: 18.09599365 | BJ21: 50.11503372 | BK21: 0 | BL21: 300 | BM21: 1046 | BN21: 25.34434419 | BO21: 18.08087923 | BP21: 1309 | BQ21: 10.01306163 | BR21: <ArgumentTypeException> | BS21: <ArgumentTypeException> | BT21: 6564.5 | BU21: 0 | BV21: 533 | BW21: 1294.5 | BX21: 13539 | BY21: 0 | BZ21: 0 | CA21: 1000000000 | CB21: 0 | CC21: not yet
A22: 12 | B22: 15000 | C22: 1 | D22: 0.35 | E22: 0.75 | F22: 47.5 | G22: female abc | H22: 10 | I22: 10 | J22: TRUE | K22: 150 | L22: 120 | M22: 240 | N22: 6 | O22: 36 | P22: TRUE | Q22: Generic | R22: Addis Ababa | S22: TRUE | T22: 0.4 | U22: 4.32 | V22: 18.88 | W22: 3.36 | X22: 18.8 | Y22: 14.24 | Z22: 1.2 | AA22: 0.56 | AB22: 1.68 | AC22: 14.8 | AD22: 7.92 | AE22: 9.12 | AF22: 1 | AG22: 7.822736031 | AH22: 12975 | AI22: 13495 | AJ22: 0 | AK22: 0 | AL22: 0 | AM22: 0 | AN22: 0 | AO22: [0] | AP22: 0 | AQ22: 0 | AR22: 0 | AS22: 0 | AT22: 0 | AU22: 0 | AV22: 0 | AW22: 0 | AX22: 0 | AY22: 0 | AZ22: 0 | BA22: 0 | BB22: 0 | BC22: 6788 | BD22: 0 | BE22: 0 | BF22: 13495 | BG22: 19.90146356 | BH22: 2696 | BI22: 17.94219653 | BJ22: 50.33526012 | BK22: 0 | BL22: 306 | BM22: 1156 | BN22: 25.12787237 | BO22: 17.90916815 | BP22: 1386.5 | BQ22: 10.27092571 | BR22: <ArgumentTypeException> | BS22: <ArgumentTypeException> | BT22: 6788 | BU22: 0 | BV22: 537.5 | BW22: 1356.5 | BX22: 14015 | BY22: 0 | BZ22: 0 | CA22: 1000000000 | CB22: 0 | CC22: not yet
A23: 16 | B23: 15000 | C23: 1 | D23: 0.35 | E23: 0.75 | F23: 47.5 | G23: female abc | H23: 10 | I23: 10 | J23: TRUE | K23: 150 | L23: 120 | M23: 240 | N23: 6 | O23: 36 | P23: TRUE | Q23: Generic | R23: Addis Ababa | S23: TRUE | T23: 0.4 | U23: 4.32 | V23: 18.88 | W23: 3.36 | X23: 18.8 | Y23: 14.24 | Z23: 1.2 | AA23: 0.56 | AB23: 1.68 | AC23: 14.8 | AD23: 7.92 | AE23: 9.12 | AF23: 1 | AG23: 7.82909749 | AH23: 12709 | AI23: 13175.5 | AJ23: 0 | AK23: 0 | AL23: 0 | AM23: 0 | AN23: 0 | AO23: [0] | AP23: 0 | AQ23: 0 | AR23: 0 | AS23: 0 | AT23: 0 | AU23: 0 | AV23: 0 | AW23: 0 | AX23: 0 | AY23: 0 | AZ23: 0 | BA23: 0 | BB23: 0 | BC23: 6548 | BD23: 0 | BE23: 0 | BF23: 13175.5 | BG23: 20.00293537 | BH23: 2645 | BI23: 17.98725313 | BJ23: 49.6026438 | BK23: 0 | BL23: 321 | BM23: 1046 | BN23: 25.48360888 | BO23: 18.00844639 | BP23: 1320 | BQ23: 10.01869572 | BR23: <ArgumentTypeException> | BS23: <ArgumentTypeException> | BT23: 6548 | BU23: 0 | BV23: 545 | BW23: 1334.5 | BX23: 13642 | BY23: 0 | BZ23: 0 | CA23: 1000000000 | CB23: 0 | CC23: not yet
A24: 1 | B24: 15000 | C24: 1 | D24: 0.35 | E24: 0.75 | F24: 47.5 | G24: female abc | H24: 10 | I24: 10 | J24: TRUE | K24: 150 | L24: 120 | M24: 240 | N24: 6 | O24: 36 | P24: TRUE | Q24: Generic | R24: Addis Ababa | S24: TRUE | T24: 0.4 | U24: 4.32 | V24: 18.88 | W24: 3.36 | X24: 18.8 | Y24: 14.24 | Z24: 1.2 | AA24: 0.56 | AB24: 1.68 | AC24: 14.8 | AD24: 7.92 | AE24: 9.12 | AF24: 1 | AG24: 7.34989648 | AH24: 12558 | AI24: 13024.5 | AJ24: 0 | AK24: 0 | AL24: 0 | AM24: 0 | AN24: 0 | AO24: [0] | AP24: 0 | AQ24: 0 | AR24: 0 | AS24: 0 | AT24: 0 | AU24: 0 | AV24: 0 | AW24: 0 | AX24: 0 | AY24: 0 | AZ24: 0 | BA24: 0 | BB24: 0 | BC24: 6489.5 | BD24: 0 | BE24: 0 | BF24: 13024.5 | BG24: 19.43495138 | BH24: 2540.5 | BI24: 17.48686097 | BJ24: 49.80092371 | BK24: 0 | BL24: 300 | BM24: 1045 | BN24: 25.05095751 | BO24: 18.16454656 | BP24: 1329.5 | BQ24: 10.20789124 | BR24: <ArgumentTypeException> | BS24: <ArgumentTypeException> | BT24: 6489.5 | BU24: 0 | BV24: 523.5 | BW24: 1251 | BX24: 13491 | BY24: 0 | BZ24: 0 | CA24: 1000000000 | CB24: 0 | CC24: not yet
A25: 11 | B25: 15000 | C25: 1 | D25: 0.35 | E25: 0.75 | F25: 47.5 | G25: female abc | H25: 10 | I25: 10 | J25: TRUE | K25: 150 | L25: 120 | M25: 240 | N25: 6 | O25: 36 | P25: TRUE | Q25: Generic | R25: Addis Ababa | S25: TRUE | T25: 0.4 | U25: 4.32 | V25: 18.88 | W25: 3.36 | X25: 18.8 | Y25: 14.24 | Z25: 1.2 | AA25: 0.56 | AB25: 1.68 | AC25: 14.8 | AD25: 7.92 | AE25: 9.12 | AF25: 1 | AG25: 7.695297318 | AH25: 12865 | AI25: 13374 | AJ25: 0 | AK25: 0 | AL25: 0 | AM25: 0 | AN25: 0 | AO25: [0] | AP25: 0 | AQ25: 0 | AR25: 0 | AS25: 0 | AT25: 0 | AU25: 0 | AV25: 0 | AW25: 0 | AX25: 0 | AY25: 0 | AZ25: 0 | BA25: 0 | BB25: 0 | BC25: 6636.5 | BD25: 0 | BE25: 0 | BF25: 13374 | BG25: 20.17033702 | BH25: 2707.5 | BI25: 18.24329576 | BJ25: 49.65410027 | BK25: 0 | BL25: 326 | BM25: 1133 | BN25: 25.1887708 | BO25: 18.15294973 | BP25: 1317 | BQ25: 9.847431099 | BR25: <ArgumentTypeException> | BS25: <ArgumentTypeException> | BT25: 6636.5 | BU25: 0 | BV25: 516 | BW25: 1325.5 | BX25: 13883 | BY25: 0 | BZ25: 0 | CA25: 1000000000 | CB25: 0 | CC25: not yet
A26: 10 | B26: 15000 | C26: 1 | D26: 0.35 | E26: 0.75 | F26: 47.5 | G26: female abc | H26: 10 | I26: 10 | J26: TRUE | K26: 150 | L26: 120 | M26: 240 | N26: 6 | O26: 36 | P26: TRUE | Q26: Generic | R26: Addis Ababa | S26: TRUE | T26: 0.4 | U26: 4.32 | V26: 18.88 | W26: 3.36 | X26: 18.8 | Y26: 14.24 | Z26: 1.2 | AA26: 0.56 | AB26: 1.68 | AC26: 14.8 | AD26: 7.92 | AE26: 9.12 | AF26: 1 | AG26: 7.5499804 | AH26: 12755 | AI26: 13222 | AJ26: 0 | AK26: 0 | AL26: 0 | AM26: 0 | AN26: 0 | AO26: [0] | AP26: 0 | AQ26: 0 | AR26: 0 | AS26: 0 | AT26: 0 | AU26: 0 | AV26: 0 | AW26: 0 | AX26: 0 | AY26: 0 | AZ26: 0 | BA26: 0 | BB26: 0 | BC26: 6602 | BD26: 0 | BE26: 0 | BF26: 13222 | BG26: 19.98687691 | BH26: 2651.5 | BI26: 18.11838495 | BJ26: 49.99607997 | BK26: 0 | BL26: 299 | BM26: 1048 | BN26: 25.46632039 | BO26: 18.10072649 | BP26: 1317.5 | BQ26: 9.966240197 | BR26: <ArgumentTypeException> | BS26: <ArgumentTypeException> | BT26: 6602 | BU26: 0 | BV26: 510 | BW26: 1303 | BX26: 13689 | BY26: 0 | BZ26: 0 | CA26: 1000000000 | CB26: 0 | CC26: not yet
A27: 2 | B27: 15000 | C27: 1 | D27: 0.35 | E27: 0.75 | F27: 47.5 | G27: female abc | H27: 10 | I27: 10 | J27: TRUE | K27: 150 | L27: 120 | M27: 240 | N27: 6 | O27: 36 | P27: TRUE | Q27: Generic | R27: Addis Ababa | S27: TRUE | T27: 0.4 | U27: 4.32 | V27: 18.88 | W27: 3.36 | X27: 18.8 | Y27: 14.24 | Z27: 1.2 | AA27: 0.56 | AB27: 1.68 | AC27: 14.8 | AD27: 7.92 | AE27: 9.12 | AF27: 1 | AG27: 7.735495945 | AH27: 12824 | AI27: 13333.5 | AJ27: 0 | AK27: 0 | AL27: 0 | AM27: 0 | AN27: 0 | AO27: [0] | AP27: 0 | AQ27: 0 | AR27: 0 | AS27: 0 | AT27: 0 | AU27: 0 | AV27: 0 | AW27: 0 | AX27: 0 | AY27: 0 | AZ27: 0 | BA27: 0 | BB27: 0 | BC27: 6868.5 | BD27: 0 | BE27: 0 | BF27: 13333.5 | BG27: 20.35142884 | BH27: 2723 | BI27: 18.51996257 | BJ27: 51.53618216 | BK27: 0 | BL27: 321 | BM27: 1134 | BN27: 25.33944179 | BO27: 17.98882364 | BP27: 1329.5 | BQ27: 9.970277712 | BR27: <ArgumentTypeException> | BS27: <ArgumentTypeException> | BT27: 6868.5 | BU27: 0 | BV27: 522.5 | BW27: 1396 | BX27: 13843 | BY27: 0 | BZ27: 0 | CA27: 1000000000 | CB27: 0 | CC27: not yet
A28: 8 | B28: 15000 | C28: 1 | D28: 0.35 | E28: 0.75 | F28: 47.5 | G28: female abc | H28: 10 | I28: 10 | J28: TRUE | K28: 150 | L28: 120 | M28: 240 | N28: 6 | O28: 36 | P28: TRUE | Q28: Generic | R28: Addis Ababa | S28: TRUE | T28: 0.4 | U28: 4.32 | V28: 18.88 | W28: 3.36 | X28: 18.8 | Y28: 14.24 | Z28: 1.2 | AA28: 0.56 | AB28: 1.68 | AC28: 14.8 | AD28: 7.92 | AE28: 9.12 | AF28: 1 | AG28: 7.887281944 | AH28: 13414 | AI28: 13937.5 | AJ28: 0 | AK28: 0 | AL28: 0 | AM28: 0 | AN28: 0 | AO28: [0] | AP28: 0 | AQ28: 0 | AR28: 0 | AS28: 0 | AT28: 0 | AU28: 0 | AV28: 0 | AW28: 0 | AX28: 0 | AY28: 0 | AZ28: 0 | BA28: 0 | BB28: 0 | BC28: 6944 | BD28: 0 | BE28: 0 | BF28: 13937.5 | BG28: 20.18821756 | BH28: 2824.5 | BI28: 18.15267631 | BJ28: 49.91054123 | BK28: 0 | BL28: 349 | BM28: 1167 | BN28: 25.35106441 | BO28: 17.85601588 | BP28: 1460.5 | BQ28: 10.48162919 | BR28: <ArgumentTypeException> | BS28: <ArgumentTypeException> | BT28: 6944 | BU28: 0 | BV28: 567 | BW28: 1391 | BX28: 14461 | BY28: 0 | BZ28: 0 | CA28: 1000000000 | CB28: 0 | CC28: not yet
A29: 4 | B29: 15000 | C29: 1 | D29: 0.35 | E29: 0.75 | F29: 47.5 | G29: female abc | H29: 10 | I29: 10 | J29: TRUE | K29: 150 | L29: 120 | M29: 240 | N29: 6 | O29: 36 | P29: TRUE | Q29: Generic | R29: Addis Ababa | S29: TRUE | T29: 0.4 | U29: 4.32 | V29: 18.88 | W29: 3.36 | X29: 18.8 | Y29: 14.24 | Z29: 1.2 | AA29: 0.56 | AB29: 1.68 | AC29: 14.8 | AD29: 7.92 | AE29: 9.12 | AF29: 1 | AG29: 8.22027717 | AH29: 13710 | AI29: 14201.5 | AJ29: 0 | AK29: 0 | AL29: 0 | AM29: 0 | AN29: 0 | AO29: [0] | AP29: 0 | AQ29: 0 | AR29: 0 | AS29: 0 | AT29: 0 | AU29: 0 | AV29: 0 | AW29: 0 | AX29: 0 | AY29: 0 | AZ29: 0 | BA29: 0 | BB29: 0 | BC29: 7063.5 | BD29: 0 | BE29: 0 | BF29: 14201.5 | BG29: 20.89591191 | BH29: 2977.5 | BI29: 18.8913202 | BJ29: 49.71553611 | BK29: 0 | BL29: 353 | BM29: 1105 | BN29: 25.17759954 | BO29: 17.991046 | BP29: 1389.5 | BQ29: 9.784965596 | BR29: <ArgumentTypeException> | BS29: <ArgumentTypeException> | BT29: 7063.5 | BU29: 0 | BV29: 546.5 | BW29: 1462 | BX29: 14693 | BY29: 0 | BZ29: 0 | CA29: 1000000000 | CB29: 0 | CC29: not yet
A30: 14 | B30: 15000 | C30: 1 | D30: 0.35 | E30: 0.75 | F30: 47.5 | G30: female abc | H30: 10 | I30: 10 | J30: TRUE | K30: 150 | L30: 120 | M30: 240 | N30: 6 | O30: 36 | P30: TRUE | Q30: Generic | R30: Addis Ababa | S30: TRUE | T30: 0.4 | U30: 4.32 | V30: 18.88 | W30: 3.36 | X30: 18.8 | Y30: 14.24 | Z30: 1.2 | AA30: 0.56 | AB30: 1.68 | AC30: 14.8 | AD30: 7.92 | AE30: 9.12 | AF30: 1 | AG30: 7.631774313 | AH30: 13470 | AI30: 14011 | AJ30: 0 | AK30: 0 | AL30: 0 | AM30: 0 | AN30: 0 | AO30: [0] | AP30: 0 | AQ30: 0 | AR30: 0 | AS30: 0 | AT30: 0 | AU30: 0 | AV30: 0 | AW30: 0 | AX30: 0 | AY30: 0 | AZ30: 0 | BA30: 0 | BB30: 0 | BC30: 6988.5 | BD30: 0 | BE30: 0 | BF30: 14011 | BG30: 20.25487593 | BH30: 2849 | BI30: 18.22568671 | BJ30: 49.89606533 | BK30: 0 | BL30: 358 | BM30: 1203 | BN30: 25.45028741 | BO30: 18.06564347 | BP30: 1414.5 | BQ30: 10.09725836 | BR30: <ArgumentTypeException> | BS30: <ArgumentTypeException> | BT30: 6988.5 | BU30: 0 | BV30: 579 | BW30: 1440 | BX30: 14552 | BY30: 0 | BZ30: 0 | CA30: 1000000000 | CB30: 0 | CC30: not yet
A31: 15 | B31: 15000 | C31: 1 | D31: 0.35 | E31: 0.75 | F31: 47.5 | G31: female abc | H31: 10 | I31: 10 | J31: TRUE | K31: 150 | L31: 120 | M31: 240 | N31: 6 | O31: 36 | P31: TRUE | Q31: Generic | R31: Addis Ababa | S31: TRUE | T31: 0.4 | U31: 4.32 | V31: 18.88 | W31: 3.36 | X31: 18.8 | Y31: 14.24 | Z31: 1.2 | AA31: 0.56 | AB31: 1.68 | AC31: 14.8 | AD31: 7.92 | AE31: 9.12 | AF31: 1 | AG31: 7.681605155 | AH31: 13656 | AI31: 14186 | AJ31: 0 | AK31: 0 | AL31: 0 | AM31: 0 | AN31: 0 | AO31: [0] | AP31: 0 | AQ31: 0 | AR31: 0 | AS31: 0 | AT31: 0 | AU31: 0 | AV31: 0 | AW31: 0 | AX31: 0 | AY31: 0 | AZ31: 0 | BA31: 0 | BB31: 0 | BC31: 7033 | BD31: 0 | BE31: 0 | BF31: 14186 | BG31: 20.07065075 | BH31: 2858 | BI31: 18.05799649 | BJ31: 49.57527827 | BK31: 0 | BL31: 315 | BM31: 1182 | BN31: 25.20169396 | BO31: 18.06752653 | BP31: 1472.5 | BQ31: 10.37947106 | BR31: <ArgumentTypeException> | BS31: <ArgumentTypeException> | BT31: 7033 | BU31: 0 | BV31: 596.5 | BW31: 1426 | BX31: 14716 | BY31: 0 | BZ31: 0 | CA31: 1000000000 | CB31: 0 | CC31: not yet
A32: 6 | B32: 15000 | C32: 1 | D32: 0.35 | E32: 0.75 | F32: 47.5 | G32: female abc | H32: 10 | I32: 10 | J32: TRUE | K32: 150 | L32: 120 | M32: 240 | N32: 6 | O32: 36 | P32: TRUE | Q32: Generic | R32: Addis Ababa | S32: TRUE | T32: 0.4 | U32: 4.32 | V32: 18.88 | W32: 3.36 | X32: 18.8 | Y32: 14.24 | Z32: 1.2 | AA32: 0.56 | AB32: 1.68 | AC32: 14.8 | AD32: 7.92 | AE32: 9.12 | AF32: 2 | AG32: 5.418800595 | AH32: 12106 | AI32: 12724.66667 | AJ32: 0 | AK32: 0 | AL32: 0 | AM32: 0 | AN32: 0 | AO32: [0] | AP32: 0 | AQ32: 0 | AR32: 0 | AS32: 0 | AT32: 0 | AU32: 0 | AV32: 0 | AW32: 0 | AX32: 0 | AY32: 0 | AZ32: 0 | BA32: 0 | BB32: 0 | BC32: 6365.666667 | BD32: 0 | BE32: 0 | BF32: 12724.66667 | BG32: 18.44088649 | BH32: 2362.333333 | BI32: 15.43862547 | BJ32: 50.16520734 | BK32: 188 | BL32: 556 | BM32: 1851 | BN32: 26.42674013 | BO32: 18.9844337 | BP32: 1267.333333 | BQ32: 9.959052018 | BR32: <ArgumentTypeException> | BS32: <ArgumentTypeException> | BT32: 6365.666667 | BU32: 0 | BV32: 512.6666667 | BW32: 1182.666667 | BX32: 13034 | BY32: 0 | BZ32: 0 | CA32: 1000000000 | CB32: 0 | CC32: not yet
A33: 13 | B33: 15000 | C33: 1 | D33: 0.35 | E33: 0.75 | F33: 47.5 | G33: female abc | H33: 10 | I33: 10 | J33: TRUE | K33: 150 | L33: 120 | M33: 240 | N33: 6 | O33: 36 | P33: TRUE | Q33: Generic | R33: Addis Ababa | S33: TRUE | T33: 0.4 | U33: 4.32 | V33: 18.88 | W33: 3.36 | X33: 18.8 | Y33: 14.24 | Z33: 1.2 | AA33: 0.56 | AB33: 1.68 | AC33: 14.8 | AD33: 7.92 | AE33: 9.12 | AF33: 2 | AG33: 5.367777241 | AH33: 12426 | AI33: 13028.33333 | AJ33: 0 | AK33: 0 | AL33: 0 | AM33: 0 | AN33: 0 | AO33: [0] | AP33: 0 | AQ33: 0 | AR33: 0 | AS33: 0 | AT33: 0 | AU33: 0 | AV33: 0 | AW33: 0 | AX33: 0 | AY33: 0 | AZ33: 0 | BA33: 0 | BB33: 0 | BC33: 6561 | BD33: 0 | BE33: 0 | BF33: 13028.33333 | BG33: 18.96450607 | BH33: 2487 | BI33: 15.7733784 | BJ33: 50.35409625 | BK33: 208 | BL33: 569 | BM33: 1833 | BN33: 25.866437 | BO33: 18.82885422 | BP33: 1360.333333 | BQ33: 10.43933642 | BR33: <ArgumentTypeException> | BS33: <ArgumentTypeException> | BT33: 6561 | BU33: 0 | BV33: 541 | BW33: 1244 | BX33: 13329.5 | BY33: 0 | BZ33: 0 | CA33: 1000000000 | CB33: 0 | CC33: not yet
A34: 1 | B34: 15000 | C34: 1 | D34: 0.35 | E34: 0.75 | F34: 47.5 | G34: female abc | H34: 10 | I34: 10 | J34: TRUE | K34: 150 | L34: 120 | M34: 240 | N34: 6 | O34: 36 | P34: TRUE | Q34: Generic | R34: Addis Ababa | S34: TRUE | T34: 0.4 | U34: 4.32 | V34: 18.88 | W34: 3.36 | X34: 18.8 | Y34: 14.24 | Z34: 1.2 | AA34: 0.56 | AB34: 1.68 | AC34: 14.8 | AD34: 7.92 | AE34: 9.12 | AF34: 2 | AG34: 5.034192964 | AH34: 12137 | AI34: 12728.66667 | AJ34: 0 | AK34: 0 | AL34: 0 | AM34: 0 | AN34: 0 | AO34: [0] | AP34: 0 | AQ34: 0 | AR34: 0 | AS34: 0 | AT34: 0 | AU34: 0 | AV34: 0 | AW34: 0 | AX34: 0 | AY34: 0 | AZ34: 0 | BA34: 0 | BB34: 0 | BC34: 6344.666667 | BD34: 0 | BE34: 0 | BF34: 12728.66667 | BG34: 17.891956 | BH34: 2292.666667 | BI34: 14.80596523 | BJ34: 49.88876988 | BK34: 194 | BL34: 540 | BM34: 1768 | BN34: 25.96888484 | BO34: 19.15996037 | BP34: 1298.666667 | BQ34: 10.20258581 | BR34: <ArgumentTypeException> | BS34: <ArgumentTypeException> | BT34: 6344.666667 | BU34: 0 | BV34: 524 | BW34: 1129.666667 | BX34: 13024.5 | BY34: 0 | BZ34: 0 | CA34: 1000000000 | CB34: 0 | CC34: not yet
A35: 7 | B35: 15000 | C35: 1 | D35: 0.35 | E35: 0.75 | F35: 47.5 | G35: female abc | H35: 10 | I35: 10 | J35: TRUE | K35: 150 | L35: 120 | M35: 240 | N35: 6 | O35: 36 | P35: TRUE | Q35: Generic | R35: Addis Ababa | S35: TRUE | T35: 0.4 | U35: 4.32 | V35: 18.88 | W35: 3.36 | X35: 18.8 | Y35: 14.24 | Z35: 1.2 | AA35: 0.56 | AB35: 1.68 | AC35: 14.8 | AD35: 7.92 | AE35: 9.12 | AF35: 2 | AG35: 5.33988534 | AH35: 12210 | AI35: 12784.66667 | AJ35: 0 | AK35: 0 | AL35: 0 | AM35: 0 | AN35: 0 | AO35: [0] | AP35: 0 | AQ35: 0 | AR35: 0 | AS35: 0 | AT35: 0 | AU35: 0 | AV35: 0 | AW35: 0 | AX35: 0 | AY35: 0 | AZ35: 0 | BA35: 0 | BB35: 0 | BC35: 6415.333333 | BD35: 0 | BE35: 0 | BF35: 12784.66667 | BG35: 18.51751012 | BH35: 2381.666667 | BI35: 15.61015561 | BJ35: 50.0982801 | BK35: 210 | BL35: 542 | BM35: 1759 | BN35: 26.35134966 | BO35: 19.1821545 | BP35: 1286.666667 | BQ35: 10.06603781 | BR35: <ArgumentTypeException> | BS35: <ArgumentTypeException> | BT35: 6415.333333 | BU35: 0 | BV35: 531.6666667 | BW35: 1175.333333 | BX35: 13072 | BY35: 0 | BZ35: 0 | CA35: 1000000000 | CB35: 0 | CC35: not yet
A36: 3 | B36: 15000 | C36: 1 | D36: 0.35 | E36: 0.75 | F36: 47.5 | G36: female abc | H36: 10 | I36: 10 | J36: TRUE | K36: 150 | L36: 120 | M36: 240 | N36: 6 | O36: 36 | P36: TRUE | Q36: Generic | R36: Addis Ababa | S36: TRUE | T36: 0.4 | U36: 4.32 | V36: 18.88 | W36: 3.36 | X36: 18.8 | Y36: 14.24 | Z36: 1.2 | AA36: 0.56 | AB36: 1.68 | AC36: 14.8 | AD36: 7.92 | AE36: 9.12 | AF36: 2 | AG36: 5.359805383 | AH36: 12743 | AI36: 13356.33333 | AJ36: 0 | AK36: 0 | AL36: 0 | AM36: 0 | AN36: 0 | AO36: [0] | AP36: 0 | AQ36: 0 | AR36: 0 | AS36: 0 | AT36: 0 | AU36: 0 | AV36: 0 | AW36: 0 | AX36: 0 | AY36: 0 | AZ36: 0 | BA36: 0 | BB36: 0 | BC36: 6621 | BD36: 0 | BE36: 0 | BF36: 13356.33333 | BG36: 18.74056645 | BH36: 2519.333333 | BI36: 15.5379424 | BJ36: 49.66648356 | BK36: 201 | BL36: 598 | BM36: 1874 | BN36: 26.43460221 | BO36: 19.09858626 | BP36: 1280.666667 | BQ36: 9.5886082 | BR36: <ArgumentTypeException> | BS36: <ArgumentTypeException> | BT36: 6621 | BU36: 0 | BV36: 556.3333333 | BW36: 1219.333333 | BX36: 13663 | BY36: 0 | BZ36: 0 | CA36: 1000000000 | CB36: 0 | CC36: not yet
A37: 9 | B37: 15000 | C37: 1 | D37: 0.35 | E37: 0.75 | F37: 47.5 | G37: female abc | H37: 10 | I37: 10 | J37: TRUE | K37: 150 | L37: 120 | M37: 240 | N37: 6 | O37: 36 | P37: TRUE | Q37: Generic | R37: Addis Ababa | S37: TRUE | T37: 0.4 | U37: 4.32 | V37: 18.88 | W37: 3.36 | X37: 18.8 | Y37: 14.24 | Z37: 1.2 | AA37: 0.56 | AB37: 1.68 | AC37: 14.8 | AD37: 7.92 | AE37: 9.12 | AF37: 2 | AG37: 5.36357681 | AH37: 12212 | AI37: 12742 | AJ37: 0 | AK37: 0 | AL37: 0 | AM37: 0 | AN37: 0 | AO37: [0] | AP37: 0 | AQ37: 0 | AR37: 0 | AS37: 0 | AT37: 0 | AU37: 0 | AV37: 0 | AW37: 0 | AX37: 0 | AY37: 0 | AZ37: 0 | BA37: 0 | BB37: 0 | BC37: 6402.666667 | BD37: 0 | BE37: 0 | BF37: 12742 | BG37: 18.40057144 | BH37: 2358.666667 | BI37: 15.32918441 | BJ37: 50.23747134 | BK37: 203 | BL37: 546 | BM37: 1659 | BN37: 26.74427726 | BO37: 19.42499325 | BP37: 1236.666667 | BQ37: 9.70420637 | BR37: <ArgumentTypeException> | BS37: <ArgumentTypeException> | BT37: 6402.666667 | BU37: 0 | BV37: 532 | BW37: 1200.333333 | BX37: 13007 | BY37: 0 | BZ37: 0 | CA37: 1000000000 | CB37: 0 | CC37: not yet
A38: 12 | B38: 15000 | C38: 1 | D38: 0.35 | E38: 0.75 | F38: 47.5 | G38: female abc | H38: 10 | I38: 10 | J38: TRUE | K38: 150 | L38: 120 | M38: 240 | N38: 6 | O38: 36 | P38: TRUE | Q38: Generic | R38: Addis Ababa | S38: TRUE | T38: 0.4 | U38: 4.32 | V38: 18.88 | W38: 3.36 | X38: 18.8 | Y38: 14.24 | Z38: 1.2 | AA38: 0.56 | AB38: 1.68 | AC38: 14.8 | AD38: 7.92 | AE38: 9.12 | AF38: 2 | AG38: 5.177761871 | AH38: 12573 | AI38: 13187.66667 | AJ38: 0 | AK38: 0 | AL38: 0 | AM38: 0 | AN38: 0 | AO38: [0] | AP38: 0 | AQ38: 0 | AR38: 0 | AS38: 0 | AT38: 0 | AU38: 0 | AV38: 0 | AW38: 0 | AX38: 0 | AY38: 0 | AZ38: 0 | BA38: 0 | BB38: 0 | BC38: 6635 | BD38: 0 | BE38: 0 | BF38: 13187.66667 | BG38: 18.36586873 | BH38: 2438.333333 | BI38: 15.29467907 | BJ38: 50.33802593 | BK38: 219 | BL38: 570 | BM38: 1889 | BN38: 26.10825899 | BO38: 19.01826437 | BP38: 1349.666667 | BQ38: 10.23019428 | BR38: <ArgumentTypeException> | BS38: <ArgumentTypeException> | BT38: 6635 | BU38: 0 | BV38: 533.3333333 | BW38: 1226.666667 | BX38: 13495 | BY38: 0 | BZ38: 0 | CA38: 1000000000 | CB38: 0 | CC38: not yet
A39: 11 | B39: 15000 | C39: 1 | D39: 0.35 | E39: 0.75 | F39: 47.5 | G39: female abc | H39: 10 | I39: 10 | J39: TRUE | K39: 150 | L39: 120 | M39: 240 | N39: 6 | O39: 36 | P39: TRUE | Q39: Generic | R39: Addis Ababa | S39: TRUE | T39: 0.4 | U39: 4.32 | V39: 18.88 | W39: 3.36 | X39: 18.8 | Y39: 14.24 | Z39: 1.2 | AA39: 0.56 | AB39: 1.68 | AC39: 14.8 | AD39: 7.92 | AE39: 9.12 | AF39: 2 | AG39: 4.986371653 | AH39: 12474 | AI39: 13074 | AJ39: 0 | AK39: 0 | AL39: 0 | AM39: 0 | AN39: 0 | AO39: [0] | AP39: 0 | AQ39: 0 | AR39: 0 | AS39: 0 | AT39: 0 | AU39: 0 | AV39: 0 | AW39: 0 | AX39: 0 | AY39: 0 | AZ39: 0 | BA39: 0 | BB39: 0 | BC39: 6491.333333 | BD39: 0 | BE39: 0 | BF39: 13074 | BG39: 18.60962984 | BH39: 2449 | BI39: 15.48821549 | BJ39: 49.71139971 | BK39: 197 | BL39: 576 | BM39: 1832 | BN39: 26.19083504 | BO39: 19.21212651 | BP39: 1289.666667 | BQ39: 9.865151811 | BR39: <ArgumentTypeException> | BS39: <ArgumentTypeException> | BT39: 6491.333333 | BU39: 0 | BV39: 512.3333333 | BW39: 1203.666667 | BX39: 13374 | BY39: 0 | BZ39: 0 | CA39: 1000000000 | CB39: 0 | CC39: not yet
A40: 16 | B40: 15000 | C40: 1 | D40: 0.35 | E40: 0.75 | F40: 47.5 | G40: female abc | H40: 10 | I40: 10 | J40: TRUE | K40: 150 | L40: 120 | M40: 240 | N40: 6 | O40: 36 | P40: TRUE | Q40: Generic | R40: Addis Ababa | S40: TRUE | T40: 0.4 | U40: 4.32 | V40: 18.88 | W40: 3.36 | X40: 18.8 | Y40: 14.24 | Z40: 1.2 | AA40: 0.56 | AB40: 1.68 | AC40: 14.8 | AD40: 7.92 | AE40: 9.12 | AF40: 2 | AG40: 4.849471115 | AH40: 12290 | AI40: 12880.33333 | AJ40: 0 | AK40: 0 | AL40: 0 | AM40: 0 | AN40: 0 | AO40: [0] | AP40: 0 | AQ40: 0 | AR40: 0 | AS40: 0 | AT40: 0 | AU40: 0 | AV40: 0 | AW40: 0 | AX40: 0 | AY40: 0 | AZ40: 0 | BA40: 0 | BB40: 0 | BC40: 6392.666667 | BD40: 0 | BE40: 0 | BF40: 12880.33333 | BG40: 18.47225797 | BH40: 2394.666667 | BI40: 15.41090317 | BJ40: 49.48738812 | BK40: 203 | BL40: 588 | BM40: 1777 | BN40: 26.50359177 | BO40: 19.11320892 | BP40: 1290 | BQ40: 10.01517605 | BR40: <ArgumentTypeException> | BS40: <ArgumentTypeException> | BT40: 6392.666667 | BU40: 0 | BV40: 542.3333333 | BW40: 1206.666667 | BX40: 13175.5 | BY40: 0 | BZ40: 0 | CA40: 1000000000 | CB40: 0 | CC40: not yet
A41: 2 | B41: 15000 | C41: 1 | D41: 0.35 | E41: 0.75 | F41: 47.5 | G41: female abc | H41: 10 | I41: 10 | J41: TRUE | K41: 150 | L41: 120 | M41: 240 | N41: 6 | O41: 36 | P41: TRUE | Q41: Generic | R41: Addis Ababa | S41: TRUE | T41: 0.4 | U41: 4.32 | V41: 18.88 | W41: 3.36 | X41: 18.8 | Y41: 14.24 | Z41: 1.2 | AA41: 0.56 | AB41: 1.68 | AC41: 14.8 | AD41: 7.92 | AE41: 9.12 | AF41: 2 | AG41: 5.246665595 | AH41: 12446 | AI41: 13037.66667 | AJ41: 0 | AK41: 0 | AL41: 0 | AM41: 0 | AN41: 0 | AO41: [0] | AP41: 0 | AQ41: 0 | AR41: 0 | AS41: 0 | AT41: 0 | AU41: 0 | AV41: 0 | AW41: 0 | AX41: 0 | AY41: 0 | AZ41: 0 | BA41: 0 | BB41: 0 | BC41: 6714 | BD41: 0 | BE41: 0 | BF41: 13037.66667 | BG41: 18.85713661 | BH41: 2473.666667 | BI41: 15.86855215 | BJ41: 51.46231721 | BK41: 198 | BL41: 553 | BM41: 1821 | BN41: 26.33508671 | BO41: 19.02063532 | BP41: 1293.333333 | BQ41: 9.916978756 | BR41: <ArgumentTypeException> | BS41: <ArgumentTypeException> | BT41: 6714 | BU41: 0 | BV41: 521.3333333 | BW41: 1265 | BX41: 13333.5 | BY41: 0 | BZ41: 0 | CA41: 1000000000 | CB41: 0 | CC41: not yet
A42: 10 | B42: 15000 | C42: 1 | D42: 0.35 | E42: 0.75 | F42: 47.5 | G42: female abc | H42: 10 | I42: 10 | J42: TRUE | K42: 150 | L42: 120 | M42: 240 | N42: 6 | O42: 36 | P42: TRUE | Q42: Generic | R42: Addis Ababa | S42: TRUE | T42: 0.4 | U42: 4.32 | V42: 18.88 | W42: 3.36 | X42: 18.8 | Y42: 14.24 | Z42: 1.2 | AA42: 0.56 | AB42: 1.68 | AC42: 14.8 | AD42: 7.92 | AE42: 9.12 | AF42: 2 | AG42: 5.170046046 | AH42: 12379 | AI42: 12941 | AJ42: 0 | AK42: 0 | AL42: 0 | AM42: 0 | AN42: 0 | AO42: [0] | AP42: 0 | AQ42: 0 | AR42: 0 | AS42: 0 | AT42: 0 | AU42: 0 | AV42: 0 | AW42: 0 | AX42: 0 | AY42: 0 | AZ42: 0 | BA42: 0 | BB42: 0 | BC42: 6465.333333 | BD42: 0 | BE42: 0 | BF42: 12941 | BG42: 18.43000508 | BH42: 2399.666667 | BI42: 15.31626141 | BJ42: 50.02019549 | BK42: 196 | BL42: 535 | BM42: 1730 | BN42: 26.44416117 | BO42: 19.15511361 | BP42: 1290.666667 | BQ42: 9.975070006 | BR42: <ArgumentTypeException> | BS42: <ArgumentTypeException> | BT42: 6465.333333 | BU42: 0 | BV42: 509.6666667 | BW42: 1176 | BX42: 13222 | BY42: 0 | BZ42: 0 | CA42: 1000000000 | CB42: 0 | CC42: not yet
A43: 8 | B43: 15000 | C43: 1 | D43: 0.35 | E43: 0.75 | F43: 47.5 | G43: female abc | H43: 10 | I43: 10 | J43: TRUE | K43: 150 | L43: 120 | M43: 240 | N43: 6 | O43: 36 | P43: TRUE | Q43: Generic | R43: Addis Ababa | S43: TRUE | T43: 0.4 | U43: 4.32 | V43: 18.88 | W43: 3.36 | X43: 18.8 | Y43: 14.24 | Z43: 1.2 | AA43: 0.56 | AB43: 1.68 | AC43: 14.8 | AD43: 7.92 | AE43: 9.12 | AF43: 2 | AG43: 5.025318398 | AH43: 13034 | AI43: 13636.33333 | AJ43: 0 | AK43: 0 | AL43: 0 | AM43: 0 | AN43: 0 | AO43: [0] | AP43: 0 | AQ43: 0 | AR43: 0 | AS43: 0 | AT43: 0 | AU43: 0 | AV43: 0 | AW43: 0 | AX43: 0 | AY43: 0 | AZ43: 0 | BA43: 0 | BB43: 0 | BC43: 6799 | BD43: 0 | BE43: 0 | BF43: 13636.33333 | BG43: 18.66826391 | BH43: 2562 | BI43: 15.62835661 | BJ43: 49.93862207 | BK43: 212 | BL43: 590 | BM43: 1875 | BN43: 26.34567845 | BO43: 18.92328424 | BP43: 1435 | BQ43: 10.52721369 | BR43: <ArgumentTypeException> | BS43: <ArgumentTypeException> | BT43: 6799 | BU43: 0 | BV43: 570.3333333 | BW43: 1258.333333 | BX43: 13937.5 | BY43: 0 | BZ43: 0 | CA43: 1000000000 | CB43: 0 | CC43: not yet
A44: 4 | B44: 15000 | C44: 1 | D44: 0.35 | E44: 0.75 | F44: 47.5 | G44: female abc | H44: 10 | I44: 10 | J44: TRUE | K44: 150 | L44: 120 | M44: 240 | N44: 6 | O44: 36 | P44: TRUE | Q44: Generic | R44: Addis Ababa | S44: TRUE | T44: 0.4 | U44: 4.32 | V44: 18.88 | W44: 3.36 | X44: 18.8 | Y44: 14.24 | Z44: 1.2 | AA44: 0.56 | AB44: 1.68 | AC44: 14.8 | AD44: 7.92 | AE44: 9.12 | AF44: 2 | AG44: 5.590202119 | AH44: 13309 | AI44: 13904 | AJ44: 0 | AK44: 0 | AL44: 0 | AM44: 0 | AN44: 0 | AO44: [0] | AP44: 0 | AQ44: 0 | AR44: 0 | AS44: 0 | AT44: 0 | AU44: 0 | AV44: 0 | AW44: 0 | AX44: 0 | AY44: 0 | AZ44: 0 | BA44: 0 | BB44: 0 | BC44: 6915.333333 | BD44: 0 | BE44: 0 | BF44: 13904 | BG44: 19.22276613 | BH44: 2689.333333 | BI44: 15.87647457 | BJ44: 49.73326321 | BK44: 198 | BL44: 597 | BM44: 1822 | BN44: 26.14328059 | BO44: 19.0673079 | BP44: 1360.333333 | BQ44: 9.784261633 | BR44: <ArgumentTypeException> | BS44: <ArgumentTypeException> | BT44: 6915.333333 | BU44: 0 | BV44: 547.6666667 | BW44: 1326.666667 | BX44: 14201.5 | BY44: 0 | BZ44: 0 | CA44: 1000000000 | CB44: 0 | CC44: not yet
A45: 14 | B45: 15000 | C45: 1 | D45: 0.35 | E45: 0.75 | F45: 47.5 | G45: female abc | H45: 10 | I45: 10 | J45: TRUE | K45: 150 | L45: 120 | M45: 240 | N45: 6 | O45: 36 | P45: TRUE | Q45: Generic | R45: Addis Ababa | S45: TRUE | T45: 0.4 | U45: 4.32 | V45: 18.88 | W45: 3.36 | X45: 18.8 | Y45: 14.24 | Z45: 1.2 | AA45: 0.56 | AB45: 1.68 | AC45: 14.8 | AD45: 7.92 | AE45: 9.12 | AF45: 2 | AG45: 4.777947933 | AH45: 13060 | AI45: 13694 | AJ45: 0 | AK45: 0 | AL45: 0 | AM45: 0 | AN45: 0 | AO45: [0] | AP45: 0 | AQ45: 0 | AR45: 0 | AS45: 0 | AT45: 0 | AU45: 0 | AV45: 0 | AW45: 0 | AX45: 0 | AY45: 0 | AZ45: 0 | BA45: 0 | BB45: 0 | BC45: 6831.333333 | BD45: 0 | BE45: 0 | BF45: 13694 | BG45: 18.57726797 | BH45: 2562 | BI45: 15.22205207 | BJ45: 49.90045942 | BK45: 217 | BL45: 627 | BM45: 1946 | BN45: 26.43356141 | BO45: 19.13821066 | BP45: 1390 | BQ45: 10.1541702 | BR45: <ArgumentTypeException> | BS45: <ArgumentTypeException> | BT45: 6831.333333 | BU45: 0 | BV45: 580.6666667 | BW45: 1287.666667 | BX45: 14011 | BY45: 0 | BZ45: 0 | CA45: 1000000000 | CB45: 0 | CC45: not yet
A46: 15 | B46: 15000 | C46: 1 | D46: 0.35 | E46: 0.75 | F46: 47.5 | G46: female abc | H46: 10 | I46: 10 | J46: TRUE | K46: 150 | L46: 120 | M46: 240 | N46: 6 | O46: 36 | P46: TRUE | Q46: Generic | R46: Addis Ababa | S46: TRUE | T46: 0.4 | U46: 4.32 | V46: 18.88 | W46: 3.36 | X46: 18.8 | Y46: 14.24 | Z46: 1.2 | AA46: 0.56 | AB46: 1.68 | AC46: 14.8 | AD46: 7.92 | AE46: 9.12 | AF46: 2 | AG46: 5.05880579 | AH46: 13264 | AI46: 13878.66667 | AJ46: 0 | AK46: 0 | AL46: 0 | AM46: 0 | AN46: 0 | AO46: [0] | AP46: 0 | AQ46: 0 | AR46: 0 | AS46: 0 | AT46: 0 | AU46: 0 | AV46: 0 | AW46: 0 | AX46: 0 | AY46: 0 | AZ46: 0 | BA46: 0 | BB46: 0 | BC46: 6890 | BD46: 0 | BE46: 0 | BF46: 13878.66667 | BG46: 18.48698792 | BH46: 2582.666667 | BI46: 15.31966224 | BJ46: 49.78890229 | BK46: 201 | BL46: 563 | BM46: 1893 | BN46: 26.11523043 | BO46: 19.1163295 | BP46: 1443 | BQ46: 10.39773342 | BR46: <ArgumentTypeException> | BS46: <ArgumentTypeException> | BT46: 6890 | BU46: 0 | BV46: 592.3333333 | BW46: 1292.666667 | BX46: 14186 | BY46: 0 | BZ46: 0 | CA46: 1000000000 | CB46: 0 | CC46: not yet
A47: 6 | B47: 15000 | C47: 1 | D47: 0.35 | E47: 0.75 | F47: 47.5 | G47: female abc | H47: 10 | I47: 10 | J47: TRUE | K47: 150 | L47: 120 | M47: 240 | N47: 6 | O47: 36 | P47: TRUE | Q47: Generic | R47: Addis Ababa | S47: TRUE | T47: 0.4 | U47: 4.32 | V47: 18.88 | W47: 3.36 | X47: 18.8 | Y47: 14.24 | Z47: 1.2 | AA47: 0.56 | AB47: 1.68 | AC47: 14.8 | AD47: 7.92 | AE47: 9.12 | AF47: 3 | AG47: 2.150537634 | AH47: 11718 | AI47: 12473 | AJ47: 0 | AK47: 0 | AL47: 0 | AM47: 0 | AN47: 0 | AO47: [0] | AP47: 0 | AQ47: 0 | AR47: 0 | AS47: 0 | AT47: 0 | AU47: 0 | AV47: 0 | AW47: 0 | AX47: 0 | AY47: 0 | AZ47: 0 | BA47: 0 | BB47: 0 | BC47: 6245.5 | BD47: 0 | BE47: 0 | BF47: 12473 | BG47: 17.03940356 | BH47: 2147.75 | BI47: 12.83495477 | BJ47: 50.22188087 | BK47: 273 | BL47: 726 | BM47: 2430 | BN47: 27.55155706 | BO47: 20.14132047 | BP47: 1243.5 | BQ47: 9.969715707 | BR47: <ArgumentTypeException> | BS47: <ArgumentTypeException> | BT47: 6245.5 | BU47: 0 | BV47: 513.25 | BW47: 1076 | BX47: 12724.66667 | BY47: 0 | BZ47: 0 | CA47: 1000000000 | CB47: 0 | CC47: not yet
A48: 5 | B48: 15000 | C48: 1 | D48: 0.35 | E48: 0.75 | F48: 47.5 | G48: female abc | H48: 10 | I48: 10 | J48: TRUE | K48: 150 | L48: 120 | M48: 240 | N48: 6 | O48: 36 | P48: TRUE | Q48: Generic | R48: Addis Ababa | S48: TRUE | T48: 0.4 | U48: 4.32 | V48: 18.88 | W48: 3.36 | X48: 18.8 | Y48: 14.24 | Z48: 1.2 | AA48: 0.56 | AB48: 1.68 | AC48: 14.8 | AD48: 7.92 | AE48: 9.12 | AF48: 0 | AG48: 0 | AH48: 10771 | AI48: 10771 | AJ48: 0 | AK48: 0 | AL48: 0 | AM48: 0 | AN48: 0 | AO48: [0] | AP48: 0 | AQ48: 0 | AR48: 0 | AS48: 0 | AT48: 0 | AU48: 0 | AV48: 0 | AW48: 0 | AX48: 0 | AY48: 0 | AZ48: 0 | BA48: 0 | BB48: 0 | BC48: 5364 | BD48: 0 | BE48: 0 | BF48: 10771 | BG48: 21.53731898 | BH48: 2320 | BI48: 0 | BJ48: 0 | BK48: 0 | BL48: 0 | BM48: 0 | BN48: 24.22828841 | BO48: 17.25859533 | BP48: 1122 | BQ48: 10.41589306 | BR48: <ArgumentTypeException> | BS48: <ArgumentTypeException> | BT48: 5364 | BU48: 0 | BV48: 421 | BW48: 1160 | BX48: 10771 | BY48: 0 | BZ48: 0 | CA48: 1000000000 | CB48: 0 | CC48: not yet
A49: 13 | B49: 15000 | C49: 1 | D49: 0.35 | E49: 0.75 | F49: 47.5 | G49: female abc | H49: 10 | I49: 10 | J49: TRUE | K49: 150 | L49: 120 | M49: 240 | N49: 6 | O49: 36 | P49: TRUE | Q49: Generic | R49: Addis Ababa | S49: TRUE | T49: 0.4 | U49: 4.32 | V49: 18.88 | W49: 3.36 | X49: 18.8 | Y49: 14.24 | Z49: 1.2 | AA49: 0.56 | AB49: 1.68 | AC49: 14.8 | AD49: 7.92 | AE49: 9.12 | AF49: 3 | AG49: 2.251125563 | AH49: 11994 | AI49: 12769.75 | AJ49: 0 | AK49: 0 | AL49: 0 | AM49: 0 | AN49: 0 | AO49: [0] | AP49: 0 | AQ49: 0 | AR49: 0 | AS49: 0 | AT49: 0 | AU49: 0 | AV49: 0 | AW49: 0 | AX49: 0 | AY49: 0 | AZ49: 0 | BA49: 0 | BB49: 0 | BC49: 6432.5 | BD49: 0 | BE49: 0 | BF49: 12769.75 | BG49: 17.43331786 | BH49: 2250.25 | BI49: 12.83975321 | BJ49: 50.4168751 | BK49: 304 | BL49: 748 | BM49: 2469 | BN49: 26.93797684 | BO49: 19.97650199 | BP49: 1330.75 | BQ49: 10.41829671 | BR49: <ArgumentTypeException> | BS49: <ArgumentTypeException> | BT49: 6432.5 | BU49: 0 | BV49: 538.75 | BW49: 1126 | BX49: 13028.33333 | BY49: 0 | BZ49: 0 | CA49: 1000000000 | CB49: 0 | CC49: not yet
A50: 1 | B50: 15000 | C50: 1 | D50: 0.35 | E50: 0.75 | F50: 47.5 | G50: female abc | H50: 10 | I50: 10 | J50: TRUE | K50: 150 | L50: 120 | M50: 240 | N50: 6 | O50: 36 | P50: TRUE | Q50: Generic | R50: Addis Ababa | S50: TRUE | T50: 0.4 | U50: 4.32 | V50: 18.88 | W50: 3.36 | X50: 18.8 | Y50: 14.24 | Z50: 1.2 | AA50: 0.56 | AB50: 1.68 | AC50: 14.8 | AD50: 7.92 | AE50: 9.12 | AF50: 3 | AG50: 2.151360544 | AH50: 11760 | AI50: 12486.5 | AJ50: 0 | AK50: 0 | AL50: 0 | AM50: 0 | AN50: 0 | AO50: [0] | AP50: 0 | AQ50: 0 | AR50: 0 | AS50: 0 | AT50: 0 | AU50: 0 | AV50: 0 | AW50: 0 | AX50: 0 | AY50: 0 | AZ50: 0 | BA50: 0 | BB50: 0 | BC50: 6226.75 | BD50: 0 | BE50: 0 | BF50: 12486.5 | BG50: 16.36964727 | BH50: 2066.5 | BI50: 11.80272109 | BJ50: 49.94047619 | BK50: 284 | BL50: 707 | BM50: 2341 | BN50: 27.01948038 | BO50: 20.29641487 | BP50: 1272.5 | BQ50: 10.19020466 | BR50: <ArgumentTypeException> | BS50: <ArgumentTypeException> | BT50: 6226.75 | BU50: 0 | BV50: 524.5 | BW50: 1015.75 | BX50: 12728.66667 | BY50: 0 | BZ50: 0 | CA50: 1000000000 | CB50: 0 | CC50: not yet
A51: 7 | B51: 15000 | C51: 1 | D51: 0.35 | E51: 0.75 | F51: 47.5 | G51: female abc | H51: 10 | I51: 10 | J51: TRUE | K51: 150 | L51: 120 | M51: 240 | N51: 6 | O51: 36 | P51: TRUE | Q51: Generic | R51: Addis Ababa | S51: TRUE | T51: 0.4 | U51: 4.32 | V51: 18.88 | W51: 3.36 | X51: 18.8 | Y51: 14.24 | Z51: 1.2 | AA51: 0.56 | AB51: 1.68 | AC51: 14.8 | AD51: 7.92 | AE51: 9.12 | AF51: 3 | AG51: 2.399662019 | AH51: 11835 | AI51: 12547.25 | AJ51: 0 | AK51: 0 | AL51: 0 | AM51: 0 | AN51: 0 | AO51: [0] | AP51: 0 | AQ51: 0 | AR51: 0 | AS51: 0 | AT51: 0 | AU51: 0 | AV51: 0 | AW51: 0 | AX51: 0 | AY51: 0 | AZ51: 0 | BA51: 0 | BB51: 0 | BC51: 6297.5 | BD51: 0 | BE51: 0 | BF51: 12547.25 | BG51: 17.09472321 | BH51: 2165.75 | BI51: 12.82636248 | BJ51: 50.22391213 | BK51: 308 | BL51: 698 | BM51: 2338 | BN51: 27.45397636 | BO51: 20.36514651 | BP51: 1266 | BQ51: 10.09283212 | BR51: <ArgumentTypeException> | BS51: <ArgumentTypeException> | BT51: 6297.5 | BU51: 0 | BV51: 531.5 | BW51: 1073.25 | BX51: 12784.66667 | BY51: 0 | BZ51: 0 | CA51: 1000000000 | CB51: 0 | CC51: not yet
A52: 9 | B52: 15000 | C52: 1 | D52: 0.35 | E52: 0.75 | F52: 47.5 | G52: female abc | H52: 10 | I52: 10 | J52: TRUE | K52: 150 | L52: 120 | M52: 240 | N52: 6 | O52: 36 | P52: TRUE | Q52: Generic | R52: Addis Ababa | S52: TRUE | T52: 0.4 | U52: 4.32 | V52: 18.88 | W52: 3.36 | X52: 18.8 | Y52: 14.24 | Z52: 1.2 | AA52: 0.56 | AB52: 1.68 | AC52: 14.8 | AD52: 7.92 | AE52: 9.12 | AF52: 3 | AG52: 2.143821742 | AH52: 11848 | AI52: 12518.5 | AJ52: 0 | AK52: 0 | AL52: 0 | AM52: 0 | AN52: 0 | AO52: [0] | AP52: 0 | AQ52: 0 | AR52: 0 | AS52: 0 | AT52: 0 | AU52: 0 | AV52: 0 | AW52: 0 | AX52: 0 | AY52: 0 | AZ52: 0 | BA52: 0 | BB52: 0 | BC52: 6295.5 | BD52: 0 | BE52: 0 | BF52: 12518.5 | BG52: 16.87900725 | BH52: 2133.75 | BI52: 12.31431465 | BJ52: 50.42201215 | BK52: 298 | BL52: 722 | BM52: 2224 | BN52: 27.7797485 | BO52: 20.49301494 | BP52: 1215.75 | BQ52: 9.711054845 | BR52: <ArgumentTypeException> | BS52: <ArgumentTypeException> | BT52: 6295.5 | BU52: 0 | BV52: 533.75 | BW52: 1090 | BX52: 12742 | BY52: 0 | BZ52: 0 | CA52: 1000000000 | CB52: 0 | CC52: not yet
A53: 12 | B53: 15000 | C53: 1 | D53: 0.35 | E53: 0.75 | F53: 47.5 | G53: female abc | H53: 10 | I53: 10 | J53: TRUE | K53: 150 | L53: 120 | M53: 240 | N53: 6 | O53: 36 | P53: TRUE | Q53: Generic | R53: Addis Ababa | S53: TRUE | T53: 0.4 | U53: 4.32 | V53: 18.88 | W53: 3.36 | X53: 18.8 | Y53: 14.24 | Z53: 1.2 | AA53: 0.56 | AB53: 1.68 | AC53: 14.8 | AD53: 7.92 | AE53: 9.12 | AF53: 3 | AG53: 2.268617458 | AH53: 12166 | AI53: 12932.25 | AJ53: 0 | AK53: 0 | AL53: 0 | AM53: 0 | AN53: 0 | AO53: [0] | AP53: 0 | AQ53: 0 | AR53: 0 | AS53: 0 | AT53: 0 | AU53: 0 | AV53: 0 | AW53: 0 | AX53: 0 | AY53: 0 | AZ53: 0 | BA53: 0 | BB53: 0 | BC53: 6498.5 | BD53: 0 | BE53: 0 | BF53: 12932.25 | BG53: 16.85265241 | BH53: 2203.25 | BI53: 12.31300345 | BJ53: 50.04931777 | BK53: 311 | BL53: 731 | BM53: 2497 | BN53: 27.20228966 | BO53: 20.19377991 | BP53: 1319.5 | BQ53: 10.19812656 | BR53: <ArgumentTypeException> | BS53: <ArgumentTypeException> | BT53: 6498.5 | BU53: 0 | BV53: 528.25 | BW53: 1105.75 | BX53: 13187.66667 | BY53: 0 | BZ53: 0 | CA53: 1000000000 | CB53: 0 | CC53: not yet
A54: 3 | B54: 15000 | C54: 1 | D54: 0.35 | E54: 0.75 | F54: 47.5 | G54: female abc | H54: 10 | I54: 10 | J54: TRUE | K54: 150 | L54: 120 | M54: 240 | N54: 6 | O54: 36 | P54: TRUE | Q54: Generic | R54: Addis Ababa | S54: TRUE | T54: 0.4 | U54: 4.32 | V54: 18.88 | W54: 3.36 | X54: 18.8 | Y54: 14.24 | Z54: 1.2 | AA54: 0.56 | AB54: 1.68 | AC54: 14.8 | AD54: 7.92 | AE54: 9.12 | AF54: 3 | AG54: 1.946629897 | AH54: 12329 | AI54: 13099.5 | AJ54: 0 | AK54: 0 | AL54: 0 | AM54: 0 | AN54: 0 | AO54: [0] | AP54: 0 | AQ54: 0 | AR54: 0 | AS54: 0 | AT54: 0 | AU54: 0 | AV54: 0 | AW54: 0 | AX54: 0 | AY54: 0 | AZ54: 0 | BA54: 0 | BB54: 0 | BC54: 6494.75 | BD54: 0 | BE54: 0 | BF54: 13099.5 | BG54: 17.20855973 | BH54: 2278.25 | BI54: 12.61253954 | BJ54: 49.60661854 | BK54: 292 | BL54: 775 | BM54: 2490 | BN54: 27.52178231 | BO54: 20.17410121 | BP54: 1261 | BQ54: 9.628799 | BR54: <ArgumentTypeException> | BS54: <ArgumentTypeException> | BT54: 6494.75 | BU54: 0 | BV54: 558 | BW54: 1096.75 | BX54: 13356.33333 | BY54: 0 | BZ54: 0 | CA54: 1000000000 | CB54: 0 | CC54: not yet
A55: 16 | B55: 15000 | C55: 1 | D55: 0.35 | E55: 0.75 | F55: 47.5 | G55: female abc | H55: 10 | I55: 10 | J55: TRUE | K55: 150 | L55: 120 | M55: 240 | N55: 6 | O55: 36 | P55: TRUE | Q55: Generic | R55: Addis Ababa | S55: TRUE | T55: 0.4 | U55: 4.32 | V55: 18.88 | W55: 3.36 | X55: 18.8 | Y55: 14.24 | Z55: 1.2 | AA55: 0.56 | AB55: 1.68 | AC55: 14.8 | AD55: 7.92 | AE55: 9.12 | AF55: 3 | AG55: 2.217369394 | AH55: 11906 | AI55: 12636.75 | AJ55: 0 | AK55: 0 | AL55: 0 | AM55: 0 | AN55: 0 | AO55: [0] | AP55: 0 | AQ55: 0 | AR55: 0 | AS55: 0 | AT55: 0 | AU55: 0 | AV55: 0 | AW55: 0 | AX55: 0 | AY55: 0 | AZ55: 0 | BA55: 0 | BB55: 0 | BC55: 6263 | BD55: 0 | BE55: 0 | BF55: 12636.75 | BG55: 16.89887683 | BH55: 2158.5 | BI55: 12.17873341 | BJ55: 49.33646901 | BK55: 299 | BL55: 742 | BM55: 2364 | BN55: 27.58361831 | BO55: 20.3120093 | BP55: 1262 | BQ55: 9.984924785 | BR55: <ArgumentTypeException> | BS55: <ArgumentTypeException> | BT55: 6263 | BU55: 0 | BV55: 538 | BW55: 1086.5 | BX55: 12880.33333 | BY55: 0 | BZ55: 0 | CA55: 1000000000 | CB55: 0 | CC55: not yet
A56: 2 | B56: 15000 | C56: 1 | D56: 0.35 | E56: 0.75 | F56: 47.5 | G56: female abc | H56: 10 | I56: 10 | J56: TRUE | K56: 150 | L56: 120 | M56: 240 | N56: 6 | O56: 36 | P56: TRUE | Q56: Generic | R56: Addis Ababa | S56: TRUE | T56: 0.4 | U56: 4.32 | V56: 18.88 | W56: 3.36 | X56: 18.8 | Y56: 14.24 | Z56: 1.2 | AA56: 0.56 | AB56: 1.68 | AC56: 14.8 | AD56: 7.92 | AE56: 9.12 | AF56: 3 | AG56: 2.215767635 | AH56: 12050 | AI56: 12790.75 | AJ56: 0 | AK56: 0 | AL56: 0 | AM56: 0 | AN56: 0 | AO56: [0] | AP56: 0 | AQ56: 0 | AR56: 0 | AS56: 0 | AT56: 0 | AU56: 0 | AV56: 0 | AW56: 0 | AX56: 0 | AY56: 0 | AZ56: 0 | BA56: 0 | BB56: 0 | BC56: 6587.25 | BD56: 0 | BE56: 0 | BF56: 12790.75 | BG56: 17.29430474 | BH56: 2235 | BI56: 12.60580913 | BJ56: 51.51037344 | BK56: 288 | BL56: 719 | BM56: 2415 | BN56: 27.33998498 | BO56: 20.12195723 | BP56: 1263.75 | BQ56: 9.875493403 | BR56: <ArgumentTypeException> | BS56: <ArgumentTypeException> | BT56: 6587.25 | BU56: 0 | BV56: 521.25 | BW56: 1140.75 | BX56: 13037.66667 | BY56: 0 | BZ56: 0 | CA56: 1000000000 | CB56: 0 | CC56: not yet
A57: 11 | B57: 15000 | C57: 1 | D57: 0.35 | E57: 0.75 | F57: 47.5 | G57: female abc | H57: 10 | I57: 10 | J57: TRUE | K57: 150 | L57: 120 | M57: 240 | N57: 6 | O57: 36 | P57: TRUE | Q57: Generic | R57: Addis Ababa | S57: TRUE | T57: 0.4 | U57: 4.32 | V57: 18.88 | W57: 3.36 | X57: 18.8 | Y57: 14.24 | Z57: 1.2 | AA57: 0.56 | AB57: 1.68 | AC57: 14.8 | AD57: 7.92 | AE57: 9.12 | AF57: 3 | AG57: 2.049622438 | AH57: 12051 | AI57: 12818.25 | AJ57: 0 | AK57: 0 | AL57: 0 | AM57: 0 | AN57: 0 | AO57: [0] | AP57: 0 | AQ57: 0 | AR57: 0 | AS57: 0 | AT57: 0 | AU57: 0 | AV57: 0 | AW57: 0 | AX57: 0 | AY57: 0 | AZ57: 0 | BA57: 0 | BB57: 0 | BC57: 6370.5 | BD57: 0 | BE57: 0 | BF57: 12818.25 | BG57: 17.07729541 | BH57: 2212.75 | BI57: 12.48029209 | BJ57: 49.85478384 | BK57: 296 | BL57: 754 | BM57: 2462 | BN57: 27.33351277 | BO57: 20.44778876 | BP57: 1262.25 | BQ57: 9.846793491 | BR57: <ArgumentTypeException> | BS57: <ArgumentTypeException> | BT57: 6370.5 | BU57: 0 | BV57: 510.75 | BW57: 1090.5 | BX57: 13074 | BY57: 0 | BZ57: 0 | CA57: 1000000000 | CB57: 0 | CC57: not yet
A58: 10 | B58: 15000 | C58: 1 | D58: 0.35 | E58: 0.75 | F58: 47.5 | G58: female abc | H58: 10 | I58: 10 | J58: TRUE | K58: 150 | L58: 120 | M58: 240 | N58: 6 | O58: 36 | P58: TRUE | Q58: Generic | R58: Addis Ababa | S58: TRUE | T58: 0.4 | U58: 4.32 | V58: 18.88 | W58: 3.36 | X58: 18.8 | Y58: 14.24 | Z58: 1.2 | AA58: 0.56 | AB58: 1.68 | AC58: 14.8 | AD58: 7.92 | AE58: 9.12 | AF58: 3 | AG58: 2.077596996 | AH58: 11985 | AI58: 12702 | AJ58: 0 | AK58: 0 | AL58: 0 | AM58: 0 | AN58: 0 | AO58: [0] | AP58: 0 | AQ58: 0 | AR58: 0 | AS58: 0 | AT58: 0 | AU58: 0 | AV58: 0 | AW58: 0 | AX58: 0 | AY58: 0 | AZ58: 0 | BA58: 0 | BB58: 0 | BC58: 6341 | BD58: 0 | BE58: 0 | BF58: 12702 | BG58: 16.96601653 | BH58: 2176.5 | BI58: 12.5740509 | BJ58: 49.79557781 | BK58: 289 | BL58: 686 | BM58: 2324 | BN58: 27.4777931 | BO58: 20.26321159 | BP58: 1265.5 | BQ58: 9.963572008 | BR58: <ArgumentTypeException> | BS58: <ArgumentTypeException> | BT58: 6341 | BU58: 0 | BV58: 510.25 | BW58: 1058.5 | BX58: 12941 | BY58: 0 | BZ58: 0 | CA58: 1000000000 | CB58: 0 | CC58: not yet
A59: 8 | B59: 15000 | C59: 1 | D59: 0.35 | E59: 0.75 | F59: 47.5 | G59: female abc | H59: 10 | I59: 10 | J59: TRUE | K59: 150 | L59: 120 | M59: 240 | N59: 6 | O59: 36 | P59: TRUE | Q59: Generic | R59: Addis Ababa | S59: TRUE | T59: 0.4 | U59: 4.32 | V59: 18.88 | W59: 3.36 | X59: 18.8 | Y59: 14.24 | Z59: 1.2 | AA59: 0.56 | AB59: 1.68 | AC59: 14.8 | AD59: 7.92 | AE59: 9.12 | AF59: 3 | AG59: 2.119015375 | AH59: 12553 | AI59: 13365.5 | AJ59: 0 | AK59: 0 | AL59: 0 | AM59: 0 | AN59: 0 | AO59: [0] | AP59: 0 | AQ59: 0 | AR59: 0 | AS59: 0 | AT59: 0 | AU59: 0 | AV59: 0 | AW59: 0 | AX59: 0 | AY59: 0 | AZ59: 0 | BA59: 0 | BB59: 0 | BC59: 6665 | BD59: 0 | BE59: 0 | BF59: 13365.5 | BG59: 17.07416854 | BH59: 2307.25 | BI59: 12.29188242 | BJ59: 49.89245599 | BK59: 311 | BL59: 783 | BM59: 2568 | BN59: 27.49940183 | BO59: 20.12135414 | BP59: 1410 | BQ59: 10.55413726 | BR59: <ArgumentTypeException> | BS59: <ArgumentTypeException> | BT59: 6665 | BU59: 0 | BV59: 576 | BW59: 1131.75 | BX59: 13636.33333 | BY59: 0 | BZ59: 0 | CA59: 1000000000 | CB59: 0 | CC59: not yet
A60: 6 | B60: 15000 | C60: 1 | D60: 0.35 | E60: 0.75 | F60: 47.5 | G60: female abc | H60: 10 | I60: 10 | J60: TRUE | K60: 150 | L60: 120 | M60: 240 | N60: 6 | O60: 36 | P60: TRUE | Q60: Generic | R60: Addis Ababa | S60: TRUE | T60: 0.4 | U60: 4.32 | V60: 18.88 | W60: 3.36 | X60: 18.8 | Y60: 14.24 | Z60: 1.2 | AA60: 0.56 | AB60: 1.68 | AC60: 14.8 | AD60: 7.92 | AE60: 9.12 | AF60: 4 | AG60: 2.224576271 | AH60: 11328 | AI60: 12244 | AJ60: 0 | AK60: 0 | AL60: 0 | AM60: 0 | AN60: 0 | AO60: [0] | AP60: 0 | AQ60: 0 | AR60: 0 | AS60: 0 | AT60: 0 | AU60: 0 | AV60: 0 | AW60: 0 | AX60: 0 | AY60: 0 | AZ60: 0 | BA60: 0 | BB60: 0 | BC60: 6130 | BD60: 0 | BE60: 0 | BF60: 12244 | BG60: 15.52417821 | BH60: 1932.6 | BI60: 9.463276836 | BJ60: 50.03531073 | BK60: 306 | BL60: 856 | BM60: 2956 | BN60: 28.69179543 | BO60: 21.38589315 | BP60: 1222.8 | BQ60: 9.98848443 | BR60: <ArgumentTypeException> | BS60: <ArgumentTypeException> | BT60: 6130 | BU60: 0 | BV60: 514.4 | BW60: 968 | BX60: 12473 | BY60: 0 | BZ60: 0 | CA60: 1000000000 | CB60: 0 | CC60: not yet
A61: 4 | B61: 15000 | C61: 1 | D61: 0.35 | E61: 0.75 | F61: 47.5 | G61: female abc | H61: 10 | I61: 10 | J61: TRUE | K61: 150 | L61: 120 | M61: 240 | N61: 6 | O61: 36 | P61: TRUE | Q61: Generic | R61: Addis Ababa | S61: TRUE | T61: 0.4 | U61: 4.32 | V61: 18.88 | W61: 3.36 | X61: 18.8 | Y61: 14.24 | Z61: 1.2 | AA61: 0.56 | AB61: 1.68 | AC61: 14.8 | AD61: 7.92 | AE61: 9.12 | AF61: 3 | AG61: 2.262302729 | AH61: 12863 | AI61: 13643.75 | AJ61: 0 | AK61: 0 | AL61: 0 | AM61: 0 | AN61: 0 | AO61: [0] | AP61: 0 | AQ61: 0 | AR61: 0 | AS61: 0 | AT61: 0 | AU61: 0 | AV61: 0 | AW61: 0 | AX61: 0 | AY61: 0 | AZ61: 0 | BA61: 0 | BB61: 0 | BC61: 6785 | BD61: 0 | BE61: 0 | BF61: 13643.75 | BG61: 17.61617278 | BH61: 2428.5 | BI61: 12.79639275 | BJ61: 49.70846614 | BK61: 301 | BL61: 791 | BM61: 2486 | BN61: 27.26393699 | BO61: 20.2578894 | BP61: 1336.5 | BQ61: 9.796798417 | BR61: <ArgumentTypeException> | BS61: <ArgumentTypeException> | BT61: 6785 | BU61: 0 | BV61: 546.75 | BW61: 1200.25 | BX61: 13904 | BY61: 0 | BZ61: 0 | CA61: 1000000000 | CB61: 0 | CC61: not yet
A62: 14 | B62: 15000 | C62: 1 | D62: 0.35 | E62: 0.75 | F62: 47.5 | G62: female abc | H62: 10 | I62: 10 | J62: TRUE | K62: 150 | L62: 120 | M62: 240 | N62: 6 | O62: 36 | P62: TRUE | Q62: Generic | R62: Addis Ababa | S62: TRUE | T62: 0.4 | U62: 4.32 | V62: 18.88 | W62: 3.36 | X62: 18.8 | Y62: 14.24 | Z62: 1.2 | AA62: 0.56 | AB62: 1.68 | AC62: 14.8 | AD62: 7.92 | AE62: 9.12 | AF62: 3 | AG62: 2.123781599 | AH62: 12619 | AI62: 13425.25 | AJ62: 0 | AK62: 0 | AL62: 0 | AM62: 0 | AN62: 0 | AO62: [0] | AP62: 0 | AQ62: 0 | AR62: 0 | AS62: 0 | AT62: 0 | AU62: 0 | AV62: 0 | AW62: 0 | AX62: 0 | AY62: 0 | AZ62: 0 | BA62: 0 | BB62: 0 | BC62: 6698.5 | BD62: 0 | BE62: 0 | BF62: 13425.25 | BG62: 16.9442831 | BH62: 2301.5 | BI62: 12.04532847 | BJ62: 49.9247167 | BK62: 315 | BL62: 807 | BM62: 2599 | BN62: 27.592386 | BO62: 20.30053958 | BP62: 1364.5 | BQ62: 10.16733539 | BR62: <ArgumentTypeException> | BS62: <ArgumentTypeException> | BT62: 6698.5 | BU62: 0 | BV62: 582.5 | BW62: 1150.75 | BX62: 13694 | BY62: 0 | BZ62: 0 | CA62: 1000000000 | CB62: 0 | CC62: not yet
A63: 15 | B63: 15000 | C63: 1 | D63: 0.35 | E63: 0.75 | F63: 47.5 | G63: female abc | H63: 10 | I63: 10 | J63: TRUE | K63: 150 | L63: 120 | M63: 240 | N63: 6 | O63: 36 | P63: TRUE | Q63: Generic | R63: Addis Ababa | S63: TRUE | T63: 0.4 | U63: 4.32 | V63: 18.88 | W63: 3.36 | X63: 18.8 | Y63: 14.24 | Z63: 1.2 | AA63: 0.56 | AB63: 1.68 | AC63: 14.8 | AD63: 7.92 | AE63: 9.12 | AF63: 3 | AG63: 2.032551982 | AH63: 12841 | AI63: 13619.25 | AJ63: 0 | AK63: 0 | AL63: 0 | AM63: 0 | AN63: 0 | AO63: [0] | AP63: 0 | AQ63: 0 | AR63: 0 | AS63: 0 | AT63: 0 | AU63: 0 | AV63: 0 | AW63: 0 | AX63: 0 | AY63: 0 | AZ63: 0 | BA63: 0 | BB63: 0 | BC63: 6764.25 | BD63: 0 | BE63: 0 | BF63: 13619.25 | BG63: 16.92964402 | BH63: 2330.5 | BI63: 12.25761234 | BJ63: 49.73911689 | BK63: 306 | BL63: 765 | BM63: 2536 | BN63: 27.2050417 | BO63: 20.24905118 | BP63: 1419 | BQ63: 10.42075938 | BR63: <ArgumentTypeException> | BS63: <ArgumentTypeException> | BT63: 6764.25 | BU63: 0 | BV63: 593.25 | BW63: 1167.75 | BX63: 13878.66667 | BY63: 0 | BZ63: 0 | CA63: 1000000000 | CB63: 0 | CC63: not yet
A64: 1 | B64: 15000 | C64: 1 | D64: 0.35 | E64: 0.75 | F64: 47.5 | G64: female abc | H64: 10 | I64: 10 | J64: TRUE | K64: 150 | L64: 120 | M64: 240 | N64: 6 | O64: 36 | P64: TRUE | Q64: Generic | R64: Addis Ababa | S64: TRUE | T64: 0.4 | U64: 4.32 | V64: 18.88 | W64: 3.36 | X64: 18.8 | Y64: 14.24 | Z64: 1.2 | AA64: 0.56 | AB64: 1.68 | AC64: 14.8 | AD64: 7.92 | AE64: 9.12 | AF64: 4 | AG64: 2.427654147 | AH64: 11369 | AI64: 12263 | AJ64: 0 | AK64: 0 | AL64: 0 | AM64: 0 | AN64: 0 | AO64: [0] | AP64: 0 | AQ64: 0 | AR64: 0 | AS64: 0 | AT64: 0 | AU64: 0 | AV64: 0 | AW64: 0 | AX64: 0 | AY64: 0 | AZ64: 0 | BA64: 0 | BB64: 0 | BC64: 6120.6 | BD64: 0 | BE64: 0 | BF64: 12263 | BG64: 14.86720168 | BH64: 1854.6 | BI64: 8.857419298 | BJ64: 50.10115226 | BK64: 317 | BL64: 798 | BM64: 2869 | BN64: 28.17716156 | BO64: 21.38677113 | BP64: 1249.8 | BQ64: 10.19104138 | BR64: <ArgumentTypeException> | BS64: <ArgumentTypeException> | BT64: 6120.6 | BU64: 0 | BV64: 524.6 | BW64: 910.2 | BX64: 12486.5 | BY64: 0 | BZ64: 0 | CA64: 1000000000 | CB64: 0 | CC64: not yet
A65: 13 | B65: 15000 | C65: 1 | D65: 0.35 | E65: 0.75 | F65: 47.5 | G65: female abc | H65: 10 | I65: 10 | J65: TRUE | K65: 150 | L65: 120 | M65: 240 | N65: 6 | O65: 36 | P65: TRUE | Q65: Generic | R65: Addis Ababa | S65: TRUE | T65: 0.4 | U65: 4.32 | V65: 18.88 | W65: 3.36 | X65: 18.8 | Y65: 14.24 | Z65: 1.2 | AA65: 0.56 | AB65: 1.68 | AC65: 14.8 | AD65: 7.92 | AE65: 9.12 | AF65: 4 | AG65: 2.402142919 | AH65: 11573 | AI65: 12530.4 | AJ65: 0 | AK65: 0 | AL65: 0 | AM65: 0 | AN65: 0 | AO65: [0] | AP65: 0 | AQ65: 0 | AR65: 0 | AS65: 0 | AT65: 0 | AU65: 0 | AV65: 0 | AW65: 0 | AX65: 0 | AY65: 0 | AZ65: 0 | BA65: 0 | BB65: 0 | BC65: 6308.8 | BD65: 0 | BE65: 0 | BF65: 12530.4 | BG65: 15.88737839 | BH65: 2024.8 | BI65: 9.703620496 | BJ65: 50.23762205 | BK65: 339 | BL65: 840 | BM65: 3031 | BN65: 28.02876932 | BO65: 21.11862466 | BP65: 1307.6 | BQ65: 10.43435223 | BR65: <ArgumentTypeException> | BS65: <ArgumentTypeException> | BT65: 6308.8 | BU65: 0 | BV65: 538.6 | BW65: 1013 | BX65: 12769.75 | BY65: 0 | BZ65: 0 | CA65: 1000000000 | CB65: 0 | CC65: not yet
A66: 7 | B66: 15000 | C66: 1 | D66: 0.35 | E66: 0.75 | F66: 47.5 | G66: female abc | H66: 10 | I66: 10 | J66: TRUE | K66: 150 | L66: 120 | M66: 240 | N66: 6 | O66: 36 | P66: TRUE | Q66: Generic | R66: Addis Ababa | S66: TRUE | T66: 0.4 | U66: 4.32 | V66: 18.88 | W66: 3.36 | X66: 18.8 | Y66: 14.24 | Z66: 1.2 | AA66: 0.56 | AB66: 1.68 | AC66: 14.8 | AD66: 7.92 | AE66: 9.12 | AF66: 4 | AG66: 2.514844569 | AH66: 11452 | AI66: 12328.2 | AJ66: 0 | AK66: 0 | AL66: 0 | AM66: 0 | AN66: 0 | AO66: [0] | AP66: 0 | AQ66: 0 | AR66: 0 | AS66: 0 | AT66: 0 | AU66: 0 | AV66: 0 | AW66: 0 | AX66: 0 | AY66: 0 | AZ66: 0 | BA66: 0 | BB66: 0 | BC66: 6188.8 | BD66: 0 | BE66: 0 | BF66: 12328.2 | BG66: 15.60557249 | BH66: 1953.6 | BI66: 9.648969612 | BJ66: 50.24449878 | BK66: 340 | BL66: 794 | BM66: 2857 | BN66: 28.46926507 | BO66: 21.46066759 | BP66: 1246.6 | BQ66: 10.11583049 | BR66: <ArgumentTypeException> | BS66: <ArgumentTypeException> | BT66: 6188.8 | BU66: 0 | BV66: 532.6 | BW66: 972.6 | BX66: 12547.25 | BY66: 0 | BZ66: 0 | CA66: 1000000000 | CB66: 0 | CC66: not yet
A67: 5 | B67: 15000 | C67: 1 | D67: 0.35 | E67: 0.75 | F67: 47.5 | G67: female abc | H67: 10 | I67: 10 | J67: TRUE | K67: 150 | L67: 120 | M67: 240 | N67: 6 | O67: 36 | P67: TRUE | Q67: Generic | R67: Addis Ababa | S67: TRUE | T67: 0.4 | U67: 4.32 | V67: 18.88 | W67: 3.36 | X67: 18.8 | Y67: 14.24 | Z67: 1.2 | AA67: 0.56 | AB67: 1.68 | AC67: 14.8 | AD67: 7.92 | AE67: 9.12 | AF67: 1 | AG67: 7.570757076 | AH67: 9999 | AI67: 10385 | AJ67: 0 | AK67: 0 | AL67: 0 | AM67: 0 | AN67: 0 | AO67: [0] | AP67: 0 | AQ67: 0 | AR67: 0 | AS67: 0 | AT67: 0 | AU67: 0 | AV67: 0 | AW67: 0 | AX67: 0 | AY67: 0 | AZ67: 0 | BA67: 0 | BB67: 0 | BC67: 5181.5 | BD67: 0 | BE67: 0 | BF67: 10385 | BG67: 19.53453608 | BH67: 2036.5 | BI67: 17.53175318 | BJ67: 49.9949995 | BK67: 0 | BL67: 232 | BM67: 861 | BN67: 25.54469498 | BO67: 18.55121939 | BP67: 1080.5 | BQ67: 10.40346608 | BR67: <ArgumentTypeException> | BS67: <ArgumentTypeException> | BT67: 5181.5 | BU67: 0 | BV67: 415 | BW67: 1020.5 | BX67: 10771 | BY67: 0 | BZ67: 0 | CA67: 1000000000 | CB67: 0 | CC67: not yet
A68: 9 | B68: 15000 | C68: 1 | D68: 0.35 | E68: 0.75 | F68: 47.5 | G68: female abc | H68: 10 | I68: 10 | J68: TRUE | K68: 150 | L68: 120 | M68: 240 | N68: 6 | O68: 36 | P68: TRUE | Q68: Generic | R68: Addis Ababa | S68: TRUE | T68: 0.4 | U68: 4.32 | V68: 18.88 | W68: 3.36 | X68: 18.8 | Y68: 14.24 | Z68: 1.2 | AA68: 0.56 | AB68: 1.68 | AC68: 14.8 | AD68: 7.92 | AE68: 9.12 | AF68: 4 | AG68: 2.277089513 | AH68: 11462 | AI68: 12307.2 | AJ68: 0 | AK68: 0 | AL68: 0 | AM68: 0 | AN68: 0 | AO68: [0] | AP68: 0 | AQ68: 0 | AR68: 0 | AS68: 0 | AT68: 0 | AU68: 0 | AV68: 0 | AW68: 0 | AX68: 0 | AY68: 0 | AZ68: 0 | BA68: 0 | BB68: 0 | BC68: 6191.4 | BD68: 0 | BE68: 0 | BF68: 12307.2 | BG68: 15.33360189 | BH68: 1916.8 | BI68: 9.151980457 | BJ68: 50.38387716 | BK68: 331 | BL68: 847 | BM68: 2747 | BN68: 28.96489285 | BO68: 21.70635254 | BP68: 1195.4 | BQ68: 9.712658219 | BR68: <ArgumentTypeException> | BS68: <ArgumentTypeException> | BT68: 6191.4 | BU68: 0 | BV68: 534.8 | BW68: 978.8 | BX68: 12518.5 | BY68: 0 | BZ68: 0 | CA68: 1000000000 | CB68: 0 | CC68: not yet
A69: 12 | B69: 15000 | C69: 1 | D69: 0.35 | E69: 0.75 | F69: 47.5 | G69: female abc | H69: 10 | I69: 10 | J69: TRUE | K69: 150 | L69: 120 | M69: 240 | N69: 6 | O69: 36 | P69: TRUE | Q69: Generic | R69: Addis Ababa | S69: TRUE | T69: 0.4 | U69: 4.32 | V69: 18.88 | W69: 3.36 | X69: 18.8 | Y69: 14.24 | Z69: 1.2 | AA69: 0.56 | AB69: 1.68 | AC69: 14.8 | AD69: 7.92 | AE69: 9.12 | AF69: 4 | AG69: 2.304029927 | AH69: 11762 | AI69: 12698.2 | AJ69: 0 | AK69: 0 | AL69: 0 | AM69: 0 | AN69: 0 | AO69: [0] | AP69: 0 | AQ69: 0 | AR69: 0 | AS69: 0 | AT69: 0 | AU69: 0 | AV69: 0 | AW69: 0 | AX69: 0 | AY69: 0 | AZ69: 0 | BA69: 0 | BB69: 0 | BC69: 6375.2 | BD69: 0 | BE69: 0 | BF69: 12698.2 | BG69: 15.33724861 | BH69: 1980.8 | BI69: 9.275633396 | BJ69: 50.00850196 | BK69: 342 | BL69: 858 | BM69: 3039 | BN69: 28.32667418 | BO69: 21.32872359 | BP69: 1294.4 | BQ69: 10.18876821 | BR69: <ArgumentTypeException> | BS69: <ArgumentTypeException> | BT69: 6375.2 | BU69: 0 | BV69: 526.4 | BW69: 995 | BX69: 12932.25 | BY69: 0 | BZ69: 0 | CA69: 1000000000 | CB69: 0 | CC69: not yet
A70: 10 | B70: 15000 | C70: 1 | D70: 0.35 | E70: 0.75 | F70: 47.5 | G70: female abc | H70: 10 | I70: 10 | J70: TRUE | K70: 150 | L70: 120 | M70: 240 | N70: 6 | O70: 36 | P70: TRUE | Q70: Generic | R70: Addis Ababa | S70: TRUE | T70: 0.4 | U70: 4.32 | V70: 18.88 | W70: 3.36 | X70: 18.8 | Y70: 14.24 | Z70: 1.2 | AA70: 0.56 | AB70: 1.68 | AC70: 14.8 | AD70: 7.92 | AE70: 9.12 | AF70: 4 | AG70: 2.203287718 | AH70: 11619 | AI70: 12485.4 | AJ70: 0 | AK70: 0 | AL70: 0 | AM70: 0 | AN70: 0 | AO70: [0] | AP70: 0 | AQ70: 0 | AR70: 0 | AS70: 0 | AT70: 0 | AU70: 0 | AV70: 0 | AW70: 0 | AX70: 0 | AY70: 0 | AZ70: 0 | BA70: 0 | BB70: 0 | BC70: 6227.4 | BD70: 0 | BE70: 0 | BF70: 12485.4 | BG70: 15.381919 | BH70: 1951.4 | BI70: 9.045528875 | BJ70: 49.68585937 | BK70: 321 | BL70: 800 | BM70: 2827 | BN70: 28.61937847 | BO70: 21.47412536 | BP70: 1240.4 | BQ70: 9.933160731 | BR70: <ArgumentTypeException> | BS70: <ArgumentTypeException> | BT70: 6227.4 | BU70: 0 | BV70: 509 | BW70: 944.2 | BX70: 12702 | BY70: 0 | BZ70: 0 | CA70: 1000000000 | CB70: 0 | CC70: not yet
A71: 16 | B71: 15000 | C71: 1 | D71: 0.35 | E71: 0.75 | F71: 47.5 | G71: female abc | H71: 10 | I71: 10 | J71: TRUE | K71: 150 | L71: 120 | M71: 240 | N71: 6 | O71: 36 | P71: TRUE | Q71: Generic | R71: Addis Ababa | S71: TRUE | T71: 0.4 | U71: 4.32 | V71: 18.88 | W71: 3.36 | X71: 18.8 | Y71: 14.24 | Z71: 1.2 | AA71: 0.56 | AB71: 1.68 | AC71: 14.8 | AD71: 7.92 | AE71: 9.12 | AF71: 4 | AG71: 2.279251849 | AH71: 11495 | AI71: 12408.4 | AJ71: 0 | AK71: 0 | AL71: 0 | AM71: 0 | AN71: 0 | AO71: [0] | AP71: 0 | AQ71: 0 | AR71: 0 | AS71: 0 | AT71: 0 | AU71: 0 | AV71: 0 | AW71: 0 | AX71: 0 | AY71: 0 | AZ71: 0 | BA71: 0 | BB71: 0 | BC71: 6148.2 | BD71: 0 | BE71: 0 | BF71: 12408.4 | BG71: 15.35120238 | BH71: 1937.4 | BI71: 9.160504567 | BJ71: 49.49108308 | BK71: 334 | BL71: 860 | BM71: 2915 | BN71: 28.70525907 | BO71: 21.5447016 | BP71: 1236.8 | BQ71: 9.964451355 | BR71: <ArgumentTypeException> | BS71: <ArgumentTypeException> | BT71: 6148.2 | BU71: 0 | BV71: 535.8 | BW71: 975.2 | BX71: 12636.75 | BY71: 0 | BZ71: 0 | CA71: 1000000000 | CB71: 0 | CC71: not yet
A72: 3 | B72: 15000 | C72: 1 | D72: 0.35 | E72: 0.75 | F72: 47.5 | G72: female abc | H72: 10 | I72: 10 | J72: TRUE | K72: 150 | L72: 120 | M72: 240 | N72: 6 | O72: 36 | P72: TRUE | Q72: Generic | R72: Addis Ababa | S72: TRUE | T72: 0.4 | U72: 4.32 | V72: 18.88 | W72: 3.36 | X72: 18.8 | Y72: 14.24 | Z72: 1.2 | AA72: 0.56 | AB72: 1.68 | AC72: 14.8 | AD72: 7.92 | AE72: 9.12 | AF72: 4 | AG72: 2.081759422 | AH72: 11913 | AI72: 12862.2 | AJ72: 0 | AK72: 0 | AL72: 0 | AM72: 0 | AN72: 0 | AO72: [0] | AP72: 0 | AQ72: 0 | AR72: 0 | AS72: 0 | AT72: 0 | AU72: 0 | AV72: 0 | AW72: 0 | AX72: 0 | AY72: 0 | AZ72: 0 | BA72: 0 | BB72: 0 | BC72: 6377 | BD72: 0 | BE72: 0 | BF72: 12862.2 | BG72: 15.64714661 | BH72: 2046.6 | BI72: 9.401494166 | BJ72: 49.57609334 | BK72: 328 | BL72: 880 | BM72: 3051 | BN72: 28.64927433 | BO72: 21.35487859 | BP72: 1238.8 | BQ72: 9.633703181 | BR72: <ArgumentTypeException> | BS72: <ArgumentTypeException> | BT72: 6377 | BU72: 0 | BV72: 556.4 | BW72: 981.6 | BX72: 13099.5 | BY72: 0 | BZ72: 0 | CA72: 1000000000 | CB72: 0 | CC72: not yet
A73: 2 | B73: 15000 | C73: 1 | D73: 0.35 | E73: 0.75 | F73: 47.5 | G73: female abc | H73: 10 | I73: 10 | J73: TRUE | K73: 150 | L73: 120 | M73: 240 | N73: 6 | O73: 36 | P73: TRUE | Q73: Generic | R73: Addis Ababa | S73: TRUE | T73: 0.4 | U73: 4.32 | V73: 18.88 | W73: 3.36 | X73: 18.8 | Y73: 14.24 | Z73: 1.2 | AA73: 0.56 | AB73: 1.68 | AC73: 14.8 | AD73: 7.92 | AE73: 9.12 | AF73: 4 | AG73: 2.467866324 | AH73: 11670 | AI73: 12566.6 | AJ73: 0 | AK73: 0 | AL73: 0 | AM73: 0 | AN73: 0 | AO73: [0] | AP73: 0 | AQ73: 0 | AR73: 0 | AS73: 0 | AT73: 0 | AU73: 0 | AV73: 0 | AW73: 0 | AX73: 0 | AY73: 0 | AZ73: 0 | BA73: 0 | BB73: 0 | BC73: 6475.8 | BD73: 0 | BE73: 0 | BF73: 12566.6 | BG73: 15.73090223 | BH73: 2009.2 | BI73: 9.477292202 | BJ73: 51.67095116 | BK73: 329 | BL73: 829 | BM73: 2942 | BN73: 28.42773983 | BO73: 21.26754259 | BP73: 1238.6 | BQ73: 9.850694637 | BR73: <ArgumentTypeException> | BS73: <ArgumentTypeException> | BT73: 6475.8 | BU73: 0 | BV73: 522 | BW73: 1024 | BX73: 12790.75 | BY73: 0 | BZ73: 0 | CA73: 1000000000 | CB73: 0 | CC73: not yet
A74: 11 | B74: 15000 | C74: 1 | D74: 0.35 | E74: 0.75 | F74: 47.5 | G74: female abc | H74: 10 | I74: 10 | J74: TRUE | K74: 150 | L74: 120 | M74: 240 | N74: 6 | O74: 36 | P74: TRUE | Q74: Generic | R74: Addis Ababa | S74: TRUE | T74: 0.4 | U74: 4.32 | V74: 18.88 | W74: 3.36 | X74: 18.8 | Y74: 14.24 | Z74: 1.2 | AA74: 0.56 | AB74: 1.68 | AC74: 14.8 | AD74: 7.92 | AE74: 9.12 | AF74: 4 | AG74: 2.271553949 | AH74: 11622 | AI74: 12579 | AJ74: 0 | AK74: 0 | AL74: 0 | AM74: 0 | AN74: 0 | AO74: [0] | AP74: 0 | AQ74: 0 | AR74: 0 | AS74: 0 | AT74: 0 | AU74: 0 | AV74: 0 | AW74: 0 | AX74: 0 | AY74: 0 | AZ74: 0 | BA74: 0 | BB74: 0 | BC74: 6254.6 | BD74: 0 | BE74: 0 | BF74: 12579 | BG74: 15.5048926 | BH74: 1984.4 | BI74: 9.215281363 | BJ74: 49.82791258 | BK74: 332 | BL74: 857 | BM74: 3033 | BN74: 28.43554424 | BO74: 21.70114269 | BP74: 1238.4 | BQ74: 9.844394008 | BR74: <ArgumentTypeException> | BS74: <ArgumentTypeException> | BT74: 6254.6 | BU74: 0 | BV74: 510.6 | BW74: 978.6 | BX74: 12818.25 | BY74: 0 | BZ74: 0 | CA74: 1000000000 | CB74: 0 | CC74: not yet
A75: 8 | B75: 15000 | C75: 1 | D75: 0.35 | E75: 0.75 | F75: 47.5 | G75: female abc | H75: 10 | I75: 10 | J75: TRUE | K75: 150 | L75: 120 | M75: 240 | N75: 6 | O75: 36 | P75: TRUE | Q75: Generic | R75: Addis Ababa | S75: TRUE | T75: 0.4 | U75: 4.32 | V75: 18.88 | W75: 3.36 | X75: 18.8 | Y75: 14.24 | Z75: 1.2 | AA75: 0.56 | AB75: 1.68 | AC75: 14.8 | AD75: 7.92 | AE75: 9.12 | AF75: 4 | AG75: 2.251252978 | AH75: 12171 | AI75: 13126.6 | AJ75: 0 | AK75: 0 | AL75: 0 | AM75: 0 | AN75: 0 | AO75: [0] | AP75: 0 | AQ75: 0 | AR75: 0 | AS75: 0 | AT75: 0 | AU75: 0 | AV75: 0 | AW75: 0 | AX75: 0 | AY75: 0 | AZ75: 0 | BA75: 0 | BB75: 0 | BC75: 6546.6 | BD75: 0 | BE75: 0 | BF75: 13126.6 | BG75: 15.48498597 | BH75: 2068 | BI75: 9.12825569 | BJ75: 49.89729685 | BK75: 351 | BL75: 904 | BM75: 3101 | BN75: 28.563702 | BO75: 21.26220345 | BP75: 1387.4 | BQ75: 10.57460551 | BR75: <ArgumentTypeException> | BS75: <ArgumentTypeException> | BT75: 6546.6 | BU75: 0 | BV75: 580.2 | BW75: 1015 | BX75: 13365.5 | BY75: 0 | BZ75: 0 | CA75: 1000000000 | CB75: 0 | CC75: not yet
A76: 4 | B76: 15000 | C76: 1 | D76: 0.35 | E76: 0.75 | F76: 47.5 | G76: female abc | H76: 10 | I76: 10 | J76: TRUE | K76: 150 | L76: 120 | M76: 240 | N76: 6 | O76: 36 | P76: TRUE | Q76: Generic | R76: Addis Ababa | S76: TRUE | T76: 0.4 | U76: 4.32 | V76: 18.88 | W76: 3.36 | X76: 18.8 | Y76: 14.24 | Z76: 1.2 | AA76: 0.56 | AB76: 1.68 | AC76: 14.8 | AD76: 7.92 | AE76: 9.12 | AF76: 4 | AG76: 2.400642312 | AH76: 12455 | AI76: 13406 | AJ76: 0 | AK76: 0 | AL76: 0 | AM76: 0 | AN76: 0 | AO76: [0] | AP76: 0 | AQ76: 0 | AR76: 0 | AS76: 0 | AT76: 0 | AU76: 0 | AV76: 0 | AW76: 0 | AX76: 0 | AY76: 0 | AZ76: 0 | BA76: 0 | BB76: 0 | BC76: 6662.2 | BD76: 0 | BE76: 0 | BF76: 13406 | BG76: 16.02308676 | BH76: 2183.2 | BI76: 9.650742674 | BJ76: 49.54636692 | BK76: 338 | BL76: 893 | BM76: 3044 | BN76: 28.36226084 | BO76: 21.37012628 | BP76: 1314.4 | BQ76: 9.806126008 | BR76: <ArgumentTypeException> | BS76: <ArgumentTypeException> | BT76: 6662.2 | BU76: 0 | BV76: 546.6 | BW76: 1079.2 | BX76: 13643.75 | BY76: 0 | BZ76: 0 | CA76: 1000000000 | CB76: 0 | CC76: not yet
A77: 6 | B77: 15000 | C77: 1 | D77: 0.35 | E77: 0.75 | F77: 47.5 | G77: female abc | H77: 10 | I77: 10 | J77: TRUE | K77: 150 | L77: 120 | M77: 240 | N77: 6 | O77: 36 | P77: TRUE | Q77: Generic | R77: Addis Ababa | S77: TRUE | T77: 0.4 | U77: 4.32 | V77: 18.88 | W77: 3.36 | X77: 18.8 | Y77: 14.24 | Z77: 1.2 | AA77: 0.56 | AB77: 1.68 | AC77: 14.8 | AD77: 7.92 | AE77: 9.12 | AF77: 5 | AG77: 1.576453435 | AH77: 10974 | AI77: 12032.33333 | AJ77: 0 | AK77: 0 | AL77: 0 | AM77: 0 | AN77: 0 | AO77: [0] | AP77: 0 | AQ77: 0 | AR77: 0 | AS77: 0 | AT77: 0 | AU77: 0 | AV77: 0 | AW77: 0 | AX77: 0 | AY77: 0 | AZ77: 0 | BA77: 0 | BB77: 0 | BC77: 6021.833333 | BD77: 0 | BE77: 0 | BF77: 12032.33333 | BG77: 14.04853378 | BH77: 1732.5 | BI77: 6.670311646 | BJ77: 49.94532531 | BK77: 362 | BL77: 937 | BM77: 3468 | BN77: 29.7312405 | BO77: 22.395391 | BP77: 1202.5 | BQ77: 9.995871161 | BR77: <ArgumentTypeException> | BS77: <ArgumentTypeException> | BT77: 6021.833333 | BU77: 0 | BV77: 514.1666667 | BW77: 866.3333333 | BX77: 12244 | BY77: 0 | BZ77: 0 | CA77: 1000000000 | CB77: 0 | CC77: not yet
A78: 14 | B78: 15000 | C78: 1 | D78: 0.35 | E78: 0.75 | F78: 47.5 | G78: female abc | H78: 10 | I78: 10 | J78: TRUE | K78: 150 | L78: 120 | M78: 240 | N78: 6 | O78: 36 | P78: TRUE | Q78: Generic | R78: Addis Ababa | S78: TRUE | T78: 0.4 | U78: 4.32 | V78: 18.88 | W78: 3.36 | X78: 18.8 | Y78: 14.24 | Z78: 1.2 | AA78: 0.56 | AB78: 1.68 | AC78: 14.8 | AD78: 7.92 | AE78: 9.12 | AF78: 4 | AG78: 2.264894141 | AH78: 12186 | AI78: 13177.4 | AJ78: 0 | AK78: 0 | AL78: 0 | AM78: 0 | AN78: 0 | AO78: [0] | AP78: 0 | AQ78: 0 | AR78: 0 | AS78: 0 | AT78: 0 | AU78: 0 | AV78: 0 | AW78: 0 | AX78: 0 | AY78: 0 | AZ78: 0 | BA78: 0 | BB78: 0 | BC78: 6574.8 | BD78: 0 | BE78: 0 | BF78: 13177.4 | BG78: 15.33944092 | BH78: 2058.6 | BI78: 8.920072214 | BJ78: 49.8933202 | BK78: 349 | BL78: 927 | BM78: 3177 | BN78: 28.76647046 | BO78: 21.46933712 | BP78: 1339.2 | BQ78: 10.16570813 | BR78: <ArgumentTypeException> | BS78: <ArgumentTypeException> | BT78: 6574.8 | BU78: 0 | BV78: 582.2 | BW78: 1025 | BX78: 13425.25 | BY78: 0 | BZ78: 0 | CA78: 1000000000 | CB78: 0 | CC78: not yet
A79: 15 | B79: 15000 | C79: 1 | D79: 0.35 | E79: 0.75 | F79: 47.5 | G79: female abc | H79: 10 | I79: 10 | J79: TRUE | K79: 150 | L79: 120 | M79: 240 | N79: 6 | O79: 36 | P79: TRUE | Q79: Generic | R79: Addis Ababa | S79: TRUE | T79: 0.4 | U79: 4.32 | V79: 18.88 | W79: 3.36 | X79: 18.8 | Y79: 14.24 | Z79: 1.2 | AA79: 0.56 | AB79: 1.68 | AC79: 14.8 | AD79: 7.92 | AE79: 9.12 | AF79: 4 | AG79: 2.273640235 | AH79: 12447 | AI79: 13384.8 | AJ79: 0 | AK79: 0 | AL79: 0 | AM79: 0 | AN79: 0 | AO79: [0] | AP79: 0 | AQ79: 0 | AR79: 0 | AS79: 0 | AT79: 0 | AU79: 0 | AV79: 0 | AW79: 0 | AX79: 0 | AY79: 0 | AZ79: 0 | BA79: 0 | BB79: 0 | BC79: 6656 | BD79: 0 | BE79: 0 | BF79: 13384.8 | BG79: 15.40761817 | BH79: 2096.4 | BI79: 9.319514743 | BJ79: 49.99598297 | BK79: 347 | BL79: 873 | BM79: 3084 | BN79: 28.29474291 | BO79: 21.45079535 | BP79: 1395.8 | BQ79: 10.43028469 | BR79: <ArgumentTypeException> | BS79: <ArgumentTypeException> | BT79: 6656 | BU79: 0 | BV79: 595.2 | BW79: 1051.6 | BX79: 13619.25 | BY79: 0 | BZ79: 0 | CA79: 1000000000 | CB79: 0 | CC79: not yet
A80: 1 | B80: 15000 | C80: 1 | D80: 0.35 | E80: 0.75 | F80: 47.5 | G80: female abc | H80: 10 | I80: 10 | J80: TRUE | K80: 150 | L80: 120 | M80: 240 | N80: 6 | O80: 36 | P80: TRUE | Q80: Generic | R80: Addis Ababa | S80: TRUE | T80: 0.4 | U80: 4.32 | V80: 18.88 | W80: 3.36 | X80: 18.8 | Y80: 14.24 | Z80: 1.2 | AA80: 0.56 | AB80: 1.68 | AC80: 14.8 | AD80: 7.92 | AE80: 9.12 | AF80: 5 | AG80: 1.820652174 | AH80: 11040 | AI80: 12059.16667 | AJ80: 0 | AK80: 0 | AL80: 0 | AM80: 0 | AN80: 0 | AO80: [0] | AP80: 0 | AQ80: 0 | AR80: 0 | AS80: 0 | AT80: 0 | AU80: 0 | AV80: 0 | AW80: 0 | AX80: 0 | AY80: 0 | AZ80: 0 | BA80: 0 | BB80: 0 | BC80: 6020.166667 | BD80: 0 | BE80: 0 | BF80: 12059.16667 | BG80: 13.47327193 | BH80: 1665.166667 | BI80: 6.503623188 | BJ80: 49.98188406 | BK80: 372 | BL80: 866 | BM80: 3355 | BN80: 29.17003028 | BO80: 22.40423751 | BP80: 1229.333333 | BQ80: 10.19392337 | BR80: <ArgumentTypeException> | BS80: <ArgumentTypeException> | BT80: 6020.166667 | BU80: 0 | BV80: 523.6666667 | BW80: 815.8333333 | BX80: 12263 | BY80: 0 | BZ80: 0 | CA80: 1000000000 | CB80: 0 | CC80: not yet
A81: 7 | B81: 15000 | C81: 1 | D81: 0.35 | E81: 0.75 | F81: 47.5 | G81: female abc | H81: 10 | I81: 10 | J81: TRUE | K81: 150 | L81: 120 | M81: 240 | N81: 6 | O81: 36 | P81: TRUE | Q81: Generic | R81: Addis Ababa | S81: TRUE | T81: 0.4 | U81: 4.32 | V81: 18.88 | W81: 3.36 | X81: 18.8 | Y81: 14.24 | Z81: 1.2 | AA81: 0.56 | AB81: 1.68 | AC81: 14.8 | AD81: 7.92 | AE81: 9.12 | AF81: 5 | AG81: 1.71454219 | AH81: 11140 | AI81: 12130.16667 | AJ81: 0 | AK81: 0 | AL81: 0 | AM81: 0 | AN81: 0 | AO81: [0] | AP81: 0 | AQ81: 0 | AR81: 0 | AS81: 0 | AT81: 0 | AU81: 0 | AV81: 0 | AW81: 0 | AX81: 0 | AY81: 0 | AZ81: 0 | BA81: 0 | BB81: 0 | BC81: 6091.166667 | BD81: 0 | BE81: 0 | BF81: 12130.16667 | BG81: 14.122238 | BH81: 1752.5 | BI81: 6.70556553 | BJ81: 50.2962298 | BK81: 397 | BL81: 876 | BM81: 3328 | BN81: 29.51036878 | BO81: 22.50631622 | BP81: 1229.833333 | BQ81: 10.14440093 | BR81: <ArgumentTypeException> | BS81: <ArgumentTypeException> | BT81: 6091.166667 | BU81: 0 | BV81: 535.6666667 | BW81: 873.6666667 | BX81: 12328.2 | BY81: 0 | BZ81: 0 | CA81: 1000000000 | CB81: 0 | CC81: not yet
A82: 9 | B82: 15000 | C82: 1 | D82: 0.35 | E82: 0.75 | F82: 47.5 | G82: female abc | H82: 10 | I82: 10 | J82: TRUE | K82: 150 | L82: 120 | M82: 240 | N82: 6 | O82: 36 | P82: TRUE | Q82: Generic | R82: Addis Ababa | S82: TRUE | T82: 0.4 | U82: 4.32 | V82: 18.88 | W82: 3.36 | X82: 18.8 | Y82: 14.24 | Z82: 1.2 | AA82: 0.56 | AB82: 1.68 | AC82: 14.8 | AD82: 7.92 | AE82: 9.12 | AF82: 5 | AG82: 1.567850063 | AH82: 11098 | AI82: 12105.66667 | AJ82: 0 | AK82: 0 | AL82: 0 | AM82: 0 | AN82: 0 | AO82: [0] | AP82: 0 | AQ82: 0 | AR82: 0 | AS82: 0 | AT82: 0 | AU82: 0 | AV82: 0 | AW82: 0 | AX82: 0 | AY82: 0 | AZ82: 0 | BA82: 0 | BB82: 0 | BC82: 6094.166667 | BD82: 0 | BE82: 0 | BF82: 12105.66667 | BG82: 13.85777571 | BH82: 1717.166667 | BI82: 6.478644801 | BJ82: 50.53162732 | BK82: 386 | BL82: 932 | BM82: 3268 | BN82: 30.09111073 | BO82: 22.84101806 | BP82: 1174.833333 | BQ82: 9.703781531 | BR82: <ArgumentTypeException> | BS82: <ArgumentTypeException> | BT82: 6094.166667 | BU82: 0 | BV82: 535.8333333 | BW82: 876.6666667 | BX82: 12307.2 | BY82: 0 | BZ82: 0 | CA82: 1000000000 | CB82: 0 | CC82: not yet
A83: 5 | B83: 15000 | C83: 1 | D83: 0.35 | E83: 0.75 | F83: 47.5 | G83: female abc | H83: 10 | I83: 10 | J83: TRUE | K83: 150 | L83: 120 | M83: 240 | N83: 6 | O83: 36 | P83: TRUE | Q83: Generic | R83: Addis Ababa | S83: TRUE | T83: 0.4 | U83: 4.32 | V83: 18.88 | W83: 3.36 | X83: 18.8 | Y83: 14.24 | Z83: 1.2 | AA83: 0.56 | AB83: 1.68 | AC83: 14.8 | AD83: 7.92 | AE83: 9.12 | AF83: 2 | AG83: 5.010848228 | AH83: 9679 | AI83: 10149.66667 | AJ83: 0 | AK83: 0 | AL83: 0 | AM83: 0 | AN83: 0 | AO83: [0] | AP83: 0 | AQ83: 0 | AR83: 0 | AS83: 0 | AT83: 0 | AU83: 0 | AV83: 0 | AW83: 0 | AX83: 0 | AY83: 0 | AZ83: 0 | BA83: 0 | BB83: 0 | BC83: 5075.333333 | BD83: 0 | BE83: 0 | BF83: 10149.66667 | BG83: 18.07175498 | BH83: 1846.333333 | BI83: 15.14619279 | BJ83: 50.24279368 | BK83: 161 | BL83: 423 | BM83: 1428 | BN83: 26.50323617 | BO83: 19.59161218 | BP83: 1056.333333 | BQ83: 10.40707705 | BR83: <ArgumentTypeException> | BS83: <ArgumentTypeException> | BT83: 5075.333333 | BU83: 0 | BV83: 408.3333333 | BW83: 929.6666667 | BX83: 10385 | BY83: 0 | BZ83: 0 | CA83: 1000000000 | CB83: 0 | CC83: not yet
A84: 13 | B84: 15000 | C84: 1 | D84: 0.35 | E84: 0.75 | F84: 47.5 | G84: female abc | H84: 10 | I84: 10 | J84: TRUE | K84: 150 | L84: 120 | M84: 240 | N84: 6 | O84: 36 | P84: TRUE | Q84: Generic | R84: Addis Ababa | S84: TRUE | T84: 0.4 | U84: 4.32 | V84: 18.88 | W84: 3.36 | X84: 18.8 | Y84: 14.24 | Z84: 1.2 | AA84: 0.56 | AB84: 1.68 | AC84: 14.8 | AD84: 7.92 | AE84: 9.12 | AF84: 5 | AG84: 1.583207329 | AH84: 11243 | AI84: 12315.83333 | AJ84: 0 | AK84: 0 | AL84: 0 | AM84: 0 | AN84: 0 | AO84: [0] | AP84: 0 | AQ84: 0 | AR84: 0 | AS84: 0 | AT84: 0 | AU84: 0 | AV84: 0 | AW84: 0 | AX84: 0 | AY84: 0 | AZ84: 0 | BA84: 0 | BB84: 0 | BC84: 6201 | BD84: 0 | BE84: 0 | BF84: 12315.83333 | BG84: 14.36759133 | BH84: 1814.166667 | BI84: 6.768656053 | BJ84: 50.36022414 | BK84: 392 | BL84: 925 | BM84: 3518 | BN84: 29.08621089 | BO84: 22.14528516 | BP84: 1287.666667 | BQ84: 10.45638931 | BR84: <ArgumentTypeException> | BS84: <ArgumentTypeException> | BT84: 6201 | BU84: 0 | BV84: 540.3333333 | BW84: 907.1666667 | BX84: 12530.4 | BY84: 0 | BZ84: 0 | CA84: 1000000000 | CB84: 0 | CC84: not yet
A85: 16 | B85: 15000 | C85: 1 | D85: 0.35 | E85: 0.75 | F85: 47.5 | G85: female abc | H85: 10 | I85: 10 | J85: TRUE | K85: 150 | L85: 120 | M85: 240 | N85: 6 | O85: 36 | P85: TRUE | Q85: Generic | R85: Addis Ababa | S85: TRUE | T85: 0.4 | U85: 4.32 | V85: 18.88 | W85: 3.36 | X85: 18.8 | Y85: 14.24 | Z85: 1.2 | AA85: 0.56 | AB85: 1.68 | AC85: 14.8 | AD85: 7.92 | AE85: 9.12 | AF85: 5 | AG85: 1.537636331 | AH85: 11186 | AI85: 12204.66667 | AJ85: 0 | AK85: 0 | AL85: 0 | AM85: 0 | AN85: 0 | AO85: [0] | AP85: 0 | AQ85: 0 | AR85: 0 | AS85: 0 | AT85: 0 | AU85: 0 | AV85: 0 | AW85: 0 | AX85: 0 | AY85: 0 | AZ85: 0 | BA85: 0 | BB85: 0 | BC85: 6045.166667 | BD85: 0 | BE85: 0 | BF85: 12204.66667 | BG85: 13.79839009 | BH85: 1727 | BI85: 6.034328625 | BJ85: 49.43679599 | BK85: 391 | BL85: 948 | BM85: 3384 | BN85: 29.74561747 | BO85: 22.63390975 | BP85: 1215.5 | BQ85: 9.956072535 | BR85: <ArgumentTypeException> | BS85: <ArgumentTypeException> | BT85: 6045.166667 | BU85: 0 | BV85: 536.1666667 | BW85: 868.3333333 | BX85: 12408.4 | BY85: 0 | BZ85: 0 | CA85: 1000000000 | CB85: 0 | CC85: not yet
A86: 11 | B86: 15000 | C86: 1 | D86: 0.35 | E86: 0.75 | F86: 47.5 | G86: female abc | H86: 10 | I86: 10 | J86: TRUE | K86: 150 | L86: 120 | M86: 240 | N86: 6 | O86: 36 | P86: TRUE | Q86: Generic | R86: Addis Ababa | S86: TRUE | T86: 0.4 | U86: 4.32 | V86: 18.88 | W86: 3.36 | X86: 18.8 | Y86: 14.24 | Z86: 1.2 | AA86: 0.56 | AB86: 1.68 | AC86: 14.8 | AD86: 7.92 | AE86: 9.12 | AF86: 5 | AG86: 1.703742938 | AH86: 11328 | AI86: 12370.5 | AJ86: 0 | AK86: 0 | AL86: 0 | AM86: 0 | AN86: 0 | AO86: [0] | AP86: 0 | AQ86: 0 | AR86: 0 | AS86: 0 | AT86: 0 | AU86: 0 | AV86: 0 | AW86: 0 | AX86: 0 | AY86: 0 | AZ86: 0 | BA86: 0 | BB86: 0 | BC86: 6153.833333 | BD86: 0 | BE86: 0 | BF86: 12370.5 | BG86: 14.01390532 | BH86: 1777.5 | BI86: 6.558968927 | BJ86: 49.87641243 | BK86: 389 | BL86: 934 | BM86: 3488 | BN86: 29.48957023 | BO86: 22.81118076 | BP86: 1216.5 | BQ86: 9.8323693 | BR86: <ArgumentTypeException> | BS86: <ArgumentTypeException> | BT86: 6153.833333 | BU86: 0 | BV86: 510.3333333 | BW86: 876.3333333 | BX86: 12579 | BY86: 0 | BZ86: 0 | CA86: 1000000000 | CB86: 0 | CC86: not yet
A87: 6 | B87: 15000 | C87: 1 | D87: 0.35 | E87: 0.75 | F87: 47.5 | G87: female abc | H87: 10 | I87: 10 | J87: TRUE | K87: 150 | L87: 120 | M87: 240 | N87: 6 | O87: 36 | P87: TRUE | Q87: Generic | R87: Addis Ababa | S87: TRUE | T87: 0.4 | U87: 4.32 | V87: 18.88 | W87: 3.36 | X87: 18.8 | Y87: 14.24 | Z87: 1.2 | AA87: 0.56 | AB87: 1.68 | AC87: 14.8 | AD87: 7.92 | AE87: 9.12 | AF87: 6 | AG87: 2.171492205 | AH87: 10776 | AI87: 11852.85714 | AJ87: 0 | AK87: 0 | AL87: 0 | AM87: 0 | AN87: 0 | AO87: [0] | AP87: 0 | AQ87: 0 | AR87: 0 | AS87: 0 | AT87: 0 | AU87: 0 | AV87: 0 | AW87: 0 | AX87: 0 | AY87: 0 | AZ87: 0 | BA87: 0 | BB87: 0 | BC87: 5930.142857 | BD87: 0 | BE87: 0 | BF87: 11852.85714 | BG87: 12.69251777 | BH87: 1555.142857 | BI87: 4.556421678 | BJ87: 49.92576095 | BK87: 526 | BL87: 1014 | BM87: 3930 | BN87: 30.40270332 | BO87: 23.13234425 | BP87: 1185.285714 | BQ87: 10.00229406 | BR87: <ArgumentTypeException> | BS87: <ArgumentTypeException> | BT87: 5930.142857 | BU87: 0 | BV87: 514.2857143 | BW87: 777.1428571 | BX87: 12032.33333 | BY87: 0 | BZ87: 0 | CA87: 1000000000 | CB87: 0 | CC87: not yet
A88: 10 | B88: 15000 | C88: 1 | D88: 0.35 | E88: 0.75 | F88: 47.5 | G88: female abc | H88: 10 | I88: 10 | J88: TRUE | K88: 150 | L88: 120 | M88: 240 | N88: 6 | O88: 36 | P88: TRUE | Q88: Generic | R88: Addis Ababa | S88: TRUE | T88: 0.4 | U88: 4.32 | V88: 18.88 | W88: 3.36 | X88: 18.8 | Y88: 14.24 | Z88: 1.2 | AA88: 0.56 | AB88: 1.68 | AC88: 14.8 | AD88: 7.92 | AE88: 9.12 | AF88: 5 | AG88: 1.624293785 | AH88: 11328 | AI88: 12292.5 | AJ88: 0 | AK88: 0 | AL88: 0 | AM88: 0 | AN88: 0 | AO88: [0] | AP88: 0 | AQ88: 0 | AR88: 0 | AS88: 0 | AT88: 0 | AU88: 0 | AV88: 0 | AW88: 0 | AX88: 0 | AY88: 0 | AZ88: 0 | BA88: 0 | BB88: 0 | BC88: 6128.166667 | BD88: 0 | BE88: 0 | BF88: 12292.5 | BG88: 13.90112836 | BH88: 1748.833333 | BI88: 6.497175141 | BJ88: 49.71751412 | BK88: 380 | BL88: 867 | BM88: 3281 | BN88: 29.59141554 | BO88: 22.56206896 | BP88: 1216.5 | BQ88: 9.891628763 | BR88: <ArgumentTypeException> | BS88: <ArgumentTypeException> | BT88: 6128.166667 | BU88: 0 | BV88: 506.6666667 | BW88: 845.5 | BX88: 12485.4 | BY88: 0 | BZ88: 0 | CA88: 1000000000 | CB88: 0 | CC88: not yet
A89: 12 | B89: 15000 | C89: 1 | D89: 0.35 | E89: 0.75 | F89: 47.5 | G89: female abc | H89: 10 | I89: 10 | J89: TRUE | K89: 150 | L89: 120 | M89: 240 | N89: 6 | O89: 36 | P89: TRUE | Q89: Generic | R89: Addis Ababa | S89: TRUE | T89: 0.4 | U89: 4.32 | V89: 18.88 | W89: 3.36 | X89: 18.8 | Y89: 14.24 | Z89: 1.2 | AA89: 0.56 | AB89: 1.68 | AC89: 14.8 | AD89: 7.92 | AE89: 9.12 | AF89: 5 | AG89: 1.52518738 | AH89: 11474 | AI89: 12494.16667 | AJ89: 0 | AK89: 0 | AL89: 0 | AM89: 0 | AN89: 0 | AO89: [0] | AP89: 0 | AQ89: 0 | AR89: 0 | AS89: 0 | AT89: 0 | AU89: 0 | AV89: 0 | AW89: 0 | AX89: 0 | AY89: 0 | AZ89: 0 | BA89: 0 | BB89: 0 | BC89: 6269 | BD89: 0 | BE89: 0 | BF89: 12494.16667 | BG89: 13.83995632 | BH89: 1772.166667 | BI89: 6.353494858 | BJ89: 50.00871536 | BK89: 395 | BL89: 935 | BM89: 3485 | BN89: 29.31562658 | BO89: 22.37485913 | BP89: 1274 | BQ89: 10.1930398 | BR89: <ArgumentTypeException> | BS89: <ArgumentTypeException> | BT89: 6269 | BU89: 0 | BV89: 524.8333333 | BW89: 888 | BX89: 12698.2 | BY89: 0 | BZ89: 0 | CA89: 1000000000 | CB89: 0 | CC89: not yet
A90: 2 | B90: 15000 | C90: 1 | D90: 0.35 | E90: 0.75 | F90: 47.5 | G90: female abc | H90: 10 | I90: 10 | J90: TRUE | K90: 150 | L90: 120 | M90: 240 | N90: 6 | O90: 36 | P90: TRUE | Q90: Generic | R90: Addis Ababa | S90: TRUE | T90: 0.4 | U90: 4.32 | V90: 18.88 | W90: 3.36 | X90: 18.8 | Y90: 14.24 | Z90: 1.2 | AA90: 0.56 | AB90: 1.68 | AC90: 14.8 | AD90: 7.92 | AE90: 9.12 | AF90: 5 | AG90: 1.904426027 | AH90: 11342 | AI90: 12362.5 | AJ90: 0 | AK90: 0 | AL90: 0 | AM90: 0 | AN90: 0 | AO90: [0] | AP90: 0 | AQ90: 0 | AR90: 0 | AS90: 0 | AT90: 0 | AU90: 0 | AV90: 0 | AW90: 0 | AX90: 0 | AY90: 0 | AZ90: 0 | BA90: 0 | BB90: 0 | BC90: 6372.5 | BD90: 0 | BE90: 0 | BF90: 12362.5 | BG90: 14.22146984 | BH90: 1800.5 | BI90: 6.674307882 | BJ90: 51.63110563 | BK90: 384 | BL90: 919 | BM90: 3429 | BN90: 29.45937851 | BO90: 22.35880263 | BP90: 1216.333333 | BQ90: 9.8326705 | BR90: <ArgumentTypeException> | BS90: <ArgumentTypeException> | BT90: 6372.5 | BU90: 0 | BV90: 522.5 | BW90: 917.3333333 | BX90: 12566.6 | BY90: 0 | BZ90: 0 | CA90: 1000000000 | CB90: 0 | CC90: not yet
A91: 3 | B91: 15000 | C91: 1 | D91: 0.35 | E91: 0.75 | F91: 47.5 | G91: female abc | H91: 10 | I91: 10 | J91: TRUE | K91: 150 | L91: 120 | M91: 240 | N91: 6 | O91: 36 | P91: TRUE | Q91: Generic | R91: Addis Ababa | S91: TRUE | T91: 0.4 | U91: 4.32 | V91: 18.88 | W91: 3.36 | X91: 18.8 | Y91: 14.24 | Z91: 1.2 | AA91: 0.56 | AB91: 1.68 | AC91: 14.8 | AD91: 7.92 | AE91: 9.12 | AF91: 5 | AG91: 1.408937678 | AH91: 11569 | AI91: 12646.66667 | AJ91: 0 | AK91: 0 | AL91: 0 | AM91: 0 | AN91: 0 | AO91: [0] | AP91: 0 | AQ91: 0 | AR91: 0 | AS91: 0 | AT91: 0 | AU91: 0 | AV91: 0 | AW91: 0 | AX91: 0 | AY91: 0 | AZ91: 0 | BA91: 0 | BB91: 0 | BC91: 6273.666667 | BD91: 0 | BE91: 0 | BF91: 12646.66667 | BG91: 14.12696568 | BH91: 1831.333333 | BI91: 6.526061025 | BJ91: 49.76229579 | BK91: 385 | BL91: 973 | BM91: 3559 | BN91: 29.78699539 | BO91: 22.5814222 | BP91: 1218.166667 | BQ91: 9.634390188 | BR91: <ArgumentTypeException> | BS91: <ArgumentTypeException> | BT91: 6273.666667 | BU91: 0 | BV91: 554.8333333 | BW91: 876.6666667 | BX91: 12862.2 | BY91: 0 | BZ91: 0 | CA91: 1000000000 | CB91: 0 | CC91: not yet
A92: 4 | B92: 15000 | C92: 1 | D92: 0.35 | E92: 0.75 | F92: 47.5 | G92: female abc | H92: 10 | I92: 10 | J92: TRUE | K92: 150 | L92: 120 | M92: 240 | N92: 6 | O92: 36 | P92: TRUE | Q92: Generic | R92: Addis Ababa | S92: TRUE | T92: 0.4 | U92: 4.32 | V92: 18.88 | W92: 3.36 | X92: 18.8 | Y92: 14.24 | Z92: 1.2 | AA92: 0.56 | AB92: 1.68 | AC92: 14.8 | AD92: 7.92 | AE92: 9.12 | AF92: 5 | AG92: 1.728129651 | AH92: 12094 | AI92: 13187.33333 | AJ92: 0 | AK92: 0 | AL92: 0 | AM92: 0 | AN92: 0 | AO92: [0] | AP92: 0 | AQ92: 0 | AR92: 0 | AS92: 0 | AT92: 0 | AU92: 0 | AV92: 0 | AW92: 0 | AX92: 0 | AY92: 0 | AZ92: 0 | BA92: 0 | BB92: 0 | BC92: 6551.166667 | BD92: 0 | BE92: 0 | BF92: 13187.33333 | BG92: 14.45918164 | BH92: 1953.166667 | BI92: 6.639656028 | BJ92: 49.57830329 | BK92: 399 | BL92: 984 | BM92: 3577 | BN92: 29.36303306 | BO92: 22.44174195 | BP92: 1292.5 | BQ92: 9.802056663 | BR92: <ArgumentTypeException> | BS92: <ArgumentTypeException> | BT92: 6551.166667 | BU92: 0 | BV92: 545 | BW92: 967 | BX92: 13406 | BY92: 0 | BZ92: 0 | CA92: 1000000000 | CB92: 0 | CC92: not yet
A93: 8 | B93: 15000 | C93: 1 | D93: 0.35 | E93: 0.75 | F93: 47.5 | G93: female abc | H93: 10 | I93: 10 | J93: TRUE | K93: 150 | L93: 120 | M93: 240 | N93: 6 | O93: 36 | P93: TRUE | Q93: Generic | R93: Addis Ababa | S93: TRUE | T93: 0.4 | U93: 4.32 | V93: 18.88 | W93: 3.36 | X93: 18.8 | Y93: 14.24 | Z93: 1.2 | AA93: 0.56 | AB93: 1.68 | AC93: 14.8 | AD93: 7.92 | AE93: 9.12 | AF93: 5 | AG93: 1.521683997 | AH93: 11829 | AI93: 12910.33333 | AJ93: 0 | AK93: 0 | AL93: 0 | AM93: 0 | AN93: 0 | AO93: [0] | AP93: 0 | AQ93: 0 | AR93: 0 | AS93: 0 | AT93: 0 | AU93: 0 | AV93: 0 | AW93: 0 | AX93: 0 | AY93: 0 | AZ93: 0 | BA93: 0 | BB93: 0 | BC93: 6439.666667 | BD93: 0 | BE93: 0 | BF93: 12910.33333 | BG93: 13.9425634 | BH93: 1846.166667 | BI93: 6.230450588 | BJ93: 49.9196889 | BK93: 405 | BL93: 966 | BM93: 3606 | BN93: 29.54193953 | BO93: 22.26220345 | BP93: 1366.5 | BQ93: 10.59028719 | BR93: <ArgumentTypeException> | BS93: <ArgumentTypeException> | BT93: 6439.666667 | BU93: 0 | BV93: 583.5 | BW93: 906 | BX93: 13126.6 | BY93: 0 | BZ93: 0 | CA93: 1000000000 | CB93: 0 | CC93: not yet
A94: 1 | B94: 15000 | C94: 1 | D94: 0.35 | E94: 0.75 | F94: 47.5 | G94: female abc | H94: 10 | I94: 10 | J94: TRUE | K94: 150 | L94: 120 | M94: 240 | N94: 6 | O94: 36 | P94: TRUE | Q94: Generic | R94: Addis Ababa | S94: TRUE | T94: 0.4 | U94: 4.32 | V94: 18.88 | W94: 3.36 | X94: 18.8 | Y94: 14.24 | Z94: 1.2 | AA94: 0.56 | AB94: 1.68 | AC94: 14.8 | AD94: 7.92 | AE94: 9.12 | AF94: 6 | AG94: 2.498156342 | AH94: 10848 | AI94: 11886.14286 | AJ94: 0 | AK94: 0 | AL94: 0 | AM94: 0 | AN94: 0 | AO94: [0] | AP94: 0 | AQ94: 0 | AR94: 0 | AS94: 0 | AT94: 0 | AU94: 0 | AV94: 0 | AW94: 0 | AX94: 0 | AY94: 0 | AZ94: 0 | BA94: 0 | BB94: 0 | BC94: 5932.428571 | BD94: 0 | BE94: 0 | BF94: 11886.14286 | BG94: 12.22803839 | BH94: 1501 | BI94: 4.756637168 | BJ94: 49.8340708 | BK94: 553 | BL94: 954 | BM94: 3828 | BN94: 29.89729176 | BO94: 23.280217 | BP94: 1211.285714 | BQ94: 10.19018759 | BR94: <ArgumentTypeException> | BS94: <ArgumentTypeException> | BT94: 5932.428571 | BU94: 0 | BV94: 522.4285714 | BW94: 739.1428571 | BX94: 12059.16667 | BY94: 0 | BZ94: 0 | CA94: 1000000000 | CB94: 0 | CC94: not yet
A95: 14 | B95: 15000 | C95: 1 | D95: 0.35 | E95: 0.75 | F95: 47.5 | G95: female abc | H95: 10 | I95: 10 | J95: TRUE | K95: 150 | L95: 120 | M95: 240 | N95: 6 | O95: 36 | P95: TRUE | Q95: Generic | R95: Addis Ababa | S95: TRUE | T95: 0.4 | U95: 4.32 | V95: 18.88 | W95: 3.36 | X95: 18.8 | Y95: 14.24 | Z95: 1.2 | AA95: 0.56 | AB95: 1.68 | AC95: 14.8 | AD95: 7.92 | AE95: 9.12 | AF95: 5 | AG95: 1.72486683 | AH95: 11827 | AI95: 12952.33333 | AJ95: 0 | AK95: 0 | AL95: 0 | AM95: 0 | AN95: 0 | AO95: [0] | AP95: 0 | AQ95: 0 | AR95: 0 | AS95: 0 | AT95: 0 | AU95: 0 | AV95: 0 | AW95: 0 | AX95: 0 | AY95: 0 | AZ95: 0 | BA95: 0 | BB95: 0 | BC95: 6461.333333 | BD95: 0 | BE95: 0 | BF95: 12952.33333 | BG95: 13.78763055 | BH95: 1834.333333 | BI95: 6.028578676 | BJ95: 49.83512302 | BK95: 404 | BL95: 1008 | BM95: 3700 | BN95: 29.74973928 | BO95: 22.513478 | BP95: 1317.5 | BQ95: 10.1751522 | BR95: <ArgumentTypeException> | BS95: <ArgumentTypeException> | BT95: 6461.333333 | BU95: 0 | BV95: 582 | BW95: 910.1666667 | BX95: 13177.4 | BY95: 0 | BZ95: 0 | CA95: 1000000000 | CB95: 0 | CC95: not yet
A96: 15 | B96: 15000 | C96: 1 | D96: 0.35 | E96: 0.75 | F96: 47.5 | G96: female abc | H96: 10 | I96: 10 | J96: TRUE | K96: 150 | L96: 120 | M96: 240 | N96: 6 | O96: 36 | P96: TRUE | Q96: Generic | R96: Addis Ababa | S96: TRUE | T96: 0.4 | U96: 4.32 | V96: 18.88 | W96: 3.36 | X96: 18.8 | Y96: 14.24 | Z96: 1.2 | AA96: 0.56 | AB96: 1.68 | AC96: 14.8 | AD96: 7.92 | AE96: 9.12 | AF96: 5 | AG96: 1.663631849 | AH96: 12082 | AI96: 13167.66667 | AJ96: 0 | AK96: 0 | AL96: 0 | AM96: 0 | AN96: 0 | AO96: [0] | AP96: 0 | AQ96: 0 | AR96: 0 | AS96: 0 | AT96: 0 | AU96: 0 | AV96: 0 | AW96: 0 | AX96: 0 | AY96: 0 | AZ96: 0 | BA96: 0 | BB96: 0 | BC96: 6551 | BD96: 0 | BE96: 0 | BF96: 13167.66667 | BG96: 13.89497066 | BH96: 1874.5 | BI96: 6.331733157 | BJ96: 49.87584837 | BK96: 404 | BL96: 956 | BM96: 3617 | BN96: 29.28183148 | BO96: 22.56332595 | BP96: 1374 | BQ96: 10.43692405 | BR96: <ArgumentTypeException> | BS96: <ArgumentTypeException> | BT96: 6551 | BU96: 0 | BV96: 595.1666667 | BW96: 941.1666667 | BX96: 13384.8 | BY96: 0 | BZ96: 0 | CA96: 1000000000 | CB96: 0 | CC96: not yet
A97: 5 | B97: 15000 | C97: 1 | D97: 0.35 | E97: 0.75 | F97: 47.5 | G97: female abc | H97: 10 | I97: 10 | J97: TRUE | K97: 150 | L97: 120 | M97: 240 | N97: 6 | O97: 36 | P97: TRUE | Q97: Generic | R97: Addis Ababa | S97: TRUE | T97: 0.4 | U97: 4.32 | V97: 18.88 | W97: 3.36 | X97: 18.8 | Y97: 14.24 | Z97: 1.2 | AA97: 0.56 | AB97: 1.68 | AC97: 14.8 | AD97: 7.92 | AE97: 9.12 | AF97: 3 | AG97: 2.235533212 | AH97: 9349 | AI97: 9949.5 | AJ97: 0 | AK97: 0 | AL97: 0 | AM97: 0 | AN97: 0 | AO97: [0] | AP97: 0 | AQ97: 0 | AR97: 0 | AS97: 0 | AT97: 0 | AU97: 0 | AV97: 0 | AW97: 0 | AX97: 0 | AY97: 0 | AZ97: 0 | BA97: 0 | BB97: 0 | BC97: 4979.5 | BD97: 0 | BE97: 0 | BF97: 9949.5 | BG97: 16.57820387 | BH97: 1667.5 | BI97: 12.09755054 | BJ97: 50.1871858 | BK97: 234 | BL97: 555 | BM97: 1915 | BN97: 27.54853532 | BO97: 20.70671217 | BP97: 1035 | BQ97: 10.40184218 | BR97: <ArgumentTypeException> | BS97: <ArgumentTypeException> | BT97: 4979.5 | BU97: 0 | BV97: 404.25 | BW97: 840 | BX97: 10149.66667 | BY97: 0 | BZ97: 0 | CA97: 1000000000 | CB97: 0 | CC97: not yet
A98: 7 | B98: 15000 | C98: 1 | D98: 0.35 | E98: 0.75 | F98: 47.5 | G98: female abc | H98: 10 | I98: 10 | J98: TRUE | K98: 150 | L98: 120 | M98: 240 | N98: 6 | O98: 36 | P98: TRUE | Q98: Generic | R98: Addis Ababa | S98: TRUE | T98: 0.4 | U98: 4.32 | V98: 18.88 | W98: 3.36 | X98: 18.8 | Y98: 14.24 | Z98: 1.2 | AA98: 0.56 | AB98: 1.68 | AC98: 14.8 | AD98: 7.92 | AE98: 9.12 | AF98: 6 | AG98: 2.337519479 | AH98: 10909 | AI98: 11955.71429 | AJ98: 0 | AK98: 0 | AL98: 0 | AM98: 0 | AN98: 0 | AO98: [0] | AP98: 0 | AQ98: 0 | AR98: 0 | AS98: 0 | AT98: 0 | AU98: 0 | AV98: 0 | AW98: 0 | AX98: 0 | AY98: 0 | AZ98: 0 | BA98: 0 | BB98: 0 | BC98: 6002.714286 | BD98: 0 | BE98: 0 | BF98: 11955.71429 | BG98: 12.79359069 | BH98: 1577.285714 | BI98: 4.821706848 | BJ98: 50.160418 | BK98: 555 | BL98: 937 | BM98: 3818 | BN98: 30.23541107 | BO98: 23.37785039 | BP98: 1213.857143 | BQ98: 10.15926061 | BR98: <ArgumentTypeException> | BS98: <ArgumentTypeException> | BT98: 6002.714286 | BU98: 0 | BV98: 537.4285714 | BW98: 786.5714286 | BX98: 12130.16667 | BY98: 0 | BZ98: 0 | CA98: 1000000000 | CB98: 0 | CC98: not yet
A99: 9 | B99: 15000 | C99: 1 | D99: 0.35 | E99: 0.75 | F99: 47.5 | G99: female abc | H99: 10 | I99: 10 | J99: TRUE | K99: 150 | L99: 120 | M99: 240 | N99: 6 | O99: 36 | P99: TRUE | Q99: Generic | R99: Addis Ababa | S99: TRUE | T99: 0.4 | U99: 4.32 | V99: 18.88 | W99: 3.36 | X99: 18.8 | Y99: 14.24 | Z99: 1.2 | AA99: 0.56 | AB99: 1.68 | AC99: 14.8 | AD99: 7.92 | AE99: 9.12 | AF99: 6 | AG99: 2.423797282 | AH99: 10892 | AI99: 11932.28571 | AJ99: 0 | AK99: 0 | AL99: 0 | AM99: 0 | AN99: 0 | AO99: [0] | AP99: 0 | AQ99: 0 | AR99: 0 | AS99: 0 | AT99: 0 | AU99: 0 | AV99: 0 | AW99: 0 | AX99: 0 | AY99: 0 | AZ99: 0 | BA99: 0 | BB99: 0 | BC99: 6008.428571 | BD99: 0 | BE99: 0 | BF99: 11932.28571 | BG99: 12.53650593 | BH99: 1543.571429 | BI99: 4.608887257 | BJ99: 50.44069041 | BK99: 562 | BL99: 1011 | BM99: 3750 | BN99: 30.80092278 | BO99: 23.6791655 | BP99: 1159.428571 | BQ99: 9.71698141 | BR99: <ArgumentTypeException> | BS99: <ArgumentTypeException> | BT99: 6008.428571 | BU99: 0 | BV99: 536.5714286 | BW99: 787.5714286 | BX99: 12105.66667 | BY99: 0 | BZ99: 0 | CA99: 1000000000 | CB99: 0 | CC99: not yet
A100: 16 | B100: 15000 | C100: 1 | D100: 0.35 | E100: 0.75 | F100: 47.5 | G100: female abc | H100: 10 | I100: 10 | J100: TRUE | K100: 150 | L100: 120 | M100: 240 | N100: 6 | O100: 36 | P100: TRUE | Q100: Generic | R100: Addis Ababa | S100: TRUE | T100: 0.4 | U100: 4.32 | V100: 18.88 | W100: 3.36 | X100: 18.8 | Y100: 14.24 | Z100: 1.2 | AA100: 0.56 | AB100: 1.68 | AC100: 14.8 | AD100: 7.92 | AE100: 9.12 | AF100: 6 | AG100: 2.055479764 | AH100: 10995 | AI100: 12031.85714 | AJ100: 0 | AK100: 0 | AL100: 0 | AM100: 0 | AN100: 0 | AO100: [0] | AP100: 0 | AQ100: 0 | AR100: 0 | AS100: 0 | AT100: 0 | AU100: 0 | AV100: 0 | AW100: 0 | AX100: 0 | AY100: 0 | AZ100: 0 | BA100: 0 | BB100: 0 | BC100: 5959.714286 | BD100: 0 | BE100: 0 | BF100: 12031.85714 | BG100: 12.45604877 | BH100: 1549.428571 | BI100: 4.40200091 | BJ100: 49.54070032 | BK100: 559 | BL100: 1036 | BM100: 3844 | BN100: 30.4673135 | BO100: 23.40552383 | BP100: 1196.571429 | BQ100: 9.940909571 | BR100: <ArgumentTypeException> | BS100: <ArgumentTypeException> | BT100: 5959.714286 | BU100: 0 | BV100: 535.8571429 | BW100: 778.5714286 | BX100: 12204.66667 | BY100: 0 | BZ100: 0 | CA100: 1000000000 | CB100: 0 | CC100: not yet
A101: 13 | B101: 15000 | C101: 1 | D101: 0.35 | E101: 0.75 | F101: 47.5 | G101: female abc | H101: 10 | I101: 10 | J101: TRUE | K101: 150 | L101: 120 | M101: 240 | N101: 6 | O101: 36 | P101: TRUE | Q101: Generic | R101: Addis Ababa | S101: TRUE | T101: 0.4 | U101: 4.32 | V101: 18.88 | W101: 3.36 | X101: 18.8 | Y101: 14.24 | Z101: 1.2 | AA101: 0.56 | AB101: 1.68 | AC101: 14.8 | AD101: 7.92 | AE101: 9.12 | AF101: 6 | AG101: 2.135360116 | AH101: 11052 | AI101: 12135.28571 | AJ101: 0 | AK101: 0 | AL101: 0 | AM101: 0 | AN101: 0 | AO101: [0] | AP101: 0 | AQ101: 0 | AR101: 0 | AS101: 0 | AT101: 0 | AU101: 0 | AV101: 0 | AW101: 0 | AX101: 0 | AY101: 0 | AZ101: 0 | BA101: 0 | BB101: 0 | BC101: 6112.428571 | BD101: 0 | BE101: 0 | BF101: 12135.28571 | BG101: 12.97429963 | BH101: 1627.857143 | BI101: 4.614549403 | BJ101: 50.49764748 | BK101: 559 | BL101: 1010 | BM101: 3978 | BN101: 29.79691836 | BO101: 22.94552115 | BP101: 1270.285714 | BQ101: 10.46978037 | BR101: <ArgumentTypeException> | BS101: <ArgumentTypeException> | BT101: 6112.428571 | BU101: 0 | BV101: 543.1428571 | BW101: 813 | BX101: 12315.83333 | BY101: 0 | BZ101: 0 | CA101: 1000000000 | CB101: 0 | CC101: not yet
A102: 6 | B102: 15000 | C102: 1 | D102: 0.35 | E102: 0.75 | F102: 47.5 | G102: female abc | H102: 10 | I102: 10 | J102: TRUE | K102: 150 | L102: 120 | M102: 240 | N102: 6 | O102: 36 | P102: TRUE | Q102: Generic | R102: Addis Ababa | S102: TRUE | T102: 0.4 | U102: 4.32 | V102: 18.88 | W102: 3.36 | X102: 18.8 | Y102: 14.24 | Z102: 1.2 | AA102: 0.56 | AB102: 1.68 | AC102: 14.8 | AD102: 7.92 | AE102: 9.12 | AF102: 7 | AG102: 4.623955432 | AH102: 10770 | AI102: 11717.5 | AJ102: 0 | AK102: 0 | AL102: 0 | AM102: 0 | AN102: 0 | AO102: [0] | AP102: 0 | AQ102: 0 | AR102: 0 | AS102: 0 | AT102: 0 | AU102: 0 | AV102: 0 | AW102: 0 | AX102: 0 | AY102: 0 | AZ102: 0 | BA102: 0 | BB102: 0 | BC102: 5861 | BD102: 0 | BE102: 0 | BF102: 11717.5 | BG102: 11.97758722 | BH102: 1454.625 | BI102: 6.973073352 | BJ102: 49.92571959 | BK102: 985 | BL102: 1222 | BM102: 4493 | BN102: 30.66861703 | BO102: 23.62046972 | BP102: 1172.25 | BQ102: 10.00664983 | BR102: <ArgumentTypeException> | BS102: <ArgumentTypeException> | BT102: 5855.875 | BU102: 0 | BV102: 512.75 | BW102: 724.875 | BX102: 11852.85714 | BY102: 0 | BZ102: 0 | CA102: 1000000000 | CB102: 0 | CC102: not yet
A103: 11 | B103: 15000 | C103: 1 | D103: 0.35 | E103: 0.75 | F103: 47.5 | G103: female abc | H103: 10 | I103: 10 | J103: TRUE | K103: 150 | L103: 120 | M103: 240 | N103: 6 | O103: 36 | P103: TRUE | Q103: Generic | R103: Addis Ababa | S103: TRUE | T103: 0.4 | U103: 4.32 | V103: 18.88 | W103: 3.36 | X103: 18.8 | Y103: 14.24 | Z103: 1.2 | AA103: 0.56 | AB103: 1.68 | AC103: 14.8 | AD103: 7.92 | AE103: 9.12 | AF103: 6 | AG103: 2.115732369 | AH103: 11060 | AI103: 12183.28571 | AJ103: 0 | AK103: 0 | AL103: 0 | AM103: 0 | AN103: 0 | AO103: [0] | AP103: 0 | AQ103: 0 | AR103: 0 | AS103: 0 | AT103: 0 | AU103: 0 | AV103: 0 | AW103: 0 | AX103: 0 | AY103: 0 | AZ103: 0 | BA103: 0 | BB103: 0 | BC103: 6061 | BD103: 0 | BE103: 0 | BF103: 12183.28571 | BG103: 12.61770546 | BH103: 1590.571429 | BI103: 4.240506329 | BJ103: 49.76491863 | BK103: 563 | BL103: 1049 | BM103: 4033 | BN103: 30.4036825 | BO103: 23.78875611 | BP103: 1197.857143 | BQ103: 9.830483425 | BR103: <ArgumentTypeException> | BS103: <ArgumentTypeException> | BT103: 6061 | BU103: 0 | BV103: 509.8571429 | BW103: 784.1428571 | BX103: 12370.5 | BY103: 0 | BZ103: 0 | CA103: 1000000000 | CB103: 0 | CC103: not yet
A104: 12 | B104: 15000 | C104: 1 | D104: 0.35 | E104: 0.75 | F104: 47.5 | G104: female abc | H104: 10 | I104: 10 | J104: TRUE | K104: 150 | L104: 120 | M104: 240 | N104: 6 | O104: 36 | P104: TRUE | Q104: Generic | R104: Addis Ababa | S104: TRUE | T104: 0.4 | U104: 4.32 | V104: 18.88 | W104: 3.36 | X104: 18.8 | Y104: 14.24 | Z104: 1.2 | AA104: 0.56 | AB104: 1.68 | AC104: 14.8 | AD104: 7.92 | AE104: 9.12 | AF104: 6 | AG104: 2.268900115 | AH104: 11283 | AI104: 12321.14286 | AJ104: 0 | AK104: 0 | AL104: 0 | AM104: 0 | AN104: 0 | AO104: [0] | AP104: 0 | AQ104: 0 | AR104: 0 | AS104: 0 | AT104: 0 | AU104: 0 | AV104: 0 | AW104: 0 | AX104: 0 | AY104: 0 | AZ104: 0 | BA104: 0 | BB104: 0 | BC104: 6179.142857 | BD104: 0 | BE104: 0 | BF104: 12321.14286 | BG104: 12.5262704 | BH104: 1593.857143 | BI104: 4.644154923 | BJ104: 49.98670566 | BK104: 573 | BL104: 1012 | BM104: 3958 | BN104: 30.05057706 | BO104: 23.21067381 | BP104: 1256 | BQ104: 10.19040539 | BR104: <ArgumentTypeException> | BS104: <ArgumentTypeException> | BT104: 6179.142857 | BU104: 0 | BV104: 523.8571429 | BW104: 797.7142857 | BX104: 12494.16667 | BY104: 0 | BZ104: 0 | CA104: 1000000000 | CB104: 0 | CC104: not yet
A105: 2 | B105: 15000 | C105: 1 | D105: 0.35 | E105: 0.75 | F105: 47.5 | G105: female abc | H105: 10 | I105: 10 | J105: TRUE | K105: 150 | L105: 120 | M105: 240 | N105: 6 | O105: 36 | P105: TRUE | Q105: Generic | R105: Addis Ababa | S105: TRUE | T105: 0.4 | U105: 4.32 | V105: 18.88 | W105: 3.36 | X105: 18.8 | Y105: 14.24 | Z105: 1.2 | AA105: 0.56 | AB105: 1.68 | AC105: 14.8 | AD105: 7.92 | AE105: 9.12 | AF105: 6 | AG105: 2.47778077 | AH105: 11139 | AI105: 12187.71429 | AJ105: 0 | AK105: 0 | AL105: 0 | AM105: 0 | AN105: 0 | AO105: [0] | AP105: 0 | AQ105: 0 | AR105: 0 | AS105: 0 | AT105: 0 | AU105: 0 | AV105: 0 | AW105: 0 | AX105: 0 | AY105: 0 | AZ105: 0 | BA105: 0 | BB105: 0 | BC105: 6285.428571 | BD105: 0 | BE105: 0 | BF105: 12187.71429 | BG105: 12.86698877 | BH105: 1618.714286 | BI105: 4.740102343 | BJ105: 51.73713978 | BK105: 559 | BL105: 1016 | BM105: 3910 | BN105: 30.23365352 | BO105: 23.23593997 | BP105: 1198.857143 | BQ105: 9.831053059 | BR105: <ArgumentTypeException> | BS105: <ArgumentTypeException> | BT105: 6285.428571 | BU105: 0 | BV105: 523.8571429 | BW105: 824.5714286 | BX105: 12362.5 | BY105: 0 | BZ105: 0 | CA105: 1000000000 | CB105: 0 | CC105: not yet
A106: 10 | B106: 15000 | C106: 1 | D106: 0.35 | E106: 0.75 | F106: 47.5 | G106: female abc | H106: 10 | I106: 10 | J106: TRUE | K106: 150 | L106: 120 | M106: 240 | N106: 6 | O106: 36 | P106: TRUE | Q106: Generic | R106: Addis Ababa | S106: TRUE | T106: 0.4 | U106: 4.32 | V106: 18.88 | W106: 3.36 | X106: 18.8 | Y106: 14.24 | Z106: 1.2 | AA106: 0.56 | AB106: 1.68 | AC106: 14.8 | AD106: 7.92 | AE106: 9.12 | AF106: 6 | AG106: 2.471021655 | AH106: 11129 | AI106: 12126.28571 | AJ106: 0 | AK106: 0 | AL106: 0 | AM106: 0 | AN106: 0 | AO106: [0] | AP106: 0 | AQ106: 0 | AR106: 0 | AS106: 0 | AT106: 0 | AU106: 0 | AV106: 0 | AW106: 0 | AX106: 0 | AY106: 0 | AZ106: 0 | BA106: 0 | BB106: 0 | BC106: 6045.571429 | BD106: 0 | BE106: 0 | BF106: 12126.28571 | BG106: 12.58660058 | BH106: 1573.714286 | BI106: 4.699433911 | BJ106: 49.86970977 | BK106: 557 | BL106: 930 | BM106: 3759 | BN106: 30.24213182 | BO106: 23.25655523 | BP106: 1197.714286 | BQ106: 9.8712966 | BR106: <ArgumentTypeException> | BS106: <ArgumentTypeException> | BT106: 6045.571429 | BU106: 0 | BV106: 505.8571429 | BW106: 762.5714286 | BX106: 12292.5 | BY106: 0 | BZ106: 0 | CA106: 1000000000 | CB106: 0 | CC106: not yet
A107: 3 | B107: 15000 | C107: 1 | D107: 0.35 | E107: 0.75 | F107: 47.5 | G107: female abc | H107: 10 | I107: 10 | J107: TRUE | K107: 150 | L107: 120 | M107: 240 | N107: 6 | O107: 36 | P107: TRUE | Q107: Generic | R107: Addis Ababa | S107: TRUE | T107: 0.4 | U107: 4.32 | V107: 18.88 | W107: 3.36 | X107: 18.8 | Y107: 14.24 | Z107: 1.2 | AA107: 0.56 | AB107: 1.68 | AC107: 14.8 | AD107: 7.92 | AE107: 9.12 | AF107: 6 | AG107: 2.173913043 | AH107: 11362 | AI107: 12463.14286 | AJ107: 0 | AK107: 0 | AL107: 0 | AM107: 0 | AN107: 0 | AO107: [0] | AP107: 0 | AQ107: 0 | AR107: 0 | AS107: 0 | AT107: 0 | AU107: 0 | AV107: 0 | AW107: 0 | AX107: 0 | AY107: 0 | AZ107: 0 | BA107: 0 | BB107: 0 | BC107: 6185.857143 | BD107: 0 | BE107: 0 | BF107: 12463.14286 | BG107: 12.70731391 | BH107: 1637.714286 | BI107: 4.189403274 | BJ107: 49.80637212 | BK107: 572 | BL107: 1065 | BM107: 4058 | BN107: 30.57829147 | BO107: 23.38550428 | BP107: 1201.285714 | BQ107: 9.641105035 | BR107: <ArgumentTypeException> | BS107: <ArgumentTypeException> | BT107: 6185.857143 | BU107: 0 | BV107: 554.8571429 | BW107: 783.8571429 | BX107: 12646.66667 | BY107: 0 | BZ107: 0 | CA107: 1000000000 | CB107: 0 | CC107: not yet
A108: 1 | B108: 15000 | C108: 1 | D108: 0.35 | E108: 0.75 | F108: 47.5 | G108: female abc | H108: 10 | I108: 10 | J108: TRUE | K108: 150 | L108: 120 | M108: 240 | N108: 6 | O108: 36 | P108: TRUE | Q108: Generic | R108: Addis Ababa | S108: TRUE | T108: 0.4 | U108: 4.32 | V108: 18.88 | W108: 3.36 | X108: 18.8 | Y108: 14.24 | Z108: 1.2 | AA108: 0.56 | AB108: 1.68 | AC108: 14.8 | AD108: 7.92 | AE108: 9.12 | AF108: 7 | AG108: 4.908201864 | AH108: 10839 | AI108: 11755.25 | AJ108: 0 | AK108: 0 | AL108: 0 | AM108: 0 | AN108: 0 | AO108: [0] | AP108: 0 | AQ108: 0 | AR108: 0 | AS108: 0 | AT108: 0 | AU108: 0 | AV108: 0 | AW108: 0 | AX108: 0 | AY108: 0 | AZ108: 0 | BA108: 0 | BB108: 0 | BC108: 5867.25 | BD108: 0 | BE108: 0 | BF108: 11755.25 | BG108: 11.61405523 | BH108: 1412.5 | BI108: 7.316173079 | BJ108: 49.92157948 | BK108: 1008 | BL108: 1149 | BM108: 4391 | BN108: 30.1276911 | BO108: 23.58064595 | BP108: 1198.375 | BQ108: 10.19420729 | BR108: <ArgumentTypeException> | BS108: <ArgumentTypeException> | BT108: 5862.75 | BU108: 0 | BV108: 519.875 | BW108: 700 | BX108: 11886.14286 | BY108: 0 | BZ108: 0 | CA108: 1000000000 | CB108: 0 | CC108: not yet
A109: 4 | B109: 15000 | C109: 1 | D109: 0.35 | E109: 0.75 | F109: 47.5 | G109: female abc | H109: 10 | I109: 10 | J109: TRUE | K109: 150 | L109: 120 | M109: 240 | N109: 6 | O109: 36 | P109: TRUE | Q109: Generic | R109: Addis Ababa | S109: TRUE | T109: 0.4 | U109: 4.32 | V109: 18.88 | W109: 3.36 | X109: 18.8 | Y109: 14.24 | Z109: 1.2 | AA109: 0.56 | AB109: 1.68 | AC109: 14.8 | AD109: 7.92 | AE109: 9.12 | AF109: 6 | AG109: 2.330687384 | AH109: 11842 | AI109: 12995.14286 | AJ109: 0 | AK109: 0 | AL109: 0 | AM109: 0 | AN109: 0 | AO109: [0] | AP109: 0 | AQ109: 0 | AR109: 0 | AS109: 0 | AT109: 0 | AU109: 0 | AV109: 0 | AW109: 0 | AX109: 0 | AY109: 0 | AZ109: 0 | BA109: 0 | BB109: 0 | BC109: 6451.571429 | BD109: 0 | BE109: 0 | BF109: 12995.14286 | BG109: 13.05828858 | BH109: 1752.857143 | BI109: 4.652930248 | BJ109: 49.43421719 | BK109: 584 | BL109: 1065 | BM109: 4123 | BN109: 30.11957952 | BO109: 23.32798092 | BP109: 1275.142857 | BQ109: 9.814410332 | BR109: <ArgumentTypeException> | BS109: <ArgumentTypeException> | BT109: 6451.571429 | BU109: 0 | BV109: 543.7142857 | BW109: 867.5714286 | BX109: 13187.33333 | BY109: 0 | BZ109: 0 | CA109: 1000000000 | CB109: 0 | CC109: not yet
A110: 5 | B110: 15000 | C110: 1 | D110: 0.35 | E110: 0.75 | F110: 47.5 | G110: female abc | H110: 10 | I110: 10 | J110: TRUE | K110: 150 | L110: 120 | M110: 240 | N110: 6 | O110: 36 | P110: TRUE | Q110: Generic | R110: Addis Ababa | S110: TRUE | T110: 0.4 | U110: 4.32 | V110: 18.88 | W110: 3.36 | X110: 18.8 | Y110: 14.24 | Z110: 1.2 | AA110: 0.56 | AB110: 1.68 | AC110: 14.8 | AD110: 7.92 | AE110: 9.12 | AF110: 4 | AG110: 2.375138735 | AH110: 9010 | AI110: 9761.6 | AJ110: 0 | AK110: 0 | AL110: 0 | AM110: 0 | AN110: 0 | AO110: [0] | AP110: 0 | AQ110: 0 | AR110: 0 | AS110: 0 | AT110: 0 | AU110: 0 | AV110: 0 | AW110: 0 | AX110: 0 | AY110: 0 | AZ110: 0 | BA110: 0 | BB110: 0 | BC110: 4887.2 | BD110: 0 | BE110: 0 | BF110: 9761.6 | BG110: 15.06500483 | BH110: 1496.4 | BI110: 9.012208657 | BJ110: 50.14428413 | BK110: 260 | BL110: 642 | BM110: 2362 | BN110: 28.71165172 | BO110: 21.97952199 | BP110: 1014.6 | BQ110: 10.39250593 | BR110: <ArgumentTypeException> | BS110: <ArgumentTypeException> | BT110: 4887.2 | BU110: 0 | BV110: 400.6 | BW110: 754.2 | BX110: 9949.5 | BY110: 0 | BZ110: 0 | CA110: 1000000000 | CB110: 0 | CC110: not yet
A111: 14 | B111: 15000 | C111: 1 | D111: 0.35 | E111: 0.75 | F111: 47.5 | G111: female abc | H111: 10 | I111: 10 | J111: TRUE | K111: 150 | L111: 120 | M111: 240 | N111: 6 | O111: 36 | P111: TRUE | Q111: Generic | R111: Addis Ababa | S111: TRUE | T111: 0.4 | U111: 4.32 | V111: 18.88 | W111: 3.36 | X111: 18.8 | Y111: 14.24 | Z111: 1.2 | AA111: 0.56 | AB111: 1.68 | AC111: 14.8 | AD111: 7.92 | AE111: 9.12 | AF111: 6 | AG111: 2.403514817 | AH111: 11608 | AI111: 12760.28571 | AJ111: 0 | AK111: 0 | AL111: 0 | AM111: 0 | AN111: 0 | AO111: [0] | AP111: 0 | AQ111: 0 | AR111: 0 | AS111: 0 | AT111: 0 | AU111: 0 | AV111: 0 | AW111: 0 | AX111: 0 | AY111: 0 | AZ111: 0 | BA111: 0 | BB111: 0 | BC111: 6361.857143 | BD111: 0 | BE111: 0 | BF111: 12760.28571 | BG111: 12.4628445 | BH111: 1647.142857 | BI111: 4.514128187 | BJ111: 49.66402481 | BK111: 589 | BL111: 1090 | BM111: 4211 | BN111: 30.50133083 | BO111: 23.37800911 | BP111: 1299.142857 | BQ111: 10.18483558 | BR111: <ArgumentTypeException> | BS111: <ArgumentTypeException> | BT111: 6361.857143 | BU111: 0 | BV111: 580.7142857 | BW111: 814 | BX111: 12952.33333 | BY111: 0 | BZ111: 0 | CA111: 1000000000 | CB111: 0 | CC111: not yet
A112: 8 | B112: 15000 | C112: 1 | D112: 0.35 | E112: 0.75 | F112: 47.5 | G112: female abc | H112: 10 | I112: 10 | J112: TRUE | K112: 150 | L112: 120 | M112: 240 | N112: 6 | O112: 36 | P112: TRUE | Q112: Generic | R112: Addis Ababa | S112: TRUE | T112: 0.4 | U112: 4.32 | V112: 18.88 | W112: 3.36 | X112: 18.8 | Y112: 14.24 | Z112: 1.2 | AA112: 0.56 | AB112: 1.68 | AC112: 14.8 | AD112: 7.92 | AE112: 9.12 | AF112: 6 | AG112: 2.132416165 | AH112: 11630 | AI112: 12727.42857 | AJ112: 0 | AK112: 0 | AL112: 0 | AM112: 0 | AN112: 0 | AO112: [0] | AP112: 0 | AQ112: 0 | AR112: 0 | AS112: 0 | AT112: 0 | AU112: 0 | AV112: 0 | AW112: 0 | AX112: 0 | AY112: 0 | AZ112: 0 | BA112: 0 | BB112: 0 | BC112: 6352.428571 | BD112: 0 | BE112: 0 | BF112: 12727.42857 | BG112: 12.5772273 | BH112: 1655.285714 | BI112: 4.385210662 | BJ112: 50.12037833 | BK112: 584 | BL112: 1060 | BM112: 4091 | BN112: 30.25734606 | BO112: 23.03414219 | BP112: 1349.571429 | BQ112: 10.61037023 | BR112: <ArgumentTypeException> | BS112: <ArgumentTypeException> | BT112: 6352.428571 | BU112: 0 | BV112: 585.1428571 | BW112: 814.8571429 | BX112: 12910.33333 | BY112: 0 | BZ112: 0 | CA112: 1000000000 | CB112: 0 | CC112: not yet
A113: 15 | B113: 15000 | C113: 1 | D113: 0.35 | E113: 0.75 | F113: 47.5 | G113: female abc | H113: 10 | I113: 10 | J113: TRUE | K113: 150 | L113: 120 | M113: 240 | N113: 6 | O113: 36 | P113: TRUE | Q113: Generic | R113: Addis Ababa | S113: TRUE | T113: 0.4 | U113: 4.32 | V113: 18.88 | W113: 3.36 | X113: 18.8 | Y113: 14.24 | Z113: 1.2 | AA113: 0.56 | AB113: 1.68 | AC113: 14.8 | AD113: 7.92 | AE113: 9.12 | AF113: 6 | AG113: 2.373310811 | AH113: 11840 | AI113: 12978 | AJ113: 0 | AK113: 0 | AL113: 0 | AM113: 0 | AN113: 0 | AO113: [0] | AP113: 0 | AQ113: 0 | AR113: 0 | AS113: 0 | AT113: 0 | AU113: 0 | AV113: 0 | AW113: 0 | AX113: 0 | AY113: 0 | AZ113: 0 | BA113: 0 | BB113: 0 | BC113: 6460.857143 | BD113: 0 | BE113: 0 | BF113: 12978 | BG113: 12.57961771 | BH113: 1686 | BI113: 4.6875 | BJ113: 50 | BK113: 587 | BL113: 1030 | BM113: 4151 | BN113: 30.03493194 | BO113: 23.33693566 | BP113: 1356.142857 | BQ113: 10.45293297 | BR113: <ArgumentTypeException> | BS113: <ArgumentTypeException> | BT113: 6460.857143 | BU113: 0 | BV113: 595.1428571 | BW113: 849.4285714 | BX113: 13167.66667 | BY113: 0 | BZ113: 0 | CA113: 1000000000 | CB113: 0 | CC113: not yet
A114: 9 | B114: 15000 | C114: 1 | D114: 0.35 | E114: 0.75 | F114: 47.5 | G114: female abc | H114: 10 | I114: 10 | J114: TRUE | K114: 150 | L114: 120 | M114: 240 | N114: 6 | O114: 36 | P114: TRUE | Q114: Generic | R114: Addis Ababa | S114: TRUE | T114: 0.4 | U114: 4.32 | V114: 18.88 | W114: 3.36 | X114: 18.8 | Y114: 14.24 | Z114: 1.2 | AA114: 0.56 | AB114: 1.68 | AC114: 14.8 | AD114: 7.92 | AE114: 9.12 | AF114: 7 | AG114: 5.032601708 | AH114: 10889 | AI114: 11801.875 | AJ114: 0 | AK114: 0 | AL114: 0 | AM114: 0 | AN114: 0 | AO114: [0] | AP114: 0 | AQ114: 0 | AR114: 0 | AS114: 0 | AT114: 0 | AU114: 0 | AV114: 0 | AW114: 0 | AX114: 0 | AY114: 0 | AZ114: 0 | BA114: 0 | BB114: 0 | BC114: 5939.625 | BD114: 0 | BE114: 0 | BF114: 11801.875 | BG114: 11.8694335 | BH114: 1448.625 | BI114: 7.199926531 | BJ114: 50.12397833 | BK114: 1025 | BL114: 1200 | BM114: 4315 | BN114: 30.91931452 | BO114: 24.06827024 | BP114: 1148.5 | BQ114: 9.732958421 | BR114: <ArgumentTypeException> | BS114: <ArgumentTypeException> | BT114: 5934.875 | BU114: 0 | BV114: 535.5 | BW114: 736.125 | BX114: 11932.28571 | BY114: 0 | BZ114: 0 | CA114: 1000000000 | CB114: 0 | CC114: not yet
A115: 7 | B115: 15000 | C115: 1 | D115: 0.35 | E115: 0.75 | F115: 47.5 | G115: female abc | H115: 10 | I115: 10 | J115: TRUE | K115: 150 | L115: 120 | M115: 240 | N115: 6 | O115: 36 | P115: TRUE | Q115: Generic | R115: Addis Ababa | S115: TRUE | T115: 0.4 | U115: 4.32 | V115: 18.88 | W115: 3.36 | X115: 18.8 | Y115: 14.24 | Z115: 1.2 | AA115: 0.56 | AB115: 1.68 | AC115: 14.8 | AD115: 7.92 | AE115: 9.12 | AF115: 7 | AG115: 4.989015013 | AH115: 10924 | AI115: 11826.75 | AJ115: 0 | AK115: 0 | AL115: 0 | AM115: 0 | AN115: 0 | AO115: [0] | AP115: 0 | AQ115: 0 | AR115: 0 | AS115: 0 | AT115: 0 | AU115: 0 | AV115: 0 | AW115: 0 | AX115: 0 | AY115: 0 | AZ115: 0 | BA115: 0 | BB115: 0 | BC115: 5936.25 | BD115: 0 | BE115: 0 | BF115: 11826.75 | BG115: 12.13955846 | BH115: 1483.375 | BI115: 7.561332845 | BJ115: 50.0823874 | BK115: 997 | BL115: 1103 | BM115: 4344 | BN115: 30.50875605 | BO115: 23.91287513 | BP115: 1202.125 | BQ115: 10.17093488 | BR115: <ArgumentTypeException> | BS115: <ArgumentTypeException> | BT115: 5931.75 | BU115: 0 | BV115: 536.75 | BW115: 738.25 | BX115: 11955.71429 | BY115: 0 | BZ115: 0 | CA115: 1000000000 | CB115: 0 | CC115: not yet
A116: 6 | B116: 15000 | C116: 1 | D116: 0.35 | E116: 0.75 | F116: 47.5 | G116: female abc | H116: 10 | I116: 10 | J116: TRUE | K116: 150 | L116: 120 | M116: 240 | N116: 6 | O116: 36 | P116: TRUE | Q116: Generic | R116: Addis Ababa | S116: TRUE | T116: 0.4 | U116: 4.32 | V116: 18.88 | W116: 3.36 | X116: 18.8 | Y116: 14.24 | Z116: 1.2 | AA116: 0.56 | AB116: 1.68 | AC116: 14.8 | AD116: 7.92 | AE116: 9.12 | AF116: 8 | AG116: 9.993714645 | AH116: 11137 | AI116: 11653 | AJ116: 0 | AK116: 0 | AL116: 0 | AM116: 0 | AN116: 0 | AO116: [0] | AP116: 0 | AQ116: 0 | AR116: 0 | AS116: 0 | AT116: 0 | AU116: 0 | AV116: 0 | AW116: 0 | AX116: 0 | AY116: 0 | AZ116: 0 | BA116: 0 | BB116: 0 | BC116: 5827.444444 | BD116: 0 | BE116: 0 | BF116: 11653 | BG116: 11.94272456 | BH116: 1437.333333 | BI116: 11.66382329 | BJ116: 49.91469875 | BK116: 1953 | BL116: 1577 | BM116: 5191 | BN116: 29.81401139 | BO116: 23.0785785 | BP116: 1165.333333 | BQ116: 10.00221956 | BR116: <ArgumentTypeException> | BS116: <ArgumentTypeException> | BT116: 5815 | BU116: 4.333333333 | BV116: 510.4444444 | BW116: 713.2222222 | BX116: 11717.5 | BY116: 0 | BZ116: 0 | CA116: 1000000000 | CB116: 0 | CC116: not yet
A117: 11 | B117: 15000 | C117: 1 | D117: 0.35 | E117: 0.75 | F117: 47.5 | G117: female abc | H117: 10 | I117: 10 | J117: TRUE | K117: 150 | L117: 120 | M117: 240 | N117: 6 | O117: 36 | P117: TRUE | Q117: Generic | R117: Addis Ababa | S117: TRUE | T117: 0.4 | U117: 4.32 | V117: 18.88 | W117: 3.36 | X117: 18.8 | Y117: 14.24 | Z117: 1.2 | AA117: 0.56 | AB117: 1.68 | AC117: 14.8 | AD117: 7.92 | AE117: 9.12 | AF117: 7 | AG117: 4.172714078 | AH117: 11024 | AI117: 12038.375 | AJ117: 0 | AK117: 0 | AL117: 0 | AM117: 0 | AN117: 0 | AO117: [0] | AP117: 0 | AQ117: 0 | AR117: 0 | AS117: 0 | AT117: 0 | AU117: 0 | AV117: 0 | AW117: 0 | AX117: 0 | AY117: 0 | AZ117: 0 | BA117: 0 | BB117: 0 | BC117: 5990.375 | BD117: 0 | BE117: 0 | BF117: 12038.375 | BG117: 11.85122341 | BH117: 1481.125 | BI117: 6.485849057 | BJ117: 49.85486212 | BK117: 1031 | BL117: 1273 | BM117: 4638 | BN117: 30.69842933 | BO117: 24.16110908 | BP117: 1181.625 | BQ117: 9.812667191 | BR117: <ArgumentTypeException> | BS117: <ArgumentTypeException> | BT117: 5984.375 | BU117: 0 | BV117: 507.25 | BW117: 731.375 | BX117: 12183.28571 | BY117: 0 | BZ117: 0 | CA117: 1000000000 | CB117: 0 | CC117: not yet
A118: 16 | B118: 15000 | C118: 1 | D118: 0.35 | E118: 0.75 | F118: 47.5 | G118: female abc | H118: 10 | I118: 10 | J118: TRUE | K118: 150 | L118: 120 | M118: 240 | N118: 6 | O118: 36 | P118: TRUE | Q118: Generic | R118: Addis Ababa | S118: TRUE | T118: 0.4 | U118: 4.32 | V118: 18.88 | W118: 3.36 | X118: 18.8 | Y118: 14.24 | Z118: 1.2 | AA118: 0.56 | AB118: 1.68 | AC118: 14.8 | AD118: 7.92 | AE118: 9.12 | AF118: 7 | AG118: 4.87007087 | AH118: 11006 | AI118: 11903.625 | AJ118: 0 | AK118: 0 | AL118: 0 | AM118: 0 | AN118: 0 | AO118: [0] | AP118: 0 | AQ118: 0 | AR118: 0 | AS118: 0 | AT118: 0 | AU118: 0 | AV118: 0 | AW118: 0 | AX118: 0 | AY118: 0 | AZ118: 0 | BA118: 0 | BB118: 0 | BC118: 5896.375 | BD118: 0 | BE118: 0 | BF118: 11903.625 | BG118: 11.78946608 | BH118: 1453.75 | BI118: 7.123387243 | BJ118: 49.54570234 | BK118: 1012 | BL118: 1204 | BM118: 4386 | BN118: 30.67619689 | BO118: 23.74254205 | BP118: 1184.625 | BQ118: 9.948750173 | BR118: <ArgumentTypeException> | BS118: <ArgumentTypeException> | BT118: 5891.875 | BU118: 0 | BV118: 534.25 | BW118: 731.5 | BX118: 12031.85714 | BY118: 0 | BZ118: 0 | CA118: 1000000000 | CB118: 0 | CC118: not yet
A119: 12 | B119: 15000 | C119: 1 | D119: 0.35 | E119: 0.75 | F119: 47.5 | G119: female abc | H119: 10 | I119: 10 | J119: TRUE | K119: 150 | L119: 120 | M119: 240 | N119: 6 | O119: 36 | P119: TRUE | Q119: Generic | R119: Addis Ababa | S119: TRUE | T119: 0.4 | U119: 4.32 | V119: 18.88 | W119: 3.36 | X119: 18.8 | Y119: 14.24 | Z119: 1.2 | AA119: 0.56 | AB119: 1.68 | AC119: 14.8 | AD119: 7.92 | AE119: 9.12 | AF119: 7 | AG119: 4.764013105 | AH119: 11293 | AI119: 12192.625 | AJ119: 0 | AK119: 0 | AL119: 0 | AM119: 0 | AN119: 0 | AO119: [0] | AP119: 0 | AQ119: 0 | AR119: 0 | AS119: 0 | AT119: 0 | AU119: 0 | AV119: 0 | AW119: 0 | AX119: 0 | AY119: 0 | AZ119: 0 | BA119: 0 | BB119: 0 | BC119: 6112.625 | BD119: 0 | BE119: 0 | BF119: 12192.625 | BG119: 11.85595282 | BH119: 1495.75 | BI119: 7.163729744 | BJ119: 50.00442752 | BK119: 1038 | BL119: 1211 | BM119: 4515 | BN119: 30.26027561 | BO119: 23.50245653 | BP119: 1241.875 | BQ119: 10.18176898 | BR119: <ArgumentTypeException> | BS119: <ArgumentTypeException> | BT119: 6108.25 | BU119: 0 | BV119: 521.25 | BW119: 747.875 | BX119: 12321.14286 | BY119: 0 | BZ119: 0 | CA119: 1000000000 | CB119: 0 | CC119: not yet
A120: 5 | B120: 15000 | C120: 1 | D120: 0.35 | E120: 0.75 | F120: 47.5 | G120: female abc | H120: 10 | I120: 10 | J120: TRUE | K120: 150 | L120: 120 | M120: 240 | N120: 6 | O120: 36 | P120: TRUE | Q120: Generic | R120: Addis Ababa | S120: TRUE | T120: 0.4 | U120: 4.32 | V120: 18.88 | W120: 3.36 | X120: 18.8 | Y120: 14.24 | Z120: 1.2 | AA120: 0.56 | AB120: 1.68 | AC120: 14.8 | AD120: 7.92 | AE120: 9.12 | AF120: 5 | AG120: 1.614565441 | AH120: 8733 | AI120: 9590.166667 | AJ120: 0 | AK120: 0 | AL120: 0 | AM120: 0 | AN120: 0 | AO120: [0] | AP120: 0 | AQ120: 0 | AR120: 0 | AS120: 0 | AT120: 0 | AU120: 0 | AV120: 0 | AW120: 0 | AX120: 0 | AY120: 0 | AZ120: 0 | BA120: 0 | BB120: 0 | BC120: 4800 | BD120: 0 | BE120: 0 | BF120: 9590.166667 | BG120: 13.59619519 | BH120: 1338 | BI120: 6.252147029 | BJ120: 49.97137295 | BK120: 300 | BL120: 702 | BM120: 2760 | BN120: 29.70932362 | BO120: 23.0290413 | BP120: 997.5 | BQ120: 10.40094605 | BR120: <ArgumentTypeException> | BS120: <ArgumentTypeException> | BT120: 4800 | BU120: 0 | BV120: 398.8333333 | BW120: 673.3333333 | BX120: 9761.6 | BY120: 0 | BZ120: 0 | CA120: 1000000000 | CB120: 0 | CC120: not yet
A121: 2 | B121: 15000 | C121: 1 | D121: 0.35 | E121: 0.75 | F121: 47.5 | G121: female abc | H121: 10 | I121: 10 | J121: TRUE | K121: 150 | L121: 120 | M121: 240 | N121: 6 | O121: 36 | P121: TRUE | Q121: Generic | R121: Addis Ababa | S121: TRUE | T121: 0.4 | U121: 4.32 | V121: 18.88 | W121: 3.36 | X121: 18.8 | Y121: 14.24 | Z121: 1.2 | AA121: 0.56 | AB121: 1.68 | AC121: 14.8 | AD121: 7.92 | AE121: 9.12 | AF121: 7 | AG121: 4.888569375 | AH121: 11128 | AI121: 12055.25 | AJ121: 0 | AK121: 0 | AL121: 0 | AM121: 0 | AN121: 0 | AO121: [0] | AP121: 0 | AQ121: 0 | AR121: 0 | AS121: 0 | AT121: 0 | AU121: 0 | AV121: 0 | AW121: 0 | AX121: 0 | AY121: 0 | AZ121: 0 | BA121: 0 | BB121: 0 | BC121: 6218.625 | BD121: 0 | BE121: 0 | BF121: 12055.25 | BG121: 12.19431791 | BH121: 1520.5 | BI121: 7.485621855 | BJ121: 51.68044572 | BK121: 1036 | BL121: 1212 | BM121: 4499 | BN121: 30.43070764 | BO121: 23.67526188 | BP121: 1187.75 | BQ121: 9.849026208 | BR121: <ArgumentTypeException> | BS121: <ArgumentTypeException> | BT121: 6213.875 | BU121: 0 | BV121: 523.5 | BW121: 773.875 | BX121: 12187.71429 | BY121: 0 | BZ121: 0 | CA121: 1000000000 | CB121: 0 | CC121: not yet
A122: 13 | B122: 15000 | C122: 1 | D122: 0.35 | E122: 0.75 | F122: 47.5 | G122: female abc | H122: 10 | I122: 10 | J122: TRUE | K122: 150 | L122: 120 | M122: 240 | N122: 6 | O122: 36 | P122: TRUE | Q122: Generic | R122: Addis Ababa | S122: TRUE | T122: 0.4 | U122: 4.32 | V122: 18.88 | W122: 3.36 | X122: 18.8 | Y122: 14.24 | Z122: 1.2 | AA122: 0.56 | AB122: 1.68 | AC122: 14.8 | AD122: 7.92 | AE122: 9.12 | AF122: 7 | AG122: 4.619983694 | AH122: 11039 | AI122: 11998.25 | AJ122: 0 | AK122: 0 | AL122: 0 | AM122: 0 | AN122: 0 | AO122: [0] | AP122: 0 | AQ122: 0 | AR122: 0 | AS122: 0 | AT122: 0 | AU122: 0 | AV122: 0 | AW122: 0 | AX122: 0 | AY122: 0 | AZ122: 0 | BA122: 0 | BB122: 0 | BC122: 6042.375 | BD122: 0 | BE122: 0 | BF122: 11998.25 | BG122: 12.24140609 | BH122: 1522.5 | BI122: 7.111151372 | BJ122: 50.29441073 | BK122: 1016 | BL122: 1211 | BM122: 4549 | BN122: 30.0781217 | BO122: 23.3990846 | BP122: 1257.375 | BQ122: 10.48250904 | BR122: <ArgumentTypeException> | BS122: <ArgumentTypeException> | BT122: 6037.75 | BU122: 0 | BV122: 543.5 | BW122: 758.875 | BX122: 12135.28571 | BY122: 0 | BZ122: 0 | CA122: 1000000000 | CB122: 0 | CC122: not yet
A123: 10 | B123: 15000 | C123: 1 | D123: 0.35 | E123: 0.75 | F123: 47.5 | G123: female abc | H123: 10 | I123: 10 | J123: TRUE | K123: 150 | L123: 120 | M123: 240 | N123: 6 | O123: 36 | P123: TRUE | Q123: Generic | R123: Addis Ababa | S123: TRUE | T123: 0.4 | U123: 4.32 | V123: 18.88 | W123: 3.36 | X123: 18.8 | Y123: 14.24 | Z123: 1.2 | AA123: 0.56 | AB123: 1.68 | AC123: 14.8 | AD123: 7.92 | AE123: 9.12 | AF123: 7 | AG123: 4.931728351 | AH123: 11132 | AI123: 12002 | AJ123: 0 | AK123: 0 | AL123: 0 | AM123: 0 | AN123: 0 | AO123: [0] | AP123: 0 | AQ123: 0 | AR123: 0 | AS123: 0 | AT123: 0 | AU123: 0 | AV123: 0 | AW123: 0 | AX123: 0 | AY123: 0 | AZ123: 0 | BA123: 0 | BB123: 0 | BC123: 5986.625 | BD123: 0 | BE123: 0 | BF123: 12002 | BG123: 11.92056979 | BH123: 1478 | BI123: 7.258354294 | BJ123: 50.07186489 | BK123: 1023 | BL123: 1123 | BM123: 4323 | BN123: 30.47020807 | BO123: 23.66203425 | BP123: 1183.875 | BQ123: 9.857964834 | BR123: <ArgumentTypeException> | BS123: <ArgumentTypeException> | BT123: 5981.625 | BU123: 0 | BV123: 504.125 | BW123: 720.375 | BX123: 12126.28571 | BY123: 0 | BZ123: 0 | CA123: 1000000000 | CB123: 0 | CC123: not yet
A124: 4 | B124: 15000 | C124: 1 | D124: 0.35 | E124: 0.75 | F124: 47.5 | G124: female abc | H124: 10 | I124: 10 | J124: TRUE | K124: 150 | L124: 120 | M124: 240 | N124: 6 | O124: 36 | P124: TRUE | Q124: Generic | R124: Addis Ababa | S124: TRUE | T124: 0.4 | U124: 4.32 | V124: 18.88 | W124: 3.36 | X124: 18.8 | Y124: 14.24 | Z124: 1.2 | AA124: 0.56 | AB124: 1.68 | AC124: 14.8 | AD124: 7.92 | AE124: 9.12 | AF124: 7 | AG124: 5.075457381 | AH124: 11861 | AI124: 12853.375 | AJ124: 0 | AK124: 0 | AL124: 0 | AM124: 0 | AN124: 0 | AO124: [0] | AP124: 0 | AQ124: 0 | AR124: 0 | AS124: 0 | AT124: 0 | AU124: 0 | AV124: 0 | AW124: 0 | AX124: 0 | AY124: 0 | AZ124: 0 | BA124: 0 | BB124: 0 | BC124: 6377.625 | BD124: 0 | BE124: 0 | BF124: 12853.375 | BG124: 12.3681659 | BH124: 1645.5 | BI124: 7.537307141 | BJ124: 49.40561504 | BK124: 1084 | BL124: 1236 | BM124: 4712 | BN124: 30.18999253 | BO124: 23.63475901 | BP124: 1260.625 | BQ124: 9.809049054 | BR124: <ArgumentTypeException> | BS124: <ArgumentTypeException> | BT124: 6373 | BU124: 0 | BV124: 539.875 | BW124: 814 | BX124: 12995.14286 | BY124: 0 | BZ124: 0 | CA124: 1000000000 | CB124: 0 | CC124: not yet
A125: 3 | B125: 15000 | C125: 1 | D125: 0.35 | E125: 0.75 | F125: 47.5 | G125: female abc | H125: 10 | I125: 10 | J125: TRUE | K125: 150 | L125: 120 | M125: 240 | N125: 6 | O125: 36 | P125: TRUE | Q125: Generic | R125: Addis Ababa | S125: TRUE | T125: 0.4 | U125: 4.32 | V125: 18.88 | W125: 3.36 | X125: 18.8 | Y125: 14.24 | Z125: 1.2 | AA125: 0.56 | AB125: 1.68 | AC125: 14.8 | AD125: 7.92 | AE125: 9.12 | AF125: 7 | AG125: 4.348594661 | AH125: 11314 | AI125: 12319.5 | AJ125: 0 | AK125: 0 | AL125: 0 | AM125: 0 | AN125: 0 | AO125: [0] | AP125: 0 | AQ125: 0 | AR125: 0 | AS125: 0 | AT125: 0 | AU125: 0 | AV125: 0 | AW125: 0 | AX125: 0 | AY125: 0 | AZ125: 0 | BA125: 0 | BB125: 0 | BC125: 6117.625 | BD125: 0 | BE125: 0 | BF125: 12319.5 | BG125: 11.93205152 | BH125: 1525 | BI125: 6.505214778 | BJ125: 49.84974368 | BK125: 1042 | BL125: 1298 | BM125: 4679 | BN125: 30.86611832 | BO125: 23.8865419 | BP125: 1187.5 | BQ125: 9.64133194 | BR125: <ArgumentTypeException> | BS125: <ArgumentTypeException> | BT125: 6111.75 | BU125: 0 | BV125: 552.75 | BW125: 731.625 | BX125: 12463.14286 | BY125: 0 | BZ125: 0 | CA125: 1000000000 | CB125: 0 | CC125: not yet
A126: 1 | B126: 15000 | C126: 1 | D126: 0.35 | E126: 0.75 | F126: 47.5 | G126: female abc | H126: 10 | I126: 10 | J126: TRUE | K126: 150 | L126: 120 | M126: 240 | N126: 6 | O126: 36 | P126: TRUE | Q126: Generic | R126: Addis Ababa | S126: TRUE | T126: 0.4 | U126: 4.32 | V126: 18.88 | W126: 3.36 | X126: 18.8 | Y126: 14.24 | Z126: 1.2 | AA126: 0.56 | AB126: 1.68 | AC126: 14.8 | AD126: 7.92 | AE126: 9.12 | AF126: 8 | AG126: 10.28220422 | AH126: 11233 | AI126: 11697.22222 | AJ126: 0 | AK126: 0 | AL126: 0 | AM126: 0 | AN126: 0 | AO126: [0] | AP126: 0 | AQ126: 0 | AR126: 0 | AS126: 0 | AT126: 0 | AU126: 0 | AV126: 0 | AW126: 0 | AX126: 0 | AY126: 0 | AZ126: 0 | BA126: 0 | BB126: 0 | BC126: 5839.444444 | BD126: 0 | BE126: 0 | BF126: 11697.22222 | BG126: 11.67676053 | BH126: 1407.555556 | BI126: 12.17840292 | BJ126: 50.00445117 | BK126: 1986 | BL126: 1479 | BM126: 5072 | BN126: 29.27675532 | BO126: 23.16260002 | BP126: 1192.666667 | BQ126: 10.19607154 | BR126: <ArgumentTypeException> | BS126: <ArgumentTypeException> | BT126: 5827.111111 | BU126: 3.888888889 | BV126: 516.7777778 | BW126: 702.5555556 | BX126: 11755.25 | BY126: 0 | BZ126: 0 | CA126: 1000000000 | CB126: 0 | CC126: not yet
A127: 14 | B127: 15000 | C127: 1 | D127: 0.35 | E127: 0.75 | F127: 47.5 | G127: female abc | H127: 10 | I127: 10 | J127: TRUE | K127: 150 | L127: 120 | M127: 240 | N127: 6 | O127: 36 | P127: TRUE | Q127: Generic | R127: Addis Ababa | S127: TRUE | T127: 0.4 | U127: 4.32 | V127: 18.88 | W127: 3.36 | X127: 18.8 | Y127: 14.24 | Z127: 1.2 | AA127: 0.56 | AB127: 1.68 | AC127: 14.8 | AD127: 7.92 | AE127: 9.12 | AF127: 7 | AG127: 5.086923011 | AH127: 11677 | AI127: 12624.875 | AJ127: 0 | AK127: 0 | AL127: 0 | AM127: 0 | AN127: 0 | AO127: [0] | AP127: 0 | AQ127: 0 | AR127: 0 | AS127: 0 | AT127: 0 | AU127: 0 | AV127: 0 | AW127: 0 | AX127: 0 | AY127: 0 | AZ127: 0 | BA127: 0 | BB127: 0 | BC127: 6291.75 | BD127: 0 | BE127: 0 | BF127: 12624.875 | BG127: 11.83737739 | BH127: 1550.125 | BI127: 7.459107648 | BJ127: 49.67885587 | BK127: 1089 | BL127: 1262 | BM127: 4748 | BN127: 30.61711592 | BO127: 23.65894204 | BP127: 1286.75 | BQ127: 10.19630765 | BR127: <ArgumentTypeException> | BS127: <ArgumentTypeException> | BT127: 6286.625 | BU127: 0 | BV127: 578.75 | BW127: 762.125 | BX127: 12760.28571 | BY127: 0 | BZ127: 0 | CA127: 1000000000 | CB127: 0 | CC127: not yet
A128: 7 | B128: 15000 | C128: 1 | D128: 0.35 | E128: 0.75 | F128: 47.5 | G128: female abc | H128: 10 | I128: 10 | J128: TRUE | K128: 150 | L128: 120 | M128: 240 | N128: 6 | O128: 36 | P128: TRUE | Q128: Generic | R128: Addis Ababa | S128: TRUE | T128: 0.4 | U128: 4.32 | V128: 18.88 | W128: 3.36 | X128: 18.8 | Y128: 14.24 | Z128: 1.2 | AA128: 0.56 | AB128: 1.68 | AC128: 14.8 | AD128: 7.92 | AE128: 9.12 | AF128: 8 | AG128: 10.53422961 | AH128: 11306 | AI128: 11768.88889 | AJ128: 0 | AK128: 0 | AL128: 0 | AM128: 0 | AN128: 0 | AO128: [0] | AP128: 0 | AQ128: 0 | AR128: 0 | AS128: 0 | AT128: 0 | AU128: 0 | AV128: 0 | AW128: 0 | AX128: 0 | AY128: 0 | AZ128: 0 | BA128: 0 | BB128: 0 | BC128: 5907.888889 | BD128: 0 | BE128: 0 | BF128: 11768.88889 | BG128: 12.16953421 | BH128: 1474.444444 | BI128: 12.40934017 | BJ128: 50.24765611 | BK128: 1981 | BL128: 1427 | BM128: 5044 | BN128: 29.60309069 | BO128: 23.3490025 | BP128: 1196.111111 | BQ128: 10.16904218 | BR128: <ArgumentTypeException> | BS128: <ArgumentTypeException> | BT128: 5896.111111 | BU128: 4 | BV128: 534.7777778 | BW128: 733.2222222 | BX128: 11826.75 | BY128: 0 | BZ128: 0 | CA128: 1000000000 | CB128: 0 | CC128: not yet
A129: 15 | B129: 15000 | C129: 1 | D129: 0.35 | E129: 0.75 | F129: 47.5 | G129: female abc | H129: 10 | I129: 10 | J129: TRUE | K129: 150 | L129: 120 | M129: 240 | N129: 6 | O129: 36 | P129: TRUE | Q129: Generic | R129: Addis Ababa | S129: TRUE | T129: 0.4 | U129: 4.32 | V129: 18.88 | W129: 3.36 | X129: 18.8 | Y129: 14.24 | Z129: 1.2 | AA129: 0.56 | AB129: 1.68 | AC129: 14.8 | AD129: 7.92 | AE129: 9.12 | AF129: 7 | AG129: 4.816126856 | AH129: 11856 | AI129: 12837.75 | AJ129: 0 | AK129: 0 | AL129: 0 | AM129: 0 | AN129: 0 | AO129: [0] | AP129: 0 | AQ129: 0 | AR129: 0 | AS129: 0 | AT129: 0 | AU129: 0 | AV129: 0 | AW129: 0 | AX129: 0 | AY129: 0 | AZ129: 0 | BA129: 0 | BB129: 0 | BC129: 6394.625 | BD129: 0 | BE129: 0 | BF129: 12837.75 | BG129: 11.91915099 | BH129: 1583.375 | BI129: 7.295883941 | BJ129: 50.02530364 | BK129: 1077 | BL129: 1235 | BM129: 4733 | BN129: 30.20898231 | BO129: 23.68615547 | BP129: 1341.75 | BQ129: 10.45472559 | BR129: <ArgumentTypeException> | BS129: <ArgumentTypeException> | BT129: 6388.875 | BU129: 0 | BV129: 593.5 | BW129: 800.25 | BX129: 12978 | BY129: 0 | BZ129: 0 | CA129: 1000000000 | CB129: 0 | CC129: not yet
A130: 8 | B130: 15000 | C130: 1 | D130: 0.35 | E130: 0.75 | F130: 47.5 | G130: female abc | H130: 10 | I130: 10 | J130: TRUE | K130: 150 | L130: 120 | M130: 240 | N130: 6 | O130: 36 | P130: TRUE | Q130: Generic | R130: Addis Ababa | S130: TRUE | T130: 0.4 | U130: 4.32 | V130: 18.88 | W130: 3.36 | X130: 18.8 | Y130: 14.24 | Z130: 1.2 | AA130: 0.56 | AB130: 1.68 | AC130: 14.8 | AD130: 7.92 | AE130: 9.12 | AF130: 7 | AG130: 4.864030196 | AH130: 11657 | AI130: 12593.625 | AJ130: 0 | AK130: 0 | AL130: 0 | AM130: 0 | AN130: 0 | AO130: [0] | AP130: 0 | AQ130: 0 | AR130: 0 | AS130: 0 | AT130: 0 | AU130: 0 | AV130: 0 | AW130: 0 | AX130: 0 | AY130: 0 | AZ130: 0 | BA130: 0 | BB130: 0 | BC130: 6289.5 | BD130: 0 | BE130: 0 | BF130: 12593.625 | BG130: 11.8918801 | BH130: 1551.75 | BI130: 7.094449687 | BJ130: 50.17586 | BK130: 1073 | BL130: 1247 | BM130: 4659 | BN130: 30.41993244 | BO130: 23.46335366 | BP130: 1337.25 | BQ130: 10.62554259 | BR130: <ArgumentTypeException> | BS130: <ArgumentTypeException> | BT130: 6282 | BU130: 0 | BV130: 585.25 | BW130: 765.625 | BX130: 12727.42857 | BY130: 0 | BZ130: 0 | CA130: 1000000000 | CB130: 0 | CC130: not yet
A131: 9 | B131: 15000 | C131: 1 | D131: 0.35 | E131: 0.75 | F131: 47.5 | G131: female abc | H131: 10 | I131: 10 | J131: TRUE | K131: 150 | L131: 120 | M131: 240 | N131: 6 | O131: 36 | P131: TRUE | Q131: Generic | R131: Addis Ababa | S131: TRUE | T131: 0.4 | U131: 4.32 | V131: 18.88 | W131: 3.36 | X131: 18.8 | Y131: 14.24 | Z131: 1.2 | AA131: 0.56 | AB131: 1.68 | AC131: 14.8 | AD131: 7.92 | AE131: 9.12 | AF131: 8 | AG131: 10.38003907 | AH131: 11262 | AI131: 11741.88889 | AJ131: 0 | AK131: 0 | AL131: 0 | AM131: 0 | AN131: 0 | AO131: [0] | AP131: 0 | AQ131: 0 | AR131: 0 | AS131: 0 | AT131: 0 | AU131: 0 | AV131: 0 | AW131: 0 | AX131: 0 | AY131: 0 | AZ131: 0 | BA131: 0 | BB131: 0 | BC131: 5907 | BD131: 0 | BE131: 0 | BF131: 11741.88889 | BG131: 11.87561397 | BH131: 1436.888889 | BI131: 11.92505772 | BJ131: 50.13319126 | BK131: 1998 | BL131: 1536 | BM131: 5013 | BN131: 30.02372287 | BO131: 23.54854816 | BP131: 1145.666667 | BQ131: 9.759472582 | BR131: <ArgumentTypeException> | BS131: <ArgumentTypeException> | BT131: 5895.222222 | BU131: 4 | BV131: 533.2222222 | BW131: 727.8888889 | BX131: 11801.875 | BY131: 0 | BZ131: 0 | CA131: 1000000000 | CB131: 0 | CC131: not yet
A132: 5 | B132: 15000 | C132: 1 | D132: 0.35 | E132: 0.75 | F132: 47.5 | G132: female abc | H132: 10 | I132: 10 | J132: TRUE | K132: 150 | L132: 120 | M132: 240 | N132: 6 | O132: 36 | P132: TRUE | Q132: Generic | R132: Addis Ababa | S132: TRUE | T132: 0.4 | U132: 4.32 | V132: 18.88 | W132: 3.36 | X132: 18.8 | Y132: 14.24 | Z132: 1.2 | AA132: 0.56 | AB132: 1.68 | AC132: 14.8 | AD132: 7.92 | AE132: 9.12 | AF132: 6 | AG132: 2.255726975 | AH132: 8556 | AI132: 9442.428571 | AJ132: 0 | AK132: 0 | AL132: 0 | AM132: 0 | AN132: 0 | AO132: [0] | AP132: 0 | AQ132: 0 | AR132: 0 | AS132: 0 | AT132: 0 | AU132: 0 | AV132: 0 | AW132: 0 | AX132: 0 | AY132: 0 | AZ132: 0 | BA132: 0 | BB132: 0 | BC132: 4724.571429 | BD132: 0 | BE132: 0 | BF132: 9442.428571 | BG132: 12.29670534 | BH132: 1201.857143 | BI132: 4.499766246 | BJ132: 49.92987377 | BK132: 429 | BL132: 766 | BM132: 3145 | BN132: 30.5340539 | BO132: 23.96593238 | BP132: 982.7142857 | BQ132: 10.40778345 | BR132: <ArgumentTypeException> | BS132: <ArgumentTypeException> | BT132: 4724.571429 | BU132: 0 | BV132: 397.7142857 | BW132: 604.7142857 | BX132: 9590.166667 | BY132: 0 | BZ132: 0 | CA132: 1000000000 | CB132: 0 | CC132: not yet
A133: 6 | B133: 15000 | C133: 1 | D133: 0.35 | E133: 0.75 | F133: 47.5 | G133: female abc | H133: 10 | I133: 10 | J133: TRUE | K133: 150 | L133: 120 | M133: 240 | N133: 6 | O133: 36 | P133: TRUE | Q133: Generic | R133: Addis Ababa | S133: TRUE | T133: 0.4 | U133: 4.32 | V133: 18.88 | W133: 3.36 | X133: 18.8 | Y133: 14.24 | Z133: 1.2 | AA133: 0.56 | AB133: 1.68 | AC133: 14.8 | AD133: 7.92 | AE133: 9.12 | AF133: 9 | AG133: 16.7416207 | AH133: 11785 | AI133: 11666.2 | AJ133: 0 | AK133: 0 | AL133: 0 | AM133: 0 | AN133: 0 | AO133: [0] | AP133: 0 | AQ133: 0 | AR133: 0 | AS133: 0 | AT133: 0 | AU133: 0 | AV133: 0 | AW133: 0 | AX133: 0 | AY133: 0 | AZ133: 0 | BA133: 0 | BB133: 0 | BC133: 5833.6 | BD133: 0 | BE133: 0 | BF133: 11666.2 | BG133: 12.61523191 | BH133: 1513.6 | BI133: 18.66779805 | BJ133: 49.97030123 | BK133: 3545 | BL133: 2242 | BM133: 6232 | BN133: 28.30826729 | BO133: 22.07650575 | BP133: 1165.4 | BQ133: 9.991390902 | BR133: <ArgumentTypeException> | BS133: <ArgumentTypeException> | BT133: 5812.4 | BU133: 10.8 | BV133: 507.5 | BW133: 748.3 | BX133: 11653 | BY133: 0 | BZ133: 0 | CA133: 1000000000 | CB133: 0 | CC133: not yet
A134: 16 | B134: 15000 | C134: 1 | D134: 0.35 | E134: 0.75 | F134: 47.5 | G134: female abc | H134: 10 | I134: 10 | J134: TRUE | K134: 150 | L134: 120 | M134: 240 | N134: 6 | O134: 36 | P134: TRUE | Q134: Generic | R134: Addis Ababa | S134: TRUE | T134: 0.4 | U134: 4.32 | V134: 18.88 | W134: 3.36 | X134: 18.8 | Y134: 14.24 | Z134: 1.2 | AA134: 0.56 | AB134: 1.68 | AC134: 14.8 | AD134: 7.92 | AE134: 9.12 | AF134: 8 | AG134: 9.735449735 | AH134: 11340 | AI134: 11841 | AJ134: 0 | AK134: 0 | AL134: 0 | AM134: 0 | AN134: 0 | AO134: [0] | AP134: 0 | AQ134: 0 | AR134: 0 | AS134: 0 | AT134: 0 | AU134: 0 | AV134: 0 | AW134: 0 | AX134: 0 | AY134: 0 | AZ134: 0 | BA134: 0 | BB134: 0 | BC134: 5865.555556 | BD134: 0 | BE134: 0 | BF134: 11841 | BG134: 11.74152815 | BH134: 1435.333333 | BI134: 11.35802469 | BJ134: 49.55026455 | BK134: 1981 | BL134: 1585 | BM134: 5120 | BN134: 29.97473879 | BO134: 23.60862821 | BP134: 1179.777778 | BQ134: 9.961303308 | BR134: <ArgumentTypeException> | BS134: <ArgumentTypeException> | BT134: 5853.777778 | BU134: 3.777777778 | BV134: 533.2222222 | BW134: 721.8888889 | BX134: 11903.625 | BY134: 0 | BZ134: 0 | CA134: 1000000000 | CB134: 0 | CC134: not yet
A135: 11 | B135: 15000 | C135: 1 | D135: 0.35 | E135: 0.75 | F135: 47.5 | G135: female abc | H135: 10 | I135: 10 | J135: TRUE | K135: 150 | L135: 120 | M135: 240 | N135: 6 | O135: 36 | P135: TRUE | Q135: Generic | R135: Addis Ababa | S135: TRUE | T135: 0.4 | U135: 4.32 | V135: 18.88 | W135: 3.36 | X135: 18.8 | Y135: 14.24 | Z135: 1.2 | AA135: 0.56 | AB135: 1.68 | AC135: 14.8 | AD135: 7.92 | AE135: 9.12 | AF135: 8 | AG135: 9.14618028 | AH135: 11349 | AI135: 11961.77778 | AJ135: 0 | AK135: 0 | AL135: 0 | AM135: 0 | AN135: 0 | AO135: [0] | AP135: 0 | AQ135: 0 | AR135: 0 | AS135: 0 | AT135: 0 | AU135: 0 | AV135: 0 | AW135: 0 | AX135: 0 | AY135: 0 | AZ135: 0 | BA135: 0 | BB135: 0 | BC135: 5950.888889 | BD135: 0 | BE135: 0 | BF135: 11961.77778 | BG135: 11.75038698 | BH135: 1454.555556 | BI135: 10.94369548 | BJ135: 49.65195171 | BK135: 2035 | BL135: 1694 | BM135: 5417 | BN135: 29.99090057 | BO135: 23.77969858 | BP135: 1174.333333 | BQ135: 9.814978115 | BR135: <ArgumentTypeException> | BS135: <ArgumentTypeException> | BT135: 5936.777778 | BU135: 4.888888889 | BV135: 503.5555556 | BW135: 717.8888889 | BX135: 12038.375 | BY135: 0 | BZ135: 0 | CA135: 1000000000 | CB135: 0 | CC135: not yet
A136: 12 | B136: 15000 | C136: 1 | D136: 0.35 | E136: 0.75 | F136: 47.5 | G136: female abc | H136: 10 | I136: 10 | J136: TRUE | K136: 150 | L136: 120 | M136: 240 | N136: 6 | O136: 36 | P136: TRUE | Q136: Generic | R136: Addis Ababa | S136: TRUE | T136: 0.4 | U136: 4.32 | V136: 18.88 | W136: 3.36 | X136: 18.8 | Y136: 14.24 | Z136: 1.2 | AA136: 0.56 | AB136: 1.68 | AC136: 14.8 | AD136: 7.92 | AE136: 9.12 | AF136: 8 | AG136: 10.03937008 | AH136: 11684 | AI136: 12136.11111 | AJ136: 0 | AK136: 0 | AL136: 0 | AM136: 0 | AN136: 0 | AO136: [0] | AP136: 0 | AQ136: 0 | AR136: 0 | AS136: 0 | AT136: 0 | AU136: 0 | AV136: 0 | AW136: 0 | AX136: 0 | AY136: 0 | AZ136: 0 | BA136: 0 | BB136: 0 | BC136: 6081.222222 | BD136: 0 | BE136: 0 | BF136: 12136.11111 | BG136: 11.82813745 | BH136: 1480.222222 | BI136: 11.60561452 | BJ136: 49.89729545 | BK136: 2055 | BL136: 1597 | BM136: 5242 | BN136: 29.53699136 | BO136: 23.29870831 | BP136: 1233.555556 | BQ136: 10.16024107 | BR136: <ArgumentTypeException> | BS136: <ArgumentTypeException> | BT136: 6069.111111 | BU136: 3.666666667 | BV136: 517.7777778 | BW136: 738.1111111 | BX136: 12192.625 | BY136: 0 | BZ136: 0 | CA136: 1000000000 | CB136: 0 | CC136: not yet
A137: 2 | B137: 15000 | C137: 1 | D137: 0.35 | E137: 0.75 | F137: 47.5 | G137: female abc | H137: 10 | I137: 10 | J137: TRUE | K137: 150 | L137: 120 | M137: 240 | N137: 6 | O137: 36 | P137: TRUE | Q137: Generic | R137: Addis Ababa | S137: TRUE | T137: 0.4 | U137: 4.32 | V137: 18.88 | W137: 3.36 | X137: 18.8 | Y137: 14.24 | Z137: 1.2 | AA137: 0.56 | AB137: 1.68 | AC137: 14.8 | AD137: 7.92 | AE137: 9.12 | AF137: 8 | AG137: 10.03478261 | AH137: 11500 | AI137: 11993.55556 | AJ137: 0 | AK137: 0 | AL137: 0 | AM137: 0 | AN137: 0 | AO137: [0] | AP137: 0 | AQ137: 0 | AR137: 0 | AS137: 0 | AT137: 0 | AU137: 0 | AV137: 0 | AW137: 0 | AX137: 0 | AY137: 0 | AZ137: 0 | BA137: 0 | BB137: 0 | BC137: 6185 | BD137: 0 | BE137: 0 | BF137: 11993.55556 | BG137: 12.16982848 | BH137: 1504.555556 | BI137: 11.97391304 | BJ137: 51.44347826 | BK137: 2059 | BL137: 1614 | BM137: 5250 | BN137: 29.62578062 | BO137: 23.21642866 | BP137: 1184.333333 | BQ137: 9.872564358 | BR137: <ArgumentTypeException> | BS137: <ArgumentTypeException> | BT137: 6172 | BU137: 3.777777778 | BV137: 522.5555556 | BW137: 765.1111111 | BX137: 12055.25 | BY137: 0 | BZ137: 0 | CA137: 1000000000 | CB137: 0 | CC137: not yet
A138: 10 | B138: 15000 | C138: 1 | D138: 0.35 | E138: 0.75 | F138: 47.5 | G138: female abc | H138: 10 | I138: 10 | J138: TRUE | K138: 150 | L138: 120 | M138: 240 | N138: 6 | O138: 36 | P138: TRUE | Q138: Generic | R138: Addis Ababa | S138: TRUE | T138: 0.4 | U138: 4.32 | V138: 18.88 | W138: 3.36 | X138: 18.8 | Y138: 14.24 | Z138: 1.2 | AA138: 0.56 | AB138: 1.68 | AC138: 14.8 | AD138: 7.92 | AE138: 9.12 | AF138: 8 | AG138: 10.02178649 | AH138: 11475 | AI138: 11943.44444 | AJ138: 0 | AK138: 0 | AL138: 0 | AM138: 0 | AN138: 0 | AO138: [0] | AP138: 0 | AQ138: 0 | AR138: 0 | AS138: 0 | AT138: 0 | AU138: 0 | AV138: 0 | AW138: 0 | AX138: 0 | AY138: 0 | AZ138: 0 | BA138: 0 | BB138: 0 | BC138: 5956.111111 | BD138: 0 | BE138: 0 | BF138: 11943.44444 | BG138: 11.89937843 | BH138: 1463.333333 | BI138: 11.72984749 | BJ138: 49.77777778 | BK138: 1987 | BL138: 1472 | BM138: 5044 | BN138: 29.71252452 | BO138: 23.27215703 | BP138: 1176.777778 | BQ138: 9.847118584 | BR138: <ArgumentTypeException> | BS138: <ArgumentTypeException> | BT138: 5943.111111 | BU138: 4.111111111 | BV138: 501.1111111 | BW138: 715.1111111 | BX138: 12002 | BY138: 0 | BZ138: 0 | CA138: 1000000000 | CB138: 0 | CC138: not yet
A139: 13 | B139: 15000 | C139: 1 | D139: 0.35 | E139: 0.75 | F139: 47.5 | G139: female abc | H139: 10 | I139: 10 | J139: TRUE | K139: 150 | L139: 120 | M139: 240 | N139: 6 | O139: 36 | P139: TRUE | Q139: Generic | R139: Addis Ababa | S139: TRUE | T139: 0.4 | U139: 4.32 | V139: 18.88 | W139: 3.36 | X139: 18.8 | Y139: 14.24 | Z139: 1.2 | AA139: 0.56 | AB139: 1.68 | AC139: 14.8 | AD139: 7.92 | AE139: 9.12 | AF139: 8 | AG139: 9.872974157 | AH139: 11415 | AI139: 11933.44444 | AJ139: 0 | AK139: 0 | AL139: 0 | AM139: 0 | AN139: 0 | AO139: [0] | AP139: 0 | AQ139: 0 | AR139: 0 | AS139: 0 | AT139: 0 | AU139: 0 | AV139: 0 | AW139: 0 | AX139: 0 | AY139: 0 | AZ139: 0 | BA139: 0 | BB139: 0 | BC139: 6006.111111 | BD139: 0 | BE139: 0 | BF139: 11933.44444 | BG139: 12.16416221 | BH139: 1499.777778 | BI139: 11.54621113 | BJ139: 50.07446343 | BK139: 2032 | BL139: 1594 | BM139: 5288 | BN139: 29.31459958 | BO139: 22.99973408 | BP139: 1252.444444 | BQ139: 10.49849346 | BR139: <ArgumentTypeException> | BS139: <ArgumentTypeException> | BT139: 5995 | BU139: 3.777777778 | BV139: 542.7777778 | BW139: 746.1111111 | BX139: 11998.25 | BY139: 0 | BZ139: 0 | CA139: 1000000000 | CB139: 0 | CC139: not yet
A140: 4 | B140: 15000 | C140: 1 | D140: 0.35 | E140: 0.75 | F140: 47.5 | G140: female abc | H140: 10 | I140: 10 | J140: TRUE | K140: 150 | L140: 120 | M140: 240 | N140: 6 | O140: 36 | P140: TRUE | Q140: Generic | R140: Addis Ababa | S140: TRUE | T140: 0.4 | U140: 4.32 | V140: 18.88 | W140: 3.36 | X140: 18.8 | Y140: 14.24 | Z140: 1.2 | AA140: 0.56 | AB140: 1.68 | AC140: 14.8 | AD140: 7.92 | AE140: 9.12 | AF140: 8 | AG140: 10.5323132 | AH140: 12286 | AI140: 12790.33333 | AJ140: 0 | AK140: 0 | AL140: 0 | AM140: 0 | AN140: 0 | AO140: [0] | AP140: 0 | AQ140: 0 | AR140: 0 | AS140: 0 | AT140: 0 | AU140: 0 | AV140: 0 | AW140: 0 | AX140: 0 | AY140: 0 | AZ140: 0 | BA140: 0 | BB140: 0 | BC140: 6342.333333 | BD140: 0 | BE140: 0 | BF140: 12790.33333 | BG140: 12.36314405 | BH140: 1630.888889 | BI140: 12.32296923 | BJ140: 49.32443432 | BK140: 2142 | BL140: 1583 | BM140: 5452 | BN140: 29.32249 | BO140: 23.09154132 | BP140: 1252.777778 | BQ140: 9.795357077 | BR140: <ArgumentTypeException> | BS140: <ArgumentTypeException> | BT140: 6329.777778 | BU140: 3.888888889 | BV140: 536.3333333 | BW140: 806.1111111 | BX140: 12853.375 | BY140: 0 | BZ140: 0 | CA140: 1000000000 | CB140: 0 | CC140: not yet
A141: 3 | B141: 15000 | C141: 1 | D141: 0.35 | E141: 0.75 | F141: 47.5 | G141: female abc | H141: 10 | I141: 10 | J141: TRUE | K141: 150 | L141: 120 | M141: 240 | N141: 6 | O141: 36 | P141: TRUE | Q141: Generic | R141: Addis Ababa | S141: TRUE | T141: 0.4 | U141: 4.32 | V141: 18.88 | W141: 3.36 | X141: 18.8 | Y141: 14.24 | Z141: 1.2 | AA141: 0.56 | AB141: 1.68 | AC141: 14.8 | AD141: 7.92 | AE141: 9.12 | AF141: 8 | AG141: 9.359986273 | AH141: 11656 | AI141: 12245.77778 | AJ141: 0 | AK141: 0 | AL141: 0 | AM141: 0 | AN141: 0 | AO141: [0] | AP141: 0 | AQ141: 0 | AR141: 0 | AS141: 0 | AT141: 0 | AU141: 0 | AV141: 0 | AW141: 0 | AX141: 0 | AY141: 0 | AZ141: 0 | BA141: 0 | BB141: 0 | BC141: 6084.777778 | BD141: 0 | BE141: 0 | BF141: 12245.77778 | BG141: 11.81594544 | BH141: 1496.555556 | BI141: 10.88709677 | BJ141: 49.94852437 | BK141: 2053 | BL141: 1697 | BM141: 5450 | BN141: 30.16444806 | BO141: 23.46842627 | BP141: 1178.666667 | BQ141: 9.626276603 | BR141: <ArgumentTypeException> | BS141: <ArgumentTypeException> | BT141: 6071 | BU141: 5.111111111 | BV141: 550 | BW141: 721.3333333 | BX141: 12319.5 | BY141: 0 | BZ141: 0 | CA141: 1000000000 | CB141: 0 | CC141: not yet
A142: 14 | B142: 15000 | C142: 1 | D142: 0.35 | E142: 0.75 | F142: 47.5 | G142: female abc | H142: 10 | I142: 10 | J142: TRUE | K142: 150 | L142: 120 | M142: 240 | N142: 6 | O142: 36 | P142: TRUE | Q142: Generic | R142: Addis Ababa | S142: TRUE | T142: 0.4 | U142: 4.32 | V142: 18.88 | W142: 3.36 | X142: 18.8 | Y142: 14.24 | Z142: 1.2 | AA142: 0.56 | AB142: 1.68 | AC142: 14.8 | AD142: 7.92 | AE142: 9.12 | AF142: 8 | AG142: 10.70956004 | AH142: 12092 | AI142: 12565.66667 | AJ142: 0 | AK142: 0 | AL142: 0 | AM142: 0 | AN142: 0 | AO142: [0] | AP142: 0 | AQ142: 0 | AR142: 0 | AS142: 0 | AT142: 0 | AU142: 0 | AV142: 0 | AW142: 0 | AX142: 0 | AY142: 0 | AZ142: 0 | BA142: 0 | BB142: 0 | BC142: 6261.111111 | BD142: 0 | BE142: 0 | BF142: 12565.66667 | BG142: 11.9243259 | BH142: 1547.444444 | BI142: 12.61991399 | BJ142: 49.75190208 | BK142: 2148 | BL142: 1600 | BM142: 5497 | BN142: 29.62615155 | BO142: 23.16914923 | BP142: 1281.777778 | BQ142: 10.20463499 | BR142: <ArgumentTypeException> | BS142: <ArgumentTypeException> | BT142: 6247.888889 | BU142: 4.333333333 | BV142: 575.3333333 | BW142: 758.6666667 | BX142: 12624.875 | BY142: 0 | BZ142: 0 | CA142: 1000000000 | CB142: 0 | CC142: not yet
A143: 1 | B143: 15000 | C143: 1 | D143: 0.35 | E143: 0.75 | F143: 47.5 | G143: female abc | H143: 10 | I143: 10 | J143: TRUE | K143: 150 | L143: 120 | M143: 240 | N143: 6 | O143: 36 | P143: TRUE | Q143: Generic | R143: Addis Ababa | S143: TRUE | T143: 0.4 | U143: 4.32 | V143: 18.88 | W143: 3.36 | X143: 18.8 | Y143: 14.24 | Z143: 1.2 | AA143: 0.56 | AB143: 1.68 | AC143: 14.8 | AD143: 7.92 | AE143: 9.12 | AF143: 9 | AG143: 17.58150366 | AH143: 12024 | AI143: 11729.9 | AJ143: 0 | AK143: 0 | AL143: 0 | AM143: 0 | AN143: 0 | AO143: [0] | AP143: 0 | AQ143: 0 | AR143: 0 | AS143: 0 | AT143: 0 | AU143: 0 | AV143: 0 | AW143: 0 | AX143: 0 | AY143: 0 | AZ143: 0 | BA143: 0 | BB143: 0 | BC143: 5857.4 | BD143: 0 | BE143: 0 | BF143: 11729.9 | BG143: 12.48929073 | BH143: 1504.9 | BI143: 19.80206254 | BJ143: 50.0582169 | BK143: 3585 | BL143: 2043 | BM143: 5977 | BN143: 27.58971589 | BO143: 21.93529569 | BP143: 1197.2 | BQ143: 10.20607183 | BR143: <ArgumentTypeException> | BS143: <ArgumentTypeException> | BT143: 5835.8 | BU143: 10.3 | BV143: 514.2 | BW143: 755.5 | BX143: 11697.22222 | BY143: 0 | BZ143: 0 | CA143: 1000000000 | CB143: 0 | CC143: not yet
A144: 5 | B144: 15000 | C144: 1 | D144: 0.35 | E144: 0.75 | F144: 47.5 | G144: female abc | H144: 10 | I144: 10 | J144: TRUE | K144: 150 | L144: 120 | M144: 240 | N144: 6 | O144: 36 | P144: TRUE | Q144: Generic | R144: Addis Ababa | S144: TRUE | T144: 0.4 | U144: 4.32 | V144: 18.88 | W144: 3.36 | X144: 18.8 | Y144: 14.24 | Z144: 1.2 | AA144: 0.56 | AB144: 1.68 | AC144: 14.8 | AD144: 7.92 | AE144: 9.12 | AF144: 7 | AG144: 4.610344021 | AH144: 8546 | AI144: 9330.375 | AJ144: 0 | AK144: 0 | AL144: 0 | AM144: 0 | AN144: 0 | AO144: [0] | AP144: 0 | AQ144: 0 | AR144: 0 | AS144: 0 | AT144: 0 | AU144: 0 | AV144: 0 | AW144: 0 | AX144: 0 | AY144: 0 | AZ144: 0 | BA144: 0 | BB144: 0 | BC144: 4668.125 | BD144: 0 | BE144: 0 | BF144: 9330.375 | BG144: 11.64307142 | BH144: 1127.125 | BI144: 7.067633981 | BJ144: 50 | BK144: 770 | BL144: 906 | BM144: 3574 | BN144: 30.75810184 | BO144: 24.34163036 | BP144: 972 | BQ144: 10.41882784 | BR144: <ArgumentTypeException> | BS144: <ArgumentTypeException> | BT144: 4663.5 | BU144: 0 | BV144: 396.25 | BW144: 566 | BX144: 9442.428571 | BY144: 0 | BZ144: 0 | CA144: 1000000000 | CB144: 0 | CC144: not yet
A145: 8 | B145: 15000 | C145: 1 | D145: 0.35 | E145: 0.75 | F145: 47.5 | G145: female abc | H145: 10 | I145: 10 | J145: TRUE | K145: 150 | L145: 120 | M145: 240 | N145: 6 | O145: 36 | P145: TRUE | Q145: Generic | R145: Addis Ababa | S145: TRUE | T145: 0.4 | U145: 4.32 | V145: 18.88 | W145: 3.36 | X145: 18.8 | Y145: 14.24 | Z145: 1.2 | AA145: 0.56 | AB145: 1.68 | AC145: 14.8 | AD145: 7.92 | AE145: 9.12 | AF145: 8 | AG145: 9.742096506 | AH145: 12020 | AI145: 12529.88889 | AJ145: 0 | AK145: 0 | AL145: 0 | AM145: 0 | AN145: 0 | AO145: [0] | AP145: 0 | AQ145: 0 | AR145: 0 | AS145: 0 | AT145: 0 | AU145: 0 | AV145: 0 | AW145: 0 | AX145: 0 | AY145: 0 | AZ145: 0 | BA145: 0 | BB145: 0 | BC145: 6256.888889 | BD145: 0 | BE145: 0 | BF145: 12529.88889 | BG145: 11.82772407 | BH145: 1530.444444 | BI145: 11.31447587 | BJ145: 49.88352745 | BK145: 2098 | BL145: 1648 | BM145: 5425 | BN145: 29.71691838 | BO145: 23.15435826 | BP145: 1331 | BQ145: 10.6290643 | BR145: <ArgumentTypeException> | BS145: <ArgumentTypeException> | BT145: 6239.666667 | BU145: 6.111111111 | BV145: 584 | BW145: 756.6666667 | BX145: 12593.625 | BY145: 0 | BZ145: 0 | CA145: 1000000000 | CB145: 0 | CC145: not yet
A146: 15 | B146: 15000 | C146: 1 | D146: 0.35 | E146: 0.75 | F146: 47.5 | G146: female abc | H146: 10 | I146: 10 | J146: TRUE | K146: 150 | L146: 120 | M146: 240 | N146: 6 | O146: 36 | P146: TRUE | Q146: Generic | R146: Addis Ababa | S146: TRUE | T146: 0.4 | U146: 4.32 | V146: 18.88 | W146: 3.36 | X146: 18.8 | Y146: 14.24 | Z146: 1.2 | AA146: 0.56 | AB146: 1.68 | AC146: 14.8 | AD146: 7.92 | AE146: 9.12 | AF146: 8 | AG146: 10.00572691 | AH146: 12223 | AI146: 12769.44444 | AJ146: 0 | AK146: 0 | AL146: 0 | AM146: 0 | AN146: 0 | AO146: [0] | AP146: 0 | AQ146: 0 | AR146: 0 | AS146: 0 | AT146: 0 | AU146: 0 | AV146: 0 | AW146: 0 | AX146: 0 | AY146: 0 | AZ146: 0 | BA146: 0 | BB146: 0 | BC146: 6364.666667 | BD146: 0 | BE146: 0 | BF146: 12769.44444 | BG146: 11.90108139 | BH146: 1567.111111 | BI146: 11.75652458 | BJ146: 50.11044752 | BK146: 2133 | BL146: 1630 | BM146: 5528 | BN146: 29.50841643 | BO146: 23.23360399 | BP146: 1332.555556 | BQ146: 10.43756204 | BR146: <ArgumentTypeException> | BS146: <ArgumentTypeException> | BT146: 6349.666667 | BU146: 4.888888889 | BV146: 590.4444444 | BW146: 795.2222222 | BX146: 12837.75 | BY146: 0 | BZ146: 0 | CA146: 1000000000 | CB146: 0 | CC146: not yet
A147: 7 | B147: 15000 | C147: 1 | D147: 0.35 | E147: 0.75 | F147: 47.5 | G147: female abc | H147: 10 | I147: 10 | J147: TRUE | K147: 150 | L147: 120 | M147: 240 | N147: 6 | O147: 36 | P147: TRUE | Q147: Generic | R147: Addis Ababa | S147: TRUE | T147: 0.4 | U147: 4.32 | V147: 18.88 | W147: 3.36 | X147: 18.8 | Y147: 14.24 | Z147: 1.2 | AA147: 0.56 | AB147: 1.68 | AC147: 14.8 | AD147: 7.92 | AE147: 9.12 | AF147: 9 | AG147: 17.92927211 | AH147: 12131 | AI147: 11805.1 | AJ147: 0 | AK147: 0 | AL147: 0 | AM147: 0 | AN147: 0 | AO147: [0] | AP147: 0 | AQ147: 0 | AR147: 0 | AS147: 0 | AT147: 0 | AU147: 0 | AV147: 0 | AW147: 0 | AX147: 0 | AY147: 0 | AZ147: 0 | BA147: 0 | BB147: 0 | BC147: 5922.3 | BD147: 0 | BE147: 0 | BF147: 11805.1 | BG147: 12.95571326 | BH147: 1570 | BI147: 20.03132471 | BJ147: 49.88871486 | BK147: 3582 | BL147: 1972 | BM147: 5918 | BN147: 27.79842201 | BO147: 21.91183345 | BP147: 1197.3 | BQ147: 10.14793385 | BR147: <ArgumentTypeException> | BS147: <ArgumentTypeException> | BT147: 5901.3 | BU147: 10.5 | BV147: 531.5 | BW147: 777.8 | BX147: 11768.88889 | BY147: 0 | BZ147: 0 | CA147: 1000000000 | CB147: 0 | CC147: not yet
A148: 9 | B148: 15000 | C148: 1 | D148: 0.35 | E148: 0.75 | F148: 47.5 | G148: female abc | H148: 10 | I148: 10 | J148: TRUE | K148: 150 | L148: 120 | M148: 240 | N148: 6 | O148: 36 | P148: TRUE | Q148: Generic | R148: Addis Ababa | S148: TRUE | T148: 0.4 | U148: 4.32 | V148: 18.88 | W148: 3.36 | X148: 18.8 | Y148: 14.24 | Z148: 1.2 | AA148: 0.56 | AB148: 1.68 | AC148: 14.8 | AD148: 7.92 | AE148: 9.12 | AF148: 9 | AG148: 17.82472355 | AH148: 12118 | AI148: 11779.5 | AJ148: 0 | AK148: 0 | AL148: 0 | AM148: 0 | AN148: 0 | AO148: [0] | AP148: 0 | AQ148: 0 | AR148: 0 | AS148: 0 | AT148: 0 | AU148: 0 | AV148: 0 | AW148: 0 | AX148: 0 | AY148: 0 | AZ148: 0 | BA148: 0 | BB148: 0 | BC148: 5926 | BD148: 0 | BE148: 0 | BF148: 11779.5 | BG148: 12.67270351 | BH148: 1533.7 | BI148: 19.84650932 | BJ148: 50.3135831 | BK148: 3653 | BL148: 2111 | BM148: 5909 | BN148: 28.16870021 | BO148: 22.27797028 | BP148: 1150.7 | BQ148: 9.770486868 | BR148: <ArgumentTypeException> | BS148: <ArgumentTypeException> | BT148: 5905.4 | BU148: 10.1 | BV148: 530.2 | BW148: 775.7 | BX148: 11741.88889 | BY148: 0 | BZ148: 0 | CA148: 1000000000 | CB148: 0 | CC148: not yet
A149: 6 | B149: 15000 | C149: 1 | D149: 0.35 | E149: 0.75 | F149: 47.5 | G149: female abc | H149: 10 | I149: 10 | J149: TRUE | K149: 150 | L149: 120 | M149: 240 | N149: 6 | O149: 36 | P149: TRUE | Q149: Generic | R149: Addis Ababa | S149: TRUE | T149: 0.4 | U149: 4.32 | V149: 18.88 | W149: 3.36 | X149: 18.8 | Y149: 14.24 | Z149: 1.2 | AA149: 0.56 | AB149: 1.68 | AC149: 14.8 | AD149: 7.92 | AE149: 9.12 | AF149: 10 | AG149: 22.81879195 | AH149: 12665 | AI149: 11757 | AJ149: 0 | AK149: 0 | AL149: 0 | AM149: 0 | AN149: 0 | AO149: [0] | AP149: 0 | AQ149: 0 | AR149: 0 | AS149: 0 | AT149: 0 | AU149: 0 | AV149: 0 | AW149: 0 | AX149: 0 | AY149: 0 | AZ149: 0 | BA149: 0 | BB149: 0 | BC149: 5877.090909 | BD149: 0 | BE149: 0 | BF149: 11757 | BG149: 13.85291692 | BH149: 1678 | BI149: 26.22976707 | BJ149: 49.8381366 | BK149: 5562 | BL149: 3144 | BM149: 7466 | BN149: 26.55260362 | BO149: 20.70161107 | BP149: 1173.545455 | BQ149: 9.983918873 | BR149: <ArgumentTypeException> | BS149: <ArgumentTypeException> | BT149: 5846.363636 | BU149: 18.63636364 | BV149: 503.9090909 | BW149: 828.8181818 | BX149: 11666.2 | BY149: 0 | BZ149: 0 | CA149: 1000000000 | CB149: 0 | CC149: not yet
A150: 11 | B150: 15000 | C150: 1 | D150: 0.35 | E150: 0.75 | F150: 47.5 | G150: female abc | H150: 10 | I150: 10 | J150: TRUE | K150: 150 | L150: 120 | M150: 240 | N150: 6 | O150: 36 | P150: TRUE | Q150: Generic | R150: Addis Ababa | S150: TRUE | T150: 0.4 | U150: 4.32 | V150: 18.88 | W150: 3.36 | X150: 18.8 | Y150: 14.24 | Z150: 1.2 | AA150: 0.56 | AB150: 1.68 | AC150: 14.8 | AD150: 7.92 | AE150: 9.12 | AF150: 9 | AG150: 15.84109043 | AH150: 12032 | AI150: 11968.8 | AJ150: 0 | AK150: 0 | AL150: 0 | AM150: 0 | AN150: 0 | AO150: [0] | AP150: 0 | AQ150: 0 | AR150: 0 | AS150: 0 | AT150: 0 | AU150: 0 | AV150: 0 | AW150: 0 | AX150: 0 | AY150: 0 | AZ150: 0 | BA150: 0 | BB150: 0 | BC150: 5955 | BD150: 0 | BE150: 0 | BF150: 11968.8 | BG150: 12.34230306 | BH150: 1521.7 | BI150: 17.66954787 | BJ150: 49.80053191 | BK150: 3713 | BL150: 2451 | BM150: 6511 | BN150: 28.52075028 | BO150: 22.71030274 | BP150: 1174 | BQ150: 9.806718335 | BR150: <ArgumentTypeException> | BS150: <ArgumentTypeException> | BT150: 5930.6 | BU150: 12.1 | BV150: 500.4 | BW150: 751.4 | BX150: 11961.77778 | BY150: 0 | BZ150: 0 | CA150: 1000000000 | CB150: 0 | CC150: not yet
A151: 16 | B151: 15000 | C151: 1 | D151: 0.35 | E151: 0.75 | F151: 47.5 | G151: female abc | H151: 10 | I151: 10 | J151: TRUE | K151: 150 | L151: 120 | M151: 240 | N151: 6 | O151: 36 | P151: TRUE | Q151: Generic | R151: Addis Ababa | S151: TRUE | T151: 0.4 | U151: 4.32 | V151: 18.88 | W151: 3.36 | X151: 18.8 | Y151: 14.24 | Z151: 1.2 | AA151: 0.56 | AB151: 1.68 | AC151: 14.8 | AD151: 7.92 | AE151: 9.12 | AF151: 9 | AG151: 17.06571995 | AH151: 12112 | AI151: 11868.1 | AJ151: 0 | AK151: 0 | AL151: 0 | AM151: 0 | AN151: 0 | AO151: [0] | AP151: 0 | AQ151: 0 | AR151: 0 | AS151: 0 | AT151: 0 | AU151: 0 | AV151: 0 | AW151: 0 | AX151: 0 | AY151: 0 | AZ151: 0 | BA151: 0 | BB151: 0 | BC151: 5879.9 | BD151: 0 | BE151: 0 | BF151: 11868.1 | BG151: 12.46466728 | BH151: 1521.6 | BI151: 18.97291942 | BJ151: 49.61195509 | BK151: 3601 | BL151: 2181 | BM151: 6066 | BN151: 28.31154132 | BO151: 22.42300012 | BP151: 1183.6 | BQ151: 9.970787244 | BR151: <ArgumentTypeException> | BS151: <ArgumentTypeException> | BT151: 5859.7 | BU151: 10.3 | BV151: 531.2 | BW151: 763.9 | BX151: 11841 | BY151: 0 | BZ151: 0 | CA151: 1000000000 | CB151: 0 | CC151: not yet
A152: 12 | B152: 15000 | C152: 1 | D152: 0.35 | E152: 0.75 | F152: 47.5 | G152: female abc | H152: 10 | I152: 10 | J152: TRUE | K152: 150 | L152: 120 | M152: 240 | N152: 6 | O152: 36 | P152: TRUE | Q152: Generic | R152: Addis Ababa | S152: TRUE | T152: 0.4 | U152: 4.32 | V152: 18.88 | W152: 3.36 | X152: 18.8 | Y152: 14.24 | Z152: 1.2 | AA152: 0.56 | AB152: 1.68 | AC152: 14.8 | AD152: 7.92 | AE152: 9.12 | AF152: 9 | AG152: 16.1245731 | AH152: 12298 | AI152: 12152.3 | AJ152: 0 | AK152: 0 | AL152: 0 | AM152: 0 | AN152: 0 | AO152: [0] | AP152: 0 | AQ152: 0 | AR152: 0 | AS152: 0 | AT152: 0 | AU152: 0 | AV152: 0 | AW152: 0 | AX152: 0 | AY152: 0 | AZ152: 0 | BA152: 0 | BB152: 0 | BC152: 6086.2 | BD152: 0 | BE152: 0 | BF152: 12152.3 | BG152: 12.45130842 | BH152: 1554.3 | BI152: 18.05984713 | BJ152: 49.85363474 | BK152: 3724 | BL152: 2369 | BM152: 6398 | BN152: 28.26197512 | BO152: 22.33294103 | BP152: 1232.1 | BQ152: 10.13543505 | BR152: <ArgumentTypeException> | BS152: <ArgumentTypeException> | BT152: 6065.2 | BU152: 10.1 | BV152: 513.4 | BW152: 774.1 | BX152: 12136.11111 | BY152: 0 | BZ152: 0 | CA152: 1000000000 | CB152: 0 | CC152: not yet
A153: 5 | B153: 15000 | C153: 1 | D153: 0.35 | E153: 0.75 | F153: 47.5 | G153: female abc | H153: 10 | I153: 10 | J153: TRUE | K153: 150 | L153: 120 | M153: 240 | N153: 6 | O153: 36 | P153: TRUE | Q153: Generic | R153: Addis Ababa | S153: TRUE | T153: 0.4 | U153: 4.32 | V153: 18.88 | W153: 3.36 | X153: 18.8 | Y153: 14.24 | Z153: 1.2 | AA153: 0.56 | AB153: 1.68 | AC153: 14.8 | AD153: 7.92 | AE153: 9.12 | AF153: 8 | AG153: 9.771026978 | AH153: 8822 | AI153: 9273.888889 | AJ153: 0 | AK153: 0 | AL153: 0 | AM153: 0 | AN153: 0 | AO153: [0] | AP153: 0 | AQ153: 0 | AR153: 0 | AS153: 0 | AT153: 0 | AU153: 0 | AV153: 0 | AW153: 0 | AX153: 0 | AY153: 0 | AZ153: 0 | BA153: 0 | BB153: 0 | BC153: 4636.333333 | BD153: 0 | BE153: 0 | BF153: 9273.888889 | BG153: 11.62146917 | BH153: 1114.111111 | BI153: 11.4486511 | BJ153: 49.67127635 | BK153: 1496 | BL153: 1172 | BM153: 4101 | BN153: 29.99772342 | BO153: 23.91752965 | BP153: 966.4444444 | BQ153: 10.42241862 | BR153: <ArgumentTypeException> | BS153: <ArgumentTypeException> | BT153: 4625.333333 | BU153: 4 | BV153: 394.4444444 | BW153: 557.6666667 | BX153: 9330.375 | BY153: 0 | BZ153: 0 | CA153: 1000000000 | CB153: 0 | CC153: not yet
A154: 10 | B154: 15000 | C154: 1 | D154: 0.35 | E154: 0.75 | F154: 47.5 | G154: female abc | H154: 10 | I154: 10 | J154: TRUE | K154: 150 | L154: 120 | M154: 240 | N154: 6 | O154: 36 | P154: TRUE | Q154: Generic | R154: Addis Ababa | S154: TRUE | T154: 0.4 | U154: 4.32 | V154: 18.88 | W154: 3.36 | X154: 18.8 | Y154: 14.24 | Z154: 1.2 | AA154: 0.56 | AB154: 1.68 | AC154: 14.8 | AD154: 7.92 | AE154: 9.12 | AF154: 9 | AG154: 17.15918367 | AH154: 12250 | AI154: 11974.1 | AJ154: 0 | AK154: 0 | AL154: 0 | AM154: 0 | AN154: 0 | AO154: [0] | AP154: 0 | AQ154: 0 | AR154: 0 | AS154: 0 | AT154: 0 | AU154: 0 | AV154: 0 | AW154: 0 | AX154: 0 | AY154: 0 | AZ154: 0 | BA154: 0 | BB154: 0 | BC154: 5968.5 | BD154: 0 | BE154: 0 | BF154: 11974.1 | BG154: 12.62780793 | BH154: 1552 | BI154: 19.18367347 | BJ154: 49.63265306 | BK154: 3630 | BL154: 2074 | BM154: 6011 | BN154: 28.02325755 | BO154: 21.8723071 | BP154: 1181.8 | BQ154: 9.864039379 | BR154: <ArgumentTypeException> | BS154: <ArgumentTypeException> | BT154: 5946.4 | BU154: 11.1 | BV154: 497.7 | BW154: 761.1 | BX154: 11943.44444 | BY154: 0 | BZ154: 0 | CA154: 1000000000 | CB154: 0 | CC154: not yet
A155: 2 | B155: 15000 | C155: 1 | D155: 0.35 | E155: 0.75 | F155: 47.5 | G155: female abc | H155: 10 | I155: 10 | J155: TRUE | K155: 150 | L155: 120 | M155: 240 | N155: 6 | O155: 36 | P155: TRUE | Q155: Generic | R155: Addis Ababa | S155: TRUE | T155: 0.4 | U155: 4.32 | V155: 18.88 | W155: 3.36 | X155: 18.8 | Y155: 14.24 | Z155: 1.2 | AA155: 0.56 | AB155: 1.68 | AC155: 14.8 | AD155: 7.92 | AE155: 9.12 | AF155: 9 | AG155: 16.98728399 | AH155: 12268 | AI155: 12021 | AJ155: 0 | AK155: 0 | AL155: 0 | AM155: 0 | AN155: 0 | AO155: [0] | AP155: 0 | AQ155: 0 | AR155: 0 | AS155: 0 | AT155: 0 | AU155: 0 | AV155: 0 | AW155: 0 | AX155: 0 | AY155: 0 | AZ155: 0 | BA155: 0 | BB155: 0 | BC155: 6197.7 | BD155: 0 | BE155: 0 | BF155: 12021 | BG155: 12.87247393 | BH155: 1589.6 | BI155: 19.19628301 | BJ155: 51.45092925 | BK155: 3751 | BL155: 2298 | BM155: 6273 | BN155: 28.05628043 | BO155: 22.00446293 | BP155: 1190 | BQ155: 9.896882751 | BR155: <ArgumentTypeException> | BS155: <ArgumentTypeException> | BT155: 6175.6 | BU155: 11 | BV155: 521 | BW155: 807.3 | BX155: 11993.55556 | BY155: 0 | BZ155: 0 | CA155: 1000000000 | CB155: 0 | CC155: not yet
A156: 13 | B156: 15000 | C156: 1 | D156: 0.35 | E156: 0.75 | F156: 47.5 | G156: female abc | H156: 10 | I156: 10 | J156: TRUE | K156: 150 | L156: 120 | M156: 240 | N156: 6 | O156: 36 | P156: TRUE | Q156: Generic | R156: Addis Ababa | S156: TRUE | T156: 0.4 | U156: 4.32 | V156: 18.88 | W156: 3.36 | X156: 18.8 | Y156: 14.24 | Z156: 1.2 | AA156: 0.56 | AB156: 1.68 | AC156: 14.8 | AD156: 7.92 | AE156: 9.12 | AF156: 9 | AG156: 16.91297209 | AH156: 12180 | AI156: 11958.1 | AJ156: 0 | AK156: 0 | AL156: 0 | AM156: 0 | AN156: 0 | AO156: [0] | AP156: 0 | AQ156: 0 | AR156: 0 | AS156: 0 | AT156: 0 | AU156: 0 | AV156: 0 | AW156: 0 | AX156: 0 | AY156: 0 | AZ156: 0 | BA156: 0 | BB156: 0 | BC156: 6014 | BD156: 0 | BE156: 0 | BF156: 11958.1 | BG156: 12.82459328 | BH156: 1578.4 | BI156: 18.76847291 | BJ156: 49.9589491 | BK156: 3714 | BL156: 2277 | BM156: 6304 | BN156: 27.7656963 | BO156: 21.7620652 | BP156: 1257 | BQ156: 10.51432556 | BR156: <ArgumentTypeException> | BS156: <ArgumentTypeException> | BT156: 5994 | BU156: 9.4 | BV156: 541.2 | BW156: 782.7 | BX156: 11933.44444 | BY156: 0 | BZ156: 0 | CA156: 1000000000 | CB156: 0 | CC156: not yet
A157: 3 | B157: 15000 | C157: 1 | D157: 0.35 | E157: 0.75 | F157: 47.5 | G157: female abc | H157: 10 | I157: 10 | J157: TRUE | K157: 150 | L157: 120 | M157: 240 | N157: 6 | O157: 36 | P157: TRUE | Q157: Generic | R157: Addis Ababa | S157: TRUE | T157: 0.4 | U157: 4.32 | V157: 18.88 | W157: 3.36 | X157: 18.8 | Y157: 14.24 | Z157: 1.2 | AA157: 0.56 | AB157: 1.68 | AC157: 14.8 | AD157: 7.92 | AE157: 9.12 | AF157: 9 | AG157: 16.47617514 | AH157: 12424 | AI157: 12263.6 | AJ157: 0 | AK157: 0 | AL157: 0 | AM157: 0 | AN157: 0 | AO157: [0] | AP157: 0 | AQ157: 0 | AR157: 0 | AS157: 0 | AT157: 0 | AU157: 0 | AV157: 0 | AW157: 0 | AX157: 0 | AY157: 0 | AZ157: 0 | BA157: 0 | BB157: 0 | BC157: 6096.4 | BD157: 0 | BE157: 0 | BF157: 12263.6 | BG157: 12.48319185 | BH157: 1576.6 | BI157: 18.48840953 | BJ157: 49.91146169 | BK157: 3741 | BL157: 2339 | BM157: 6472 | BN157: 28.45528692 | BO157: 22.39754587 | BP157: 1180.1 | BQ157: 9.623887191 | BR157: <ArgumentTypeException> | BS157: <ArgumentTypeException> | BT157: 6072.5 | BU157: 12.2 | BV157: 545.7 | BW157: 765.4 | BX157: 12245.77778 | BY157: 0 | BZ157: 0 | CA157: 1000000000 | CB157: 0 | CC157: not yet
A158: 4 | B158: 15000 | C158: 1 | D158: 0.35 | E158: 0.75 | F158: 47.5 | G158: female abc | H158: 10 | I158: 10 | J158: TRUE | K158: 150 | L158: 120 | M158: 240 | N158: 6 | O158: 36 | P158: TRUE | Q158: Generic | R158: Addis Ababa | S158: TRUE | T158: 0.4 | U158: 4.32 | V158: 18.88 | W158: 3.36 | X158: 18.8 | Y158: 14.24 | Z158: 1.2 | AA158: 0.56 | AB158: 1.68 | AC158: 14.8 | AD158: 7.92 | AE158: 9.12 | AF158: 9 | AG158: 17.64885496 | AH158: 13100 | AI158: 12821.3 | AJ158: 0 | AK158: 0 | AL158: 0 | AM158: 0 | AN158: 0 | AO158: [0] | AP158: 0 | AQ158: 0 | AR158: 0 | AS158: 0 | AT158: 0 | AU158: 0 | AV158: 0 | AW158: 0 | AX158: 0 | AY158: 0 | AZ158: 0 | BA158: 0 | BB158: 0 | BC158: 6354.6 | BD158: 0 | BE158: 0 | BF158: 12821.3 | BG158: 13.09553194 | BH158: 1725.7 | BI158: 19.6870229 | BJ158: 49.35114504 | BK158: 3884 | BL158: 2234 | BM158: 6486 | BN158: 27.7521797 | BO158: 21.83487122 | BP158: 1253.6 | BQ158: 9.778416789 | BR158: <ArgumentTypeException> | BS158: <ArgumentTypeException> | BT158: 6333.1 | BU158: 10.4 | BV158: 531.7 | BW158: 852.1 | BX158: 12790.33333 | BY158: 0 | BZ158: 0 | CA158: 1000000000 | CB158: 0 | CC158: not yet
A159: 1 | B159: 15000 | C159: 1 | D159: 0.35 | E159: 0.75 | F159: 47.5 | G159: female abc | H159: 10 | I159: 10 | J159: TRUE | K159: 150 | L159: 120 | M159: 240 | N159: 6 | O159: 36 | P159: TRUE | Q159: Generic | R159: Addis Ababa | S159: TRUE | T159: 0.4 | U159: 4.32 | V159: 18.88 | W159: 3.36 | X159: 18.8 | Y159: 14.24 | Z159: 1.2 | AA159: 0.56 | AB159: 1.68 | AC159: 14.8 | AD159: 7.92 | AE159: 9.12 | AF159: 10 | AG159: 24.29634174 | AH159: 13039 | AI159: 11848.90909 | AJ159: 0 | AK159: 0 | AL159: 0 | AM159: 0 | AN159: 0 | AO159: [0] | AP159: 0 | AQ159: 0 | AR159: 0 | AS159: 0 | AT159: 0 | AU159: 0 | AV159: 0 | AW159: 0 | AX159: 0 | AY159: 0 | AZ159: 0 | BA159: 0 | BB159: 0 | BC159: 5917.181818 | BD159: 0 | BE159: 0 | BF159: 11848.90909 | BG159: 13.87082541 | BH159: 1696.272727 | BI159: 27.68617225 | BJ159: 49.96548815 | BK159: 5646 | BL159: 2865 | BM159: 7120 | BN159: 25.72872917 | BO159: 20.35526898 | BP159: 1209.181818 | BQ159: 10.20483798 | BR159: <ArgumentTypeException> | BS159: <ArgumentTypeException> | BT159: 5884.363636 | BU159: 18.81818182 | BV159: 511.1818182 | BW159: 854.1818182 | BX159: 11729.9 | BY159: 0 | BZ159: 0 | CA159: 1000000000 | CB159: 0 | CC159: not yet
A160: 8 | B160: 15000 | C160: 1 | D160: 0.35 | E160: 0.75 | F160: 47.5 | G160: female abc | H160: 10 | I160: 10 | J160: TRUE | K160: 150 | L160: 120 | M160: 240 | N160: 6 | O160: 36 | P160: TRUE | Q160: Generic | R160: Addis Ababa | S160: TRUE | T160: 0.4 | U160: 4.32 | V160: 18.88 | W160: 3.36 | X160: 18.8 | Y160: 14.24 | Z160: 1.2 | AA160: 0.56 | AB160: 1.68 | AC160: 14.8 | AD160: 7.92 | AE160: 9.12 | AF160: 9 | AG160: 16.50599577 | AH160: 12759 | AI160: 12552.8 | AJ160: 0 | AK160: 0 | AL160: 0 | AM160: 0 | AN160: 0 | AO160: [0] | AP160: 0 | AQ160: 0 | AR160: 0 | AS160: 0 | AT160: 0 | AU160: 0 | AV160: 0 | AW160: 0 | AX160: 0 | AY160: 0 | AZ160: 0 | BA160: 0 | BB160: 0 | BC160: 6266 | BD160: 0 | BE160: 0 | BF160: 12552.8 | BG160: 12.48443752 | BH160: 1612.1 | BI160: 18.39485853 | BJ160: 49.75311545 | BK160: 3844 | BL160: 2393 | BM160: 6536 | BN160: 28.18098915 | BO160: 22.16787732 | BP160: 1332.4 | BQ160: 10.62031572 | BR160: <ArgumentTypeException> | BS160: <ArgumentTypeException> | BT160: 6237.1 | BU160: 14.5 | BV160: 582 | BW160: 797.9 | BX160: 12529.88889 | BY160: 0 | BZ160: 0 | CA160: 1000000000 | CB160: 0 | CC160: not yet
A161: 14 | B161: 15000 | C161: 1 | D161: 0.35 | E161: 0.75 | F161: 47.5 | G161: female abc | H161: 10 | I161: 10 | J161: TRUE | K161: 150 | L161: 120 | M161: 240 | N161: 6 | O161: 36 | P161: TRUE | Q161: Generic | R161: Addis Ababa | S161: TRUE | T161: 0.4 | U161: 4.32 | V161: 18.88 | W161: 3.36 | X161: 18.8 | Y161: 14.24 | Z161: 1.2 | AA161: 0.56 | AB161: 1.68 | AC161: 14.8 | AD161: 7.92 | AE161: 9.12 | AF161: 9 | AG161: 18.05716047 | AH161: 12981 | AI161: 12607.2 | AJ161: 0 | AK161: 0 | AL161: 0 | AM161: 0 | AN161: 0 | AO161: [0] | AP161: 0 | AQ161: 0 | AR161: 0 | AS161: 0 | AT161: 0 | AU161: 0 | AV161: 0 | AW161: 0 | AX161: 0 | AY161: 0 | AZ161: 0 | BA161: 0 | BB161: 0 | BC161: 6283.4 | BD161: 0 | BE161: 0 | BF161: 12607.2 | BG161: 12.74868709 | BH161: 1654.5 | BI161: 20.16793776 | BJ161: 49.94992682 | BK161: 3879 | BL161: 2199 | BM161: 6443 | BN161: 27.82455441 | BO161: 21.98983252 | BP161: 1285 | BQ161: 10.19642017 | BR161: <ArgumentTypeException> | BS161: <ArgumentTypeException> | BT161: 6260.7 | BU161: 11.5 | BV161: 571.8 | BW161: 813 | BX161: 12565.66667 | BY161: 0 | BZ161: 0 | CA161: 1000000000 | CB161: 0 | CC161: not yet
A162: 15 | B162: 15000 | C162: 1 | D162: 0.35 | E162: 0.75 | F162: 47.5 | G162: female abc | H162: 10 | I162: 10 | J162: TRUE | K162: 150 | L162: 120 | M162: 240 | N162: 6 | O162: 36 | P162: TRUE | Q162: Generic | R162: Addis Ababa | S162: TRUE | T162: 0.4 | U162: 4.32 | V162: 18.88 | W162: 3.36 | X162: 18.8 | Y162: 14.24 | Z162: 1.2 | AA162: 0.56 | AB162: 1.68 | AC162: 14.8 | AD162: 7.92 | AE162: 9.12 | AF162: 9 | AG162: 17.09486924 | AH162: 13039 | AI162: 12796.4 | AJ162: 0 | AK162: 0 | AL162: 0 | AM162: 0 | AN162: 0 | AO162: [0] | AP162: 0 | AQ162: 0 | AR162: 0 | AS162: 0 | AT162: 0 | AU162: 0 | AV162: 0 | AW162: 0 | AX162: 0 | AY162: 0 | AZ162: 0 | BA162: 0 | BB162: 0 | BC162: 6381 | BD162: 0 | BE162: 0 | BF162: 12796.4 | BG162: 12.64056908 | BH162: 1662 | BI162: 19.29595828 | BJ162: 50.06518905 | BK162: 3898 | BL162: 2284 | BM162: 6583 | BN162: 27.86690798 | BO162: 21.85459695 | BP162: 1335.1 | BQ162: 10.43529675 | BR162: <ArgumentTypeException> | BS162: <ArgumentTypeException> | BT162: 6355.1 | BU162: 13.1 | BV162: 586.6 | BW162: 843.7 | BX162: 12769.44444 | BY162: 0 | BZ162: 0 | CA162: 1000000000 | CB162: 0 | CC162: not yet
A163: 7 | B163: 15000 | C163: 1 | D163: 0.35 | E163: 0.75 | F163: 47.5 | G163: female abc | H163: 10 | I163: 10 | J163: TRUE | K163: 150 | L163: 120 | M163: 240 | N163: 6 | O163: 36 | P163: TRUE | Q163: Generic | R163: Addis Ababa | S163: TRUE | T163: 0.4 | U163: 4.32 | V163: 18.88 | W163: 3.36 | X163: 18.8 | Y163: 14.24 | Z163: 1.2 | AA163: 0.56 | AB163: 1.68 | AC163: 14.8 | AD163: 7.92 | AE163: 9.12 | AF163: 10 | AG163: 24.48003644 | AH163: 13174 | AI163: 11929.54545 | AJ163: 0 | AK163: 0 | AL163: 0 | AM163: 0 | AN163: 0 | AO163: [0] | AP163: 0 | AQ163: 0 | AR163: 0 | AS163: 0 | AT163: 0 | AU163: 0 | AV163: 0 | AW163: 0 | AX163: 0 | AY163: 0 | AZ163: 0 | BA163: 0 | BB163: 0 | BC163: 5982.090909 | BD163: 0 | BE163: 0 | BF163: 11929.54545 | BG163: 14.313908 | BH163: 1761.363636 | BI163: 27.89585547 | BJ163: 49.94686504 | BK163: 5664 | BL163: 2793 | BM163: 7055 | BN163: 25.87574574 | BO163: 20.13894377 | BP163: 1207.363636 | BQ163: 10.12799872 | BR163: <ArgumentTypeException> | BS163: <ArgumentTypeException> | BT163: 5951.272727 | BU163: 18.45454545 | BV163: 527.0909091 | BW163: 872 | BX163: 11805.1 | BY163: 0 | BZ163: 0 | CA163: 1000000000 | CB163: 0 | CC163: not yet
A164: 5 | B164: 15000 | C164: 1 | D164: 0.35 | E164: 0.75 | F164: 47.5 | G164: female abc | H164: 10 | I164: 10 | J164: TRUE | K164: 150 | L164: 120 | M164: 240 | N164: 6 | O164: 36 | P164: TRUE | Q164: Generic | R164: Addis Ababa | S164: TRUE | T164: 0.4 | U164: 4.32 | V164: 18.88 | W164: 3.36 | X164: 18.8 | Y164: 14.24 | Z164: 1.2 | AA164: 0.56 | AB164: 1.68 | AC164: 14.8 | AD164: 7.92 | AE164: 9.12 | AF164: 9 | AG164: 16.55113576 | AH164: 9377 | AI164: 9284.2 | AJ164: 0 | AK164: 0 | AL164: 0 | AM164: 0 | AN164: 0 | AO164: [0] | AP164: 0 | AQ164: 0 | AR164: 0 | AS164: 0 | AT164: 0 | AU164: 0 | AV164: 0 | AW164: 0 | AX164: 0 | AY164: 0 | AZ164: 0 | BA164: 0 | BB164: 0 | BC164: 4638.4 | BD164: 0 | BE164: 0 | BF164: 9284.2 | BG164: 12.31066063 | BH164: 1176.3 | BI164: 18.51338381 | BJ164: 49.66407166 | BK164: 2719 | BL164: 1648 | BM164: 4846 | BN164: 28.4130013 | BO164: 22.77811975 | BP164: 968.6 | BQ164: 10.43381865 | BR164: <ArgumentTypeException> | BS164: <ArgumentTypeException> | BT164: 4619.6 | BU164: 9.7 | BV164: 392.8 | BW164: 586.4 | BX164: 9273.888889 | BY164: 0 | BZ164: 0 | CA164: 1000000000 | CB164: 0 | CC164: not yet
A165: 6 | B165: 15000 | C165: 1 | D165: 0.35 | E165: 0.75 | F165: 47.5 | G165: female abc | H165: 10 | I165: 10 | J165: TRUE | K165: 150 | L165: 120 | M165: 240 | N165: 6 | O165: 36 | P165: TRUE | Q165: Generic | R165: Addis Ababa | S165: TRUE | T165: 0.4 | U165: 4.32 | V165: 18.88 | W165: 3.36 | X165: 18.8 | Y165: 14.24 | Z165: 1.2 | AA165: 0.56 | AB165: 1.68 | AC165: 14.8 | AD165: 7.92 | AE165: 9.12 | AF165: 11 | AG165: 25.47078526 | AH165: 13435 | AI165: 11896.83333 | AJ165: 0 | AK165: 0 | AL165: 0 | AM165: 0 | AN165: 0 | AO165: [0] | AP165: 0 | AQ165: 0 | AR165: 0 | AS165: 0 | AT165: 0 | AU165: 0 | AV165: 0 | AW165: 0 | AX165: 0 | AY165: 0 | AZ165: 0 | BA165: 0 | BB165: 0 | BC165: 5944.416667 | BD165: 0 | BE165: 0 | BF165: 11896.83333 | BG165: 15.35512546 | BH165: 1895.083333 | BI165: 31.87941943 | BJ165: 49.75809453 | BK165: 7606 | BL165: 4207 | BM165: 8837 | BN165: 25.28742632 | BO165: 19.6041296 | BP165: 1186.75 | BQ165: 9.978125856 | BR165: <ArgumentTypeException> | BS165: <ArgumentTypeException> | BT165: 5903.25 | BU165: 27.25 | BV165: 500.1666667 | BW165: 934.75 | BX165: 11757 | BY165: 0 | BZ165: 0 | CA165: 1000000000 | CB165: 0 | CC165: not yet
A166: 9 | B166: 15000 | C166: 1 | D166: 0.35 | E166: 0.75 | F166: 47.5 | G166: female abc | H166: 10 | I166: 10 | J166: TRUE | K166: 150 | L166: 120 | M166: 240 | N166: 6 | O166: 36 | P166: TRUE | Q166: Generic | R166: Addis Ababa | S166: TRUE | T166: 0.4 | U166: 4.32 | V166: 18.88 | W166: 3.36 | X166: 18.8 | Y166: 14.24 | Z166: 1.2 | AA166: 0.56 | AB166: 1.68 | AC166: 14.8 | AD166: 7.92 | AE166: 9.12 | AF166: 10 | AG166: 24.26806953 | AH166: 13116 | AI166: 11901 | AJ166: 0 | AK166: 0 | AL166: 0 | AM166: 0 | AN166: 0 | AO166: [0] | AP166: 0 | AQ166: 0 | AR166: 0 | AS166: 0 | AT166: 0 | AU166: 0 | AV166: 0 | AW166: 0 | AX166: 0 | AY166: 0 | AZ166: 0 | BA166: 0 | BB166: 0 | BC166: 5988.636364 | BD166: 0 | BE166: 0 | BF166: 11901 | BG166: 14.03942299 | BH166: 1724.636364 | BI166: 27.70661787 | BJ166: 50.43458371 | BK166: 5759 | BL166: 2980 | BM166: 7115 | BN166: 26.30233912 | BO166: 20.49614812 | BP166: 1164 | BQ166: 9.781232205 | BR166: <ArgumentTypeException> | BS166: <ArgumentTypeException> | BT166: 5959.090909 | BU166: 17.72727273 | BV166: 526.7272727 | BW166: 872.4545455 | BX166: 11779.5 | BY166: 0 | BZ166: 0 | CA166: 1000000000 | CB166: 0 | CC166: not yet
A167: 16 | B167: 15000 | C167: 1 | D167: 0.35 | E167: 0.75 | F167: 47.5 | G167: female abc | H167: 10 | I167: 10 | J167: TRUE | K167: 150 | L167: 120 | M167: 240 | N167: 6 | O167: 36 | P167: TRUE | Q167: Generic | R167: Addis Ababa | S167: TRUE | T167: 0.4 | U167: 4.32 | V167: 18.88 | W167: 3.36 | X167: 18.8 | Y167: 14.24 | Z167: 1.2 | AA167: 0.56 | AB167: 1.68 | AC167: 14.8 | AD167: 7.92 | AE167: 9.12 | AF167: 10 | AG167: 23.39176829 | AH167: 13120 | AI167: 11981.90909 | AJ167: 0 | AK167: 0 | AL167: 0 | AM167: 0 | AN167: 0 | AO167: [0] | AP167: 0 | AQ167: 0 | AR167: 0 | AS167: 0 | AT167: 0 | AU167: 0 | AV167: 0 | AW167: 0 | AX167: 0 | AY167: 0 | AZ167: 0 | BA167: 0 | BB167: 0 | BC167: 5939.363636 | BD167: 0 | BE167: 0 | BF167: 11981.90909 | BG167: 13.771233 | BH167: 1703.363636 | BI167: 26.83689024 | BJ167: 49.80182927 | BK167: 5698 | BL167: 3055 | BM167: 7253 | BN167: 26.42322701 | BO167: 20.9049643 | BP167: 1196.545455 | BQ167: 9.983143615 | BR167: <ArgumentTypeException> | BS167: <ArgumentTypeException> | BT167: 5909.818182 | BU167: 17.54545455 | BV167: 528.7272727 | BW167: 855.4545455 | BX167: 11868.1 | BY167: 0 | BZ167: 0 | CA167: 1000000000 | CB167: 0 | CC167: not yet
A168: 11 | B168: 15000 | C168: 1 | D168: 0.35 | E168: 0.75 | F168: 47.5 | G168: female abc | H168: 10 | I168: 10 | J168: TRUE | K168: 150 | L168: 120 | M168: 240 | N168: 6 | O168: 36 | P168: TRUE | Q168: Generic | R168: Addis Ababa | S168: TRUE | T168: 0.4 | U168: 4.32 | V168: 18.88 | W168: 3.36 | X168: 18.8 | Y168: 14.24 | Z168: 1.2 | AA168: 0.56 | AB168: 1.68 | AC168: 14.8 | AD168: 7.92 | AE168: 9.12 | AF168: 10 | AG168: 21.70097087 | AH168: 12875 | AI168: 12051.18182 | AJ168: 0 | AK168: 0 | AL168: 0 | AM168: 0 | AN168: 0 | AO168: [0] | AP168: 0 | AQ168: 0 | AR168: 0 | AS168: 0 | AT168: 0 | AU168: 0 | AV168: 0 | AW168: 0 | AX168: 0 | AY168: 0 | AZ168: 0 | BA168: 0 | BB168: 0 | BC168: 5998.636364 | BD168: 0 | BE168: 0 | BF168: 12051.18182 | BG168: 13.46987834 | BH168: 1673 | BI168: 24.74563107 | BJ168: 49.98058252 | BK168: 5791 | BL168: 3457 | BM168: 7845 | BN168: 26.86126611 | BO168: 21.32855951 | BP168: 1181.272727 | BQ168: 9.80063538 | BR168: <ArgumentTypeException> | BS168: <ArgumentTypeException> | BT168: 5963 | BU168: 21.27272727 | BV168: 497.6363636 | BW168: 827.9090909 | BX168: 11968.8 | BY168: 0 | BZ168: 0 | CA168: 1000000000 | CB168: 0 | CC168: not yet
A169: 12 | B169: 15000 | C169: 1 | D169: 0.35 | E169: 0.75 | F169: 47.5 | G169: female abc | H169: 10 | I169: 10 | J169: TRUE | K169: 150 | L169: 120 | M169: 240 | N169: 6 | O169: 36 | P169: TRUE | Q169: Generic | R169: Addis Ababa | S169: TRUE | T169: 0.4 | U169: 4.32 | V169: 18.88 | W169: 3.36 | X169: 18.8 | Y169: 14.24 | Z169: 1.2 | AA169: 0.56 | AB169: 1.68 | AC169: 14.8 | AD169: 7.92 | AE169: 9.12 | AF169: 10 | AG169: 22.17937084 | AH169: 13224 | AI169: 12249.72727 | AJ169: 0 | AK169: 0 | AL169: 0 | AM169: 0 | AN169: 0 | AO169: [0] | AP169: 0 | AQ169: 0 | AR169: 0 | AS169: 0 | AT169: 0 | AU169: 0 | AV169: 0 | AW169: 0 | AX169: 0 | AY169: 0 | AZ169: 0 | BA169: 0 | BB169: 0 | BC169: 6133 | BD169: 0 | BE169: 0 | BF169: 12249.72727 | BG169: 13.64778245 | BH169: 1720.909091 | BI169: 25.61252269 | BJ169: 49.91681791 | BK169: 5865 | BL169: 3347 | BM169: 7714 | BN169: 26.53388454 | BO169: 20.91379614 | BP169: 1240.636364 | BQ169: 10.12559761 | BR169: <ArgumentTypeException> | BS169: <ArgumentTypeException> | BT169: 6101.818182 | BU169: 17.81818182 | BV169: 509.0909091 | BW169: 858.2727273 | BX169: 12152.3 | BY169: 0 | BZ169: 0 | CA169: 1000000000 | CB169: 0 | CC169: not yet
A170: 2 | B170: 15000 | C170: 1 | D170: 0.35 | E170: 0.75 | F170: 47.5 | G170: female abc | H170: 10 | I170: 10 | J170: TRUE | K170: 150 | L170: 120 | M170: 240 | N170: 6 | O170: 36 | P170: TRUE | Q170: Generic | R170: Addis Ababa | S170: TRUE | T170: 0.4 | U170: 4.32 | V170: 18.88 | W170: 3.36 | X170: 18.8 | Y170: 14.24 | Z170: 1.2 | AA170: 0.56 | AB170: 1.68 | AC170: 14.8 | AD170: 7.92 | AE170: 9.12 | AF170: 10 | AG170: 23.49429457 | AH170: 13233 | AI170: 12131.18182 | AJ170: 0 | AK170: 0 | AL170: 0 | AM170: 0 | AN170: 0 | AO170: [0] | AP170: 0 | AQ170: 0 | AR170: 0 | AS170: 0 | AT170: 0 | AU170: 0 | AV170: 0 | AW170: 0 | AX170: 0 | AY170: 0 | AZ170: 0 | BA170: 0 | BB170: 0 | BC170: 6250 | BD170: 0 | BE170: 0 | BF170: 12131.18182 | BG170: 14.14449053 | BH170: 1768.272727 | BI170: 26.86465654 | BJ170: 51.18264944 | BK170: 5919 | BL170: 3249 | BM170: 7576 | BN170: 26.25623983 | BO170: 20.58891685 | BP170: 1203.909091 | BQ170: 9.919790706 | BR170: <ArgumentTypeException> | BS170: <ArgumentTypeException> | BT170: 6217.545455 | BU170: 19 | BV170: 518.1818182 | BW170: 896 | BX170: 12021 | BY170: 0 | BZ170: 0 | CA170: 1000000000 | CB170: 0 | CC170: not yet
A171: 10 | B171: 15000 | C171: 1 | D171: 0.35 | E171: 0.75 | F171: 47.5 | G171: female abc | H171: 10 | I171: 10 | J171: TRUE | K171: 150 | L171: 120 | M171: 240 | N171: 6 | O171: 36 | P171: TRUE | Q171: Generic | R171: Addis Ababa | S171: TRUE | T171: 0.4 | U171: 4.32 | V171: 18.88 | W171: 3.36 | X171: 18.8 | Y171: 14.24 | Z171: 1.2 | AA171: 0.56 | AB171: 1.68 | AC171: 14.8 | AD171: 7.92 | AE171: 9.12 | AF171: 10 | AG171: 23.14955833 | AH171: 13132 | AI171: 12079.36364 | AJ171: 0 | AK171: 0 | AL171: 0 | AM171: 0 | AN171: 0 | AO171: [0] | AP171: 0 | AQ171: 0 | AR171: 0 | AS171: 0 | AT171: 0 | AU171: 0 | AV171: 0 | AW171: 0 | AX171: 0 | AY171: 0 | AZ171: 0 | BA171: 0 | BB171: 0 | BC171: 6016.545455 | BD171: 0 | BE171: 0 | BF171: 12079.36364 | BG171: 13.89792968 | BH171: 1728.454545 | BI171: 26.59914712 | BJ171: 49.47456595 | BK171: 5709 | BL171: 3024 | BM171: 7307 | BN171: 26.31317264 | BO171: 20.52549514 | BP171: 1194.818182 | BQ171: 9.884568239 | BR171: <ArgumentTypeException> | BS171: <ArgumentTypeException> | BT171: 5984 | BU171: 19.27272727 | BV171: 494.0909091 | BW171: 848.7272727 | BX171: 11974.1 | BY171: 0 | BZ171: 0 | CA171: 1000000000 | CB171: 0 | CC171: not yet
A172: 13 | B172: 15000 | C172: 1 | D172: 0.35 | E172: 0.75 | F172: 47.5 | G172: female abc | H172: 10 | I172: 10 | J172: TRUE | K172: 150 | L172: 120 | M172: 240 | N172: 6 | O172: 36 | P172: TRUE | Q172: Generic | R172: Addis Ababa | S172: TRUE | T172: 0.4 | U172: 4.32 | V172: 18.88 | W172: 3.36 | X172: 18.8 | Y172: 14.24 | Z172: 1.2 | AA172: 0.56 | AB172: 1.68 | AC172: 14.8 | AD172: 7.92 | AE172: 9.12 | AF172: 10 | AG172: 23.02581335 | AH172: 13094 | AI172: 12061.36364 | AJ172: 0 | AK172: 0 | AL172: 0 | AM172: 0 | AN172: 0 | AO172: [0] | AP172: 0 | AQ172: 0 | AR172: 0 | AS172: 0 | AT172: 0 | AU172: 0 | AV172: 0 | AW172: 0 | AX172: 0 | AY172: 0 | AZ172: 0 | BA172: 0 | BB172: 0 | BC172: 6063 | BD172: 0 | BE172: 0 | BF172: 12061.36364 | BG172: 14.05954319 | BH172: 1749.272727 | BI172: 26.40904231 | BJ172: 50.04582251 | BK172: 5784 | BL172: 3201 | BM172: 7559 | BN172: 26.05951994 | BO172: 20.45680133 | BP172: 1267.545455 | BQ172: 10.51172493 | BR172: <ArgumentTypeException> | BS172: <ArgumentTypeException> | BT172: 6033.454545 | BU172: 16.90909091 | BV172: 538.6363636 | BW172: 867.7272727 | BX172: 11958.1 | BY172: 0 | BZ172: 0 | CA172: 1000000000 | CB172: 0 | CC172: not yet
A173: 3 | B173: 15000 | C173: 1 | D173: 0.35 | E173: 0.75 | F173: 47.5 | G173: female abc | H173: 10 | I173: 10 | J173: TRUE | K173: 150 | L173: 120 | M173: 240 | N173: 6 | O173: 36 | P173: TRUE | Q173: Generic | R173: Addis Ababa | S173: TRUE | T173: 0.4 | U173: 4.32 | V173: 18.88 | W173: 3.36 | X173: 18.8 | Y173: 14.24 | Z173: 1.2 | AA173: 0.56 | AB173: 1.68 | AC173: 14.8 | AD173: 7.92 | AE173: 9.12 | AF173: 10 | AG173: 22.71262645 | AH173: 13345 | AI173: 12361.90909 | AJ173: 0 | AK173: 0 | AL173: 0 | AM173: 0 | AN173: 0 | AO173: [0] | AP173: 0 | AQ173: 0 | AR173: 0 | AS173: 0 | AT173: 0 | AU173: 0 | AV173: 0 | AW173: 0 | AX173: 0 | AY173: 0 | AZ173: 0 | BA173: 0 | BB173: 0 | BC173: 6151.454545 | BD173: 0 | BE173: 0 | BF173: 12361.90909 | BG173: 13.71424062 | BH173: 1749 | BI173: 26.02472836 | BJ173: 50.22105658 | BK173: 5879 | BL173: 3307 | BM173: 7791 | BN173: 26.63212722 | BO173: 20.84277842 | BP173: 1189.545455 | BQ173: 9.623677548 | BR173: <ArgumentTypeException> | BS173: <ArgumentTypeException> | BT173: 6116.545455 | BU173: 21.27272727 | BV173: 541.4545455 | BW173: 856.6363636 | BX173: 12263.6 | BY173: 0 | BZ173: 0 | CA173: 1000000000 | CB173: 0 | CC173: not yet
A174: 5 | B174: 15000 | C174: 1 | D174: 0.35 | E174: 0.75 | F174: 47.5 | G174: female abc | H174: 10 | I174: 10 | J174: TRUE | K174: 150 | L174: 120 | M174: 240 | N174: 6 | O174: 36 | P174: TRUE | Q174: Generic | R174: Addis Ababa | S174: TRUE | T174: 0.4 | U174: 4.32 | V174: 18.88 | W174: 3.36 | X174: 18.8 | Y174: 14.24 | Z174: 1.2 | AA174: 0.56 | AB174: 1.68 | AC174: 14.8 | AD174: 7.92 | AE174: 9.12 | AF174: 10 | AG174: 22.52072306 | AH174: 10013 | AI174: 9350.454545 | AJ174: 0 | AK174: 0 | AL174: 0 | AM174: 0 | AN174: 0 | AO174: [0] | AP174: 0 | AQ174: 0 | AR174: 0 | AS174: 0 | AT174: 0 | AU174: 0 | AV174: 0 | AW174: 0 | AX174: 0 | AY174: 0 | AZ174: 0 | BA174: 0 | BB174: 0 | BC174: 4669.181818 | BD174: 0 | BE174: 0 | BF174: 9350.454545 | BG174: 13.53482699 | BH174: 1304 | BI174: 25.77649056 | BJ174: 49.705383 | BK174: 4266 | BL174: 2343 | BM174: 5834 | BN174: 26.73702295 | BO174: 21.28064368 | BP174: 977.3636364 | BQ174: 10.4522145 | BR174: <ArgumentTypeException> | BS174: <ArgumentTypeException> | BT174: 4642.909091 | BU174: 16.18181818 | BV174: 390.6363636 | BW174: 648.3636364 | BX174: 9284.2 | BY174: 0 | BZ174: 0 | CA174: 1000000000 | CB174: 0 | CC174: not yet
A175: 14 | B175: 15000 | C175: 1 | D175: 0.35 | E175: 0.75 | F175: 47.5 | G175: female abc | H175: 10 | I175: 10 | J175: TRUE | K175: 150 | L175: 120 | M175: 240 | N175: 6 | O175: 36 | P175: TRUE | Q175: Generic | R175: Addis Ababa | S175: TRUE | T175: 0.4 | U175: 4.32 | V175: 18.88 | W175: 3.36 | X175: 18.8 | Y175: 14.24 | Z175: 1.2 | AA175: 0.56 | AB175: 1.68 | AC175: 14.8 | AD175: 7.92 | AE175: 9.12 | AF175: 10 | AG175: 24.06837851 | AH175: 13981 | AI175: 12732.09091 | AJ175: 0 | AK175: 0 | AL175: 0 | AM175: 0 | AN175: 0 | AO175: [0] | AP175: 0 | AQ175: 0 | AR175: 0 | AS175: 0 | AT175: 0 | AU175: 0 | AV175: 0 | AW175: 0 | AX175: 0 | AY175: 0 | AZ175: 0 | BA175: 0 | BB175: 0 | BC175: 6349.545455 | BD175: 0 | BE175: 0 | BF175: 12732.09091 | BG175: 14.1087186 | BH175: 1856.272727 | BI175: 27.70903369 | BJ175: 50.14662757 | BK175: 6056 | BL175: 3113 | BM175: 7725 | BN175: 26.01515812 | BO175: 20.39146158 | BP175: 1296.909091 | BQ175: 10.19020296 | BR175: <ArgumentTypeException> | BS175: <ArgumentTypeException> | BT175: 6316 | BU175: 19.81818182 | BV175: 568.2727273 | BW175: 915.9090909 | BX175: 12607.2 | BY175: 0 | BZ175: 0 | CA175: 1000000000 | CB175: 0 | CC175: not yet
A176: 4 | B176: 15000 | C176: 1 | D176: 0.35 | E176: 0.75 | F176: 47.5 | G176: female abc | H176: 10 | I176: 10 | J176: TRUE | K176: 150 | L176: 120 | M176: 240 | N176: 6 | O176: 36 | P176: TRUE | Q176: Generic | R176: Addis Ababa | S176: TRUE | T176: 0.4 | U176: 4.32 | V176: 18.88 | W176: 3.36 | X176: 18.8 | Y176: 14.24 | Z176: 1.2 | AA176: 0.56 | AB176: 1.68 | AC176: 14.8 | AD176: 7.92 | AE176: 9.12 | AF176: 10 | AG176: 23.9525189 | AH176: 14153 | AI176: 12942.36364 | AJ176: 0 | AK176: 0 | AL176: 0 | AM176: 0 | AN176: 0 | AO176: [0] | AP176: 0 | AQ176: 0 | AR176: 0 | AS176: 0 | AT176: 0 | AU176: 0 | AV176: 0 | AW176: 0 | AX176: 0 | AY176: 0 | AZ176: 0 | BA176: 0 | BB176: 0 | BC176: 6409.545455 | BD176: 0 | BE176: 0 | BF176: 12942.36364 | BG176: 14.40562319 | BH176: 1922.727273 | BI176: 27.50653572 | BJ176: 49.16978732 | BK176: 6037 | BL176: 3056 | BM176: 7692 | BN176: 25.87401296 | BO176: 20.19013054 | BP176: 1264.454545 | BQ176: 9.77139012 | BR176: <ArgumentTypeException> | BS176: <ArgumentTypeException> | BT176: 6377.909091 | BU176: 18.27272727 | BV176: 526.9090909 | BW176: 945.9090909 | BX176: 12821.3 | BY176: 0 | BZ176: 0 | CA176: 1000000000 | CB176: 0 | CC176: not yet
A177: 8 | B177: 15000 | C177: 1 | D177: 0.35 | E177: 0.75 | F177: 47.5 | G177: female abc | H177: 10 | I177: 10 | J177: TRUE | K177: 150 | L177: 120 | M177: 240 | N177: 6 | O177: 36 | P177: TRUE | Q177: Generic | R177: Addis Ababa | S177: TRUE | T177: 0.4 | U177: 4.32 | V177: 18.88 | W177: 3.36 | X177: 18.8 | Y177: 14.24 | Z177: 1.2 | AA177: 0.56 | AB177: 1.68 | AC177: 14.8 | AD177: 7.92 | AE177: 9.12 | AF177: 10 | AG177: 22.65551109 | AH177: 13745 | AI177: 12661.18182 | AJ177: 0 | AK177: 0 | AL177: 0 | AM177: 0 | AN177: 0 | AO177: [0] | AP177: 0 | AQ177: 0 | AR177: 0 | AS177: 0 | AT177: 0 | AU177: 0 | AV177: 0 | AW177: 0 | AX177: 0 | AY177: 0 | AZ177: 0 | BA177: 0 | BB177: 0 | BC177: 6321 | BD177: 0 | BE177: 0 | BF177: 12661.18182 | BG177: 13.71927601 | BH177: 1791.272727 | BI177: 26.06766097 | BJ177: 49.98908694 | BK177: 6049 | BL177: 3367 | BM177: 7859 | BN177: 26.37800032 | BO177: 20.62909742 | BP177: 1340 | BQ177: 10.59137138 | BR177: <ArgumentTypeException> | BS177: <ArgumentTypeException> | BT177: 6279.636364 | BU177: 24.81818182 | BV177: 578.6363636 | BW177: 890.6363636 | BX177: 12552.8 | BY177: 0 | BZ177: 0 | CA177: 1000000000 | CB177: 0 | CC177: not yet
A178: 1 | B178: 15000 | C178: 1 | D178: 0.35 | E178: 0.75 | F178: 47.5 | G178: female abc | H178: 10 | I178: 10 | J178: TRUE | K178: 150 | L178: 120 | M178: 240 | N178: 6 | O178: 36 | P178: TRUE | Q178: Generic | R178: Addis Ababa | S178: TRUE | T178: 0.4 | U178: 4.32 | V178: 18.88 | W178: 3.36 | X178: 18.8 | Y178: 14.24 | Z178: 1.2 | AA178: 0.56 | AB178: 1.68 | AC178: 14.8 | AD178: 7.92 | AE178: 9.12 | AF178: 11 | AG178: 26.98630137 | AH178: 13870 | AI178: 12017.33333 | AJ178: 0 | AK178: 0 | AL178: 0 | AM178: 0 | AN178: 0 | AO178: [0] | AP178: 0 | AQ178: 0 | AR178: 0 | AS178: 0 | AT178: 0 | AU178: 0 | AV178: 0 | AW178: 0 | AX178: 0 | AY178: 0 | AZ178: 0 | BA178: 0 | BB178: 0 | BC178: 6001.25 | BD178: 0 | BE178: 0 | BF178: 12017.33333 | BG178: 15.50211387 | BH178: 1941.5 | BI178: 33.44628695 | BJ178: 49.93511175 | BK178: 7711 | BL178: 3882 | BM178: 8452 | BN178: 24.45571813 | BO178: 18.96852375 | BP178: 1226 | BQ178: 10.20218776 | BR178: <ArgumentTypeException> | BS178: <ArgumentTypeException> | BT178: 5956.416667 | BU178: 28.66666667 | BV178: 508.0833333 | BW178: 979.3333333 | BX178: 11848.90909 | BY178: 0 | BZ178: 0 | CA178: 1000000000 | CB178: 0 | CC178: not yet
A179: 6 | B179: 15000 | C179: 1 | D179: 0.35 | E179: 0.75 | F179: 47.5 | G179: female abc | H179: 10 | I179: 10 | J179: TRUE | K179: 150 | L179: 120 | M179: 240 | N179: 6 | O179: 36 | P179: TRUE | Q179: Generic | R179: Addis Ababa | S179: TRUE | T179: 0.4 | U179: 4.32 | V179: 18.88 | W179: 3.36 | X179: 18.8 | Y179: 14.24 | Z179: 1.2 | AA179: 0.56 | AB179: 1.68 | AC179: 14.8 | AD179: 7.92 | AE179: 9.12 | AF179: 12 | AG179: 23.88438134 | AH179: 13804 | AI179: 11918.08333 | AJ179: 0 | AK179: 0 | AL179: 0 | AM179: 0 | AN179: 0 | AO179: [0] | AP179: 0 | AQ179: 0 | AR179: 0 | AS179: 0 | AT179: 0 | AU179: 0 | AV179: 0 | AW179: 0 | AX179: 0 | AY179: 0 | AZ179: 0 | BA179: 0 | BB179: 0 | BC179: 5954.25 | BD179: 0 | BE179: 0 | BF179: 11918.08333 | BG179: 16.41857847 | BH179: 2046.5 | BI179: 34.57693422 | BJ179: 49.82613735 | BK179: 9163 | BL179: 5223 | BM179: 10124 | BN179: 24.90471363 | BO179: 19.11935842 | BP179: 1187.75 | BQ179: 9.970092996 | BR179: <ArgumentTypeException> | BS179: <ArgumentTypeException> | BT179: 5898.333333 | BU179: 40 | BV179: 494.8333333 | BW179: 1008.166667 | BX179: 11896.83333 | BY179: 0 | BZ179: 0 | CA179: 1000000000 | CB179: 0 | CC179: not yet
A180: 7 | B180: 15000 | C180: 1 | D180: 0.35 | E180: 0.75 | F180: 47.5 | G180: female abc | H180: 10 | I180: 10 | J180: TRUE | K180: 150 | L180: 120 | M180: 240 | N180: 6 | O180: 36 | P180: TRUE | Q180: Generic | R180: Addis Ababa | S180: TRUE | T180: 0.4 | U180: 4.32 | V180: 18.88 | W180: 3.36 | X180: 18.8 | Y180: 14.24 | Z180: 1.2 | AA180: 0.56 | AB180: 1.68 | AC180: 14.8 | AD180: 7.92 | AE180: 9.12 | AF180: 11 | AG180: 27.30643091 | AH180: 14026 | AI180: 12104.25 | AJ180: 0 | AK180: 0 | AL180: 0 | AM180: 0 | AN180: 0 | AO180: [0] | AP180: 0 | AQ180: 0 | AR180: 0 | AS180: 0 | AT180: 0 | AU180: 0 | AV180: 0 | AW180: 0 | AX180: 0 | AY180: 0 | AZ180: 0 | BA180: 0 | BB180: 0 | BC180: 6068.666667 | BD180: 0 | BE180: 0 | BF180: 12104.25 | BG180: 15.91767438 | BH180: 2006.833333 | BI180: 33.55910452 | BJ180: 50.05703693 | BK180: 7695 | BL180: 3770 | BM180: 8333 | BN180: 24.52468828 | BO180: 18.75991564 | BP180: 1223.166667 | BQ180: 10.114005 | BR180: <ArgumentTypeException> | BS180: <ArgumentTypeException> | BT180: 6027.5 | BU180: 27.41666667 | BV180: 523 | BW180: 994.6666667 | BX180: 11929.54545 | BY180: 0 | BZ180: 0 | CA180: 1000000000 | CB180: 0 | CC180: not yet
A181: 11 | B181: 15000 | C181: 1 | D181: 0.35 | E181: 0.75 | F181: 47.5 | G181: female abc | H181: 10 | I181: 10 | J181: TRUE | K181: 150 | L181: 120 | M181: 240 | N181: 6 | O181: 36 | P181: TRUE | Q181: Generic | R181: Addis Ababa | S181: TRUE | T181: 0.4 | U181: 4.32 | V181: 18.88 | W181: 3.36 | X181: 18.8 | Y181: 14.24 | Z181: 1.2 | AA181: 0.56 | AB181: 1.68 | AC181: 14.8 | AD181: 7.92 | AE181: 9.12 | AF181: 11 | AG181: 24.48047163 | AH181: 13570 | AI181: 12177.75 | AJ181: 0 | AK181: 0 | AL181: 0 | AM181: 0 | AN181: 0 | AO181: [0] | AP181: 0 | AQ181: 0 | AR181: 0 | AS181: 0 | AT181: 0 | AU181: 0 | AV181: 0 | AW181: 0 | AX181: 0 | AY181: 0 | AZ181: 0 | BA181: 0 | BB181: 0 | BC181: 6063.333333 | BD181: 0 | BE181: 0 | BF181: 12177.75 | BG181: 14.87686526 | BH181: 1876.833333 | BI181: 30.35372144 | BJ181: 49.92630803 | BK181: 7913 | BL181: 4647 | BM181: 9372 | BN181: 25.68503905 | BO181: 20.35018453 | BP181: 1194.333333 | BQ181: 9.805581203 | BR181: <ArgumentTypeException> | BS181: <ArgumentTypeException> | BT181: 6015.333333 | BU181: 31.5 | BV181: 495.3333333 | BW181: 929.4166667 | BX181: 12051.18182 | BY181: 0 | BZ181: 0 | CA181: 1000000000 | CB181: 0 | CC181: not yet
A182: 15 | B182: 15000 | C182: 1 | D182: 0.35 | E182: 0.75 | F182: 47.5 | G182: female abc | H182: 10 | I182: 10 | J182: TRUE | K182: 150 | L182: 120 | M182: 240 | N182: 6 | O182: 36 | P182: TRUE | Q182: Generic | R182: Addis Ababa | S182: TRUE | T182: 0.4 | U182: 4.32 | V182: 18.88 | W182: 3.36 | X182: 18.8 | Y182: 14.24 | Z182: 1.2 | AA182: 0.56 | AB182: 1.68 | AC182: 14.8 | AD182: 7.92 | AE182: 9.12 | AF182: 10 | AG182: 23.39973063 | AH182: 14107 | AI182: 12915.54545 | AJ182: 0 | AK182: 0 | AL182: 0 | AM182: 0 | AN182: 0 | AO182: [0] | AP182: 0 | AQ182: 0 | AR182: 0 | AS182: 0 | AT182: 0 | AU182: 0 | AV182: 0 | AW182: 0 | AX182: 0 | AY182: 0 | AZ182: 0 | BA182: 0 | BB182: 0 | BC182: 6442.727273 | BD182: 0 | BE182: 0 | BF182: 12915.54545 | BG182: 13.93315427 | BH182: 1855.363636 | BI182: 26.85900617 | BJ182: 50.04607642 | BK182: 6125 | BL182: 3223 | BM182: 7848 | BN182: 26.09230791 | BO182: 20.36632005 | BP182: 1346 | BQ182: 10.42427236 | BR182: <ArgumentTypeException> | BS182: <ArgumentTypeException> | BT182: 6404.636364 | BU182: 22.81818182 | BV182: 582.4545455 | BW182: 940.4545455 | BX182: 12796.4 | BY182: 0 | BZ182: 0 | CA182: 1000000000 | CB182: 0 | CC182: not yet
A183: 9 | B183: 15000 | C183: 1 | D183: 0.35 | E183: 0.75 | F183: 47.5 | G183: female abc | H183: 10 | I183: 10 | J183: TRUE | K183: 150 | L183: 120 | M183: 240 | N183: 6 | O183: 36 | P183: TRUE | Q183: Generic | R183: Addis Ababa | S183: TRUE | T183: 0.4 | U183: 4.32 | V183: 18.88 | W183: 3.36 | X183: 18.8 | Y183: 14.24 | Z183: 1.2 | AA183: 0.56 | AB183: 1.68 | AC183: 14.8 | AD183: 7.92 | AE183: 9.12 | AF183: 11 | AG183: 26.91285293 | AH183: 13919 | AI183: 12069.16667 | AJ183: 0 | AK183: 0 | AL183: 0 | AM183: 0 | AN183: 0 | AO183: [0] | AP183: 0 | AQ183: 0 | AR183: 0 | AS183: 0 | AT183: 0 | AU183: 0 | AV183: 0 | AW183: 0 | AX183: 0 | AY183: 0 | AZ183: 0 | BA183: 0 | BB183: 0 | BC183: 6070.5 | BD183: 0 | BE183: 0 | BF183: 12069.16667 | BG183: 15.66720559 | BH183: 1970.333333 | BI183: 33.57281414 | BJ183: 50.08262088 | BK183: 7807 | BL183: 3980 | BM183: 8459 | BN183: 24.97568397 | BO183: 19.00294292 | BP183: 1181.5 | BQ183: 9.788746089 | BR183: <ArgumentTypeException> | BS183: <ArgumentTypeException> | BT183: 6031.5 | BU183: 25.58333333 | BV183: 522.6666667 | BW183: 995.25 | BX183: 11901 | BY183: 0 | BZ183: 0 | CA183: 1000000000 | CB183: 0 | CC183: not yet
A184: 5 | B184: 15000 | C184: 1 | D184: 0.35 | E184: 0.75 | F184: 47.5 | G184: female abc | H184: 10 | I184: 10 | J184: TRUE | K184: 150 | L184: 120 | M184: 240 | N184: 6 | O184: 36 | P184: TRUE | Q184: Generic | R184: Addis Ababa | S184: TRUE | T184: 0.4 | U184: 4.32 | V184: 18.88 | W184: 3.36 | X184: 18.8 | Y184: 14.24 | Z184: 1.2 | AA184: 0.56 | AB184: 1.68 | AC184: 14.8 | AD184: 7.92 | AE184: 9.12 | AF184: 11 | AG184: 25.57921396 | AH184: 10661 | AI184: 9459.666667 | AJ184: 0 | AK184: 0 | AL184: 0 | AM184: 0 | AN184: 0 | AO184: [0] | AP184: 0 | AQ184: 0 | AR184: 0 | AS184: 0 | AT184: 0 | AU184: 0 | AV184: 0 | AW184: 0 | AX184: 0 | AY184: 0 | AZ184: 0 | BA184: 0 | BB184: 0 | BC184: 4718.666667 | BD184: 0 | BE184: 0 | BF184: 9459.666667 | BG184: 15.05676997 | BH184: 1477.833333 | BI184: 31.79814276 | BJ184: 49.36685114 | BK184: 5873 | BL184: 3136 | BM184: 6870 | BN184: 25.3568624 | BO184: 20 | BP184: 990.75 | BQ184: 10.47073169 | BR184: <ArgumentTypeException> | BS184: <ArgumentTypeException> | BT184: 4684.25 | BU184: 22.91666667 | BV184: 388.5 | BW184: 730.4166667 | BX184: 9350.454545 | BY184: 0 | BZ184: 0 | CA184: 1000000000 | CB184: 0 | CC184: not yet
A185: 12 | B185: 15000 | C185: 1 | D185: 0.35 | E185: 0.75 | F185: 47.5 | G185: female abc | H185: 10 | I185: 10 | J185: TRUE | K185: 150 | L185: 120 | M185: 240 | N185: 6 | O185: 36 | P185: TRUE | Q185: Generic | R185: Addis Ababa | S185: TRUE | T185: 0.4 | U185: 4.32 | V185: 18.88 | W185: 3.36 | X185: 18.8 | Y185: 14.24 | Z185: 1.2 | AA185: 0.56 | AB185: 1.68 | AC185: 14.8 | AD185: 7.92 | AE185: 9.12 | AF185: 11 | AG185: 25.32744875 | AH185: 14048 | AI185: 12399.58333 | AJ185: 0 | AK185: 0 | AL185: 0 | AM185: 0 | AN185: 0 | AO185: [0] | AP185: 0 | AQ185: 0 | AR185: 0 | AS185: 0 | AT185: 0 | AU185: 0 | AV185: 0 | AW185: 0 | AX185: 0 | AY185: 0 | AZ185: 0 | BA185: 0 | BB185: 0 | BC185: 6210.583333 | BD185: 0 | BE185: 0 | BF185: 12399.58333 | BG185: 15.14548053 | BH185: 1947.666667 | BI185: 31.62015945 | BJ185: 50.28473804 | BK185: 8037 | BL185: 4455 | BM185: 9164 | BN185: 25.17851268 | BO185: 19.65103181 | BP185: 1255.333333 | BQ185: 10.12236824 | BR185: <ArgumentTypeException> | BS185: <ArgumentTypeException> | BT185: 6169 | BU185: 26.58333333 | BV185: 504.5833333 | BW185: 975.75 | BX185: 12249.72727 | BY185: 0 | BZ185: 0 | CA185: 1000000000 | CB185: 0 | CC185: not yet
A186: 10 | B186: 15000 | C186: 1 | D186: 0.35 | E186: 0.75 | F186: 47.5 | G186: female abc | H186: 10 | I186: 10 | J186: TRUE | K186: 150 | L186: 120 | M186: 240 | N186: 6 | O186: 36 | P186: TRUE | Q186: Generic | R186: Addis Ababa | S186: TRUE | T186: 0.4 | U186: 4.32 | V186: 18.88 | W186: 3.36 | X186: 18.8 | Y186: 14.24 | Z186: 1.2 | AA186: 0.56 | AB186: 1.68 | AC186: 14.8 | AD186: 7.92 | AE186: 9.12 | AF186: 11 | AG186: 26.35348038 | AH186: 13964 | AI186: 12236.41667 | AJ186: 0 | AK186: 0 | AL186: 0 | AM186: 0 | AN186: 0 | AO186: [0] | AP186: 0 | AQ186: 0 | AR186: 0 | AS186: 0 | AT186: 0 | AU186: 0 | AV186: 0 | AW186: 0 | AX186: 0 | AY186: 0 | AZ186: 0 | BA186: 0 | BB186: 0 | BC186: 6094 | BD186: 0 | BE186: 0 | BF186: 12236.41667 | BG186: 15.45150381 | BH186: 1963.083333 | BI186: 32.54081925 | BJ186: 49.74219421 | BK186: 7835 | BL186: 4089 | BM186: 8701 | BN186: 25.00135263 | BO186: 19.10700186 | BP186: 1212.833333 | BQ186: 9.902900433 | BR186: <ArgumentTypeException> | BS186: <ArgumentTypeException> | BT186: 6050.166667 | BU186: 28.83333333 | BV186: 490.1666667 | BW186: 967.6666667 | BX186: 12079.36364 | BY186: 0 | BZ186: 0 | CA186: 1000000000 | CB186: 0 | CC186: not yet
A187: 16 | B187: 15000 | C187: 1 | D187: 0.35 | E187: 0.75 | F187: 47.5 | G187: female abc | H187: 10 | I187: 10 | J187: TRUE | K187: 150 | L187: 120 | M187: 240 | N187: 6 | O187: 36 | P187: TRUE | Q187: Generic | R187: Addis Ababa | S187: TRUE | T187: 0.4 | U187: 4.32 | V187: 18.88 | W187: 3.36 | X187: 18.8 | Y187: 14.24 | Z187: 1.2 | AA187: 0.56 | AB187: 1.68 | AC187: 14.8 | AD187: 7.92 | AE187: 9.12 | AF187: 11 | AG187: 26.35275568 | AH187: 13953 | AI187: 12146.16667 | AJ187: 0 | AK187: 0 | AL187: 0 | AM187: 0 | AN187: 0 | AO187: [0] | AP187: 0 | AQ187: 0 | AR187: 0 | AS187: 0 | AT187: 0 | AU187: 0 | AV187: 0 | AW187: 0 | AX187: 0 | AY187: 0 | AZ187: 0 | BA187: 0 | BB187: 0 | BC187: 6025.583333 | BD187: 0 | BE187: 0 | BF187: 12146.16667 | BG187: 15.33630853 | BH187: 1939.916667 | BI187: 32.55213932 | BJ187: 49.98208271 | BK187: 7764 | BL187: 4086 | BM187: 8585 | BN187: 25.1442347 | BO187: 19.39353251 | BP187: 1213.5 | BQ187: 9.987355356 | BR187: <ArgumentTypeException> | BS187: <ArgumentTypeException> | BT187: 5985.583333 | BU187: 26 | BV187: 526.25 | BW187: 973.5833333 | BX187: 11981.90909 | BY187: 0 | BZ187: 0 | CA187: 1000000000 | CB187: 0 | CC187: not yet
A188: 3 | B188: 15000 | C188: 1 | D188: 0.35 | E188: 0.75 | F188: 47.5 | G188: female abc | H188: 10 | I188: 10 | J188: TRUE | K188: 150 | L188: 120 | M188: 240 | N188: 6 | O188: 36 | P188: TRUE | Q188: Generic | R188: Addis Ababa | S188: TRUE | T188: 0.4 | U188: 4.32 | V188: 18.88 | W188: 3.36 | X188: 18.8 | Y188: 14.24 | Z188: 1.2 | AA188: 0.56 | AB188: 1.68 | AC188: 14.8 | AD188: 7.92 | AE188: 9.12 | AF188: 11 | AG188: 25.71246278 | AH188: 14106 | AI188: 12507.25 | AJ188: 0 | AK188: 0 | AL188: 0 | AM188: 0 | AN188: 0 | AO188: [0] | AP188: 0 | AQ188: 0 | AR188: 0 | AS188: 0 | AT188: 0 | AU188: 0 | AV188: 0 | AW188: 0 | AX188: 0 | AY188: 0 | AZ188: 0 | BA188: 0 | BB188: 0 | BC188: 6228.916667 | BD188: 0 | BE188: 0 | BF188: 12507.25 | BG188: 15.2103352 | BH188: 1975.5 | BI188: 31.66737558 | BJ188: 50.19849709 | BK188: 8057 | BL188: 4484 | BM188: 9311 | BN188: 25.41324921 | BO188: 19.61547427 | BP188: 1201.916667 | BQ188: 9.612148202 | BR188: <ArgumentTypeException> | BS188: <ArgumentTypeException> | BT188: 6182.083333 | BU188: 30.58333333 | BV188: 536.25 | BW188: 973.75 | BX188: 12361.90909 | BY188: 0 | BZ188: 0 | CA188: 1000000000 | CB188: 0 | CC188: not yet
A189: 2 | B189: 15000 | C189: 1 | D189: 0.35 | E189: 0.75 | F189: 47.5 | G189: female abc | H189: 10 | I189: 10 | J189: TRUE | K189: 150 | L189: 120 | M189: 240 | N189: 6 | O189: 36 | P189: TRUE | Q189: Generic | R189: Addis Ababa | S189: TRUE | T189: 0.4 | U189: 4.32 | V189: 18.88 | W189: 3.36 | X189: 18.8 | Y189: 14.24 | Z189: 1.2 | AA189: 0.56 | AB189: 1.68 | AC189: 14.8 | AD189: 7.92 | AE189: 9.12 | AF189: 11 | AG189: 26.60459166 | AH189: 14069 | AI189: 12292.66667 | AJ189: 0 | AK189: 0 | AL189: 0 | AM189: 0 | AN189: 0 | AO189: [0] | AP189: 0 | AQ189: 0 | AR189: 0 | AS189: 0 | AT189: 0 | AU189: 0 | AV189: 0 | AW189: 0 | AX189: 0 | AY189: 0 | AZ189: 0 | BA189: 0 | BB189: 0 | BC189: 6326.833333 | BD189: 0 | BE189: 0 | BF189: 12292.66667 | BG189: 15.69459574 | BH189: 2004.833333 | BI189: 32.74575307 | BJ189: 50.97732604 | BK189: 8078 | BL189: 4343 | BM189: 9000 | BN189: 24.95996992 | BO189: 19.23343808 | BP189: 1220.833333 | BQ189: 9.926534045 | BR189: <ArgumentTypeException> | BS189: <ArgumentTypeException> | BT189: 6283.75 | BU189: 28 | BV189: 514.5833333 | BW189: 1012.666667 | BX189: 12131.18182 | BY189: 0 | BZ189: 0 | CA189: 1000000000 | CB189: 0 | CC189: not yet
A190: 6 | B190: 15000 | C190: 1 | D190: 0.35 | E190: 0.75 | F190: 47.5 | G190: female abc | H190: 10 | I190: 10 | J190: TRUE | K190: 150 | L190: 120 | M190: 240 | N190: 6 | O190: 36 | P190: TRUE | Q190: Generic | R190: Addis Ababa | S190: TRUE | T190: 0.4 | U190: 4.32 | V190: 18.88 | W190: 3.36 | X190: 18.8 | Y190: 14.24 | Z190: 1.2 | AA190: 0.56 | AB190: 1.68 | AC190: 14.8 | AD190: 7.92 | AE190: 9.12 | AF190: 13 | AG190: 18.97443368 | AH190: 13729 | AI190: 12018.91667 | AJ190: 0 | AK190: 0 | AL190: 0 | AM190: 0 | AN190: 0 | AO190: [0] | AP190: 0 | AQ190: 0 | AR190: 0 | AS190: 0 | AT190: 0 | AU190: 0 | AV190: 0 | AW190: 0 | AX190: 0 | AY190: 0 | AZ190: 0 | BA190: 0 | BB190: 0 | BC190: 6005.25 | BD190: 0 | BE190: 0 | BF190: 12018.91667 | BG190: 17.78088376 | BH190: 2251.75 | BI190: 34.41619929 | BJ190: 50.08376429 | BK190: 10087 | BL190: 6030 | BM190: 11222 | BN190: 25.34536929 | BO190: 19.52674622 | BP190: 1197.083333 | BQ190: 9.964800242 | BR190: <ArgumentTypeException> | BS190: <ArgumentTypeException> | BT190: 5932.583333 | BU190: 54.16666667 | BV190: 490.0833333 | BW190: 1111.333333 | BX190: 11918.08333 | BY190: 0 | BZ190: 0 | CA190: 1000000000 | CB190: 0 | CC190: not yet
A191: 13 | B191: 15000 | C191: 1 | D191: 0.35 | E191: 0.75 | F191: 47.5 | G191: female abc | H191: 10 | I191: 10 | J191: TRUE | K191: 150 | L191: 120 | M191: 240 | N191: 6 | O191: 36 | P191: TRUE | Q191: Generic | R191: Addis Ababa | S191: TRUE | T191: 0.4 | U191: 4.32 | V191: 18.88 | W191: 3.36 | X191: 18.8 | Y191: 14.24 | Z191: 1.2 | AA191: 0.56 | AB191: 1.68 | AC191: 14.8 | AD191: 7.92 | AE191: 9.12 | AF191: 11 | AG191: 25.84577653 | AH191: 13863 | AI191: 12211.5 | AJ191: 0 | AK191: 0 | AL191: 0 | AM191: 0 | AN191: 0 | AO191: [0] | AP191: 0 | AQ191: 0 | AR191: 0 | AS191: 0 | AT191: 0 | AU191: 0 | AV191: 0 | AW191: 0 | AX191: 0 | AY191: 0 | AZ191: 0 | BA191: 0 | BB191: 0 | BC191: 6135.083333 | BD191: 0 | BE191: 0 | BF191: 12211.5 | BG191: 15.56951309 | BH191: 1975.25 | BI191: 32.179182 | BJ191: 49.97475294 | BK191: 7876 | BL191: 4271 | BM191: 8982 | BN191: 24.79137975 | BO191: 19.21325347 | BP191: 1283.916667 | BQ191: 10.51578825 | BR191: <ArgumentTypeException> | BS191: <ArgumentTypeException> | BT191: 6095.25 | BU191: 25.25 | BV191: 535.75 | BW191: 979.9166667 | BX191: 12061.36364 | BY191: 0 | BZ191: 0 | CA191: 1000000000 | CB191: 0 | CC191: not yet
A192: 4 | B192: 15000 | C192: 1 | D192: 0.35 | E192: 0.75 | F192: 47.5 | G192: female abc | H192: 10 | I192: 10 | J192: TRUE | K192: 150 | L192: 120 | M192: 240 | N192: 6 | O192: 36 | P192: TRUE | Q192: Generic | R192: Addis Ababa | S192: TRUE | T192: 0.4 | U192: 4.32 | V192: 18.88 | W192: 3.36 | X192: 18.8 | Y192: 14.24 | Z192: 1.2 | AA192: 0.56 | AB192: 1.68 | AC192: 14.8 | AD192: 7.92 | AE192: 9.12 | AF192: 11 | AG192: 26.67776298 | AH192: 15020 | AI192: 13115.5 | AJ192: 0 | AK192: 0 | AL192: 0 | AM192: 0 | AN192: 0 | AO192: [0] | AP192: 0 | AQ192: 0 | AR192: 0 | AS192: 0 | AT192: 0 | AU192: 0 | AV192: 0 | AW192: 0 | AX192: 0 | AY192: 0 | AZ192: 0 | BA192: 0 | BB192: 0 | BC192: 6490 | BD192: 0 | BE192: 0 | BF192: 13115.5 | BG192: 15.97978841 | BH192: 2179.25 | BI192: 33.29560586 | BJ192: 49.1011984 | BK192: 8227 | BL192: 4129 | BM192: 9122 | BN192: 24.64195936 | BO192: 18.92258432 | BP192: 1278.166667 | BQ192: 9.74993939 | BR192: <ArgumentTypeException> | BS192: <ArgumentTypeException> | BT192: 6447.333333 | BU192: 27.33333333 | BV192: 522.25 | BW192: 1069.25 | BX192: 12942.36364 | BY192: 0 | BZ192: 0 | CA192: 1000000000 | CB192: 0 | CC192: not yet
A193: 7 | B193: 15000 | C193: 1 | D193: 0.35 | E193: 0.75 | F193: 47.5 | G193: female abc | H193: 10 | I193: 10 | J193: TRUE | K193: 150 | L193: 120 | M193: 240 | N193: 6 | O193: 36 | P193: TRUE | Q193: Generic | R193: Addis Ababa | S193: TRUE | T193: 0.4 | U193: 4.32 | V193: 18.88 | W193: 3.36 | X193: 18.8 | Y193: 14.24 | Z193: 1.2 | AA193: 0.56 | AB193: 1.68 | AC193: 14.8 | AD193: 7.92 | AE193: 9.12 | AF193: 12 | AG193: 25.80801776 | AH193: 14418 | AI193: 12177.5 | AJ193: 0 | AK193: 0 | AL193: 0 | AM193: 0 | AN193: 0 | AO193: [0] | AP193: 0 | AQ193: 0 | AR193: 0 | AS193: 0 | AT193: 0 | AU193: 0 | AV193: 0 | AW193: 0 | AX193: 0 | AY193: 0 | AZ193: 0 | BA193: 0 | BB193: 0 | BC193: 6100.916667 | BD193: 0 | BE193: 0 | BF193: 12177.5 | BG193: 17.14252571 | BH193: 2199.416667 | BI193: 36.54459703 | BJ193: 49.93064225 | BK193: 9247 | BL193: 4702 | BM193: 9593 | BN193: 24.03176611 | BO193: 18.07545252 | BP193: 1230.75 | BQ193: 10.1157421 | BR193: <ArgumentTypeException> | BS193: <ArgumentTypeException> | BT193: 6044.583333 | BU193: 39.91666667 | BV193: 516.4166667 | BW193: 1092 | BX193: 12104.25 | BY193: 0 | BZ193: 0 | CA193: 1000000000 | CB193: 0 | CC193: not yet
A194: 1 | B194: 15000 | C194: 1 | D194: 0.35 | E194: 0.75 | F194: 47.5 | G194: female abc | H194: 10 | I194: 10 | J194: TRUE | K194: 150 | L194: 120 | M194: 240 | N194: 6 | O194: 36 | P194: TRUE | Q194: Generic | R194: Addis Ababa | S194: TRUE | T194: 0.4 | U194: 4.32 | V194: 18.88 | W194: 3.36 | X194: 18.8 | Y194: 14.24 | Z194: 1.2 | AA194: 0.56 | AB194: 1.68 | AC194: 14.8 | AD194: 7.92 | AE194: 9.12 | AF194: 12 | AG194: 25.30492079 | AH194: 14266 | AI194: 12081.91667 | AJ194: 0 | AK194: 0 | AL194: 0 | AM194: 0 | AN194: 0 | AO194: [0] | AP194: 0 | AQ194: 0 | AR194: 0 | AS194: 0 | AT194: 0 | AU194: 0 | AV194: 0 | AW194: 0 | AX194: 0 | AY194: 0 | AZ194: 0 | BA194: 0 | BB194: 0 | BC194: 6033.5 | BD194: 0 | BE194: 0 | BF194: 12081.91667 | BG194: 16.74019466 | BH194: 2131.916667 | BI194: 36.24001122 | BJ194: 49.85279686 | BK194: 9267 | BL194: 4832 | BM194: 9712 | BN194: 24.05072511 | BO194: 18.34062179 | BP194: 1232.25 | BQ194: 10.19992125 | BR194: <ArgumentTypeException> | BS194: <ArgumentTypeException> | BT194: 5971.5 | BU194: 42.5 | BV194: 502.5 | BW194: 1077.416667 | BX194: 12017.33333 | BY194: 0 | BZ194: 0 | CA194: 1000000000 | CB194: 0 | CC194: not yet
A195: 14 | B195: 15000 | C195: 1 | D195: 0.35 | E195: 0.75 | F195: 47.5 | G195: female abc | H195: 10 | I195: 10 | J195: TRUE | K195: 150 | L195: 120 | M195: 240 | N195: 6 | O195: 36 | P195: TRUE | Q195: Generic | R195: Addis Ababa | S195: TRUE | T195: 0.4 | U195: 4.32 | V195: 18.88 | W195: 3.36 | X195: 18.8 | Y195: 14.24 | Z195: 1.2 | AA195: 0.56 | AB195: 1.68 | AC195: 14.8 | AD195: 7.92 | AE195: 9.12 | AF195: 11 | AG195: 26.27949429 | AH195: 14791 | AI195: 12903.66667 | AJ195: 0 | AK195: 0 | AL195: 0 | AM195: 0 | AN195: 0 | AO195: [0] | AP195: 0 | AQ195: 0 | AR195: 0 | AS195: 0 | AT195: 0 | AU195: 0 | AV195: 0 | AW195: 0 | AX195: 0 | AY195: 0 | AZ195: 0 | BA195: 0 | BB195: 0 | BC195: 6440.5 | BD195: 0 | BE195: 0 | BF195: 12903.66667 | BG195: 15.70382115 | BH195: 2111.416667 | BI195: 33.24994929 | BJ195: 50.3076195 | BK195: 8198 | BL195: 4187 | BM195: 9163 | BN195: 24.78581767 | BO195: 19.01756119 | BP195: 1314.083333 | BQ195: 10.18781811 | BR195: <ArgumentTypeException> | BS195: <ArgumentTypeException> | BT195: 6395.583333 | BU195: 29.25 | BV195: 564.5 | BW195: 1046.333333 | BX195: 12732.09091 | BY195: 0 | BZ195: 0 | CA195: 1000000000 | CB195: 0 | CC195: not yet
A196: 5 | B196: 15000 | C196: 1 | D196: 0.35 | E196: 0.75 | F196: 47.5 | G196: female abc | H196: 10 | I196: 10 | J196: TRUE | K196: 150 | L196: 120 | M196: 240 | N196: 6 | O196: 36 | P196: TRUE | Q196: Generic | R196: Addis Ababa | S196: TRUE | T196: 0.4 | U196: 4.32 | V196: 18.88 | W196: 3.36 | X196: 18.8 | Y196: 14.24 | Z196: 1.2 | AA196: 0.56 | AB196: 1.68 | AC196: 14.8 | AD196: 7.92 | AE196: 9.12 | AF196: 12 | AG196: 24.00911162 | AH196: 10975 | AI196: 9476.666667 | AJ196: 0 | AK196: 0 | AL196: 0 | AM196: 0 | AN196: 0 | AO196: [0] | AP196: 0 | AQ196: 0 | AR196: 0 | AS196: 0 | AT196: 0 | AU196: 0 | AV196: 0 | AW196: 0 | AX196: 0 | AY196: 0 | AZ196: 0 | BA196: 0 | BB196: 0 | BC196: 4722.25 | BD196: 0 | BE196: 0 | BF196: 9476.666667 | BG196: 16.14885747 | BH196: 1601.333333 | BI196: 34.64236902 | BJ196: 49.26651481 | BK196: 7111 | BL196: 3922 | BM196: 7872 | BN196: 24.99876498 | BO196: 19.28133597 | BP196: 992.5 | BQ196: 10.47062215 | BR196: <ArgumentTypeException> | BS196: <ArgumentTypeException> | BT196: 4676 | BU196: 32.75 | BV196: 383.1666667 | BW196: 787 | BX196: 9459.666667 | BY196: 0 | BZ196: 0 | CA196: 1000000000 | CB196: 0 | CC196: not yet
A197: 8 | B197: 15000 | C197: 1 | D197: 0.35 | E197: 0.75 | F197: 47.5 | G197: female abc | H197: 10 | I197: 10 | J197: TRUE | K197: 150 | L197: 120 | M197: 240 | N197: 6 | O197: 36 | P197: TRUE | Q197: Generic | R197: Addis Ababa | S197: TRUE | T197: 0.4 | U197: 4.32 | V197: 18.88 | W197: 3.36 | X197: 18.8 | Y197: 14.24 | Z197: 1.2 | AA197: 0.56 | AB197: 1.68 | AC197: 14.8 | AD197: 7.92 | AE197: 9.12 | AF197: 11 | AG197: 25.75497008 | AH197: 14537 | AI197: 12817.5 | AJ197: 0 | AK197: 0 | AL197: 0 | AM197: 0 | AN197: 0 | AO197: [0] | AP197: 0 | AQ197: 0 | AR197: 0 | AS197: 0 | AT197: 0 | AU197: 0 | AV197: 0 | AW197: 0 | AX197: 0 | AY197: 0 | AZ197: 0 | BA197: 0 | BB197: 0 | BC197: 6400.833333 | BD197: 0 | BE197: 0 | BF197: 12817.5 | BG197: 15.22613715 | BH197: 2027.25 | BI197: 31.80160969 | BJ197: 50.07222948 | BK197: 8279 | BL197: 4545 | BM197: 9402 | BN197: 25.16717025 | BO197: 19.52433184 | BP197: 1354.583333 | BQ197: 10.57723065 | BR197: <ArgumentTypeException> | BS197: <ArgumentTypeException> | BT197: 6346.833333 | BU197: 35.91666667 | BV197: 574.9166667 | BW197: 1012.083333 | BX197: 12661.18182 | BY197: 0 | BZ197: 0 | CA197: 1000000000 | CB197: 0 | CC197: not yet
A198: 11 | B198: 15000 | C198: 1 | D198: 0.35 | E198: 0.75 | F198: 47.5 | G198: female abc | H198: 10 | I198: 10 | J198: TRUE | K198: 150 | L198: 120 | M198: 240 | N198: 6 | O198: 36 | P198: TRUE | Q198: Generic | R198: Addis Ababa | S198: TRUE | T198: 0.4 | U198: 4.32 | V198: 18.88 | W198: 3.36 | X198: 18.8 | Y198: 14.24 | Z198: 1.2 | AA198: 0.56 | AB198: 1.68 | AC198: 14.8 | AD198: 7.92 | AE198: 9.12 | AF198: 12 | AG198: 23.05919631 | AH198: 13886 | AI198: 12178 | AJ198: 0 | AK198: 0 | AL198: 0 | AM198: 0 | AN198: 0 | AO198: [0] | AP198: 0 | AQ198: 0 | AR198: 0 | AS198: 0 | AT198: 0 | AU198: 0 | AV198: 0 | AW198: 0 | AX198: 0 | AY198: 0 | AZ198: 0 | BA198: 0 | BB198: 0 | BC198: 6069.25 | BD198: 0 | BE198: 0 | BF198: 12178 | BG198: 15.80439302 | BH198: 2005.666667 | BI198: 33.22771136 | BJ198: 50.09361947 | BK198: 9501 | BL198: 5697 | BM198: 10745 | BN198: 25.29865439 | BO198: 19.90025363 | BP198: 1194.166667 | BQ198: 9.804262865 | BR198: <ArgumentTypeException> | BS198: <ArgumentTypeException> | BT198: 6003.25 | BU198: 46.25 | BV198: 490.4166667 | BW198: 997.5 | BX198: 12177.75 | BY198: 0 | BZ198: 0 | CA198: 1000000000 | CB198: 0 | CC198: not yet
A199: 12 | B199: 15000 | C199: 1 | D199: 0.35 | E199: 0.75 | F199: 47.5 | G199: female abc | H199: 10 | I199: 10 | J199: TRUE | K199: 150 | L199: 120 | M199: 240 | N199: 6 | O199: 36 | P199: TRUE | Q199: Generic | R199: Addis Ababa | S199: TRUE | T199: 0.4 | U199: 4.32 | V199: 18.88 | W199: 3.36 | X199: 18.8 | Y199: 14.24 | Z199: 1.2 | AA199: 0.56 | AB199: 1.68 | AC199: 14.8 | AD199: 7.92 | AE199: 9.12 | AF199: 12 | AG199: 24.19220635 | AH199: 14422 | AI199: 12433.5 | AJ199: 0 | AK199: 0 | AL199: 0 | AM199: 0 | AN199: 0 | AO199: [0] | AP199: 0 | AQ199: 0 | AR199: 0 | AS199: 0 | AT199: 0 | AU199: 0 | AV199: 0 | AW199: 0 | AX199: 0 | AY199: 0 | AZ199: 0 | BA199: 0 | BB199: 0 | BC199: 6227.083333 | BD199: 0 | BE199: 0 | BF199: 12433.5 | BG199: 16.19610078 | BH199: 2106.583333 | BI199: 34.46817362 | BJ199: 50.22188323 | BK199: 9635 | BL199: 5455 | BM199: 10491 | BN199: 24.77619682 | BO199: 19.17502337 | BP199: 1255.916667 | BQ199: 10.10214335 | BR199: <ArgumentTypeException> | BS199: <ArgumentTypeException> | BT199: 6170.25 | BU199: 39.5 | BV199: 496.0833333 | BW199: 1057 | BX199: 12399.58333 | BY199: 0 | BZ199: 0 | CA199: 1000000000 | CB199: 0 | CC199: not yet
A200: 9 | B200: 15000 | C200: 1 | D200: 0.35 | E200: 0.75 | F200: 47.5 | G200: female abc | H200: 10 | I200: 10 | J200: TRUE | K200: 150 | L200: 120 | M200: 240 | N200: 6 | O200: 36 | P200: TRUE | Q200: Generic | R200: Addis Ababa | S200: TRUE | T200: 0.4 | U200: 4.32 | V200: 18.88 | W200: 3.36 | X200: 18.8 | Y200: 14.24 | Z200: 1.2 | AA200: 0.56 | AB200: 1.68 | AC200: 14.8 | AD200: 7.92 | AE200: 9.12 | AF200: 12 | AG200: 25.10348699 | AH200: 14253 | AI200: 12136.25 | AJ200: 0 | AK200: 0 | AL200: 0 | AM200: 0 | AN200: 0 | AO200: [0] | AP200: 0 | AQ200: 0 | AR200: 0 | AS200: 0 | AT200: 0 | AU200: 0 | AV200: 0 | AW200: 0 | AX200: 0 | AY200: 0 | AZ200: 0 | BA200: 0 | BB200: 0 | BC200: 6101.833333 | BD200: 0 | BE200: 0 | BF200: 12136.25 | BG200: 16.86093361 | BH200: 2155.166667 | BI200: 36.25201712 | BJ200: 50.01754017 | BK200: 9386 | BL200: 4993 | BM200: 9804 | BN200: 24.61941788 | BO200: 18.63774655 | BP200: 1191.5 | BQ200: 9.813153905 | BR200: <ArgumentTypeException> | BS200: <ArgumentTypeException> | BT200: 6048.583333 | BU200: 37 | BV200: 517.4166667 | BW200: 1086.416667 | BX200: 12069.16667 | BY200: 0 | BZ200: 0 | CA200: 1000000000 | CB200: 0 | CC200: not yet
... 925 more rows
